Workbook

Sheet Pres & Prop Rev
B2: =IF(Base1_Billing2=2,"BILLED","") -> 
D4: RESIDENTIAL | E4: GENERAL SVC. | F4: GENERAL SVC. | G4: LG. GEN. SVC. | H4: LG. GEN. SVC. | I4: EX LG GEN SVC | J4: EX LG GEN SVC | K4: PUMPING | L4: ST & AREA LTG
C5: TOTAL | D5: SCHEDULE 1,2 | E5: SCH. 11,12 | F5: SCH. 13 | G5: SCH. 21,22 | H5: SCH. 23 | I5: SCHEDULE 25 | J5: SCHEDULE 25I | K5: SCH. 30, 31, 32 | L5: SCH. 41-48 | S5: Print Header for all printed pages on this worksheet:
B6: PRESENT BILL DETERMINANTS | O6: Calculate all revenue exhibits using ____ rates: | S6: ="AVISTA UTILITIES WASHINGTON ELECTRIC PRO FORMA REVENUE UNDER PRESENT AND PROPOSED "&Q9&" RATES 12 MONTHS ENDED SEPTEMBER 30, 2021" -> AVISTA UTILITIES WASHINGTON ELECTRIC PRO FORMA REVENUE UNDER PRESENT AND PROPOSED BASE TARIFF RATES 12 MONTHS ENDED SEPTEMBER 30, 2021
B7: KILOWATT HOURS (KWHS) | N7: 1) | O7: BASE TARIFF
B8: BLOCK 1 | D8: ='Bill Determ'!$B$9 -> 1699114426 | E8: ='Bill Determ'!$B$17 -> 440976955.8 | F8: ='Bill Determ'!$B$27 -> 0 | G8: ='Bill Determ'!$B$38 -> 1176388254 | H8: ='Bill Determ'!$B$49 -> 0 | I8: ='Bill Determ'!$B$58 -> 125726244.4 | J8: ='Bill Determ'!$B$62 -> 6000000 | K8: =SUM('Bill Determ'!$B$68:$C$68) -> 51510333.79 | O8: or | Q8: 1
B9: BLOCK 2 | D9: ='Bill Determ'!$C$9 -> 560062332.6 | E9: ='Bill Determ'!$C$17 -> 206157623.5 | F9: ='Bill Determ'!$C$27 -> 0 | G9: ='Bill Determ'!$C$38 -> 143363345.5 | H9: ='Bill Determ'!$C$49 -> 0 | I9: ='Bill Determ'!$C$58 -> 435765470.9 | J9: ='Bill Determ'!$C$62 -> 66000000 | K9: ='Bill Determ'!$D$68 -> 112757486.3 | N9: 2) | O9: BILLING | Q9: =CHOOSE(Base1_Billing2,O7,O9) -> BASE TARIFF
B10: BLOCK 3 | D10: ='Bill Determ'!$D$9 -> 314000634.3 | I10: ='Bill Determ'!$D$58 -> 0 | J10: ='Bill Determ'!$D$62 -> 387738120 | Q10: =CHOOSE(Base1_Billing2,"Base","Billing") -> Base
B11: BLOCK 4
B12: STREET & AREA LIGHTS | L12: ='REVRUNS 12ME0921'!P341 -> 16979796.48
B14: SUBTOTAL | C14: =SUM(D14:L14) -> 5742541023 | D14: =SUM(D8:D12) -> 2573177392 | E14: 647134579.3 | F14: =SUM(F8:F12) -> 0 | G14: 1319751600 | H14: =SUM(H8:H12) -> 0 | I14: =SUM(I8:I12) -> 561491715.3 | J14: =SUM(J8:J12) -> 459738120 | K14: 164267820 | L14: 16979796.48
B17: SUBTOTAL | C17: =SUM(D17:L17) -> 5742541023 | D17: =D14+D15 -> 2573177392 | E17: 647134579.3 | F17: =F14+F15 -> 0 | G17: 1319751600 | H17: =H14+H15 -> 0 | I17: 561491715.3 | J17: =J14+J15 -> 459738120 | K17: 164267820 | L17: 16979796.48
B18: ADJUSTMENT TO ACTUAL | C18: =SUM(D18:L18) -> 0 | D18: ='Bill Determ'!$E$11 -> 0 | E18: ='Bill Determ'!$D$21 -> 0 | F18: ='Bill Determ'!$D$21 -> 0 | G18: ='Bill Determ'!$D$43 -> 0 | H18: ='Bill Determ'!$D$43 -> 0 | I18: 0 | J18: 0 | K18: ='Bill Determ'!$E$70 -> 0 | L18: 0
B20: TOTAL BEFORE ADJUSTMENT | C20: =SUM(D20:L20) -> 5742541023 | D20: =D17+D18 -> 2573177392 | E20: 647134579.3 | F20: =F17+F18 -> 0 | G20: 1319751600 | H20: =H17+H18 -> 0 | I20: 561491715.3 | J20: =J17+J18 -> 459738120 | K20: 164267820 | L20: 16979796.48
B21: WEATHER & UNBILLED ADJ. KWHS | C21: =SUM(D21:L21) -> -106488975 | D21: =D142+D145 -> -73774001 | E21: -12331152 | F21: =F142+F145 -> 0 | G21: -19392888 | H21: =H142+H145 -> 0 | I21: 0 | J21: =J142+J145 -> 0 | K21: -990934 | L21: 0
B23: TOTAL PROFORMA KWHS | C23: =IF(ROUND(SUM(D23:L23),3)<>ROUND(SUM(C20:C21),3),#VALUE!,SUM(D23:L23)) -> 5636052048 | D23: =D20+D21 -> 2499403391 | E23: 634803427.3 | F23: =F20+F21 -> 0 | G23: 1300358712 | H23: =H20+H21 -> 0 | I23: 561491715.3 | J23: =J20+J21 -> 459738120 | K23: 163276886 | L23: 16979796.48
B25: TOTAL BILLS | D25: ='Bill Determ'!$F$9 -> 2681552 | E25: ='Bill Determ'!$F$17 -> 403355 | F25: ='Bill Determ'!$F$27 -> 0 | G25: ='Bill Determ'!$F$38 -> 21942 | H25: ='Bill Determ'!$F$29 -> 0 | I25: ='Bill Determ'!$G$58 -> 252 | J25: ='Bill Determ'!$G$62 -> 12 | K25: ='Bill Determ'!$F$66 -> 30331
B26: MINIMUM BILLS
B27: EXCESS DEMAND | E27: ='Bill Determ'!$E$17 -> 555536.7062 | F27: ='Bill Determ'!$E$27 -> 0 | G27: ='Bill Determ'!$E$38 -> 2822572.714 | H27: ='Bill Determ'!$E$49 -> 0 | I27: ='Bill Determ'!$F$58+'Bill Determ'!F59 -> 475862.632 | J27: ='Bill Determ'!$F$62 -> 703831.31
B29: PROPOSED BILL DETERMINANTS
B30: KILOWATT HOURS (KWHS)
B31: BLOCK 1 | D31: =D8 -> 1699114426 | E31: 440976955.8 | F31: =F8 -> 0 | G31: 1176388254 | H31: =H8 -> 0 | I31: 125726244.4 | J31: =J8 -> 6000000 | K31: 51510333.79 | L31: 0
B32: BLOCK 2 | D32: =D9 -> 560062332.6 | E32: 206157623.5 | F32: =F9 -> 0 | G32: 143363345.5 | H32: =H9 -> 0 | I32: ='Bill Determ'!$C$58 -> 435765470.9 | J32: ='Bill Determ'!$C$62 -> 66000000 | K32: 112757486.3 | L32: 0
B33: BLOCK 3 | D33: 314000634.3 | E33: 0 | F33: =F10 -> 0 | G33: 0 | H33: =H10 -> 0 | I33: ='Bill Determ'!$D$58 -> 0 | J33: ='Bill Determ'!$D$62 -> 387738120 | K33: 0 | L33: 0
B34: BLOCK 4 | D34: 0 | E34: 0 | F34: =F11 -> 0 | G34: 0 | H34: =H11 -> 0 | I34: 0 | J34: =J11 -> 0 | K34: 0 | L34: 0
B35: STREET & AREA LIGHTS | D35: 0 | E35: 0 | F35: =F12 -> 0 | G35: 0 | H35: =H12 -> 0 | I35: 0 | J35: =J12 -> 0 | K35: 0 | L35: =L12 -> 16979796.48
B37: SUBTOTAL | C37: =SUM(D37:L37) -> 5742541023 | D37: =SUM(D31:D35) -> 2573177392 | E37: 647134579.3 | F37: =SUM(F31:F35) -> 0 | G37: 1319751600 | H37: =SUM(H31:H35) -> 0 | I37: 561491715.3 | J37: =SUM(J31:J35) -> 459738120 | K37: 164267820 | L37: 16979796.48
C38: =SUM(D38:L38) -> 0 | D38: =D15 -> 0 | E38: 0 | F38: =F15 -> 0 | G38: 0 | H38: =H15 -> 0 | I38: 0 | J38: =J15 -> 0 | K38: 0 | L38: 0
B40: SUBTOTAL | C40: =SUM(D40:L40) -> 5742541023 | D40: =D37+D38 -> 2573177392 | E40: 647134579.3 | F40: =F37+F38 -> 0 | G40: 1319751600 | H40: =H37+H38 -> 0 | I40: 561491715.3 | J40: =J37+J38 -> 459738120 | K40: 164267820 | L40: 16979796.48
B41: ADJUSTMENT TO ACTUAL | C41: =SUM(D41:L41) -> 0 | D41: =D18 -> 0 | E41: 0 | F41: =F18 -> 0 | G41: 0 | H41: =H18 -> 0 | I41: 0 | J41: =J18 -> 0 | K41: 0 | L41: 0
B43: TOTAL BEFORE ADJUSTMENT | C43: =SUM(D43:L43) -> 5742541023 | D43: =D40+D41 -> 2573177392 | E43: 647134579.3 | F43: =F40+F41 -> 0 | G43: 1319751600 | H43: =H40+H41 -> 0 | I43: 561491715.3 | J43: =J40+J41 -> 459738120 | K43: 164267820 | L43: 16979796.48
B44: WEATHER & UNBILLED ADJ. KWHS | C44: =SUM(D44:L44) -> -106488975 | D44: =D21 -> -73774001 | E44: -12331152 | F44: =F21 -> 0 | G44: -19392888 | H44: =H21 -> 0 | I44: 0 | J44: =J21 -> 0 | K44: -990934 | L44: 0
B46: TOTAL PROFORMA KWHS | C46: =IF(ROUND(SUM(D46:L46),3)<>ROUND(SUM(C43:C44),3),#VALUE!,SUM(D46:L46)) -> 5636052048 | D46: =D43+D44 -> 2499403391 | E46: 634803427.3 | F46: =F43+F44 -> 0 | G46: 1300358712 | H46: =H43+H44 -> 0 | I46: 561491715.3 | J46: =J43+J44 -> 459738120 | K46: 163276886 | L46: 16979796.48
B48: TOTAL BILLS | D48: =D25 -> 2681552 | E48: 403355 | F48: 0 | G48: 21942 | H48: 0 | I48: 252 | J48: 12 | K48: 30331
B49: MINIMUM BILLS
B50: EXCESS DEMAND | E50: =E27 -> 555536.7062 | F50: 0 | G50: 2822572.714 | H50: 0 | I50: 475862.632 | J50: =J27 -> 703831.31
D55: 1 | E55: 2 | F55: 3 | G55: 4 | H55: 5 | I55: 6 | J55: 7 | K55: 8 | L55: 9 | O55: =SUMPRODUCT(--(ISBLANK(D55:L55))) -> 0
D56: =D$4 -> RESIDENTIAL | E56: GENERAL SVC. | F56: GENERAL SVC. | G56: LG. GEN. SVC. | H56: LG. GEN. SVC. | I56: EX LG GEN SVC | J56: EX LG GEN SVC | K56: PUMPING | L56: ST & AREA LTG | O56: ="selected in cell "&CELL("address",Base1_Billing2)&":" -> selected in cell $Q$8:
C57: TOTAL | D57: =D$5 -> SCHEDULE 1,2 | E57: SCH. 11,12 | F57: SCH. 13 | G57: SCH. 21,22 | H57: SCH. 23 | I57: SCHEDULE 25 | J57: SCHEDULE 25I | K57: SCH. 30, 31, 32 | L57: SCH. 41-48 | O57: =Q10 -> Base
B58: PRESENT RATES | O58: ="Rates_"&$O$57&"_Present" -> Rates_Base_Present | Q58: - range name where Present Rates table can be found
B59: BASIC CHARGE | D59: =INDEX(INDIRECT($O$58),$N59,D$55) -> 9 | E59: 20 | F59: 20 | G59: 0 | H59: 550 | I59: 0 | J59: 0 | K59: 20 | L59: 0 | N59: 1 | O59: ="Rates_"&$O$57&"_Proposed" -> Rates_Base_Proposed | Q59: - range name where Proposed Rates table can be found
B60: MONTHLY MINIMUM
B62: BLOCK 1 PER KWH | D62: =INDEX(INDIRECT($O$58),$N62,D$55) -> 8.519 | E62: 11.936 | F62: 21.108 | G62: 7.714 | H62: 16.333 | I62: 5.747 | J62: 4.662 | K62: 10.646 | L62: 0 | N62: 2
B63: BLOCK 2 PER KWH | D63: 9.911 | E63: 8.771 | F63: 8.588 | G63: 6.902 | H63: 6.742 | I63: 5.17 | J63: 4.195 | K63: 7.603 | L63: 0 | N63: 3
B64: BLOCK 3 PER KWH | D64: 11.621 | E64: 0 | F64: 0 | G64: 0 | H64: 0 | I64: 4.235 | J64: 3.587 | K64: 0 | L64: 0 | N64: 4
B65: BLOCK 4 PER KWH | N65: 5
B67: ADJUST TO ACTUAL PER KWH | D67: =(D124-D111)/D14*100 -> 9.200506351 | E67: =(E124-E111-SUM(E117:E120))/E14*100 -> 10.92772614 | F67: 0 | G67: =(G124-G111-SUM(G117:G120))/G14*100 -> 7.625793222 | H67: 0 | K67: =(K124-K111-SUM(K117:K120))/K14*100 -> 8.557209693
B69: DEMAND BLOCK 1 | D69: =INDEX(INDIRECT($O$58),$N69,D$55) -> 0 | E69: 0 | F69: 0 | G69: 550 | H69: 0 | I69: 30650 | J69: 30650 | K69: 0 | L69: 0 | N69: 6
B70: DEMAND BLOCK 2 | D70: 0 | E70: 7 | F70: 0 | G70: 7 | H70: 0 | I70: 8.3 | J70: 8.3 | K70: 0 | L70: 0 | N70: 7
B75: PROPOSED RATES
B76: BASIC CHARGE | D76: =INDEX(INDIRECT($O$59),$N76,D$55) -> 9 | E76: =INDEX(INDIRECT($O$59),$N76,E$55) -> 21 | F76: =INDEX(INDIRECT($O$59),$N76,F$55) -> 21 | H76: =INDEX(INDIRECT($O$59),$N76,H$55) -> 600 | K76: =INDEX(INDIRECT($O$59),$N76,K$55) -> 21 | N76: 1
B77: MONTHLY MINIMUM
B79: BLOCK 1 PER KWH | D79: =INDEX(INDIRECT($O$59),$N79,D$55) -> 9.486 | E79: 12.379 | F79: 21.89 | G79: 7.927 | H79: 16.784 | I79: 5.906 | J79: 4.782 | K79: 11.763 | N79: 2
B80: BLOCK 2 PER KWH | D80: 11.035 | E80: 9.096 | F80: 8.906 | G80: 7.092 | H80: 6.928 | I80: 5.313 | J80: 4.303 | K80: 8.401 | N80: 3
B81: BLOCK 3 PER KWH | D81: =INDEX(INDIRECT($O$59),$N81,D$55) -> 12.94 | I81: =INDEX(INDIRECT($O$59),$N81,I$55) -> 4.352 | J81: =INDEX(INDIRECT($O$59),$N81,J$55) -> 3.679 | N81: 4
B82: BLOCK 4 PER KWH | N82: 5
B84: ADJUST TO ACTUAL PER KWH | D84: =(D177-D164)/D37*100 -> 10.24463201 | E84: =(E177-E164-SUM(E170:E173))/E37*100 -> 11.33313489 | F84: 0 | G84: =(G177-G164-SUM(G170:G173))/G37*100 -> 7.836294754 | H84: 0 | K84: =(K177-K164-SUM(K170:K173))/K37*100 -> 9.455240214
B86: DEMAND BLOCK 1 | G86: =INDEX(INDIRECT($O$59),$N86,G$55) -> 600 | H86: 0 | I86: 30650 | J86: 30650 | N86: 6
B87: DEMAND BLOCK 2 | E87: =INDEX(INDIRECT($O$59),$N87,E$55) -> 7.5 | F87: =INDEX(INDIRECT($O$59),$N87,F$55) -> 0 | G87: 7.5 | H87: 0 | I87: 8.3 | J87: 8.3 | N87: 7
B95: =CHOOSE(Base1_Billing2,"Note: Rates do not include BPA Residential Exchange Program Schedule 59, Decoupling Schedule 75, Tax Credit Schedule 76, Public Purpose Adjustment Schedules 89,91,92, REC Revenue Adjustment Schedule 98 or Power Cost Surcharge Schedule 93.","") -> Note: Rates do not include BPA Residential Exchange Program Schedule 59, Decoupling Schedule 75, Tax Credit Schedule 76, Public Purpose Adjustment Schedules 89,91,92, REC Revenue Adjustment Schedule 98 or Power Cost Surcharge Schedule 93.
D107: =D$4 -> RESIDENTIAL | E107: GENERAL SVC. | F107: GENERAL SVC. | G107: LG. GEN. SVC. | H107: LG. GEN. SVC. | I107: EX LG GEN SVC | J107: EX LG GEN SVC | K107: PUMPING | L107: ST & AREA LTG
C108: TOTAL | D108: =D$5 -> SCHEDULE 1,2 | E108: SCH. 11,12 | F108: SCH. 13 | G108: SCH. 21,22 | H108: SCH. 23 | I108: SCHEDULE 25 | J108: SCHEDULE 25I | K108: SCH. 30, 31, 32 | L108: SCH. 41-48
B109: PRESENT REVENUE
B110: =UPPER(CHOOSE(Base1_Billing2,$Q$9,$Q$10))&" REVENUE" -> BASE TARIFF REVENUE
B111: BASIC CHARGE | C111: =SUM(D111:L111) -> 32807688 | D111: =D25*D59 -> 24133968 | E111: =E25*E59 -> 8067100 | F111: =F25*F59 -> 0 | H111: =H25*H59 -> 0 | K111: =K25*K59 -> 606620
B112: MONTHLY MINIMUM | C112: 0
B113: BLOCK 1 | C113: 301118154.7 | D113: =ROUND(D8*D62/100,2) -> 144747557.9 | E113: 52635009.44 | F113: =ROUND(F8*F62/100,2) -> 0 | G113: 90746589.94 | H113: =ROUND(H8*H62/100,2) -> 0 | I113: =ROUND(I8*I62/100,2) -> 7225487.27 | J113: =ROUND(J8*J62/100,2) -> 279720 | K113: 5483790.14
B114: BLOCK 2 | C114: 117355527.6 | D114: 55507777.78 | E114: 18082085.15 | F114: =ROUND(F9*F63/100,2) -> 0 | G114: 9894938.11 | H114: =ROUND(H9*H63/100,2) -> 0 | I114: =ROUND(I9*I63/100,2) -> 22529074.84 | J114: =ROUND(J9*J63/100,2) -> 2768700 | K114: 8572951.68
B115: BLOCK 3 | C115: 50398180.07 | D115: =ROUND(D10*D64/100,2) -> 36490013.71 | I115: 0 | J115: =ROUND(J10*J64/100,2) -> 13908166.36
B116: BLOCK 4 | C116: 0
B117: DEMAND BLOCK 1 | C117: 20159700 | G117: =G25*G69 -> 12068100 | I117: =I25*I69 -> 7723800 | J117: =J25*J69 -> 367800
B118: DEMAND BLOCK 2 | C118: 33438225.66 | E118: =E27*E70 -> 3888756.943 | G118: 19758009 | I118: 3949659.846 | J118: 5841799.873
B119: POWER FACTOR ADJUSTMENT | C119: 174577.77 | E119: ='Bill Determ'!G17*0.5 -> 0 | F119: ='Bill Determ'!G27*0.5 -> 0 | G119: =('Bill Determ'!G38)*0.5 -> 174577.77 | H119: =('Bill Determ'!G49)*0.5 -> 0 | K119: ='Bill Determ'!G66*0.5 -> 0
B120: PRIMARY VOLTAGE DISCOUNT | C120: -1664472.374 | G120: ='REVRUNS 12ME0921'!P441+'REVRUNS 12ME0921'!P448 -> -60832.87 | H120: ='REVRUNS 12ME0921'!P455 -> 0 | I120: ='WA Sch 25'!P108 -> -210365.7126 | J120: ='WA Sch 25'!P119 -> -1393273.792
B121: ANNUAL MINIMUM ADJUSTMENT | C121: 0 | I121: ='WA Sch 25'!T161 -> 0
B122: STREET & AREA LIGHT REVENUE | C122: 6900605.642 | L122: ='Lighting summary'!D19 -> 6900605.642
B124: SUBTOTAL | C124: =IF(ROUND(SUM(C111:C122),3)<>ROUND(SUM(D124:L124),3),#VALUE!,SUM(D124:L124)) -> 560688187 | D124: =SUM(D111:D122) -> 260879317.4 | E124: 82672951.53 | F124: =SUM(F111:F122) -> 0 | G124: 132581381.9 | H124: =SUM(H111:H122) -> 0 | I124: 41217656.24 | J124: =SUM(J111:J122) -> 21772912.44 | K124: 14663361.82 | L124: 6900605.642
C125: =SUM(D125:L125) -> 0 | D125: =ROUND(D15*D67/100,2) -> 0 | E125: =ROUND(E15*E67/100,2) -> 0 | F125: =ROUND(F15*F67/100,2) -> 0 | G125: =ROUND(G15*G67/100,2) -> 0 | H125: =ROUND(H15*H67/100,2) -> 0 | I125: =ROUND(I15*I63/100,2) -> 0 | J125: =ROUND(J15*J63/100,2) -> 0 | K125: =ROUND(K15*K67/100,2) -> 0
B127: SUBTOTAL | C127: =SUM(D127:L127) -> 560688187 | D127: =D124+D125 -> 260879317.4 | E127: 82672951.53 | F127: =F124+F125 -> 0 | G127: 132581381.9 | H127: =H124+H125 -> 0 | I127: 41217656.24 | J127: =J124+J125 -> 21772912.44 | K127: 14663361.82 | L127: 6900605.642
B128: ADJUST TO ACTUAL | C128: =SUM(D128:L128) -> 0 | D128: =ROUND(D18*D67/100,2) -> 0 | E128: 0 | F128: =ROUND(F18*F67/100,2) -> 0 | G128: 0 | H128: =ROUND(H18*H67/100,2) -> 0 | I128: 0 | J128: =ROUND(J18*J67/100,2) -> 0 | K128: 0 | L128: 0
B130: ="TOTAL "&UPPER(CHOOSE(Base1_Billing2,$Q$9,$Q$10))&" REVENUE" -> TOTAL BASE TARIFF REVENUE | C130: =IF(ROUND(SUM(D130:L130),3)<>ROUND(SUM(C127:C128),3),#VALUE!,SUM(D130:L130)) -> 560688187 | D130: =D127+D128 -> 260879317.4 | E130: 82672951.53 | F130: =F127+F128 -> 0 | G130: 132581381.9 | H130: =H127+H128 -> 0 | I130: 41217656.24 | J130: =J127+J128 -> 21772912.44 | K130: 14663361.82 | L130: 6900605.642
B132: ADJUSTMENT REVENUE
B133: UNBILLED REVENUE ADJUSTMENT | O133: =D8/$D$14 -> 0.660317641 | Q133: =$D$134*O133 -> -7537527.192 | S133: =Q133*(D62/100) -> -642121.9415
B134: UNBILLED LOAD KWHS | C134: =SUM(D134:L134) -> -16518266 | D134: ='REVRUNS 12ME0921'!P395 -> -11415002 | E134: ='REVRUNS 12ME0921'!P396 -> -962561 | F134: ='REVRUNS 12ME0921'!P397 -> 0 | G134: ='REVRUNS 12ME0921'!P398 -> -3149769 | H134: ='REVRUNS 12ME0921'!P399 -> 0 | K134: ='REVRUNS 12ME0921'!P402 -> -990934 | O134: =D9/$D$14 -> 0.2176539924 | Q134: =$D$134*O134 -> -2484520.758 | S134: =Q134*(D63/100) -> -246240.8524
B135: UNBILLED LOAD RATE | D135: =D67 -> 9.200506351 | E135: =E67 -> 10.92772614 | F135: =F67 -> 0 | G135: =G67 -> 7.625793222 | H135: =H67 -> 0 | K135: =K67 -> 8.557209693 | O135: =D10/$D$14 -> 0.1220283666 | Q135: =$D$134*O135 -> -1392954.049 | S135: =Q135*(D64/100) -> -161875.1901
B136: UNBILLED LOAD REVENUE | C136: =SUM(D136:L136) -> -1480415.18 | D136: =ROUND(D134*D135/100,2) -> -1050237.98 | E136: =ROUND(E134*E135/100,2) -> -105186.03 | F136: =ROUND(F134*F135/100,2) -> 0 | G136: =ROUND(G134*G135/100,2) -> -240194.87 | H136: =ROUND(H134*H135/100,2) -> 0 | K136: =ROUND(K134*K135/100,2) -> -84796.3 | O136: =SUM(O133:O135) -> 1 | Q136: =SUM(Q133:Q135) -> -11415002 | S136: =SUM(S133:S135) -> -1050237.984
B138: WEATHER-SENSITIVE KWHS | C138: =SUM(D138:L138) -> 0 | D138: 0 | E138: 0 | F138: 0 | G138: 0 | H138: 0
B139: WEATHER-SENSITIVE RATE | D139: =I226 -> 10.21502851 | E139: =I245 -> 8.771 | F139: =J245 -> 0 | G139: =G278 -> 7.316956161 | H139: =H278 -> 0
B140: WEATHER-SENSITIVE REVENUE | C140: =SUM(D140:L140) -> 0 | D140: =ROUND(D138*D139/100,2) -> 0 | E140: =ROUND(E138*E139/100,2) -> 0 | F140: =ROUND(F138*F139/100,2) -> 0 | G140: =ROUND(G138*G139/100,2) -> 0 | H140: =ROUND(H138*H139/100,2) -> 0
B142: TOTAL UNBILLED KWH ADJUST | C142: =IF(ROUND(C134+C138,3)<>ROUND(SUM(D142:L142),3),#VALUE!,C134+C138) -> -16518266 | D142: =D134+D138 -> -11415002 | E142: =E134+E138 -> -962561 | F142: =F134+F138 -> 0 | G142: =G134+G138 -> -3149769 | H142: =H134+H138 -> 0 | K142: =K134+K138 -> -990934 | L142: =L134+L138 -> 0
B143: TOTAL UNBILLED REVENUE ADJ | C143: =IF(ROUND(C136+C140,3)<>ROUND(SUM(D143:L143),3),#VALUE!,C136+C140) -> -1480415.18 | D143: =D136+D140 -> -1050237.98 | E143: =E136+E140 -> -105186.03 | F143: =F136+F140 -> 0 | G143: =G136+G140 -> -240194.87 | H143: =H136+H140 -> 0 | K143: =K136+K140 -> -84796.3
B144: WEATHER NORMALIZATION ADJ
B145: WEATHER-SENSITIVE KWHS | C145: =SUM(D145:L145) -> -89970709 | D145: -62358999 | E145: -11368591 | F145: 0 | G145: -16243119 | H145: 0
B146: WEATHER-SENSITIVE RATE | D146: =I226 -> 10.21502851 | E146: =I245 -> 8.771 | F146: =J245 -> 0 | G146: =G278 -> 7.316956161 | H146: =H278 -> 0
B147: WEATHER-SENSITIVE REVENUE | C147: =SUM(D147:L147) -> -8555630.54 | D147: =ROUND(D145*D146/100,2) -> -6369989.52 | E147: =ROUND(E145*E146/100,2) -> -997139.12 | F147: =ROUND(F145*F146/100,2) -> 0 | G147: =ROUND(G145*G146/100,2) -> -1188501.9 | H147: =ROUND(H145*H146/100,2) -> 0
B149: TOTAL ADJUSTMENT REVENUE | C149: =IF(ROUND(C143+C147,3)<>ROUND(SUM(D149:L149),3),#VALUE!,C143+C147) -> -10036045.72 | D149: =D147+D143 -> -7420227.5 | E149: =E147+E143 -> -1102325.15 | F149: =F147+F143 -> 0 | G149: =G147+G143 -> -1428696.77 | H149: =H147+H143 -> 0 | K149: =K147+K143 -> -84796.3
B150: =B130 -> TOTAL BASE TARIFF REVENUE | C150: =C130 -> 560688187 | D150: =D130 -> 260879317.4 | E150: 82672951.53 | F150: =F130 -> 0 | G150: 132581381.9 | H150: =H130 -> 0 | I150: 41217656.24 | J150: =J130 -> 21772912.44 | K150: 14663361.82 | L150: 6900605.642
B152: TOTAL PRESENT REVENUE | C152: =IF(ROUND(C149+C150,3)<>ROUND(SUM(D152:L152),3),#VALUE!,SUM(D152:L152)) -> 550652141.3 | D152: =D149+D150 -> 253459089.9 | E152: 81570626.38 | F152: =F149+F150 -> 0 | G152: 131152685.2 | H152: =H149+H150 -> 0 | I152: 41217656.24 | J152: =J149+J150 -> 21772912.44 | K152: 14578565.52 | L152: 6900605.642
D160: =D$4 -> RESIDENTIAL | E160: GENERAL SVC. | F160: GENERAL SVC. | G160: LG. GEN. SVC. | H160: LG. GEN. SVC. | I160: EX LG GEN SVC | J160: EX LG GEN SVC | K160: PUMPING | L160: ST & AREA LTG
C161: TOTAL | D161: =D$5 -> SCHEDULE 1,2 | E161: SCH. 11,12 | F161: SCH. 13 | G161: SCH. 21,22 | H161: SCH. 23 | I161: SCHEDULE 25 | J161: SCHEDULE 25I | K161: SCH. 30, 31, 32 | L161: SCH. 41-48
B162: PROPOSED REVENUE
B163: =UPPER(CHOOSE(Base1_Billing2,$Q$9,$Q$10))&" REVENUE" -> BASE TARIFF REVENUE
B164: BASIC CHARGE | C164: =SUM(D164:L164) -> 33241374 | D164: =D48*D76 -> 24133968 | E164: =E48*E76 -> 8470455 | F164: =F48*F76 -> 0 | H164: =H48*H76 -> 0 | K164: =K48*K76 -> 636951
B165: MONTHLY MINIMUM | C165: 0 | D165: =D49*D77 -> 0
B166: BLOCK 1 | C166: 322790301.2 | D166: =ROUND(D31*D79/100,2) -> 161177994.4 | E166: 54588537.36 | F166: =ROUND(F31*F79/100,2) -> 0 | G166: 93252296.92 | H166: =ROUND(H31*H79/100,2) -> 0 | I166: 7425391.99 | J166: =ROUND(J31*J79/100,2) -> 286920 | K166: =ROUND(K31*K79/100,2) -> 6059160.56
B167: BLOCK 2 | C167: 126187260.2 | D167: 61802878.4 | E167: 18752097.43 | F167: =ROUND(F32*F80/100,2) -> 0 | G167: 10167328.46 | H167: =ROUND(H32*H80/100,2) -> 0 | I167: 23152219.47 | J167: =ROUND(J32*J80/100,2) -> 2839980 | K167: 9472756.42
B168: BLOCK 3 | C168: 54896567.51 | D168: =ROUND(D33*D81/100,2) -> 40631682.08 | I168: 0 | J168: =ROUND(J33*J81/100,2) -> 14264885.43
B169: BLOCK 4 | C169: 0 | D169: =ROUND(D34*D82/100,2) -> 0
B170: DEMAND BLOCK 1 | C170: 21256800 | G170: =ROUND(G48*G86,2) -> 13165200 | I170: =ROUND(I48*I86,2) -> 7723800 | J170: =ROUND(J48*J86,2) -> 367800
B171: DEMAND BLOCK 2 | C171: 35127280.37 | E171: =ROUND(E50*E87,2) -> 4166525.3 | G171: 21169295.35 | I171: 3949659.85 | J171: 5841799.87
B172: POWER FACTOR ADJUSTMENT | C172: 174577.77 | E172: =E119 -> 0 | F172: =F119 -> 0 | G172: =G119 -> 174577.77 | H172: =H119 -> 0 | K172: =K119 -> 0
B173: PRIMARY VOLTAGE DISCOUNT | C173: -1664472.374 | G173: =G120 -> -60832.87 | H173: =H120 -> 0 | I173: ='WA Sch 25'!P113 -> -210365.7126 | J173: ='WA Sch 25'!P124 -> -1393273.792
B174: ANNUAL MINIMUM ADJUSTMENT | C174: 0 | I174: 0 | J174: 0
B175: STREET & AREA LIGHT REVENUE | C175: 7609377.842 | L175: ='Lighting summary'!G19 -> 7609377.842
B177: SUBTOTAL | C177: =IF(ROUND(SUM(C164:C175),3)<>ROUND(SUM(D177:L177),3),#VALUE!,SUM(D177:L177)) -> 599619066.5 | D177: =SUM(D164:D175) -> 287746522.9 | E177: 85977615.09 | F177: =SUM(F164:F175) -> 0 | G177: 137867865.6 | H177: =SUM(H164:H175) -> 0 | I177: 42040705.6 | J177: =SUM(J164:J175) -> 22208111.51 | K177: 16168867.98 | L177: 7609377.842
C178: =SUM(D178:L178) -> 0 | D178: =ROUND(D38*D84/100,2) -> 0 | E178: =ROUND(E38*E84/100,2) -> 0 | F178: =ROUND(F38*F84/100,2) -> 0 | G178: =ROUND(G38*G84/100,2) -> 0 | H178: =ROUND(H38*H84/100,2) -> 0 | I178: =ROUND(I38*I80/100,2) -> 0 | J178: =ROUND(J38*J80/100,2) -> 0 | K178: =ROUND(K38*K84/100,2) -> 0 | L178: 0
B180: SUBTOTAL | C180: =SUM(D180:L180) -> 599619066.5 | D180: =D177+D178 -> 287746522.9 | E180: 85977615.09 | F180: =F177+F178 -> 0 | G180: 137867865.6 | H180: =H177+H178 -> 0 | I180: 42040705.6 | J180: =J177+J178 -> 22208111.51 | K180: 16168867.98 | L180: 7609377.842
B181: ADJUST TO ACTUAL | C181: =SUM(D181:L181) -> 0 | D181: =ROUND(D41*D84/100,2) -> 0 | E181: 0 | F181: =ROUND(F41*F84/100,2) -> 0 | G181: 0 | H181: =ROUND(H41*H84/100,2) -> 0 | I181: 0 | J181: =ROUND(J41*J84/100,2) -> 0 | K181: 0 | L181: 0
B183: ="SUBTOTAL "&UPPER(CHOOSE(Base1_Billing2,$Q$9,$Q$10))&" REVENUE" -> SUBTOTAL BASE TARIFF REVENUE | C183: =IF(ROUND(SUM(D183:L183),3)<>ROUND(SUM(C180:C181),3),#VALUE!,SUM(D183:L183)) -> 599619066.5 | D183: =D180+D181 -> 287746522.9 | E183: 85977615.09 | F183: =F180+F181 -> 0 | G183: 137867865.6 | H183: =H180+H181 -> 0 | I183: 42040705.6 | J183: =J180+J181 -> 22208111.51 | K183: 16168867.98 | L183: 7609377.842
B185: ADJUSTMENT REVENUE
B186: UNBILLED REVENUE ADJUSTMENT
B187: UNBILLED LOAD KWHS | C187: =SUM(D187:L187) -> -16518266 | D187: =D134 -> -11415002 | E187: =E134 -> -962561 | F187: =F134 -> 0 | G187: =G134 -> -3149769 | H187: =H134 -> 0 | K187: =K134 -> -990934
B188: UNBILLED LOAD RATE | D188: =D84 -> 10.24463201 | E188: =E84 -> 11.33313489 | F188: =F84 -> 0 | G188: =G84 -> 7.836294754 | H188: =H84 -> 0 | K188: =K84 -> 9.455240214
B189: UNBILLED LOAD REVENUE | C189: =SUM(D189:L189) -> -1619033.66 | D189: =ROUND(D187*D188/100,2) -> -1169424.95 | E189: =ROUND(E187*E188/100,2) -> -109088.34 | F189: =ROUND(F187*F188/100,2) -> 0 | G189: =ROUND(G187*G188/100,2) -> -246825.18 | H189: =ROUND(H187*H188/100,2) -> 0 | K189: =ROUND(K187*K188/100,2) -> -93695.19
B191: WEATHER-SENSITIVE KWHS | C191: =SUM(D191:L191) -> 0 | D191: =D138 -> 0 | E191: =E138 -> 0 | F191: =F138 -> 0 | G191: =G138 -> 0 | H191: =H138 -> 0
B192: WEATHER-SENSITIVE RATE | D192: =I235 -> 11.37396703 | E192: =I253 -> 9.096 | F192: =J253 -> 0 | G192: =G286 -> 7.51893259 | H192: =H286 -> 0
B193: WEATHER-SENSITIVE REVENUE | C193: =SUM(D193:L193) -> 0 | D193: =ROUND(D191*D192/100,2) -> 0 | E193: =ROUND(E191*E192/100,2) -> 0 | F193: =ROUND(F191*F192/100,2) -> 0 | G193: =ROUND(G191*G192/100,2) -> 0 | H193: =ROUND(H191*H192/100,2) -> 0
B195: TOTAL UNBILLED KWH ADJUST | C195: =IF(ROUND(C187+C191,3)<>ROUND(SUM(D195:L195),3),#VALUE!,SUM(D195:L195)) -> -16518266 | D195: =D187+D191 -> -11415002 | E195: =E187+E191 -> -962561 | F195: =F187+F191 -> 0 | G195: =G187+G191 -> -3149769 | H195: =H187+H191 -> 0 | K195: =K187+K191 -> -990934
B196: TOTAL UNBILLED REVENUE ADJ | C196: =IF(ROUND(C189+C193,3)<>ROUND(SUM(D196:L196),3),#VALUE!,SUM(D196:L196)) -> -1619033.66 | D196: =D189+D193 -> -1169424.95 | E196: =E189+E193 -> -109088.34 | F196: =F189+F193 -> 0 | G196: =G189+G193 -> -246825.18 | H196: =H189+H193 -> 0 | K196: =K189+K193 -> -93695.19
B197: WEATHER NORMALIZATION ADJ
B198: WEATHER-SENSITIVE KWHS | C198: =SUM(D198:L198) -> -89970709 | D198: =D145 -> -62358999 | E198: =E145 -> -11368591 | F198: =F145 -> 0 | G198: =G145 -> -16243119 | H198: =H145 -> 0
B199: WEATHER-SENSITIVE RATE | D199: =I235 -> 11.37396703 | E199: =I253 -> 9.096 | F199: =J253 -> 0 | G199: =G286 -> 7.51893259 | H199: =H286 -> 0
B200: WEATHER-SENSITIVE REVENUE | C200: =SUM(D200:L200) -> -9348088.2 | D200: =ROUND(D198*D199/100,2) -> -7092691.99 | E200: =ROUND(E198*E199/100,2) -> -1034087.04 | F200: =ROUND(F198*F199/100,2) -> 0 | G200: =ROUND(G198*G199/100,2) -> -1221309.17 | H200: =ROUND(H198*H199/100,2) -> 0
B202: TOTAL ADJUSTMENT REVENUE | C202: =IF(ROUND(SUM(D202:L202),3)<>ROUND(C196+C200,3),#VALUE!,SUM(D202:L202)) -> -10967121.86 | D202: =D200+D196 -> -8262116.94 | E202: =E200+E196 -> -1143175.38 | F202: =F200+F196 -> 0 | G202: =G200+G196 -> -1468134.35 | H202: =H200+H196 -> 0 | K202: =K200+K196 -> -93695.19
B203: ="TOTAL "&UPPER(CHOOSE(Base1_Billing2,$Q$9,$Q$10))&" REVENUE" -> TOTAL BASE TARIFF REVENUE | C203: =SUM(D203:L203) -> 599619066.5 | D203: =D183 -> 287746522.9 | E203: 85977615.09 | F203: =F183 -> 0 | G203: 137867865.6 | H203: =H183 -> 0 | I203: 42040705.6 | J203: =J183 -> 22208111.51 | K203: 16168867.98 | L203: 7609377.842
B204: TOTAL PROPOSED REVENUE | C204: =IF(ROUND(SUM(D204:L204),3)<>ROUND(SUM(C202:C203),3),#VALUE!,SUM(D204:L204)) -> 588651944.7 | D204: =D202+D203 -> 279484405.9 | E204: =E202+E203 -> 84834439.71 | F204: =F202+F203 -> 0 | G204: 136399731.3 | H204: =H202+H203 -> 0 | I204: =I202+I203 -> 42040705.6 | J204: =J202+J203 -> 22208111.51 | K204: 16075172.79 | L204: 7609377.842
B205: TOTAL PRESENT REVENUE | C205: =SUM(D205:L205) -> 550652141.3 | D205: =D152 -> 253459089.9 | E205: 81570626.38 | F205: =F152 -> 0 | G205: 131152685.2 | H205: =H152 -> 0 | I205: =I152 -> 41217656.24 | J205: =J152 -> 21772912.44 | K205: 14578565.52 | L205: 6900605.642
B207: TOTAL REVENUE INCREASE | C207: =SUM(D207:L207) -> 37999803.37 | D207: =D204-D205 -> 26025316.05 | E207: 3263813.327 | F207: =F204-F205 -> 0 | G207: 5247046.103 | H207: =H204-H205 -> 0 | I207: 823049.3544 | J207: =J204-J205 -> 435199.067 | K207: 1496607.27 | L207: 708772.2
B208: PERCENT REVENUE INCREASE | C208: =C207/C205 -> 0.06900872715 | D208: =D207/D205 -> 0.1026805393 | E208: 0.04001211553 | F208: =F207/F205 ->  | G208: 0.04000715728 | H208: =H207/H205 ->  | I208: 0.01996836864 | J208: =J207/J205 -> 0.01998809613 | K208: 0.1026580611 | L208: =L207/L205 -> 0.1027115933
B209: =IF(Base1_Billing2=2,"Pres and Prop Revenues may be incorrect due to Sch 59--for example all of Sch 11 gets benefit of Sch 59 but it s/only be Sch 12; see Billing Rev on Exhibit page for fix","") -> 
D216: TOTAL | E216: TOTAL | F216: BASELOAD | G216: BASELOAD | H216: WTHR-SENS. | I216: WTHR-SENS.
C217: RATES | D217: KWHS | E217: REVENUE | F217: KWHS | G217: REVENUE | H217: KWHS | I217: REVENUE
B219: PRESENT BASELOAD AND WEATHER-SENSITIVE RATES
B220: SCHEDULE 1
B221: 0-800 KWHS | C221: =D62 -> 8.519 | D221: =D8 -> 1699114426 | E221: =C221*D221/100 -> 144747557.9 | F221: =MIN(D221,F225) -> 1539210848 | G221: =F221*C221/100 -> 131125372.1 | H221: =D221-F221 -> 159903577.5 | I221: =H221*C221/100 -> 13622185.77 | L221: =H221/$H$225 -> 0.1546506301 | N221: =L221*$D$145 -> -9643858.485 | O221: =N221*(C221/100) -> -821560.3043
B222: 801-1500 KWHS | C222: =D63 -> 9.911 | D222: =D9 -> 560062332.6 | E222: =C222*D222/100 -> 55507777.78 | F222: =MIN(F225-F221,D222) -> 0 | G222: =F222*C222/100 -> 0 | H222: =D222-F222 -> 560062332.6 | I222: =H222*C222/100 -> 55507777.78 | L222: =H222/$H$225 -> 0.5416638823 | N222: =L222*$D$145 -> -33777617.49 | O222: =N222*(C222/100) -> -3347699.67
B223: OVER 100 KWHS | C223: =D64 -> 11.621 | D223: =D10 -> 314000634.3 | E223: =C223*D223/100 -> 36490013.71 | F223: =MIN(F225-F221-F222,D223) -> 0 | G223: =F223*C223/100 -> 0 | H223: =D223-F223 -> 314000634.3 | I223: =H223*C223/100 -> 36490013.71 | L223: =H223/$H$225 -> 0.3036854877 | N223: =L223*$D$145 -> -18937523.02 | O223: =N223*(C223/100) -> -2200729.551
N224: =SUM(N221:N223) -> -62358999 | O224: =SUM(O221:O223) -> -6369989.524
B225: TOTAL | D225: =D221+D222+D223 -> 2573177392 | E225: 236745349.4 | F225: =574*D25 -> 1539210848 | G225: 131125372.1 | H225: 1033966544 | I225: 105619977.3
B226: AVERAGE RATE | E226: =E225/D225*100 -> 9.200506351 | G226: =G225/F225*100 -> 8.519 | I226: =I225/H225*100 -> 10.21502851
B228: PROPOSED BASELOAD AND WEATHER-SENSITIVE RATES
B229: SCHEDULE 1
B230: 0-800 KWHS | C230: =D79 -> 9.486 | D230: =D221 -> 1699114426 | E230: =C230*D230/100 -> 161177994.4 | F230: =MIN(D230,F234) -> 1539210848 | G230: =F230*C230/100 -> 146009541 | H230: =H221 -> 159903577.5 | I230: =H230*C230/100 -> 15168453.37
B231: 801-1500 KWHS | C231: =D80 -> 11.035 | D231: =D222 -> 560062332.6 | E231: =C231*D231/100 -> 61802878.4 | F231: =MIN(F234-F230,D231) -> 0 | G231: =F231*C231/100 -> 0 | H231: =H222 -> 560062332.6 | I231: =H231*C231/100 -> 61802878.4
B232: OVER 1500 KWHS | C232: =D81 -> 12.94 | D232: =D223 -> 314000634.3 | E232: =C232*D232/100 -> 40631682.08 | F232: =MIN(F234-F230-F231,D232) -> 0 | G232: =F232*C232/100 -> 0 | H232: =H223 -> 314000634.3 | I232: =H232*C232/100 -> 40631682.08
B234: TOTAL | D234: =D230+D231+D232 -> 2573177392 | E234: 263612554.9 | F234: =F225 -> 1539210848 | G234: 146009541 | H234: 1033966544 | I234: 117603013.8
B235: AVERAGE RATE | E235: =E234/D234*100 -> 10.24463201 | G235: =G234/F234*100 -> 9.486 | I235: =I234/H234*100 -> 11.37396703
B239: PRESENT BASELOAD AND WEATHER-SENSITIVE RATES
B240: SCHEDULE 11
B241: 0-3650 KWHS | C241: =E62 -> 11.936 | D241: =E8 -> 440976955.8 | E241: =C241*D241/100 -> 52635009.44 | F241: =MIN(D241,F244) -> 440976955.8 | G241: =F241*C241/100 -> 52635009.44 | H241: =D241-F241 -> 0 | I241: =H241*C241/100 -> 0
B242: over 3650 KWHS | C242: =E63 -> 8.771 | D242: =E9 -> 206157623.5 | E242: =C242*D242/100 -> 18082085.15 | F242: =MIN(F244-F241,D242) -> 138240824.2 | G242: =F242*C242/100 -> 12125102.69 | H242: =D242-F242 -> 67916799.27 | I242: =H242*C242/100 -> 5956982.464
B244: TOTAL | D244: =D241+D242 -> 647134579.3 | E244: 70717094.6 | F244: =1436*E25 -> 579217780 | G244: 64760112.13 | H244: 67916799.27 | I244: 5956982.464
B245: AVERAGE RATE | E245: =E244/D244*100 -> 10.92772614 | G245: =G244/F244*100 -> 11.18061537 | I245: =I244/H244*100 -> 8.771
B247: PROPOSED BASELOAD AND WEATHER-SENSITIVE RATES
B248: SCHEDULE 11
B249: 0-3650 KWHS | C249: =E79 -> 12.379 | D249: =E31 -> 440976955.8 | E249: =C249*D249/100 -> 54588537.36 | F249: =MIN(D249,F252) -> 440976955.8 | G249: =F249*C249/100 -> 54588537.36 | H249: =D249-F249 -> 0 | I249: =H249*C249/100 -> 0
B250: over 3650 KWHS | C250: =E80 -> 9.096 | D250: =E32 -> 206157623.5 | E250: =C250*D250/100 -> 18752097.43 | F250: =MIN(F252-F249,D250) -> 138240824.2 | G250: =F250*C250/100 -> 12574385.37 | H250: =D250-F250 -> 67916799.27 | I250: =H250*C250/100 -> 6177712.061
B252: TOTAL | D252: =D249+D250 -> 647134579.3 | E252: 73340634.79 | F252: =F244 -> 579217780 | G252: 67162922.73 | H252: 67916799.27 | I252: 6177712.061
B253: AVERAGE RATE | E253: =E252/D252*100 -> 11.33313489 | G253: =G252/F252*100 -> 11.59545253 | I253: =I252/H252*100 -> 9.096
B261: Note: Total Base Load for Sch. 1 = Base Load per bill times total billings (base load per bill on JDM-E-18) =
B262: ="574 X "&TEXT(D25,"#,##0")&" = "&TEXT(F225,"#,##0") -> 574 X 2,681,552 = 1,539,210,848
B263: ="Total Base Load for Sch. 11 = 1,436 X "&TEXT(E25,"#,##0")&" = "&TEXT(F244,"#,##0") -> Total Base Load for Sch. 11 = 1,436 X 403,355 = 579,217,780
B264: =IF(Base1_Billing2=2,"Pres and Prop Revenues may be incorrect due to Sch 59--for example all of Sch 11 gets benefit of Sch 59 but it s/only be Sch 12; see Billing Rev on Exhibit page for fix","") -> 
D269: TOTAL | E269: TOTAL | F269: BASELOAD | G269: BASELOAD | H269: WTHR-SENS. | I269: WTHR-SENS.
C270: RATES | D270: KWHS | E270: REVENUE | F270: KWHS | G270: REVENUE | H270: KWHS | I270: REVENUE
B272: PRESENT BASELOAD AND WEATHER-SENSITIVE RATES
B273: SCHEDULE 21
B274: 0-250000 KWHS | C274: =G62 -> 7.714 | D274: =G8 -> 1176388254 | E274: =C274*D274/100 -> 90746589.94 | F274: =MIN(D274,F277) -> 1176388254 | G274: =F274*C274/100 -> 90746589.94 | H274: =D274-F274 -> 0 | I274: =H274*C274/100 -> 0
B275: OVER 250000 KWHS | C275: =G63 -> 6.902 | D275: =G9 -> 143363345.5 | E275: =C275*D275/100 -> 9894938.107 | F275: =MIN(F277-F274,D275) -> 143363345.5 | G275: =F275*C275/100 -> 9894938.107 | H275: =D275-F275 -> 0 | I275: =H275*C275/100 -> 0
B277: TOTAL | D277: =D274+D275 -> 1319751600 | E277: =E274+E275 -> 100641528 | F277: =62686*G25 -> 1375456212 | G277: =G274+G275 -> 100641528 | H277: =H274+H275 -> 0 | I277: =I274+I275 -> 0
B278: AVERAGE RATE | E278: =E277/D277*100 -> 7.625793222 | G278: =G277/F277*100 -> 7.316956161 | I278: =I277/H277*100 -> 
B280: PROPOSED BASELOAD AND WEATHER-SENSITIVE RATES
B281: SCHEDULE 21
B282: 0-250000 KWHS | C282: =G79 -> 7.927 | D282: =D274 -> 1176388254 | E282: =C282*D282/100 -> 93252296.92 | F282: =MIN(D282,F285) -> 1176388254 | G282: =F282*C282/100 -> 93252296.92 | H282: =H274 -> 0 | I282: =H282*C282/100 -> 0
B283: OVER 250000 KWHS | C283: =G80 -> 7.092 | D283: =D275 -> 143363345.5 | E283: =C283*D283/100 -> 10167328.46 | F283: =MIN(F285-F282,D283) -> 143363345.5 | G283: =F283*C283/100 -> 10167328.46 | H283: =H275 -> 0 | I283: =H283*C283/100 -> 0
B285: TOTAL | D285: =D282+D283 -> 1319751600 | E285: =E282+E283 -> 103419625.4 | F285: =F277 -> 1375456212 | G285: =G282+G283 -> 103419625.4 | H285: =H282+H283 -> 0 | I285: =I282+I283 -> 0
B286: AVERAGE RATE | G286: =G285/F285*100 -> 7.51893259 | I286: =I285/H285*100 -> 
B294: Note: Total Base Load for Sch. 21 = Base Load per bill times total billings (base load per bill on JDM-E-18) =
B295: ="62,686 X "&TEXT(G25,"#,##0")&" = "&TEXT(F277,"#,##0") -> 62,686 X 21,942 = 1,375,456,212
D298: Sch 001 | E298: Sch 011 | F298: Sch 021 | G298: Sch 25 | H298: Sch 031
D299: =D207/D48 -> 9.705318431 | E299: =E207/E48 -> 8.091664481 | F299: =G207/G48 -> 239.1325359 | G299: =I207/I48 -> 3266.068867 | H299: =K207/K48 -> 49.34249679
D300: =D23/D25 -> 932.0734378 | E300: =E23/E25 -> 1573.808251 | F300: =G23/G25 -> 59263.45419 | G300: =I23/I25 -> 2228141.727 | H300: =K23/K25 -> 5383.168575
D301: =D300*-#REF! ->  | E301: =E300*-#REF! ->  | F301: =F300*-#REF! ->  | G301: =G300*-#REF! ->  | H301: =H300*-#REF! -> 
D302: =(800*((D79-D62)/100))+(118*((D80-D63)/100))+(D76-D59) -> 9.06232
D305: =D299+D301 ->  | E305: =E299+E301 ->  | F305: =F299+F301 ->  | G305: =G299+G301 ->  | H305: =H299+H301 -> 

Sheet Rate Design
A1: PRESENT RATES | D1: 1 | E1: 2 | F1: 3 | G1: 4 | H1: 5 | I1: 6 | J1: 7 | K1: 8 | L1: 9 | Q1: Tiers - used for bill comparisons
C2: TOTAL | D2: SCH. 1,2 | E2: SCH. 11,12 | F2: SCH. 13 | G2: SCH. 21,22 | H2: SCH. 23 | I2: SCH. 25 | J2: SCH. 25I | K2: SCH. 30, 31, 32 | O2: Range Name | Q2: SCHEDULE 1,2 | R2: SCH. 11,12 | S2: SCH. 13 | T2: SCH. 21,22 | U2: SCH. 23 | V2: SCHEDULE 25 | W2: SCHEDULE 25I | X2: SCH. 30, 31, 32
B3: Base Tariff Rates
A4: 1 | B4: BASIC CHARGE | D4: 9 | E4: 20 | F4: 20 | G4: 0 | H4: 550 | I4: 0 | J4: 0 | K4: 20
A5: 2 | B5: BLOCK 1 PER KWH | D5: 8.519 | E5: 11.936 | F5: 21.108 | G5: 7.714 | H5: 16.333 | I5: 5.747 | J5: 4.662 | K5: 10.646 | Q5: 800 | R5: 3650 | S5: 3650 | T5: 250000 | U5: 250000 | V5: 500000 | W5: 500000
A6: 3 | B6: BLOCK 2 PER KWH | D6: 9.911 | E6: 8.771 | F6: 8.588 | G6: 6.902 | H6: 6.742 | I6: 5.17 | J6: 4.195 | K6: 7.603 | Q6: 1500 | R6: 9999999 | S6: 9999999 | T6: 9999999 | U6: 9999999 | V6: 9999999 | W6: 9999999
A7: 4 | B7: BLOCK 3 PER KWH | D7: 11.621 | E7: 0 | F7: 0 | G7: 0 | H7: 0 | I7: 4.235 | J7: 3.587 | K7: 0 | O7: Rates_Base_Present | Q7: 9999999 | R7: 9999999 | S7: 9999999 | T7: 9999999 | U7: 9999999 | V7: 9999999 | W7: 9999999
A8: 5 | B8: BLOCK 4 PER KWH
A9: 6 | B9: DEMAND CHARGE | D9: 0 | E9: 0 | F9: 0 | G9: 550 | H9: 0 | I9: 30650 | J9: 30650 | K9: 0
A10: 7 | B10: DEMAND BLOCK 1 | D10: 0 | E10: 7 | F10: 0 | G10: 7 | H10: 0 | I10: 8.3 | J10: 8.3 | K10: 0 | Q10: 0 | R10: 20 | S10: 20 | T10: 50 | U10: 50 | V10: 3000 | W10: 3000
B12: Billing Rates | D12: =IF(D13<>'Pres & Prop Rev'!D$5,#VALUE!,"") ->  | E12: =IF(E13<>'Pres & Prop Rev'!E$5,#VALUE!,"") ->  | F12: =IF(F13<>'Pres & Prop Rev'!F$5,#VALUE!,"") ->  | G12: =IF(G13<>'Pres & Prop Rev'!G$5,#VALUE!,"") ->  | H12: =IF(H13<>'Pres & Prop Rev'!H$5,#VALUE!,"") ->  | I12: =IF(I13<>'Pres & Prop Rev'!I$5,#VALUE!,"") ->  | J12: =IF(J13<>'Pres & Prop Rev'!J$5,#VALUE!,"") ->  | K12: =IF(K13<>'Pres & Prop Rev'!K$5,#VALUE!,"") -> 
D13: SCHEDULE 1,2 | E13: SCH. 11,12 | F13: SCH. 13 | G13: SCH. 21,22 | H13: SCH. 23 | I13: SCHEDULE 25 | J13: SCHEDULE 25I | K13: SCH. 30, 31, 32
A14: 1 | B14: BASIC CHARGE | D14: =D4 -> 9 | E14: 20 | F14: 20 | G14: 0 | H14: 550 | I14: 0 | J14: 0 | K14: 20
A15: 2 | B15: BLOCK 1 PER KWH | D15: =D5-0.417-0.045-0.428+0.255+0.153-0.015 -> 8.022 | E15: =E5+0.679-0.267+0.321+0.222-0.015 -> 12.876 | F15: =F5+0.679-0.267+0.321+0.222-0.015 -> 22.048 | G15: =G5+0.679-0.192+0.273+0.16-0.016 -> 8.618 | H15: =H5+0.679-0.192+0.273+0.16-0.016 -> 17.237 | I15: =I5-0.25+0.182+0.101-0.016 -> 5.764 | J15: =J5-0.25+0.182+0.101-0.016 -> 4.679 | K15: =K5+0.679-0.365+0.236+0.139-0.016 -> 11.319 | Q15: =Q5 -> 800 | R15: 3650 | S15: 3650 | T15: 250000 | U15: 250000 | V15: 500000 | W15: 500000
A16: 3 | B16: BLOCK 2 PER KWH | D16: =D6-0.417-0.045-0.496+0.255+0.153-0.015 -> 9.346 | E16: =E6+0.679-0.2+0.321+0.222-0.015 -> 9.778 | F16: =F6+0.679-0.2+0.321+0.222-0.015 -> 9.595 | G16: =G6+0.679-0.173+0.273+0.16-0.016 -> 7.825 | H16: =H6+0.679-0.173+0.273+0.16-0.016 -> 7.665 | I16: =I6-0.225+0.182+0.101-0.016 -> 5.212 | J16: =J6-0.225+0.182+0.101-0.016 -> 4.237 | K16: =K6+0.679-0.264+0.236+0.139-0.016 -> 8.377 | Q16: =Q6 -> 1500 | R16: 9999999 | S16: =S6 -> 9999999 | T16: 9999999 | U16: =U6 -> 9999999 | V16: 9999999 | W16: =W6 -> 9999999
A17: 4 | B17: BLOCK 3 PER KWH | D17: =D7-0.417-0.045-0.58+0.255+0.153-0.015 -> 10.972 | I17: =I7+0.182-0.016 -> 4.401 | J17: =J7+0.182-0.016 -> 3.753 | O17: Rates_Billing_Present | Q17: 9999999 | R17: 9999999 | S17: =S7 -> 9999999 | T17: 9999999 | U17: =U7 -> 9999999 | V17: 9999999 | W17: =W7 -> 9999999
A18: 5 | B18: BLOCK 4 PER KWH
A19: 6 | B19: DEMAND CHARGE | G19: =G9 -> 550 | H19: 0 | I19: 30650 | J19: 30650
A20: 7 | B20: DEMAND BLOCK 1 | E20: =E10 -> 7 | F20: =F10 -> 0 | G20: 7 | H20: 0 | I20: 8.3 | J20: 8.3 | Q20: =Q10 -> 0 | R20: 20 | S20: 20 | T20: 50 | U20: 50 | V20: 3000 | W20: 3000
A22: PROPOSED RATES
B24: Base Tariff Rates | D24: =IF(D25<>'Pres & Prop Rev'!D$5,#VALUE!,"") ->  | E24: =IF(E25<>'Pres & Prop Rev'!E$5,#VALUE!,"") ->  | F24: =IF(F25<>'Pres & Prop Rev'!F$5,#VALUE!,"") ->  | G24: =IF(G25<>'Pres & Prop Rev'!G$5,#VALUE!,"") ->  | H24: =IF(H25<>'Pres & Prop Rev'!H$5,#VALUE!,"") ->  | I24: =IF(I25<>'Pres & Prop Rev'!I$5,#VALUE!,"") ->  | J24: =IF(J25<>'Pres & Prop Rev'!J$5,#VALUE!,"") ->  | K24: =IF(K25<>'Pres & Prop Rev'!K$5,#VALUE!,"") -> 
D25: SCHEDULE 1,2 | E25: SCH. 11,12 | F25: SCH. 13 | G25: SCH. 21,22 | H25: SCH. 23 | I25: SCHEDULE 25 | J25: SCHEDULE 25I | K25: SCH. 30, 31, 32 | Z25: Rounding
A26: 1 | B26: BASIC CHARGE | D26: =ROUND(D62,$Z26) -> 9 | E26: 21 | F26: 21 | G26: 0 | H26: 600 | I26: 0 | J26: 0 | K26: 21 | Z26: 2 | AA26: 2
A27: 2 | B27: BLOCK 1 PER KWH | D27: =ROUND(D85,$Z27) -> 9.486 | E27: =ROUND(E85,$Z27) -> 12.379 | F27: =ROUND(F85,$Z27) -> 21.89 | G27: 7.927 | H27: =ROUND(H85,$Z27) -> 16.784 | I27: 5.906 | J27: =ROUND(J85,$Z27) -> 4.782 | K27: 11.763 | Q27: 800 | R27: 3650 | S27: 3650 | T27: 250000 | U27: 250000 | V27: 500000 | W27: 500000 | Z27: 3 | AA27: 3
A28: 3 | B28: BLOCK 2 PER KWH | D28: 11.035 | E28: =ROUND(E86,$Z28) -> 9.096 | F28: =ROUND(F86,$Z28) -> 8.906 | G28: 7.092 | H28: =ROUND(H86,$Z28) -> 6.928 | I28: 5.313 | J28: =ROUND(J86,$Z28) -> 4.303 | K28: 8.401 | Q28: 1500 | R28: 9999999 | S28: 9999999 | T28: 9999999 | U28: 9999999 | V28: 6000000 | W28: 6000000 | Z28: 3 | AA28: 3
A29: 4 | B29: BLOCK 3 PER KWH | D29: 12.94 | E29: 0 | F29: =ROUND(F87,$Z29) -> 0 | G29: 0 | H29: =ROUND(H87,$Z29) -> 0 | I29: 4.352 | J29: =ROUND(J87,$Z29) -> 3.679 | K29: 0 | O29: Rates_Base_Proposed | Q29: 9999999 | R29: 9999999 | S29: 9999999 | T29: 9999999 | U29: 9999999 | V29: 99999999 | W29: 99999999 | Z29: 3 | AA29: 3
A30: 5 | B30: BLOCK 4 PER KWH | Z30: 3 | AA30: 3
A31: 6 | B31: DEMAND CHARGE | D31: =ROUND(D66,$Z31) -> 0 | E31: 0 | F31: 0 | G31: 600 | H31: 0 | I31: 30650 | J31: 30650 | K31: 0 | Z31: 2 | AA31: 2
A32: 7 | B32: DEMAND BLOCK 1 | D32: =ROUND(D69,$Z32) -> 0 | E32: 7.5 | F32: 0 | G32: 7.5 | H32: 0 | I32: 8.3 | J32: 8.3 | K32: 0 | Q32: 0 | R32: 20 | S32: 20 | T32: 50 | U32: 50 | V32: 3000 | W32: 3000 | Z32: 2 | AA32: 2
B34: Billing Rates | D34: =IF(D35<>'Pres & Prop Rev'!D$5,#VALUE!,"") ->  | E34: =IF(E35<>'Pres & Prop Rev'!E$5,#VALUE!,"") ->  | F34: =IF(F35<>'Pres & Prop Rev'!F$5,#VALUE!,"") ->  | G34: =IF(G35<>'Pres & Prop Rev'!G$5,#VALUE!,"") ->  | H34: =IF(H35<>'Pres & Prop Rev'!H$5,#VALUE!,"") ->  | I34: =IF(I35<>'Pres & Prop Rev'!I$5,#VALUE!,"") ->  | J34: =IF(J35<>'Pres & Prop Rev'!J$5,#VALUE!,"") ->  | K34: =IF(K35<>'Pres & Prop Rev'!K$5,#VALUE!,"") -> 
D35: SCHEDULE 1,2 | E35: SCH. 11,12 | F35: SCH. 13 | G35: SCH. 21,22 | H35: SCH. 23 | I35: SCHEDULE 25 | J35: SCHEDULE 25I | K35: SCH. 30, 31, 32 | Y35: LIRAP/DSM increase
A36: 1 | B36: BASIC CHARGE | D36: =D26 -> 9 | E36: 21 | F36: 21 | G36: 0 | H36: =H26 -> 600 | I36: 0 | J36: 0 | K36: 21 | Y36: 1 | Z36: 11 | AA36: 21 | AB36: 25 | AC36: 31
A37: 2 | B37: BLOCK 1 PER KWH | D37: =D27-0.417-0.045-0.428+0.255+0.153-0.015 -> 8.989 | E37: =E27+0.679-0.267+0.321+0.222-0.015 -> 13.319 | F37: =F27+0.679-0.267+0.321+0.222-0.015 -> 22.83 | G37: =G27+0.679-0.192+0.273+0.16-0.016 -> 8.831 | H37: =H27+0.679-0.192+0.273+0.16-0.016 -> 17.688 | I37: =I27-0.25+0.182+0.101-0.016 -> 5.923 | J37: =J27-0.25+0.182+0.101-0.016 -> 4.799 | K37: =K27+0.679-0.365+0.236+0.139-0.016 -> 12.436 | Q37: =Q27 -> 800 | R37: 3650 | S37: =S27 -> 3650 | T37: 250000 | U37: =U27 -> 250000 | V37: 500000 | W37: =W27 -> 500000 | Y37: 0 | Z37: 0 | AA37: 0 | AB37: 0 | AC37: 0
A38: 3 | B38: BLOCK 2 PER KWH | D38: =D28-0.417-0.045-0.496+0.255+0.153-0.015 -> 10.47 | E38: =E28+0.679-0.2+0.321+0.222-0.015 -> 10.103 | F38: =F28+0.679-0.2+0.321+0.222-0.015 -> 9.913 | G38: =G28+0.679-0.173+0.273+0.16-0.016 -> 8.015 | H38: =H28+0.679-0.173+0.273+0.16-0.016 -> 7.851 | I38: =I28-0.225+0.182+0.101-0.016 -> 5.355 | J38: =J28-0.225+0.182+0.101-0.016 -> 4.345 | K38: =K28+0.679-0.264+0.236+0.139-0.016 -> 9.175 | Q38: 1500 | R38: 9999999 | S38: =S28 -> 9999999 | T38: 9999999 | U38: =U28 -> 9999999 | V38: 6000000 | W38: =W28 -> 6000000 | Y38: =Y$37 -> 0 | Z38: =Z$37 -> 0 | AA38: =AA$37 -> 0 | AB38: =AB$37 -> 0 | AC38: =AC$37 -> 0
A39: 4 | B39: BLOCK 3 PER KWH | D39: =D29-0.417-0.045-0.58+0.255+0.153-0.015 -> 12.291 | I39: =I29+0.182-0.016 -> 4.518 | J39: =J29+0.182-0.016 -> 3.845 | O39: Rates_Billing_Proposed | Q39: 9999999 | R39: 9999999 | S39: =S29 -> 9999999 | T39: 9999999 | U39: =U29 -> 9999999 | V39: 99999999 | W39: =W29 -> 99999999 | Y39: =Y$37 -> 0 | Z39: 0 | AA39: 0 | AB39: 0 | AC39: 0
A40: 5 | B40: BLOCK 4 PER KWH | Y40: 0 | Z40: 0 | AA40: 0 | AB40: 0 | AC40: 0
A41: 6 | B41: DEMAND CHARGE | G41: =G31 -> 600 | H41: 0 | I41: 30650 | J41: 30650
A42: 7 | B42: DEMAND BLOCK 1 | E42: =E32 -> 7.5 | F42: =F32 -> 0 | G42: 7.5 | H42: 0 | I42: 8.3 | J42: 8.3 | Q42: =Q32 -> 0 | R42: 20 | S42: 20 | T42: 50 | U42: 50 | V42: 3000 | W42: 3000
D45: 0 | E45: 0) ERM=0; 1) ERM as is
B47: Proposed Rate Workup - from Pres & Prop Rev tab
B49: KILOWATT HOURS (KWHS)
B50: BLOCK 1 | C50: =SUM(D50:K50) -> 3499716214 | D50: ='Pres & Prop Rev'!D31 -> 1699114426 | E50: ='Pres & Prop Rev'!E31 -> 440976955.8 | F50: ='Pres & Prop Rev'!F31 -> 0 | G50: ='Pres & Prop Rev'!G31 -> 1176388254 | H50: ='Pres & Prop Rev'!H31 -> 0 | I50: ='Pres & Prop Rev'!I31 -> 125726244.4 | J50: ='Pres & Prop Rev'!J31 -> 6000000 | K50: ='Pres & Prop Rev'!K31 -> 51510333.79
B51: BLOCK 2 | C51: =SUM(D51:K51) -> 1524106259 | D51: ='Pres & Prop Rev'!D32 -> 560062332.6 | E51: ='Pres & Prop Rev'!E32 -> 206157623.5 | F51: ='Pres & Prop Rev'!F32 -> 0 | G51: ='Pres & Prop Rev'!G32 -> 143363345.5 | H51: ='Pres & Prop Rev'!H32 -> 0 | I51: ='Pres & Prop Rev'!I32 -> 435765470.9 | J51: ='Pres & Prop Rev'!J32 -> 66000000 | K51: ='Pres & Prop Rev'!K32 -> 112757486.3
B52: BLOCK 3 | C52: =SUM(D52:K52) -> 701738754.3 | D52: ='Pres & Prop Rev'!D33 -> 314000634.3 | E52: ='Pres & Prop Rev'!E33 -> 0 | F52: ='Pres & Prop Rev'!F33 -> 0 | G52: ='Pres & Prop Rev'!G33 -> 0 | H52: ='Pres & Prop Rev'!H33 -> 0 | I52: ='Pres & Prop Rev'!I33 -> 0 | J52: ='Pres & Prop Rev'!J33 -> 387738120 | K52: ='Pres & Prop Rev'!K33 -> 0
B53: ADJ. TO ACTUAL/EE ADJ | C53: =SUM(D53:K53) -> 0 | D53: ='Pres & Prop Rev'!D41+'Pres & Prop Rev'!D38 -> 0 | E53: ='Pres & Prop Rev'!E41+'Pres & Prop Rev'!E38 -> 0 | F53: ='Pres & Prop Rev'!F41+'Pres & Prop Rev'!F38 -> 0 | G53: ='Pres & Prop Rev'!G41+'Pres & Prop Rev'!G38 -> 0 | H53: ='Pres & Prop Rev'!H41+'Pres & Prop Rev'!H38 -> 0 | I53: ='Pres & Prop Rev'!I41+'Pres & Prop Rev'!I38 -> 0 | J53: ='Pres & Prop Rev'!J41+'Pres & Prop Rev'!J38 -> 0 | K53: ='Pres & Prop Rev'!K41+'Pres & Prop Rev'!K38 -> 0
B54: WEATHER & U/B KWHS | C54: =SUM(D54:K54) -> -106488975 | D54: ='Pres & Prop Rev'!D44 -> -73774001 | E54: ='Pres & Prop Rev'!E44 -> -12331152 | F54: ='Pres & Prop Rev'!F44 -> 0 | G54: ='Pres & Prop Rev'!G44 -> -19392888 | H54: ='Pres & Prop Rev'!H44 -> 0 | I54: ='Pres & Prop Rev'!I44 -> 0 | J54: ='Pres & Prop Rev'!J44 -> 0 | K54: ='Pres & Prop Rev'!K44 -> -990934
B55: TOTAL PROFORMA KWHS | C55: =IF(ROUND(SUM(D55:L55),3)<>ROUND(SUM(C50:C54),3),#VALUE!,SUM(D55:L55)) -> 5619072252 | D55: =SUM(D50:D54) -> 2499403391 | E55: 634803427.3 | F55: 0 | G55: 1300358712 | H55: 0 | I55: 561491715.3 | J55: 459738120 | K55: 163276886
B56: TOTAL BILLS | D56: ='Pres & Prop Rev'!D48 -> 2681552 | E56: ='Pres & Prop Rev'!E48 -> 403355 | F56: ='Pres & Prop Rev'!F48 -> 0 | G56: ='Pres & Prop Rev'!G48 -> 21942 | H56: ='Pres & Prop Rev'!H48 -> 0 | I56: ='Pres & Prop Rev'!I48 -> 252 | J56: ='Pres & Prop Rev'!J48 -> 12 | K56: ='Pres & Prop Rev'!K48 -> 30331
B57: EXCESS DEMAND | D57: ='Pres & Prop Rev'!D50 -> 0 | E57: ='Pres & Prop Rev'!E50 -> 555536.7062 | F57: ='Pres & Prop Rev'!F50 -> 0 | G57: ='Pres & Prop Rev'!G50 -> 2822572.714 | H57: ='Pres & Prop Rev'!H50 -> 0 | I57: ='Pres & Prop Rev'!I50 -> 475862.632 | J57: ='Pres & Prop Rev'!J50 -> 703831.31 | K57: ='Pres & Prop Rev'!K50 -> 0
M58: Proposed rates: | N58: Formulas to copy
B59: Proposed Revenue | C59: =SUM(D59:L59) -> 581042609.5 | D59: ='Rate Spread GRC'!H15*1000 -> 279485089.9 | E59: ='Rate Spread GRC'!H17*1000 -> 84833626.38 | F59: ='Rate Spread GRC'!H19*1000 -> 0 | G59: ='Rate Spread GRC'!H21*1000 -> 136398685.2 | H59: ='Rate Spread GRC'!H23*1000 -> 0 | I59: ='Rate Spread GRC'!H25*1000 -> 42041456.24 | J59: ='Rate Spread GRC'!H27*1000 -> 22208186.27 | K59: ='Rate Spread GRC'!H29*1000 -> 16075565.52 | M59: same as current | N59: FLOOR | O59: CEILING | P59: OTHER
B60: Targeted Rate Increase | C60: ='Rate Spread GRC'!F33 -> 0.06900910929 | D60: ='Rate Spread GRC'!F15 -> 0.1026832378 | E60: ='Rate Spread GRC'!F17 -> 0.0400021447 | F60: ='Rate Spread GRC'!F19 -> 0 | G60: ='Rate Spread GRC'!F21 -> 0.03999918105 | H60: ='Rate Spread GRC'!F23 -> 0 | I60: ='Rate Spread GRC'!F25 -> 0.01999152968 | J60: ='Rate Spread GRC'!F27 -> 0.01999152968 | K60: ='Rate Spread GRC'!F31 -> 0.1027446049 | M60: diff than current
B61: Present Basic Charge | D61: =D4 -> 9 | E61: 20 | F61: 20 | G61: 0 | H61: 550 | I61: 0 | J61: 0 | K61: 20
B62: BASIC CHARGE | D62: 9 | E62: 21 | F62: 21 | G62: 0 | H62: 600 | I62: 0 | J62: 0 | K62: 21 | N62: =FLOOR(N61*(1+N$60),$N63) -> 0 | O62: =CEILING(O61*(1+O$60),$O63) -> 0 | P62: =P61*(1+P$60) -> 0
B63: % D in Basic Charge | D63: =IF(D61,D62/D61-1,0) -> 0 | E63: 0.05 | F63: 0.05 | G63: 0 | H63: 0.09090909091 | I63: 0 | J63: 0 | K63: 0.05 | N63: 0.05 | O63: 0.05
B64: Basic Charge Revenue | C64: =SUM(D64:L64) -> 33241374 | D64: =D56*D62 -> 24133968 | E64: 8470455 | F64: 0 | G64: 0 | H64: 0 | I64: 0 | J64: 0 | K64: 636951
B65: Present Demand Block 1 | D65: =D9 -> 0 | E65: 0 | F65: 0 | G65: 550 | H65: 0 | I65: 30650 | J65: 30650 | K65: 0
B66: DEMAND BLOCK 1 | G66: 600 | I66: 30650 | J66: 30650 | N66: =FLOOR(N65*(1+N$60),$N67) -> 0 | O66: =CEILING(O65*(1+O$60),$O67) -> 0 | P66: =P65*(1+P$60) -> 0
B67: % D in Demand Block 1 | D67: =IF(D65,D66/D65-1,0) -> 0 | E67: 0 | F67: 0 | G67: 0.09090909091 | H67: 0 | I67: 0 | J67: 0 | K67: 0 | N67: 5 | O67: 10
B68: Present Demand Block 2 | D68: =D10 -> 0 | E68: 7 | F68: 0 | G68: 7 | H68: 0 | I68: 8.3 | J68: 8.3 | K68: =K10 -> 0
B69: DEMAND BLOCK 2 | E69: 7.5 | G69: 7.5 | I69: 8.3 | J69: 8.3 | K69: 0 | N69: =FLOOR(N68*(1+N$60),$N70) -> 0 | O69: =CEILING(O68*(1+O$60),$O70) -> 0 | P69: =P68*(1+P$60) -> 0
B70: % D in Demand Block 2 | D70: =IF(D68,D69/D68-1,0) -> 0 | E70: 0.07142857143 | F70: 0 | G70: 0.07142857143 | H70: 0 | I70: 0 | J70: 0 | K70: 0 | N70: 0.05 | O70: 0.05
B71: Demand Revenue | C71: =SUM(D71:L71) -> 56384080.37 | D71: =D56*D66+D57*D69 -> 0 | E71: 4166525.296 | F71: 0 | G71: 34334495.35 | H71: 0 | I71: 11673459.85 | J71: 6209599.873 | K71: 0
B72: Pwr Fctr/Prim Voltg Disc | C72: =SUM(D72:L72) -> -1489894.604 | D72: ='Pres & Prop Rev'!D172+'Pres & Prop Rev'!D173 -> 0 | E72: ='Pres & Prop Rev'!E172+'Pres & Prop Rev'!E173 -> 0 | F72: ='Pres & Prop Rev'!F172+'Pres & Prop Rev'!F173 -> 0 | G72: ='Pres & Prop Rev'!G172+'Pres & Prop Rev'!G173 -> 113744.9 | H72: ='Pres & Prop Rev'!H172+'Pres & Prop Rev'!H173 -> 0 | I72: ='Pres & Prop Rev'!I172+'Pres & Prop Rev'!I173 -> -210365.7126 | J72: ='Pres & Prop Rev'!J172+'Pres & Prop Rev'!J173 -> -1393273.792 | K72: ='Pres & Prop Rev'!K172+'Pres & Prop Rev'!K173 -> 0
B74: Present Block 1 Base Rate | D74: =D5 -> 8.519 | E74: 11.936 | F74: 21.108 | G74: 7.714 | H74: 16.333 | I74: 5.747 | J74: 4.662 | K74: 10.646
B75: Present Block 2 Base Rate | D75: =D6 -> 9.911 | E75: 8.771 | F75: =F6 -> 8.588 | G75: 6.902 | H75: =H6 -> 6.742 | I75: 5.17 | J75: =J6 -> 4.195 | K75: 7.603
B76: Present Block 3 Base Rate | D76: 11.621 | E76: 0 | F76: =F7 -> 0 | G76: 0 | H76: =H7 -> 0 | I76: 4.235 | J76: =J7 -> 3.587 | K76: 0
B78: 1) Flat Rate Increase | D78: 1 | E78: 1 | F78: 1 | G78: 1 | H78: 1 | I78: 1 | J78: 1 | K78: 1
B79: 2) % Rate Increase | D79: 0.1134900944 | E79: 0.03702523575 | F79: =E79 -> 0.03702523575 | G79: 0.02759349232 | H79: =G79 -> 0.02759349232 | I79: 0.02768651066 | J79: 0.02566989674 | K79: 0.1050526928 | P79: =P$60 -> 0
B80: Method ---> | D80: 2 | E80: 2 | F80: 2 | G80: 2 | H80: 2 | I80: 2 | J80: 2 | K80: 2
A82: Calculated | B82: BLOCK 1 PER KWH | D82: =CHOOSE(D$80,D74+D$78,D74*(1+D$79)) -> 9.485822114 | E82: =CHOOSE(E$80,E74+E$78,E74*(1+E$79)) -> 12.37793321 | F82: =CHOOSE(F$80,F74+F$78,F74*(1+F$79)) -> 21.88952868 | G82: 7.9268562 | H82: 16.78368451 | I82: 5.906114377 | J82: 4.781673059 | K82: =CHOOSE(K$80,K74+K$78,K74*(1+K$79)) -> 11.76439097
B83: BLOCK 2 PER KWH | D83: =CHOOSE(D$80,D75+D$78,D75*(1+D$79)) -> 11.03580033 | E83: =CHOOSE(E$80,E75+E$78,E75*(1+E$79)) -> 9.095748343 | F83: =CHOOSE(F$80,F75+F$78,F75*(1+F$79)) -> 8.905972725 | G83: 7.092450284 | H83: =CHOOSE(H$80,H75+H$78,H75*(1+H$79)) -> 6.928035325 | I83: =CHOOSE(I$80,I75+I$78,I75*(1+I$79)) -> 5.31313926 | J83: =CHOOSE(J$80,J75+J$78,J75*(1+J$79)) -> 4.302685217 | K83: =CHOOSE(K$80,K75+K$78,K75*(1+K$79)) -> 8.401715623 | P83: =0.75*P82 -> 0
B84: BLOCK 3 PER KWH | D84: =CHOOSE(D$80,D76+D$78,D76*(1+D$79)) -> 12.93986839 | E84: 0 | F84: =CHOOSE(F$80,F76+F$78,F76*(1+F$79)) -> 0 | G84: 0 | H84: =CHOOSE(H$80,H76+H$78,H76*(1+H$79)) -> 0 | I84: =CHOOSE(I$80,I76+I$78,I76*(1+I$79)) -> 4.352252373 | J84: =CHOOSE(J$80,J76+J$78,J76*(1+J$79)) -> 3.67907792 | K84: 0
A85: Input | B85: BLOCK 1 PER KWH | D85: =D82 -> 9.485822114 | E85: =E82+0.001 -> 12.37893321 | F85: =F82 -> 21.88952868 | G85: =G82 -> 7.9268562 | H85: 16.78368451 | I85: =I82 -> 5.906114377 | J85: 4.781673059 | K85: =K82-0.001 -> 11.76339097 | P85: =P82 -> 0
B86: BLOCK 2 PER KWH | D86: =D83-0.001 -> 11.03480033 | E86: =E83 -> 9.095748343 | F86: =F83 -> 8.905972725 | G86: =G83 -> 7.092450284 | H86: 6.928035325 | I86: =I83 -> 5.31313926 | J86: 4.302685217 | K86: =K83-0.001 -> 8.400715623 | M86: =I86-I85 -> -0.5929751166 | P86: =P83 -> 0 | Q86: =0.75*(Q85-Q74)+Q75 -> 0
B87: BLOCK 3 PER KWH | D87: =D84 -> 12.93986839 | E87: =E84 -> 0 | F87: =F84 -> 0 | G87: 0 | H87: =H84 -> 0 | I87: 4.352252373 | J87: =J84 -> 3.67907792 | K87: 0 | M87: =I87-I86 -> -0.9608868875 | P87: =P84 -> 0
B88: Blocks 1-3 Revenue | C88: =SUM(D88:L88) -> 503868421.6 | D88: =SUMPRODUCT(D50:D52,D85:D87)/100 -> 263608000.8 | E88: =SUMPRODUCT(E50:E52,E85:E87)/100 -> 73339821.47 | F88: 0 | G88: 103418579.3 | H88: 0 | I88: 30578362.11 | J88: 17391860.19 | K88: 15531797.72
B89: Adj. to Actual Revenue | C89: =SUM(D89:L89) -> 0 | D89: ='Pres & Prop Rev'!D181+'Pres & Prop Rev'!D178 -> 0 | E89: ='Pres & Prop Rev'!E181+'Pres & Prop Rev'!E178 -> 0 | F89: ='Pres & Prop Rev'!F181+'Pres & Prop Rev'!F178 -> 0 | G89: ='Pres & Prop Rev'!G181+'Pres & Prop Rev'!G178 -> 0 | H89: ='Pres & Prop Rev'!H181+'Pres & Prop Rev'!H178 -> 0 | I89: ='Pres & Prop Rev'!I181+'Pres & Prop Rev'!I178+'Pres & Prop Rev'!I174 -> 0 | J89: ='Pres & Prop Rev'!J181+'Pres & Prop Rev'!J178+'Pres & Prop Rev'!J174 -> 0 | K89: ='Pres & Prop Rev'!K181+'Pres & Prop Rev'!K178 -> 0
B90: Weather & U/B Revenue | C90: =SUM(D90:L90) -> -10967121.86 | D90: ='Pres & Prop Rev'!D202 -> -8262116.94 | E90: ='Pres & Prop Rev'!E202 -> -1143175.38 | F90: ='Pres & Prop Rev'!F202 -> 0 | G90: ='Pres & Prop Rev'!G202 -> -1468134.35 | H90: ='Pres & Prop Rev'!H202 -> 0 | I90: ='Pres & Prop Rev'!I202 -> 0 | J90: ='Pres & Prop Rev'!J202 -> 0 | K90: ='Pres & Prop Rev'!K202 -> -93695.19
B92: Revenue Remaining | C92: =IF(ROUND(C59-C64-C71-C72-SUM(C88:C90),3)<>ROUND(SUM(D92:L92),3),#VALUE!,SUM(D92:L92)) -> 5750.006663 | D92: =D59-D64-D71-D72-SUM(D88:D90) -> 5238.013325 | E92: =E59-E64-E71-E72-SUM(E88:E90) -> 0 | F92: 0 | G92: 0 | H92: =H59-H64-H71-H72-SUM(H88:H90) -> 0 | I92: 0 | J92: 0 | K92: 511.9933379 | M92: there will be some remainder in Schs. 21 & 25 because some components of their revenue don't change w/a rate change.
B93: Revenue Remaining - ¢/kWh | C93: =C92/C55*100 -> 0.0001023301785 | D93: =D92/D55*100 -> 0.0002095705457 | E93: 0 | F93: =F92/F55*100 ->  | G93: 0 | H93: =H92/H55*100 ->  | I93: 0 | J93: =J92/J55*100 -> 0 | K93: 0.0003135736786
B94: check - < $6k is rounding | C94: =SUM(D94:L94) -> -5707.352674 | D94: =D59-'Pres & Prop Rev'!D204-D92 -> -4554.063325 | E94: =E59-'Pres & Prop Rev'!E204-E92 -> -813.3269231 | F94: =F59-'Pres & Prop Rev'!F204-F92 -> 0 | G94: =G59-'Pres & Prop Rev'!G204-G92 -> -1046.103077 | H94: =H59-'Pres & Prop Rev'!H204-H92 -> 0 | I94: =I59-'Pres & Prop Rev'!I204-I92 -> 750.6456 | J94: =J59-'Pres & Prop Rev'!J204-J92 -> 74.75838947 | K94: =K59-'Pres & Prop Rev'!K204-K92 -> -119.2633379
A95: =IF(Base1_Billing2=2,"MAKE SURE TO CHANGE Base1_Billing2 to '1' before designing Base Rates","") -> 
B96: Proposed Target | C96: =SUM(D96:L96) -> 581042609.5 | D96: =D59 -> 279485089.9 | E96: =E59 -> 84833626.38 | F96: 0 | G96: 136398685.2 | H96: 0 | I96: 42041456.24 | J96: =J59 -> 22208186.27 | K96: 16075565.52
B97: Proposed Actual | C97: =SUM(D97:L97) -> 581042566.8 | D97: ='Pres & Prop Rev'!D204 -> 279484405.9 | E97: ='Pres & Prop Rev'!E204 -> 84834439.71 | F97: ='Pres & Prop Rev'!F204 -> 0 | G97: ='Pres & Prop Rev'!G204 -> 136399731.3 | H97: ='Pres & Prop Rev'!H204 -> 0 | I97: ='Pres & Prop Rev'!I204 -> 42040705.6 | J97: ='Pres & Prop Rev'!J204 -> 22208111.51 | K97: ='Pres & Prop Rev'!K204 -> 16075172.79
C98: =SUM(D98:K98) -> -42.6539895 | D98: =D97-D96 -> -683.95 | E98: 813.3269231 | F98: 0 | G98: 1046.103077 | H98: 0 | I98: -750.6456 | J98: -74.75838947 | K98: -392.73
B99: Rate D Check
B100: Basic Charge | C100: ='Pres & Prop Rev'!C164/'Pres & Prop Rev'!C111-1 -> 0.01321903573 | D100: ='Pres & Prop Rev'!D164/'Pres & Prop Rev'!D111-1 -> 0 | E100: ='Pres & Prop Rev'!E164/'Pres & Prop Rev'!E111-1 -> 0.05 | F100: ='Pres & Prop Rev'!F164/'Pres & Prop Rev'!F111-1 ->  | G100: ='Pres & Prop Rev'!G164/'Pres & Prop Rev'!G111-1 ->  | H100: ='Pres & Prop Rev'!H164/'Pres & Prop Rev'!H111-1 ->  | I100: ='Pres & Prop Rev'!I164/'Pres & Prop Rev'!I111-1 ->  | J100: ='Pres & Prop Rev'!J164/'Pres & Prop Rev'!J111-1 ->  | K100: ='Pres & Prop Rev'!K164/'Pres & Prop Rev'!K111-1 -> 0.05
B101: Demand Charge | C101: =SUM('Pres & Prop Rev'!C170:C171)/SUM('Pres & Prop Rev'!C117:C118)-1 -> 0.05198251009 | D101: =SUM('Pres & Prop Rev'!D170:D171)/SUM('Pres & Prop Rev'!D117:D118)-1 ->  | E101: =SUM('Pres & Prop Rev'!E170:E171)/SUM('Pres & Prop Rev'!E117:E118)-1 -> 0.07142857242 | F101: =SUM('Pres & Prop Rev'!F170:F171)/SUM('Pres & Prop Rev'!F117:F118)-1 ->  | G101: =SUM('Pres & Prop Rev'!G170:G171)/SUM('Pres & Prop Rev'!G117:G118)-1 -> 0.07881536362 | H101: =SUM('Pres & Prop Rev'!H170:H171)/SUM('Pres & Prop Rev'!H117:H118)-1 ->  | I101: =SUM('Pres & Prop Rev'!I170:I171)/SUM('Pres & Prop Rev'!I117:I118)-1 -> 3.769233814e-10 | J101: =SUM('Pres & Prop Rev'!J170:J171)/SUM('Pres & Prop Rev'!J117:J118)-1 -> -4.83122875e-10 | K101: =SUM('Pres & Prop Rev'!K170:K171)/SUM('Pres & Prop Rev'!K117:K118)-1 -> 
B102: Adj. to Actual Revenue | C102: ='Pres & Prop Rev'!C181/'Pres & Prop Rev'!C128-1 ->  | D102: ='Pres & Prop Rev'!D181/'Pres & Prop Rev'!D128-1 ->  | E102: ='Pres & Prop Rev'!E181/'Pres & Prop Rev'!E128-1 ->  | F102: ='Pres & Prop Rev'!F181/'Pres & Prop Rev'!F128-1 ->  | G102: ='Pres & Prop Rev'!G181/'Pres & Prop Rev'!G128-1 ->  | H102: ='Pres & Prop Rev'!H181/'Pres & Prop Rev'!H128-1 ->  | I102: ='Pres & Prop Rev'!I181/'Pres & Prop Rev'!I128-1 ->  | J102: ='Pres & Prop Rev'!J181/'Pres & Prop Rev'!J128-1 ->  | K102: ='Pres & Prop Rev'!K181/'Pres & Prop Rev'!K128-1 -> 
B103: Weather & U/B Revenue | C103: ='Pres & Prop Rev'!C202/'Pres & Prop Rev'!C149-1 -> 0.0927732063 | D103: ='Pres & Prop Rev'!D202/'Pres & Prop Rev'!D149-1 -> 0.11345871 | E103: ='Pres & Prop Rev'!E202/'Pres & Prop Rev'!E149-1 -> 0.03705824003 | F103: ='Pres & Prop Rev'!F202/'Pres & Prop Rev'!F149-1 ->  | G103: ='Pres & Prop Rev'!G202/'Pres & Prop Rev'!G149-1 -> 0.02760388406 | H103: ='Pres & Prop Rev'!H202/'Pres & Prop Rev'!H149-1 ->  | I103: ='Pres & Prop Rev'!I202/'Pres & Prop Rev'!I149-1 ->  | J103: ='Pres & Prop Rev'!J202/'Pres & Prop Rev'!J149-1 ->  | K103: ='Pres & Prop Rev'!K202/'Pres & Prop Rev'!K149-1 -> 0.1049443195
B104: Block Energy Charges | C104: =SUM('Pres & Prop Rev'!C166:C169)/SUM('Pres & Prop Rev'!C113:C116)-1 -> 0.07465209455 | D104: =SUM('Pres & Prop Rev'!D166:D169)/SUM('Pres & Prop Rev'!D113:D116)-1 -> 0.1134856738 | E104: =SUM('Pres & Prop Rev'!E166:E169)/SUM('Pres & Prop Rev'!E113:E116)-1 -> 0.03709909485 | F104: =SUM('Pres & Prop Rev'!F166:F169)/SUM('Pres & Prop Rev'!F113:F116)-1 ->  | G104: =SUM('Pres & Prop Rev'!G166:G169)/SUM('Pres & Prop Rev'!G113:G116)-1 -> 0.02760388662 | H104: =SUM('Pres & Prop Rev'!H166:H169)/SUM('Pres & Prop Rev'!H113:H116)-1 ->  | I104: =SUM('Pres & Prop Rev'!I166:I169)/SUM('Pres & Prop Rev'!I113:I116)-1 -> 0.02766128256 | J104: =SUM('Pres & Prop Rev'!J166:J169)/SUM('Pres & Prop Rev'!J113:J116)-1 -> 0.02566548837 | K104: =SUM('Pres & Prop Rev'!K166:K169)/SUM('Pres & Prop Rev'!K113:K116)-1 -> 0.1049443163
B105: Overall Revenue | C105: ='Pres & Prop Rev'!C208 -> 0.06900872715 | D105: ='Pres & Prop Rev'!D208 -> 0.1026805393 | E105: ='Pres & Prop Rev'!E208 -> 0.04001211553 | F105: ='Pres & Prop Rev'!F208 ->  | G105: ='Pres & Prop Rev'!G208 -> 0.04000715728 | H105: ='Pres & Prop Rev'!H208 ->  | I105: ='Pres & Prop Rev'!I208 -> 0.01996836864 | J105: ='Pres & Prop Rev'!J208 -> 0.01998809613 | K105: ='Pres & Prop Rev'!K208 -> 0.1026580611
B107: Avg. Usage | D107: =D55/D56 -> 932.0734378 | E107: 1573.808251 | G107: 59263.45419 | I107: 2228141.727 | J107: 38311510 | K107: 5383.168575
B108: Bill Compare: | C108: =INDEX($D$2:$L$2,N108) -> SCH. 1,2 | F108: =INDEX($D$2:$L$2,O108) -> SCH. 11,12 | N108: 1 | O108: 2
B109: =IF(Base1_Billing2=2,"BILLING RATES","BASE RATES") -> BASE RATES | C109: Pres | D109: Prop | E109: % Incr | F109: Pres | G109: Prop | H109: % Incr
B110: 100
B111: 200
B112: 300
B113: 400
B114: 500
B115: 600
B116: 700
B117: 800
B118: 900
B119: 1000 | C119: =ROUND(D14+600*D15/100+400*D16/100,2) -> 94.52 | D119: =ROUND(D36+600*D37/100+400*D38/100,2) -> 104.81 | E119: =D119/C119-1 -> 0.1088658485 | F119: =D119-C119 -> 10.29
B120: 1100
B121: 1200
B122: 1300
B123: 1400
B124: 1500
D125: 2425727000 | E125: =395341000+52692000 -> 448033000
D126: =205474*12 -> 2465688 | E126: =(19967+8691)*12 -> 343896
D127: =D125/D126 -> 983.7931644 | E127: =E125/E126 -> 1302.815386

Sheet RY1 - Summary
A1: AVISTA UTILITIES | V1: This worksheet pulls data from 'Pres & Prop Rev' tab.
A2: WASHINGTON ELECTRIC
A3: PROPOSED INCREASE BY SERVICE SCHEDULE
A4: 12 MONTHS ENDED SEPTEMBER 30, 2021
A5: (000s of Dollars)
D10: Base Tariff | F10: Base Tariff | G10: Base | H10: Base Tariff | I10: Total Billed | K10: Adjusted Billed | L10: Base | M10: Sch 78 | O10: Percent | S10: Percent | W10: Percent | X10: Total Billed
D11: Revenue | E11: Proposed | F11: Revenue | G11: Tariff | H11: Percent | I11: Revenue | J11: Misc | K11: Revenue | L11: Rate | M11: Tax | N11: Total | O11: Increase | P11: Sch. 98 | Q11: Sch. 93 | R11: Proposed | S11: Increase | W11: Increase | X11: Revenue
B12: Type of | C12: Schedule | D12: Under Present | E12: General | F12: Under Proposed | G12: Percent | H12: Change | I12: at Present | J12: Rate Adjustment | K12: at Present | L12: General | M12: Rate | N12: Net | O12: on Billed | P12: REC Revenue | Q12: ERM | R12: General | S12: on Billed | W12: on Base | X12: at Proposed
A13: No. | B13: Service | C13: Number | D13: Rates(1) | E13: Increase | F13: Rates(1) | G13: Increase | H13: from Sp Ct | I13: Rates (2) | J13: Change | K13: Rates (2) | L13: Increase | M13: Credit | N13: Impact | O13: Revenue | P13: Decrease | Q13: Increase | R13: Increase | S13: Revenue | W13: Revenue | X13: Rates (2) | Z13: GRC | AA13: Tax | AB13: LIRAP
B14: (a) | C14: (b) | D14: (c) | E14: (d) | F14: (e) | G14: (f) | H14: (i) | I14: (g) | J14: (h) | K14: (h) | L14: (h) | M14: (i) | N14: (j) | O14: (k) | P14: (j) | Q14: (k) | R14: (j) | S14: (k) | U14: ="col (m) source" -> col (m) source
D15: =IF(Base1_Billing2<>1,"ERROR","") -> 
A16: 1 | B16: Residential | C16: 1/2 | D16: ='Pres & Prop Rev'!$D$152/1000 -> 253459.0899 | E16: ='Pres & Prop Rev'!D207/1000 -> 26025.31605 | F16: =D16+E16 -> 279484.4059 | G16: =E16/D16 -> 0.1026805393 | H16: =E16/F16 -> 0.09311902738 | I16: =240234.49227+I71 -> 240021.7457 | J16: 0 | K16: =I16+J16 -> 240021.7457 | L16: =E16 -> 26025.31605 | M16: ='Att A pg 4'!F15 -> -12722 | N16: =L16+M16 -> 13303.31605 | O16: =(L16+M16)/K16 -> 0.05542546161 | P16: 0 | Q16: =('Pres & Prop Rev'!D23*(0))/1000 -> 0 | R16: =E16+Q16 -> 26025.31605 | S16: =(R16)/I16 -> 0.1084289925 | U16: from Pres & Prop Rev tab | W16: =(L16)/D16 -> 0.1026805393 | X16: =I16+L16+M16 -> 253325.0617 | Z16: =L16/I16 -> 0.1084289925 | AA16: =M16/I16 -> -0.05300353084 | AB16: 0
A18: 2 | B18: General Service | C18: 11/12 | D18: ='Pres & Prop Rev'!$E$152/1000-0.2 -> 81570.42638 | E18: ='Pres & Prop Rev'!E207/1000 -> 3263.813327 | F18: =D18+E18-0.4 -> 84833.83971 | G18: =E18/D18 -> 0.04001221364 | H18: =E18/F18 -> 0.03847301193 | I18: =87667.8818130769+I49 -> 87406.54088 | J18: 0 | K18: =I18+J18 -> 87406.54088 | L18: =E18 -> 3263.813327 | M18: ='Att A pg 4'!F17 -> 0 | N18: =L18+M18 -> 3263.813327 | O18: =(L18+M18)/K18 -> 0.0373406074 | P18: 0 | Q18: =('Pres & Prop Rev'!E23*(0))/1000 -> 0 | R18: =E18+Q18 -> 3263.813327 | S18: =(R18)/I18 -> 0.0373406074 | U18: from below | W18: =(L18)/D18 -> 0.04001221364 | X18: =I18+L18+M18 -> 90670.35421 | Z18: =L18/I18 -> 0.0373406074 | AA18: =M18/I18 -> 0 | AB18: 0
A20: 3 | B20: Transportation - General Service | C20: 13 | D20: ='Pres & Prop Rev'!$F$152/1000 -> 0 | E20: ='Pres & Prop Rev'!F207/1000 -> 0 | F20: =D20+E20 -> 0 | G20: 0 | H20: =IF(F20=0,H18,E20/F20) -> 0.03847301193 | I20: 0 | J20: 0 | K20: =I20+J20 -> 0 | L20: =E20 -> 0 | M20: 0 | N20: =L20+M20 -> 0 | O20: 0 | P20: =#REF!/1000 ->  | Q20: =('Pres & Prop Rev'!G21*(0))/1000 -> 0 | R20: 0 | S20: =IF(I20=0,0,(R20)/I20) -> 0 | U20: from below | X20: 0 | AB20: =IF(K20=0,0,M20/K20) -> 0
R21: 0 | X21: 0
A22: 3 | B22: Large General Service | C22: 21/22 | D22: ='Pres & Prop Rev'!$G$152/1000 -> 131152.6852 | E22: ='Pres & Prop Rev'!G207/1000 -> 5247.046103 | F22: =D22+E22 -> 136399.7313 | G22: =E22/D22 -> 0.04000715728 | H22: =E22/F22 -> 0.03846815572 | I22: =142940.727066923+I50 -> 142808.5055 | J22: 0 | K22: 142808.5055 | L22: =E22 -> 5247.046103 | M22: ='Att A pg 4'!F19 -> 0 | N22: =L22+M22 -> 5247.046103 | O22: =(L22+M22)/K22 -> 0.03674183191 | P22: 0 | Q22: =('Pres & Prop Rev'!G23*(0))/1000 -> 0 | R22: 5247.046103 | S22: =(R22)/I22 -> 0.03674183191 | U22: from below | W22: 0.04000715728 | X22: 148055.5516 | Z22: 0.03674183191 | AA22: 0 | AB22: 0
A24: 5 | B24: Transportation - Large General Service | C24: 23 | D24: ='Pres & Prop Rev'!$H$152/1000 -> 0 | E24: ='Pres & Prop Rev'!H207/1000 -> 0 | F24: =D24+E24 -> 0 | G24: 0 | H24: =IF(F24=0,H22,E24/F24) -> 0.03846815572 | I24: 0 | J24: 0 | K24: =I24+J24 -> 0 | L24: =E24 -> 0 | M24: 0 | N24: =L24+M24 -> 0 | O24: 0 | P24: =#REF!/1000 ->  | Q24: =('Pres & Prop Rev'!G25*(0))/1000 -> 0 | R24: 0 | S24: =IF(I24=0,0,(R24)/I24) -> 0 | U24: from below | X24: 0 | AB24: =IF(K24=0,0,M24/K24) -> 0
R25: 0 | X25: 0
A26: 4 | B26: Extra Large General Service | C26: 25 | D26: ='Pres & Prop Rev'!$I$152/1000 -> 41217.65624 | E26: ='Pres & Prop Rev'!I207/1000 -> 823.0493544 | F26: =D26+E26 -> 42040.7056 | G26: =E26/D26 -> 0.01996836864 | H26: =E26/F26 -> 0.01957743912 | I26: 41422.0512 | J26: 0 | K26: 41422.0512 | L26: =E26 -> 823.0493544 | M26: ='Att A pg 4'!F21 -> 0 | N26: =L26+M26 -> 823.0493544 | O26: =(L26+M26)/K26 -> 0.01986983576 | P26: 0 | Q26: =('Pres & Prop Rev'!I23*(0))/1000 -> 0 | R26: 823.0493544 | S26: =(R26)/I26 -> 0.01986983576 | U26: from Pres & Prop Rev tab | W26: 0.01996836864 | X26: 42245.10056 | Z26: 0.01986983576 | AA26: 0 | AB26: 0
A28: 5 | B28: Extra Large General Service - Special Contract | C28: 25I | D28: ='Pres & Prop Rev'!$J$152/1000 -> 21772.91244 | E28: ='Pres & Prop Rev'!J207/1000 -> 435.199067 | F28: =D28+E28 -> 22208.11151 | G28: =E28/D28 -> 0.01998809613 | H28: =E28/F28 -> 0.01959640138 | I28: 22445.29772 | J28: 0 | K28: =I28+J28 -> 22445.29772 | L28: =E28 -> 435.199067 | M28: ='Att A pg 4'!F23 -> 0 | N28: =L28+M28 -> 435.199067 | O28: =(L28+M28)/K28 -> 0.01938932031 | P28: 0 | Q28: =('Pres & Prop Rev'!I25*(0))/1000 -> 0 | R28: 435.199067 | S28: =IF(I28=0,0,(R28)/I28) -> 0.01938932031 | U28: from Pres & Prop Rev tab | W28: 0.01998809613 | X28: 22880.49679 | Z28: 0.01938932031 | AA28: 0 | AB28: 0
A30: 6 | B30: Pumping Service | C30: 30/31/32 | D30: ='Pres & Prop Rev'!$K$152/1000 -> 14578.56552 | E30: ='Pres & Prop Rev'!K207/1000 -> 1496.60727 | F30: =D30+E30+0.4 -> 16075.57279 | G30: =E30/D30 -> 0.1026580611 | H30: =E30/F30 -> 0.09309822359 | I30: =15790.61701+I51 -> 15745.31949 | J30: 0 | K30: 15745.31949 | L30: =E30 -> 1496.60727 | M30: ='Att A pg 4'!F25 -> -732 | N30: =L30+M30 -> 764.60727 | O30: =(L30+M30)/K30 -> 0.04856092443 | P30: 0 | Q30: =('Pres & Prop Rev'!K23*(0))/1000 -> 0 | R30: 1496.60727 | S30: =(R30)/I30 -> 0.09505093057 | U30: from below | W30: 0.1026580611 | X30: 16509.92676 | Z30: 0.09505093057 | AA30: -0.04649000614 | AB30: 0
A32: 7 | B32: Street & Area Lights | C32: 41-48 | D32: ='Pres & Prop Rev'!$L$152/1000 -> 6900.605642 | E32: ='Pres & Prop Rev'!L207/1000 -> 708.7722 | F32: =D32+E32+0.2 -> 7609.577842 | G32: =E32/D32 -> 0.1027115933 | H32: =E32/F32 -> 0.09314211835 | I32: =6900.605642328+I75 -> 7097.80042 | J32: 0 | K32: =I32+J32 -> 7097.80042 | L32: =E32 -> 708.7722 | M32: ='Att A pg 4'!F27 -> -346 | N32: =L32+M32 -> 362.7722 | O32: =(L32+M32)/K32 -> 0.05111051009 | P32: 0 | Q32: =('Pres & Prop Rev'!L23*(0))/1000 -> 0 | R32: 708.7722 | S32: =(R32)/I32 -> 0.09985800643 | U32: from Pres & Prop Rev tab | W32: 0.1027115933 | X32: 7460.57262 | Z32: 0.09985800643 | AA32: -0.04874749634 | AB32: 0
A34: 8 | B34: Total | D34: =SUM(D16:D32) -> 550651.9413 | E34: =SUM(E16:E32) -> 37999.80337 | F34: =SUM(F16:F32)+0.4 -> 588652.3447 | G34: =E34/D34 -> 0.06900875221 | I34: =SUM(I16:I32) -> 556947.2609 | J34: =SUM(J16:J32) -> 0 | K34: 556947.2609 | L34: =E34 -> 37999.80337 | M34: =SUM(M16:M32)+0.3 -> -13799.7 | N34: =L34+M34 -> 24200.10337 | O34: =(L34+M34)/K34 -> 0.04345133745 | P34: 0 | Q34: =SUM(Q16:Q32) -> 0 | R34: 37999.80337 | S34: =(R34)/I34 -> 0.06822872836 | U34: from below | W34: 0.06900875221 | X34: 581147.3642 | Z34: 0.06822872836 | AA34: -0.02477739091 | AB34: 0
D35: =ROUND(D34-'Pres & Prop Rev'!C205/1000,0) -> 0
R37: =(L26+L28)/(I26+I28) -> 0.01970096524 | T37: =(N26+N28)/(K26+K28) -> 0.01970096524
A39: (1) Excludes all present rate adjustments: Schedule 59 (BPA Residential Exchange), Schedule 75 (Decoupling), Schedule 76 (Tax Credit)
A40: Scheduke 89 (Low Income Discount), Schedule 91 (DSM), Schedule 92 (LIRAP), Schedule 93 (ERM) and Schedule 98 (REC Revenue).
A42: (2) Includes all present rate adjustments: Schedule 59 (BPA Residential Exchange), Schedule 75 (Decoupling), Schedule 76 (Tax Credit)
A43: Scheduke 89 (Low Income Discount), Schedule 91 (DSM), Schedule 92 (LIRAP), Schedule 93 (ERM) and Schedule 98 (REC Revenue).
B46: reduce billed revenue for BPA ResEx (already accounted for in Schs 1 & 48)
F47: Billing | I47: Billed Revenue
F48: Determinants | I48: Impact
B49: Schedule 12 only | F49: ='REVRUNS 12ME0921'!P119 -> 62671685.55 | I49: =F49*-0.00417/1000 -> -261.3409287 | L49: Manually deducted in Column K
B50: Schedule 22 only | F50: ='REVRUNS 12ME0921'!P164 -> 31707816.12 | I50: =F50*-0.00417/1000 -> -132.2215932 | L50: Manually deducted in Column K
B51: Schedule 32 only | F51: ='REVRUNS 12ME0921'!P249 -> 10862713.72 | I51: =F51*-0.00417/1000 -> -45.29751619 | L51: Manually deducted in Column K
B52: Schedule 48 only | F52: ='REVRUNS 12ME0921'!P313 -> 2284668.126 | I52: =F52*-0.00417/1000 -> -9.527066084
B53: Total | F53: =SUM(F49:F52) -> 107526883.5 | I53: =SUM(I49:I52) -> -448.3871042
B55: Schedule 98 (REC Revenue Rebate)
B56: Schedule 41-48 only | F56: ='REVRUNS 12ME0921'!P341 -> 16979796.48 | I56: =F56*-0.00018/1000 -> -3.056363367
B58: Schedule 92 (LIRAP)
B59: Schedule 41-48 only | F59: ='Lighting summary'!D19 -> 6900605.642 | I59: =F59*0.0179/1000 -> 123.520841
B61: Schedule 93 (ERM)
B62: Schedule 41-48 only | F62: ='REVRUNS 12ME0921'!P341 -> 16979796.48 | I62: =F62*-0.0061/1000 -> -103.5767585
B64: Schedule 94 (Remand)
B65: Schedule 41-48 only | F65: ='REVRUNS 12ME0921'!P341 -> 16979796.48 | I65: =F65*0 -> 0
B67: Schedule 91 (DSM)
B68: Schedule 41-48 only | F68: ='REVRUNS 12ME0921'!P341 -> 16979796.48 | I68: =F68*0.01118/1000 -> 189.8341247
P69: ERM Reduction Calc
B71: Schedule 2 only | F71: ='REVRUNS 12ME0921'!P89 -> 6943426.9 | I71: =F71*-0.03064/1000 -> -212.7466002 | L71: Manually deducted in Column K
B75: Schedule 41-48 only Total | I75: =I52+I56+I68+I65+I62+I59 -> 197.1947777 | L75: Manually deducted in Column K
N79: 0 | O79: 1 | P79: =-D16*$N$80 -> 0 | R79: =0/'Pres & Prop Rev'!D23 -> 0 | S79: =(D16/$D$34)*$P$85 -> 0
N80: =N79/D34 -> 0 | O80: 11 | P80: =-D18*N80 -> 0 | S80: =(D18/$D$34)*$P$85 -> 0
O81: 21 | P81: =-D22*N80 -> 0 | S81: =(D22/$D$34)*$P$85 -> 0
O82: 25 | P82: =-D26*N80 -> 0 | S82: =(D26/$D$34)*$P$85 -> 0
O83: 31 | P83: =-D30*N80 -> 0 | S83: =(D30/$D$34)*$P$85 -> 0
O84: 41-48 | P84: =-D32*N80 -> 0 | S84: =(D32/$D$34)*$P$85 -> 0
P85: =SUM(P79:P84) -> 0 | S85: =SUM(S79:S84) -> 0

Sheet Att A pg 2
A1: AVISTA UTILITIES | R1: This worksheet uses Base & Billing rates from 'Rate Design' tab.
A2: WASHINGTON ELECTRIC
A3: PRESENT AND PROPOSED RATE COMPONENTS BY SCHEDULE
A4: RATE YEAR 1
G7: Misc | J7: General | K7: Sch. 92 | L7: Sch. 78 | M7: Proposed | N7: Proposed | O7: Sch. 99 | P7: Revised
D8: Base Tariff | E8: Present | F8: Present | G8: Rate | H8: Adjusted | J8: Rate | K8: LIRAP Rate | L8: Tax | M8: Billing | N8: Base Tariff | O8: Colstrip | P8: Base Tariff
A9: Type of Service | D9: Sch. Rate | E9: Other Adj.(1) | F9: Billing Rate | G9: Adjustment | H9: Billing Rate | J9: Inc/Dec | K9: Increase | L9: Credit | M9: Rate | N9: Rate | O9: Rates | P9: Rate | Q9: non-printing | T9: Present | U9: Proposed | V9: Proposed
B10: (a) | D10: (b) | E10: (c) | F10: (d) | G10: (e) | H10: (e) | J10: (e) | K10: (f) | L10: (f) | M10: (g) | N10: (h) | O10: (i) | P10: (j) | Q10: Base | R10: Billing | T10: Billing | U10: Base | V10: Billing
A11: Residential Service - Schedule 1
A12: Basic Charge | D12: ='Rate Design'!D4 -> 9 | E12: =F12-D12 -> 0 | F12: ='Rate Design'!D14 -> 9 | J12: =IF(ROUND(M12-F12,5)<>ROUND(N12-D12,5),#VALUE!,N12-D12) -> 0 | M12: ='Rate Design'!D36 -> 9 | N12: ='Rate Design'!D26 -> 9 | P12: =N12 -> 9 | Q12: =J12/D12 -> 0 | R12: =J12/F12 -> 0
A13: Energy Charge:
A14: ="First "&TEXT('Rate Design'!Q5,"#,##0")&" kWhs" -> First 800 kWhs | D14: ='Rate Design'!D5/100 -> 0.08519 | E14: =F14-D14 -> -0.00497 | F14: ='Rate Design'!D15/100 -> 0.08022 | H14: =F14+G14 -> 0.08022 | J14: =N14-D14 -> 0.00967 | L14: ='Att A pg 4'!AA15 -> -0.00509 | M14: =F14+J14+K14+L14 -> 0.0848 | N14: ='Rate Design'!D27/100 -> 0.09486 | O14: =-Colstrip!P16 -> -0.006536506189 | P14: =N14+O14 -> 0.08832349381 | Q14: =J14/D14 -> 0.1135109755 | R14: =(J14+L14)/F14 -> 0.05709299427 | T14: =D14+E14-F14 -> 0 | U14: =D14+J14-N14 -> 0 | V14: =F14+G14+J14+K14+L14-M14 -> 0 | W14: =0.08409-M14 -> -0.00071
A15: =TEXT('Rate Design'!Q5,"#,##0")&" - "&TEXT('Rate Design'!Q6,"#,##0")&" kWhs" -> 800 - 1,500 kWhs | D15: ='Rate Design'!D6/100 -> 0.09911 | E15: =F15-D15 -> -0.00565 | F15: ='Rate Design'!D16/100 -> 0.09346 | H15: =F15+G15 -> 0.09346 | J15: =N15-D15 -> 0.01124 | L15: =L14 -> -0.00509 | M15: =F15+J15+K15+L15 -> 0.09961 | N15: ='Rate Design'!D28/100 -> 0.11035 | O15: =O14 -> -0.006536506189 | P15: =N15+O15 -> 0.1038134938 | Q15: =J15/D15 -> 0.1134093432 | R15: =(J15+L15)/F15 -> 0.06580355232 | T15: =D15+E15-F15 -> 0 | U15: =D15+J15-N15 -> 0 | V15: =F15+G15+J15+K15+L15-M15 -> 0
A16: ="All over "&TEXT('Rate Design'!Q6,"#,##0")&" kWhs" -> All over 1,500 kWhs | D16: ='Rate Design'!D7/100 -> 0.11621 | E16: =F16-D16 -> -0.00649 | F16: ='Rate Design'!D17/100 -> 0.10972 | H16: =F16+G16 -> 0.10972 | J16: =N16-D16 -> 0.01319 | L16: =L14 -> -0.00509 | M16: =F16+J16+K16+L16 -> 0.11782 | N16: ='Rate Design'!D29/100 -> 0.1294 | O16: =O14 -> -0.006536506189 | P16: 0.1228634938 | Q16: =J16/D16 -> 0.1135014198 | R16: 0.07382427999 | T16: =D16+E16-F16 -> 0 | U16: =D16+J16-N16 -> 0 | V16: =F16+G16+J16+K16+L16-M16 -> 0
A18: General Services - Schedule 11
A19: Basic Charge | D19: ='Rate Design'!E4 -> 20 | E19: =F19-D19 -> 0 | F19: ='Rate Design'!E14 -> 20 | J19: =IF(ROUND(M19-F19,5)<>ROUND(N19-D19,5),#VALUE!,N19-D19) -> 1 | M19: ='Rate Design'!E36 -> 21 | N19: ='Rate Design'!E26 -> 21 | P19: =N19 -> 21 | Q19: =J19/D19 -> 0.05 | R19: =J19/F19 -> 0.05
A20: Energy Charge:
A21: ="First "&TEXT('Rate Design'!R5,"#,##0")&" kWhs" -> First 3,650 kWhs | D21: ='Rate Design'!E5/100 -> 0.11936 | E21: =F21-D21 -> 0.0094 | F21: ='Rate Design'!E15/100 -> 0.12876 | H21: =F21+G21 -> 0.12876 | J21: =N21-D21 -> 0.00443 | L21: ='Att A pg 4'!AA17 -> 0 | M21: =F21+J21+K21+L21 -> 0.13319 | N21: ='Rate Design'!E27/100 -> 0.12379 | O21: =-Colstrip!P18 -> -0.003227543229 | P21: =N21+O21 -> 0.1205624568 | Q21: =J21/D21 -> 0.03711461126 | R21: =(J21+L21)/F21 -> 0.03440509475 | T21: =D21+E21-F21 -> 0 | U21: =D21+J21-N21 -> 0 | V21: =F21+G21+J21+K21+L21-M21 -> 0
A22: ="All over "&TEXT('Rate Design'!R5,"#,##0")&" kWhs" -> All over 3,650 kWhs | D22: ='Rate Design'!E6/100 -> 0.08771 | E22: =F22-D22 -> 0.01007 | F22: ='Rate Design'!E16/100 -> 0.09778 | H22: =F22+G22 -> 0.09778 | J22: =N22-D22 -> 0.00325 | L22: =L21 -> 0 | M22: =F22+J22+K22+L22 -> 0.10103 | N22: ='Rate Design'!E28/100 -> 0.09096 | O22: =O21 -> -0.003227543229 | P22: =N22+O22 -> 0.08773245677 | Q22: =J22/D22 -> 0.03705392772 | R22: =(J22+L22)/F22 -> 0.03323788096 | T22: =D22+E22-F22 -> 0 | U22: =D22+J22-N22 -> 0 | V22: =F22+G22+J22+K22+L22-M22 -> 0
A23: Demand Charge:
A24: =TEXT('Rate Design'!R10,"#,##0")&" kW or less" -> 20 kW or less | D24: no charge | F24: no charge | J24: no charge | N24: no charge | P24: no charge
A25: ="Over "&TEXT('Rate Design'!R10,"#,##0")&" kW" -> Over 20 kW | D25: ='Rate Design'!E10 -> 7 | E25: =F25-D25 -> 0 | F25: ='Rate Design'!E20 -> 7 | J25: =IF(ROUND(M25-F25,5)<>ROUND(N25-D25,5),#VALUE!,N25-D25) -> 0.5 | M25: ='Rate Design'!E42 -> 7.5 | N25: ='Rate Design'!E32 -> 7.5 | P25: ='Rate Design'!E32 -> 7.5 | Q25: =J25/D25 -> 0.07142857143 | R25: =J25/F25 -> 0.07142857143
A26: Minimums: | D26: $20.00 Single Phase Service | M26: $21.00 Single Phase Service
D27: $27.35 Three Phase Service | M27: $28.35 Three Phase Service
A29: Transportation General Services - Schedule 13
A30: Basic Charge | D30: ='Rate Design'!F4 -> 20 | E30: =F30-D30 -> 0 | F30: ='Rate Design'!F14 -> 20 | J30: =IF(ROUND(M30-F30,5)<>ROUND(N30-D30,5),#VALUE!,N30-D30) -> 1 | M30: ='Rate Design'!F36 -> 21 | N30: ='Rate Design'!F26 -> 21 | P30: =N30 -> 21 | Q30: =J30/D30 -> 0.05 | R30: =J30/F30 -> 0.05
A31: Energy Charge:
A32: On-Peak | D32: ='Rate Design'!F5/100 -> 0.21108 | E32: =F32-D32 -> 0.0094 | F32: ='Rate Design'!F15/100 -> 0.22048 | H32: =F32+G32 -> 0.22048 | J32: =N32-D32 -> 0.00782 | L32: ='Att A pg 4'!AA17 -> 0 | M32: =F32+J32+K32+L32 -> 0.2283 | N32: ='Rate Design'!F27/100 -> 0.2189 | O32: =-Colstrip!P20 -> -0.002533014803 | P32: =N32+O32 -> 0.2163669852 | Q32: =J32/D32 -> 0.0370475649 | R32: =(J32+L32)/F32 -> 0.03546806967 | T32: =D32+E32-F32 -> 0 | U32: =D32+J32-N32 -> 0 | V32: =F32+G32+J32+K32+L32-M32 -> 0
A33: Off-Peak | D33: ='Rate Design'!F6/100 -> 0.08588 | E33: =F33-D33 -> 0.01007 | F33: ='Rate Design'!F16/100 -> 0.09595 | H33: =F33+G33 -> 0.09595 | J33: =N33-D33 -> 0.00318 | L33: =L32 -> 0 | M33: =F33+J33+K33+L33 -> 0.09913 | N33: ='Rate Design'!F28/100 -> 0.08906 | O33: =O32 -> -0.002533014803 | P33: =N33+O33 -> 0.0865269852 | Q33: =J33/D33 -> 0.03702841174 | R33: =(J33+L33)/F33 -> 0.03314226159 | T33: =D33+E33-F33 -> 0 | U33: =D33+J33-N33 -> 0 | V33: =F33+G33+J33+K33+L33-M33 -> 0
A34: Minimums: | D34: $20.00 Single Phase Service | M34: $21.00 Single Phase Service
D35: $27.35 Three Phase Service | M35: $28.35 Three Phase Service
A37: Large General Service - Schedule 21
A38: Energy Charge:
A39: ="First "&TEXT('Rate Design'!T5,"#,##0")&" kWhs" -> First 250,000 kWhs | D39: ='Rate Design'!G5/100 -> 0.07714 | E39: =F39-D39 -> 0.00904 | F39: ='Rate Design'!G15/100 -> 0.08618 | H39: =F39+G39 -> 0.08618 | J39: =N39-D39 -> 0.00213 | L39: ='Att A pg 4'!AA19 -> 0 | M39: =F39+J39+K39+L39 -> 0.08831 | N39: ='Rate Design'!G27/100 -> 0.07927 | O39: =O14 -> -0.006536506189 | P39: =M39+O39 -> 0.08177349381 | Q39: =J39/D39 -> 0.02761213378 | R39: =(J39+L39)/F39 -> 0.0247157113 | T39: =D39+E39-F39 -> 0 | U39: =D39+J39-N39 -> 0 | V39: =F39+G39+J39+K39+L39-M39 -> 0
A40: ="All over "&TEXT('Rate Design'!T5,"#,##0")&" kWhs" -> All over 250,000 kWhs | D40: ='Rate Design'!G6/100 -> 0.06902 | E40: =F40-D40 -> 0.00923 | F40: ='Rate Design'!G16/100 -> 0.07825 | H40: =F40+G40 -> 0.07825 | J40: =N40-D40 -> 0.0019 | L40: =L39 -> 0 | M40: =F40+J40+K40+L40 -> 0.08015 | N40: ='Rate Design'!G28/100 -> 0.07092 | O40: =O39 -> -0.006536506189 | P40: =M40+O40 -> 0.07361349381 | Q40: =J40/D40 -> 0.02752825268 | R40: =(J40+L40)/F40 -> 0.02428115016 | T40: =D40+E40-F40 -> 0 | U40: =D40+J40-N40 -> 0 | V40: =F40+G40+J40+K40+L40-M40 -> 0
A41: Demand Charge:
A42: =TEXT('Rate Design'!T10,"#,##0")&" kW or less" -> 50 kW or less | D42: ='Rate Design'!G9 -> 550 | E42: =F42-D42 -> 0 | F42: ='Rate Design'!G19 -> 550 | J42: =IF(ROUND(M42-F42,5)<>ROUND(N42-D42,5),#VALUE!,N42-D42) -> 50 | M42: ='Rate Design'!G41 -> 600 | N42: ='Rate Design'!G31 -> 600 | P42: =N42 -> 600 | Q42: =J42/D42 -> 0.09090909091 | R42: =J42/F42 -> 0.09090909091
A43: ="Over "&TEXT('Rate Design'!T10,"#,##0")&" kW" -> Over 50 kW | D43: ='Rate Design'!G10 -> 7 | E43: =F43-D43 -> 0 | F43: ='Rate Design'!G20 -> 7 | J43: =IF(ROUND(M43-F43,5)<>ROUND(N43-D43,5),#VALUE!,N43-D43) -> 0.5 | M43: ='Rate Design'!G42 -> 7.5 | N43: ='Rate Design'!G32 -> 7.5 | P43: ='Rate Design'!G32 -> 7.5 | Q43: =J43/D43 -> 0.07142857143 | R43: =J43/F43 -> 0.07142857143
A44: Primary Voltage Discount | D44: 0.2 | E44: =F44-D44 -> 0 | F44: 0.2 | J44: =IF(ROUND(M44-F44,5)<>ROUND(N44-D44,5),#VALUE!,N44-D44) -> 0 | M44: 0.2 | N44: 0.2 | P44: 0.2 | Q44: =J44/D44 -> 0 | R44: =J44/F44 -> 0
A46: Transportation Large General Service - Schedule 23
A47: Basic Charge | D47: ='Rate Design'!H4 -> 550 | E47: =F47-D47 -> 0 | F47: ='Rate Design'!H14 -> 550 | J47: =IF(ROUND(M47-F47,5)<>ROUND(N47-D47,5),#VALUE!,N47-D47) -> 50 | M47: ='Rate Design'!H36 -> 600 | N47: ='Rate Design'!H26 -> 600 | P47: =N47 -> 600 | Q47: =J47/D47 -> 0.09090909091 | R47: =J47/F47 -> 0.09090909091
A48: Energy Charge:
A49: On-Peak | D49: ='Rate Design'!H5/100 -> 0.16333 | E49: =F49-D49 -> 0.00904 | F49: ='Rate Design'!H15/100 -> 0.17237 | H49: =F49+G49 -> 0.17237 | J49: =N49-D49 -> 0.00451 | L49: ='Att A pg 4'!AA19 -> 0 | M49: =F49+J49+K49+L49 -> 0.17688 | N49: ='Rate Design'!H27/100 -> 0.16784 | O49: =O39 -> -0.006536506189 | P49: =N49+O49 -> 0.1613034938 | Q49: =J49/D49 -> 0.02761280842 | R49: =(J49+L49)/F49 -> 0.02616464582 | T49: =D49+E49-F49 -> 0 | U49: =D49+J49-N49 -> 0 | V49: =F49+G49+J49+K49+L49-M49 -> 0
A50: Off-Peak | D50: ='Rate Design'!H6/100 -> 0.06742 | E50: =F50-D50 -> 0.00923 | F50: ='Rate Design'!H16/100 -> 0.07665 | H50: =F50+G50 -> 0.07665 | J50: =N50-D50 -> 0.00186 | L50: ='Att A pg 4'!AA19 -> 0 | M50: =F50+J50+K50+L50 -> 0.07851 | N50: ='Rate Design'!H28/100 -> 0.06928 | O50: =O49 -> -0.006536506189 | P50: =N50+O50 -> 0.06274349381 | Q50: =J50/D50 -> 0.02758825274 | R50: =(J50+L50)/F50 -> 0.02426614481 | T50: =D50+E50-F50 -> 0 | U50: =D50+J50-N50 -> 0 | V50: =F50+G50+J50+K50+L50-M50 -> 0
A51: Primary Voltage Discount | D51: 0.2 | E51: =F51-D51 -> 0 | F51: 0.2 | J51: =IF(ROUND(M51-F51,5)<>ROUND(N51-D51,5),#VALUE!,N51-D51) -> 0 | M51: 0.2 | N51: 0.2 | P51: 0.2 | Q51: =J51/D51 -> 0 | R51: =J51/F51 -> 0
A53: Extra Large General Service - Schedule 25
A54: Energy Charge:
A55: ="First "&TEXT('Rate Design'!V5,"#,##0")&" kWhs" -> First 500,000 kWhs | D55: ='Rate Design'!I5/100 -> 0.05747 | E55: =F55-D55 -> 0.00017 | F55: ='Rate Design'!I15/100 -> 0.05764 | H55: =F55+G55 -> 0.05764 | J55: =N55-D55 -> 0.00159 | L55: ='Att A pg 4'!AA21 -> 0 | M55: =F55+J55+K55+L55 -> 0.05923 | N55: ='Rate Design'!I27/100 -> 0.05906 | O55: =-Colstrip!P22 -> -0.0009201710067 | P55: =N55+O55 -> 0.05813982899 | Q55: =J55/D55 -> 0.02766660867 | R55: =(J55+L55)/F55 -> 0.02758501041 | T55: =D55+E55-F55 -> 0 | U55: =D55+J55-N55 -> 0 | V55: =F55+G55+J55+K55+L55-M55 -> 0
A56: =TEXT('Rate Design'!V27,"#,##0")&" - "&TEXT('Rate Design'!V28,"#,##0")&" kWhs" -> 500,000 - 6,000,000 kWhs | D56: ='Rate Design'!I6/100 -> 0.0517 | E56: =F56-D56 -> 0.00042 | F56: ='Rate Design'!I16/100 -> 0.05212 | H56: =F56+G56 -> 0.05212 | J56: =N56-D56 -> 0.00143 | L56: =L55 -> 0 | M56: =F56+J56+K56+L56 -> 0.05355 | N56: ='Rate Design'!I28/100 -> 0.05313 | O56: =O55 -> -0.0009201710067 | P56: =N56+O56 -> 0.05220982899 | Q56: =J56/D56 -> 0.02765957447 | R56: =(J56+L56)/F56 -> 0.02743668457 | T56: =D56+E56-F56 -> 0 | U56: =D56+J56-N56 -> 0 | V56: =F56+G56+J56+K56+L56-M56 -> 0
A57: ="All over "&TEXT('Rate Design'!V28,"#,##0")&" kWhs" -> All over 6,000,000 kWhs | D57: ='Rate Design'!I7/100 -> 0.04235 | E57: =F57-D57 -> 0.00166 | F57: ='Rate Design'!I17/100 -> 0.04401 | H57: =F57+G57 -> 0.04401 | J57: =N57-D57 -> 0.00117 | L57: =L55 -> 0 | M57: 0.04518 | N57: ='Rate Design'!I29/100 -> 0.04352 | O57: =O55 -> -0.0009201710067 | P57: 0.04259982899 | Q57: =J57/D57 -> 0.02762691854 | R57: 0.02658486708 | T57: =D57+E57-F57 -> 0 | U57: =D57+J57-N57 -> 0 | V57: =F57+G57+J57+K57+L57-M57 -> 0
A58: Demand Charge:
A59: =TEXT('Rate Design'!V10,"#,##0")&" kva or less" -> 3,000 kva or less | D59: ='Rate Design'!I9 -> 30650 | E59: =F59-D59 -> 0 | F59: ='Rate Design'!I19 -> 30650 | J59: =IF(ROUND(M59-F59,5)<>ROUND(N59-D59,5),#VALUE!,N59-D59) -> 0 | M59: ='Rate Design'!I41 -> 30650 | N59: ='Rate Design'!I31 -> 30650 | P59: ='Rate Design'!I31 -> 30650 | Q59: =J59/D59 -> 0 | R59: =J59/F59 -> 0
A60: ="Over "&TEXT('Rate Design'!V10,"#,##0")&" kva" -> Over 3,000 kva | D60: ='Rate Design'!I10 -> 8.3 | E60: =F60-D60 -> 0 | F60: ='Rate Design'!I20 -> 8.3 | J60: =IF(ROUND(M60-F60,5)<>ROUND(N60-D60,5),#VALUE!,N60-D60) -> 0 | M60: ='Rate Design'!I42 -> 8.3 | N60: ='Rate Design'!I32 -> 8.3 | P60: ='Rate Design'!I32 -> 8.3 | Q60: =J60/D60 -> 0 | R60: =J60/F60 -> 0
A61: Primary Volt. Discount
A62: 11 - 60 kv | D62: 0.2 | E62: =F62-D62 -> 0 | F62: 0.2 | J62: =IF(ROUND(M62-F62,5)<>ROUND(N62-D62,5),#VALUE!,N62-D62) -> 0 | M62: 0.2 | N62: 0.2 | P62: =N62 -> 0.2 | Q62: =J62/D62 -> 0 | R62: =J62/F62 -> 0
A63: 60 - 115 kv | D63: 1.52 | E63: =F63-D63 -> 0 | F63: 1.52 | J63: =IF(ROUND(M63-F63,5)<>ROUND(N63-D63,5),#VALUE!,N63-D63) -> 0 | M63: 1.52 | N63: 1.52 | P63: =N63 -> 1.52 | Q63: =J63/D63 -> 0 | R63: =J63/F63 -> 0
A64: 115 or higher kv | D64: 1.93 | E64: =F64-D64 -> 0 | F64: 1.93 | J64: =IF(ROUND(M64-F64,5)<>ROUND(N64-D64,5),#VALUE!,N64-D64) -> 0 | M64: 1.93 | N64: 1.93 | P64: =N64 -> 1.93 | Q64: =J64/D64 -> 0 | R64: =J64/F64 -> 0
A65: Annual Minimum | D65: Present: | E65: 945750 | L65: Proposed: | M65: =6000000*N55+5000000*N56+12*N59 -> 987810 | P65: =M65 -> 987810 | Q65: =M65/E65-1 -> 0.04447264076
A67: Extra Large General Service Specific Contract - Schedule 25I
A68: Energy Charge:
A69: ="First "&TEXT('Rate Design'!V19,"#,##0")&" kWhs" -> First 0 kWhs | D69: ='Rate Design'!J5/100 -> 0.04662 | E69: =F69-D69 -> 0.00017 | F69: ='Rate Design'!J15/100 -> 0.04679 | H69: =F69+G69 -> 0.04679 | J69: =N69-D69 -> 0.0012 | L69: ='Att A pg 4'!AA23 -> 0 | M69: =F69+J69+K69+L69 -> 0.04799 | N69: ='Rate Design'!J27/100 -> 0.04782 | O69: =-Colstrip!P24 -> -0.0005942421582 | P69: =N69+O69 -> 0.04722575784 | Q69: =J69/D69 -> 0.02574002574 | R69: =(J69+L69)/F69 -> 0.02564650566 | T69: =D69+E69-F69 -> 0 | U69: =D69+J69-N69 -> 0 | V69: =F69+G69+J69+K69+L69-M69 -> 0
A70: =TEXT('Rate Design'!V41,"#,##0")&" - "&TEXT('Rate Design'!V42,"#,##0")&" kWhs" -> 0 - 3,000 kWhs | D70: ='Rate Design'!J6/100 -> 0.04195 | E70: =F70-D70 -> 0.00042 | F70: ='Rate Design'!J16/100 -> 0.04237 | H70: =F70+G70 -> 0.04237 | J70: =N70-D70 -> 0.00108 | L70: =L69 -> 0 | M70: =F70+J70+K70+L70 -> 0.04345 | N70: ='Rate Design'!J28/100 -> 0.04303 | O70: =O69 -> -0.0005942421582 | P70: =N70+O70 -> 0.04243575784 | Q70: =J70/D70 -> 0.02574493445 | R70: =(J70+L70)/F70 -> 0.0254897333 | T70: =D70+E70-F70 -> 0 | U70: =D70+J70-N70 -> 0 | V70: =F70+G70+J70+K70+L70-M70 -> 0
A71: ="All over "&TEXT('Rate Design'!V42,"#,##0")&" kWhs" -> All over 3,000 kWhs | D71: ='Rate Design'!J7/100 -> 0.03587 | E71: =F71-D71 -> 0.00166 | F71: ='Rate Design'!J17/100 -> 0.03753 | H71: =F71+G71 -> 0.03753 | J71: =N71-D71 -> 0.00092 | L71: =L70 -> 0 | M71: 0.03845 | N71: ='Rate Design'!J29/100 -> 0.03679 | O71: =O69 -> -0.0005942421582 | P71: 0.03619575784 | Q71: =J71/D71 -> 0.02564817396 | R71: 0.02451372236 | T71: =D71+E71-F71 -> 0 | U71: =D71+J71-N71 -> 0 | V71: =F71+G71+J71+K71+L71-M71 -> 0
A72: Demand Charge:
A73: =TEXT('Rate Design'!V24,"#,##0")&" kva or less" -> 0 kva or less | D73: ='Rate Design'!J9 -> 30650 | E73: =F73-D73 -> 0 | F73: ='Rate Design'!J19 -> 30650 | J73: =IF(ROUND(M73-F73,5)<>ROUND(N73-D73,5),#VALUE!,N73-D73) -> 0 | M73: ='Rate Design'!J41 -> 30650 | N73: ='Rate Design'!J31 -> 30650 | P73: ='Rate Design'!I45 -> 0 | Q73: =J73/D73 -> 0 | R73: =J73/F73 -> 0
A74: ="Over "&TEXT('Rate Design'!V24,"#,##0")&" kva" -> Over 0 kva | D74: ='Rate Design'!J10 -> 8.3 | E74: =F74-D74 -> 0 | F74: ='Rate Design'!J20 -> 8.3 | J74: =IF(ROUND(M74-F74,5)<>ROUND(N74-D74,5),#VALUE!,N74-D74) -> 0 | M74: ='Rate Design'!J42 -> 8.3 | N74: ='Rate Design'!J32 -> 8.3 | P74: ='Rate Design'!I46 -> 0 | Q74: =J74/D74 -> 0 | R74: =J74/F74 -> 0
A75: Primary Volt. Discount
A76: 11 - 60 kv | D76: 0.2 | E76: =F76-D76 -> 0 | F76: 0.2 | J76: =IF(ROUND(M76-F76,5)<>ROUND(N76-D76,5),#VALUE!,N76-D76) -> 0 | M76: 0.2 | N76: 0.2 | P76: =N76 -> 0.2 | Q76: =J76/D76 -> 0 | R76: =J76/F76 -> 0
A77: 60 - 115 kv | D77: 1.52 | E77: =F77-D77 -> 0 | F77: 1.52 | J77: =IF(ROUND(M77-F77,5)<>ROUND(N77-D77,5),#VALUE!,N77-D77) -> 0 | M77: 1.52 | N77: 1.52 | P77: =N77 -> 1.52 | Q77: =J77/D77 -> 0 | R77: =J77/F77 -> 0
A78: 115 or higher kv | D78: 1.93 | E78: =F78-D78 -> 0 | F78: 1.93 | J78: =IF(ROUND(M78-F78,5)<>ROUND(N78-D78,5),#VALUE!,N78-D78) -> 0 | M78: 1.93 | N78: 1.93 | P78: =N78 -> 1.93 | Q78: =J78/D78 -> 0 | R78: =J78/F78 -> 0
A80: Pumping Service - Schedule 31
A81: Basic Charge | D81: ='Rate Design'!K4 -> 20 | E81: =F81-D81 -> 0 | F81: ='Rate Design'!K14 -> 20 | J81: =IF(ROUND(M81-F81,5)<>ROUND(N81-D81,5),#VALUE!,N81-D81) -> 1 | M81: ='Rate Design'!K36 -> 21 | N81: ='Rate Design'!K26 -> 21 | P81: =N81 -> 21 | Q81: =J81/D81 -> 0.05 | R81: =J81/F81 -> 0.05
A82: Energy Charge:
A83: First 85 kW/kWh | D83: ='Rate Design'!K5/100 -> 0.10646 | E83: =F83-D83 -> 0.00673 | F83: ='Rate Design'!K15/100 -> 0.11319 | H83: =F83+G83 -> 0.11319 | J83: =N83-D83 -> 0.01117 | L83: ='Att A pg 4'!AA25 -> -0.00448 | M83: =F83+J83+K83+L83 -> 0.11988 | N83: ='Rate Design'!K27/100 -> 0.11763 | O83: =-Colstrip!P26 -> -0.005753990767 | P83: =N83+O83 -> 0.1118760092 | Q83: =J83/D83 -> 0.1049220364 | R83: =(J83+L83)/F83 -> 0.05910416114 | T83: =D83+E83-F83 -> 0 | U83: =D83+J83-N83 -> 0 | V83: =F83+G83+J83+K83+L83-M83 -> 0
A84: Next 80 kW/kWh | D84: ='Rate Design'!K5/100 -> 0.10646 | E84: =F83-D83 -> 0.00673 | F84: ='Rate Design'!K15/100 -> 0.11319 | H84: =F84+G84 -> 0.11319 | J84: =N83-D83 -> 0.01117 | L84: =L83 -> -0.00448 | M84: =F84+J84+K84+L84 -> 0.11988 | N84: ='Rate Design'!K27/100 -> 0.11763 | O84: =O83 -> -0.005753990767 | P84: =N84+O84 -> 0.1118760092 | Q84: =J84/D84 -> 0.1049220364 | R84: =(J84+L84)/F84 -> 0.05910416114 | T84: =D84+E84-F84 -> 0 | U84: =D84+J84-N84 -> 0 | V84: =F84+G84+J84+K84+L84-M84 -> 0
A85: All additional kWhs | D85: ='Rate Design'!K6/100 -> 0.07603 | E85: =F85-D85 -> 0.00774 | F85: ='Rate Design'!K16/100 -> 0.08377 | H85: =F85+G85 -> 0.08377 | J85: =N85-D85 -> 0.00798 | L85: =L83 -> -0.00448 | M85: 0.08727 | N85: ='Rate Design'!K28/100 -> 0.08401 | O85: =O83 -> -0.005753990767 | P85: =M85+O85 -> 0.08151600923 | Q85: =J85/D85 -> 0.104958569 | R85: 0.04178106721 | T85: =D85+E85-F85 -> 0 | U85: =D85+J85-N85 -> 0 | V85: =F85+G85+J85+K85+L85-M85 -> 0
A88: (1) Includes all present rate adjustments: Schedule 59 (BPA Residential Exchange),
A89: Schedule 75 (Decoupling), Schedule 76 (Tax Customer Credit), Schedule 91 (DSM), Schedule 92 (LIRAP),
A90: Schedule 93 (ERM), and Schedule 98 (REC Revenue).

Sheet Att A pg 4
A7: Tax Credit Rate Spread
A8: Schedule 78
D9: Base Tariff | F9: Proposed | G9: Base
D10: Revenue | E10: Percentage | F10: Base Revenue | G10: Tariff | K10: Schedule 76 Rate Design | AA10: Schedule 78
B11: Type of | C11: Schedule | D11: Under Present | E11: of Base | F11: Tax Credit | G11: Percent | Z11: Billing | AA11: Proposed
A12: No. | B12: Service | C12: Number | D12: Rates(1) | E12: Revenue | F12: Allocation | G12: Increase | O12: Sch 76 | Z12: Determinants | AA12: Rate
B13: (a) | C13: (b) | D13: (c) | E13: (e) | F13: (g) | G13: (f) | K13: Residential Service - Schedule 1 & 2 | O13: Tax Rate | Z13: (g) | AA13: (h)
K14: Energy Charge: | M14: Billing Determinants | N14: Base Rates | O14: Credit | P14: Credit | Q14: Percentage
A15: 1 | B15: Residential | C15: 1/2 | D15: ='RY1 - Summary'!D16 -> 253459.0899 | E15: =D15/$D$29 -> 0.460288939 | F15: -12722 | G15: =F15/D15 -> -0.05019350462 | H15: =#REF!/D15 ->  | K15: First 800 kWhs | M15: 1624555176 | N15: 0.08103 | O15: =N15*$S$15 -> 0.0004454142158 | P15: =M15*O15 -> 723599.9696 | Q15: =O15/N15 -> 0.005496905045 | S15: 0.005496905045 | T15: =#REF!*1000-P18 ->  | Z15: ='Pres & Prop Rev'!D46 -> 2499403391 | AA15: =ROUND((F15*1000)/Z15,5) -> -0.00509
K16: 800 - 1,500 kWhs | M16: 484025314.5 | N16: 0.09427 | O16: =N16*$S$15 -> 0.0005181932386 | P16: =M16*O16 -> 250818.6453 | Q16: =O16/N16 -> 0.005496905045
A17: 2 | B17: General Service | C17: 11/12/13 | D17: ='RY1 - Summary'!D18 -> 81570.42638 | E17: =D17/$D$29 -> 0.1481342217 | F17: 0 | G17: =F17/D17 -> 0 | H17: =#REF!/D17 ->  | K17: All over 1,500 kWhs | M17: 286905034.7 | N17: 0.11053 | O17: =N17*$S$15 -> 0.0006075729147 | P17: 174315.7282 | Q17: 0.005496905045 | Z17: ='Pres & Prop Rev'!E46+'Pres & Prop Rev'!F46 -> 634803427.3 | AA17: =ROUND((F17*1000)/Z17,5) -> 0
M18: 0 | P18: =SUM(P15:P17) -> 1148734.343
A19: 3 | B19: Large General Service | C19: 21/22/23 | D19: ='RY1 - Summary'!D22 -> 131152.6852 | E19: 0.2381770184 | F19: 0 | G19: =F19/D19 -> 0 | H19: =#REF!/D19 ->  | K19: General Services - Schedule 11 & 12 | Z19: ='Pres & Prop Rev'!G46+'Pres & Prop Rev'!H46 -> 1300358712 | AA19: 0
K20: Energy Charge:
A21: 4 | B21: Extra Large General Service/Special Contract | C21: 25 | D21: ='RY1 - Summary'!D26 -> 41217.65624 | E21: =(D21)/$D$29 -> 0.07485243977 | F21: 0 | G21: =F21/(D21) -> 0 | H21: =#REF!/D21 ->  | K21: First 3,650 kWhs | M21: 435222743.1 | N21: 0.11686 | O21: =N21*$S$21 -> 0.0004670167813 | P21: =M21*O21 -> 203256.3246 | Q21: =O21/N21 -> 0.003996378413 | S21: 0.003996378413 | T21: =#REF!*1000-P25 ->  | Z21: ='Pres & Prop Rev'!I46 -> 561491715.3 | AA21: 0
K22: All over 3,650 kWhs | M22: 186675410.5 | N22: 0.08588 | O22: =N22*$S$21 -> 0.0003432089781 | P22: 64068.67686 | Q22: 0.003996378413
A23: 7 | B23: Extra Large General Service - Specific Contract | C23: 25I | D23: ='RY1 - Summary'!D28 -> 21772.91244 | E23: =(D23)/$D$29 -> 0.03954023023 | F23: 0 | G23: =F23/(D23) -> 0 | Z23: ='Pres & Prop Rev'!J46 -> 459738120 | AA23: 0
A25: 5 | B25: Pumping Service | C25: 30/31/32 | D25: ='RY1 - Summary'!D30 -> 14578.56552 | E25: 0.02647509094 | F25: -732 | G25: =F25/D25 -> -0.05021070139 | H25: =#REF!/D25 ->  | M25: 0 | P25: =SUM(P20:P22) -> 267325.0015 | Z25: ='Pres & Prop Rev'!K46 -> 163276886 | AA25: -0.00448
A27: 6 | B27: Street & Area Lights | C27: 41-48 | D27: ='RY1 - Summary'!D32 -> 6900.605642 | E27: 0.01253169674 | F27: -346 | G27: =F27/D27 -> -0.05014052649 | H27: =#REF!/D27 ->  | K27: Large General Service - Schedule 21 & 22 | Z27: ='Pres & Prop Rev'!L46 -> 16979796.48 | AA27: -0.02038
K28: Energy Charge:
A29: 7 | B29: Total | D29: =SUM(D15:D27)+0.2 -> 550652.1413 | F29: =SUM(F15:F27) -> -13800 | G29: =F29/D29 -> -0.02506119375 | K29: First 250,000 kWhs | M29: 1223990540 | N29: 0.07535 | O29: =N29*$S$29 -> 0.0003264594809 | P29: =M29*O29 -> 399583.3164 | Q29: =O29/N29 -> 0.004332574398 | S29: 0.004332574398 | T29: =#REF!*1000-P31 ->  | Z29: =SUM(Z15:Z27) -> 5636052048
K30: All over 250,000 kWhs | M30: 145579586 | N30: 0.06742 | O30: =N30*$S$29 -> 0.0002921021659 | P30: 42524.11238 | Q30: 0.004332574398
M31: 0 | P31: =SUM(P28:P30) -> 442107.4288
B32: Revenue Requirement | D32: -13800
K33: Extra Large General Service - Schedule 25
K34: Energy Charge:
K35: First 500,000 kWhs | M35: 132000000 | N35: 0.05505 | O35: =N35*$S$35 -> 0.0002248606141 | P35: =M35*O35 -> 29681.60106 | Q35: =O35/N35 -> 0.004084661473 | S35: 0.004084661473 | T35: =#REF!*1000-O38 -> 
J36: 500,000 - 6,000,000 kWhs | L36: 555959799.3 | M36: 0.04953 | N36: =M36*$S$35 -> 0.0002023132827 | O36: =L36*N36 -> 112478.0521 | P36: =N36/M36 -> 0.004084661473
J37: All over 6,000,000 kWhs | L37: 383257334.6 | M37: 0.04235 | N37: =M37*$S$35 -> 0.0001729854134 | O37: 66297.92845 | P37: 0.004084661473
B38: Bill Impact | C38: ='Bill Impact'!A18 -> 932 | D38: kwh | L38: 0 | O38: =SUM(O35:O37) -> 178775.9807
B39: Present Bill | C39: =9+IF(C38>800,(800*'Att A pg 2'!F14)+((C38-800)*'Att A pg 2'!F15),C38*'Att A pg 2'!F14) -> 85.51272 | J39: Pumping Service - Schedule 31 & 32
B40: Schedule 78 | C40: =932*AA15 -> -4.74388 | J40: Energy Charge:
B41: Proposed Bill | C41: =C39+C40 -> 80.76884 | J41: First 85 kW/kWh | L41: 46811884.74 | M41: 0.10292 | N41: =M41*$R$41 -> 0.0003609771789 | O41: =L41*N41 -> 16898.02209 | P41: =N41/M41 -> 0.003507356965 | R41: 0.003507356965 | S41: =#REF!*1000-#REF! -> 
C42: =C40/C39 -> -0.05547572338 | J42: Next 80 kW/kWh | L42: 92811168.3 | M42: 0.10292 | N42: =M42*$R$41 -> 0.0003609771789 | O42: =L42*N42 -> 33502.7137 | P42: =N42/M42 -> 0.003507356965
J46: Original
J47: Schedule 76
J50: Residential Service - Schedule 1 & 2 | Q50: Extra Large General Service - Schedule 25
J51: Energy Charge: | Q51: Energy Charge:
J52: First 800 kWhs | N52: 0.05505 | Q52: First 500,000 kWhs | T52: 0
J53: 800 - 1,500 kWhs | N53: 0.04953 | Q53: 500,000 - 6,000,000 kWhs | T53: 0
J54: All over 1,500 kWhs | N54: 0.04235 | Q54: All over 6,000,000 kWhs | T54: 0
J56: General Services - Schedule 11 & 12 | Q56: Pumping Service - Schedule 31 & 32
J57: Energy Charge: | Q57: Energy Charge:
J58: First 3,650 kWhs | N58: 0 | Q58: First 85 kW/kWh | T58: 0
J59: All over 3,650 kWhs | N59: 0 | Q59: Next 80 kW/kWh | T59: 0
Q60: All additional kWhs | T60: 0
J62: Large General Service - Schedule 21 & 22 | Q62: Street & Area Lights - Schedules 41-48
J63: Energy Charge:
J64: First 250,000 kWhs | N64: 0.00899 | Q64: 8.3% of base rates
J65: All over 250,000 kWhs | N65: 0.00642

Sheet LIRAP
B3: Schedule 92 - LIRAP
K6: Total
D7: LIRAP | E7: Present | F7: Present | G7: 0.135 | H7: Proposed | I7: Proposed | K7: Incremental | R7: Present
B8: Type of | C8: Schedule | D8: Billing | E8: LIRAP Funding | F8: LIRAP Funding | G8: LIRAP Funding | H8: LIRAP Funding | I8: LIRAP Funding | K8: Rate | R8: Billing
B9: Service | C9: Number | D9: Determinants | E9: Rate | F9: Revenue | G9: Increase | H9: Revenue | I9: Rate | K9: change | R9: Revenue
B10: (a) | C10: (b) | D10: (c) | E10: (d) | F10: (e) | G10: (f) | H10: (g) | I10: (h) | K10: (m)
B12: Residential | C12: 1/2 | D12: ='Pres & Prop Rev'!D46 -> 2499403391 | E12: 0.00158 | F12: =D12*E12 -> 3949057.358 | G12: =F12*$G$37 -> 534548.6638 | H12: =F12+G12 -> 4483606.022 | I12: =ROUND(H12/D12,5) -> 0.00179 | K12: =ROUND(I12-E12,5) -> 0.00021 | R12: ='RY1 - Summary'!I16*1000 -> 240021745.7 | S12: =(G12)/R12 -> 0.00222708431 | U12: =E12*(1+$G$37) -> 0.001793870504 | V12: =(I12-E12)/E12 -> 0.1329113924
B14: General Service | C14: 11/12 | D14: ='Pres & Prop Rev'!E46 -> 634803427.3 | E14: 0.00229 | F14: =D14*E14 -> 1453699.848 | G14: =F14*$G$37 -> 196774.3795 | H14: =F14+G14 -> 1650474.228 | I14: =ROUND(H14/D14,5) -> 0.0026 | K14: =ROUND(I14-E14,5) -> 0.00031 | R14: ='RY1 - Summary'!I18*1000 -> 87406540.88 | S14: =(G14)/R14 -> 0.002251254626 | U14: =E14*(1+$G$37) -> 0.00259997687 | V14: =(I14-E14)/E14 -> 0.135371179
G15: =F15*$G$37 -> 0
B16: Large General Service | C16: 21/22 | D16: ='Pres & Prop Rev'!G46 -> 1300358712 | E16: 0.00164 | F16: =D16*E16 -> 2132588.287 | G16: =F16*$G$37 -> 288669.4509 | H16: 2421257.738 | I16: 0.00186 | K16: 0.00022 | R16: ='RY1 - Summary'!I22*1000 -> 142808505.5 | S16: 0.002021374357 | U16: =E16*(1+$G$37) -> 0.001861992169 | V16: 0.1341463415
B18: Extra Large General Service | C18: 25/25i | D18: ='Pres & Prop Rev'!I31+'Pres & Prop Rev'!I32+'Pres & Prop Rev'!J31+'Pres & Prop Rev'!J32 -> 633491715.3 | E18: 0.00104 | F18: 658831.3839 | G18: =F18*$G$37 -> 89180.12678 | H18: 748011.5107 | I18: 0.00118 | K18: 0.00014 | R18: =('RY1 - Summary'!I26+'RY1 - Summary'!I28)*1000 -> 63867348.92 | S18: 0.001396333624 | U18: =E18*(1+$G$37) -> 0.001180775522 | V18: 0.1346153846
B20: Pumping Service | C20: 30/31/32 | D20: ='Pres & Prop Rev'!K46 -> 163276886 | E20: 0.00143 | F20: 233485.947 | G20: =F20*$G$37 -> 31604.90965 | H20: 265090.8567 | I20: 0.00162 | K20: 0.00019 | R20: ='RY1 - Summary'!I30*1000 -> 15745319.49 | S20: 0.002007257437 | U20: =E20*(1+$G$37) -> 0.001623566342 | V20: 0.1328671329
B22: Street & Area Lights | C22: 41-48 | D22: ='Pres & Prop Rev'!L46 -> 16979796.48 | E22: 0.0185 | F22: =K43*E22 -> 140777.1901 | G22: =F22*$G$37 -> 19055.7523 | H22: =F22+G22 -> 159832.9424 | I22: =ROUND(H22/K43,4) -> 0.021 | K22: =ROUND(I22-E22,4) -> 0.0025 | R22: ='RY1 - Summary'!I32*1000 -> 7097800.42 | S22: 0.002684740507 | U22: =E22*(1+$G$37) -> 0.02100417996 | V22: 0.1351351351
B24: Total | D24: =SUM(D12:D22) -> 5248313928 | F24: =SUM(F12:F22) -> 8568440.015 | G24: =SUM(G12:G22) -> 1159833.283 | H24: =SUM(H12:H22) -> 9728273.298 | R24: =SUM(R12:R22) -> 556947260.9 | S24: 0.002082483144
E26: Net Funding | F26: =F24*G38 -> 8192019.877 | G26: =F26*G37 -> 1108880.647 | H26: =H24*G38 -> 9300900.524
G27: =G26/F26 -> 0.1353610787
B29: Electric LIRAP Percentage Change
B30: Sch 001 Base Rate Change | C30: ='RY1 - Summary'!G16 -> 0.1026805393
B31: times 2 | C31: =C30*2 -> 0.2053610787
B32: less Oct Increase | C32: -0.07
B33: Incremental Change | C33: =SUM(C31:C32) -> 0.1353610787
G37: =(C30*2)-0.07 -> 0.1353610787 | H37: Net Funding Increase | K37: =F26*G37 -> 1108880.647 | L37: =K37/F24 -> 0.1294145311
G38: 0.956069 | H38: Revenue Conversion Factor
G43: Proposed Street & Area Light Revenue | K43: ='RY1 - Summary'!F32*1000 -> 7609577.842

Sheet Colstrip
A1: AVISTA UTILITIES
A2: WASHINGTON ELECTRIC
A3: PROPOSED INCREASE BY SERVICE SCHEDULE
A4: 12 MONTHS ENDED SEPTEMBER 30, 2021
A5: (000s of Dollars)
B7: Schedule 99 - Colstrip
H9: Colstrip
D10: Base Tariff | F10: Base Tariff | G10: Proportional | H10: Base | I10: Base Tariff | J10: Schedule 99 | K10: Total | L10: Percent
D11: Revenue | E11: Proposed | F11: Revenue | G11: Allocation of RY1 | H11: Rate | I11: Revenue | J11: Colstrip | K11: Colstrip | L11: Change | O11: Base | P11: Schedule 99
B12: Type of | C12: Schedule | D12: Under Present | E12: General | F12: Under Proposed | G12: Base Revenue | H12: Revenue | I12: Under Proposed | J12: Rate | K12: Net | L12: on | N12: Billing | O12: Rate | P12: Colstrip
A13: No. | B13: Service | C13: Number | D13: Rates(1) | E13: Increase | F13: Rates(1) | G13: Spread | H13: Reduction | I13: Rates(1) | J13: Revenue | K13: Impact | L13: Revenue | N13: Determinants | O13: Reduction | P13: Rate
B14: (a) | C14: (b) | D14: (c) | E14: (d) | F14: (e) | G14: (f) | H14: (g) | I14: (h) | J14: (i) | K14: (j) | L14: (k)
D15: =IF(Base1_Billing2<>1,"ERROR","") -> 
A16: 1 | B16: Residential | C16: 1/2 | D16: 253459.0899 | E16: 26025.31605 | F16: 279484.4059 | G16: =E16/$E$30 -> 0.684880282 | H16: =-$H$41*G16 -> -16337.36574 | I16: =F16+H16 -> 263147.0402 | J16: =-H16 -> 16337.36574 | K16: =H16+J16 -> 0 | L16: =(H16+J16)/F16 -> 0 | N16: 2499403391 | O16: =H16*1000/N16 -> -0.006536506189 | P16: =-O16 -> 0.006536506189
A18: 2 | B18: General Service | C18: 11/12 | D18: 81570.42638 | E18: 3263.813327 | F18: 84833.83971 | G18: =E18/$E$30 -> 0.08589026883 | H18: =-$H$41*G18 -> -2048.855503 | I18: =F18+H18 -> 82784.98421 | J18: =-H18 -> 2048.855503 | K18: =H18+J18 -> 0 | L18: =(H18+J18)/F18 -> 0 | N18: 634803427.3 | O18: =H18*1000/N18 -> -0.003227543229 | P18: =-O18 -> 0.003227543229
A20: 3 | B20: Large General Service | C20: 21/22 | D20: 131152.6852 | E20: 5247.046103 | F20: 136399.7313 | G20: =E20/$E$30 -> 0.1380808751 | H20: =-$H$41*G20 -> -3293.827866 | I20: =F20+H20 -> 133105.9034 | J20: 3293.827866 | K20: =H20+J20 -> 0 | L20: =(H20+J20)/F20 -> 0 | N20: 1300358712 | O20: =H20*1000/N20 -> -0.002533014803 | P20: 0.002533014803
A22: 4 | B22: Extra Large General Service | C22: 25 | D22: 41217.65624 | E22: 823.0493544 | F22: 42040.7056 | G22: =E22/$E$30 -> 0.02165930561 | H22: =-$H$41*G22 -> -516.6683969 | I22: =F22+H22 -> 41524.0372 | J22: 516.6683969 | K22: =H22+J22 -> 0 | L22: =(H22+J22)/F22 -> 0 | N22: 561491715.3 | O22: =H22*1000/N22 -> -0.0009201710067 | P22: 0.0009201710067
A24: 5 | B24: Extra Large General Service - Special Contract | C24: 25I | D24: 21772.91244 | E24: 435.199067 | F24: 22208.11151 | G24: =E24/$E$30 -> 0.01145266629 | H24: =-$H$41*G24 -> -273.1957726 | I24: =F24+H24 -> 21934.91574 | J24: 273.1957726 | K24: =H24+J24 -> 0 | L24: =(H24+J24)/F24 -> 0 | N24: 459738120 | O24: =H24*1000/N24 -> -0.0005942421582 | P24: 0.0005942421582
A26: 6 | B26: Pumping Service | C26: 30/31/32 | D26: 14578.56552 | E26: 1496.60727 | F26: 16075.57279 | G26: =E26/$E$30 -> 0.03938460564 | H26: =-$H$41*G26 -> -939.4936948 | I26: =F26+H26 -> 15136.0791 | J26: 939.4936948 | K26: =H26+J26 -> 0 | L26: =(H26+J26)/F26 -> 0 | N26: 163276886 | O26: =H26*1000/N26 -> -0.005753990767 | P26: 0.005753990767
A28: 7 | B28: Street & Area Lights | C28: 41-48 | D28: 6900.605642 | E28: 708.7722 | F28: 7609.577842 | G28: =E28/$E$30 -> 0.01865199651 | H28: =-$H$41*G28 -> -444.9310292 | I28: =F28+H28 -> 7164.646813 | J28: 444.9310292 | K28: =H28+J28 -> 0 | L28: =(H28+J28)/F28 -> 0 | N28: 16979796.48 | O28: =H28/F28 -> -0.05846987026 | P28: =J28*1000/N28 -> 0.0262035549 | R28: =F28+H28 -> 7164.646813
R29: =J28 -> 444.9310292
A30: 8 | B30: Total | D30: =SUM(D16:D28) -> 550651.9413 | E30: =SUM(E16:E28) -> 37999.80337 | F30: =SUM(F16:F28)+0.4 -> 588652.3447 | G30: =SUM(G16:G28) -> 1 | H30: =SUM(H16:H28) -> -23854.338 | I30: =F30+H30 -> 564798.0067 | J30: =SUM(J16:J28) -> 23854.338 | K30: =H30+J30 -> 0 | L30: =(H30+J30)/F30 -> 0 | N30: =SUM(N16:N28) -> 5636052048 | R30: =SUM(R28:R29) -> 7609.577842
D31: =ROUND(D30-'[2]Pres & Prop Rev'!C205/1000,0) -> 0 | R31: =R29/R28 -> 0.06210090194
A35: (1) Excludes all present rate adjustments: Schedule 59 (BPA Residential Exchange), Schedule 75 (Decoupling), Schedule 76 (Tax Credit)
A36: Scheduke 89 (Low Income Discount), Schedule 91 (DSM), Schedule 92 (LIRAP), Schedule 93 (ERM) and Schedule 98 (REC Revenue).
G41: Colstrip Rev Req | H41: 23854.338
B48: The Settling Parties agreed that the costs removed from base rates would be allocated to the rate schedules through separate Tariff Schedule 99 using a proportional allocation of the Rate Year 1 base revenue spread. For rate design, revenue would be recovered through the volumetric charges on a uniform cent per kWh basis.

Sheet Stlmt Spread
A1: Settling Parties Rate Spread - Confidential, For Settlement Purposes Only
A2: WASHINGTON ELECTRIC
A3: PROPOSED INCREASE BY SERVICE SCHEDULE
A4: 12 MONTHS ENDED SEPTEMBER 30, 2021
A5: (000s of Dollars)
A7: Rate Year 1
D8: Base Tariff | F8: Sch 99 | G8: Sch 78
D9: Revenue | E9: Proposed | F9: Colstrip | G9: Tax | H9: Total | L9: Avista As-Filed
B10: Type of | C10: Schedule | D10: Under Present | E10: General | F10: Rate | G10: Rate | H10: Net | I10: Percent | L10: Base | M10: Tax | N10: Net | O10: % Increase
A11: No. | B11: Service | C11: Number | D11: Rates | E11: Increase | G11: Credit | H11: Impact | I11: Increase | L11: Increase | M11: Credit | N11: Increase | O11: to Base
B12: (a) | C12: (b) | D12: (c) | E12: (d) | G12: (i) | H12: (j) | I12: (k)
D13: =IF(Base1_Billing2<>1,"ERROR","") ->  | T13: Present | U13: 0.07 | V13: 0.135
A14: 1 | B14: Residential | C14: 1/2 | D14: 253459.0899 | E14: =+($E$26-SUM($E$15:$E$22))*$D14/(SUM($D$14,$D$23:$D$24)) -> 26025.73728 | G14: =+E14/SUM($E$14,$E$23:$E$24)*($G$26-SUM($G$15:$G$18)) -> -12721.89486 | H14: =E14+G14 -> 13303.84242 | I14: =+H14/D14 -> 0.05248911146 | L14: 24316 | M14: -5865 | N14: =L14+M14 -> 18451 | O14: =N14/D14 -> 0.07279675788 | Q14: =E14/D14 -> 0.1026822013 | R14: =(Q14*2)-0.07 -> 0.1353644025 | T14: 8153057 | U14: =T14*1.07 -> 8723770.99 | V14: =U14*(1+V13) -> 9901480.074
A15: 2 | B15: General Service | C15: 11/12 | D15: 81570.42638 | E15: =D15*0.04 -> 3262.817055 | G15: 0 | H15: =E15+G15 -> 3262.817055 | I15: =+H15/D15 -> 0.04 | L15: 7830 | M15: -1887 | N15: =L15+M15 -> 5943 | O15: =N15/D15 -> 0.07285728742 | U15: =U14-T14 -> 570713.99 | V15: =V14-U14 -> 1177709.084
A16: 3 | B16: Transportation - General Service | C16: 13 | D16: 0 | E16: 0 | G16: 0 | H16: =#REF!+G16 ->  | I16: 0
A18: 3 | B18: Large General Service | C18: 21/22 | D18: 131152.6852 | E18: =D18*0.04 -> 5246.107407 | G18: 0 | H18: =E18+G18 -> 5246.107407 | I18: =+H18/D18 -> 0.04 | L18: 12591 | M18: -3035 | N18: =L18+M18 -> 9556 | O18: =N18/D18 -> 0.07286164204
A19: 5 | B19: Transportation - Large General Service | C19: 23 | D19: 0 | E19: 0 | G19: 0 | H19: =#REF!+G19 ->  | I19: 0
A21: 4 | B21: Extra Large General Service | C21: 25 | D21: 41217.65624 | E21: =+D21*2% -> 824.3531249 | G21: 0 | H21: =E21+G21 -> 824.3531249 | I21: =+H21/D21 -> 0.02 | L21: 3954 | M21: -954 | N21: =L21+M21 -> 3000 | O21: =N21/D21 -> 0.07278434228
A22: 5 | B22: Extra Large General Service - Special Contract | C22: 25I | D22: 21772.91244 | E22: =+D22*2% -> 435.4582488 | G22: 0 | H22: =E22+G22 -> 435.4582488 | I22: =+H22/D22 -> 0.02 | L22: 2108 | M22: -504 | N22: =L22+M22 -> 1604 | O22: =N22/D22 -> 0.07366951961
A23: 6 | B23: Pumping Service | C23: 30/31/32 | D23: 14578.56552 | E23: =+($E$26-SUM($E$15:$E$22))*$D23/(SUM($D$14,$D$23:$D$24)) -> 1496.959199 | G23: =+E23/SUM($E$14,$E$23:$E$24)*($G$26-SUM($G$15:$G$18)) -> -731.7432483 | H23: =E23+G23 -> 765.2159505 | I23: =+H23/D23 -> 0.05248911146 | L23: 1398 | M23: -337 | N23: =L23+M23 -> 1061 | O23: =N23/D23 -> 0.07277807947
A24: 7 | B24: Street & Area Lights | C24: 41-48 | D24: =6824.489162328+76.1 -> 6900.589162 | E24: =+($E$26-SUM($E$15:$E$22))*$D24/(SUM($D$14,$D$23:$D$24)) -> 708.5676852 | G24: =+E24/SUM($E$14,$E$23:$E$24)*($G$26-SUM($G$15:$G$18)) -> -346.3618915 | H24: =E24+G24 -> 362.2057937 | I24: =+H24/D24 -> 0.05248911146 | L24: 655 | M24: -158 | N24: =L24+M24 -> 497 | O24: =N24/D24 -> 0.07202283578
A25: 8 | B25: Total | D25: =SUM(D14:D24) -> 550651.9248 | E25: =+SUM(E14:E24) -> 38000 | G25: =+SUM(G14:G24) -> -13800 | H25: =E25+G26 -> 24200 | I25: =+H25/D25 -> 0.04394790776 | L25: =SUM(L14:L24) -> 52852 | M25: =SUM(M14:M24) -> -12740 | N25: =SUM(N14:N24) -> 40112 | O25: =N25/D25 -> 0.07284456513
E26: 38000 | G26: =-13800 -> -13800
A28: Rate Year 2
D29: =IF(Base1_Billing2<>1,"ERROR","") -> 
A30: 1 | B30: Residential | C30: 1/2 | D30: =+D14+E14 -> 279484.8272 | E30: =+($E$42-SUM($E$37:$E$38))*$D30/(SUM($D$30:$D$34,$D$39:$D$40)) -> 6319.566197 | H30: =+E30+G30 -> 6319.566197 | I30: =+E30/D30 -> 0.02261148221 | L30: 7884 | M30: 0 | N30: =L30+M30 -> 7884 | O30: =N30/D30 -> 0.02820904476 | P30: ='RY1 - Summary'!I16+'RY1 - Summary'!L16+'RY1 - Summary'!M16 -> 253325.0617 | Q30: =E30/P30 -> 0.02494647057
A31: 2 | B31: General Service | C31: 11/12 | D31: =+D15+E15 -> 84833.24344 | E31: =+($E$42-SUM($E$37:$E$38))*$D31/(SUM($D$30:$D$34,$D$39:$D$40)) -> 1918.205375 | H31: =+E31+G31 -> 1918.205375 | I31: =+E31/D31 -> 0.02261148221 | L31: 2538 | M31: 0 | N31: =L31+M31 -> 2538 | O31: =N31/D31 -> 0.02991751697 | P31: ='RY1 - Summary'!I18+'RY1 - Summary'!L18+'RY1 - Summary'!M18 -> 90670.35421 | Q31: =E31/P31 -> 0.02115581649
A32: 3 | B32: Transportation - General Service | C32: 13 | D32: ='[3]Pres & Prop Rev'!$F$152/1000 -> 0 | E32: 0 | I32: 0
A34: 3 | B34: Large General Service | C34: 21/22 | D34: =+D18+E18 -> 136398.7926 | E34: =+($E$42-SUM($E$37:$E$38))*$D34/(SUM($D$30:$D$34,$D$39:$D$40)) -> 3084.178872 | H34: =+E34+G34 -> 3084.178872 | I34: =+E34/D34 -> 0.02261148221 | L34: 4078 | M34: 0 | N34: =L34+M34 -> 4078 | O34: =N34/D34 -> 0.02989762536 | P34: ='RY1 - Summary'!I22+'RY1 - Summary'!L22+'RY1 - Summary'!M22 -> 148055.5516 | Q34: 0.02083122746
A35: 5 | B35: Transportation - Large General Service | C35: 23 | D35: ='[3]Pres & Prop Rev'!$H$152/1000 -> 0 | E35: 0 | I35: 0
A37: 4 | B37: Extra Large General Service | C37: 25 | D37: =+D21+E21 -> 42042.00937 | E37: =+D37*1% -> 420.4200937 | H37: =+E37+G37 -> 420.4200937 | I37: =+E37/D37 -> 0.01 | L37: 1284 | M37: 0 | N37: =L37+M37 -> 1284 | O37: =N37/D37 -> 0.03054088088 | P37: ='RY1 - Summary'!I26+'RY1 - Summary'!L26+'RY1 - Summary'!M26 -> 42245.10056 | Q37: 0.009951925505
A38: 5 | B38: Extra Large General Service - Special Contract | C38: 25I | D38: =+D22+E22 -> 22208.37069 | E38: =+D38*1% -> 222.0837069 | H38: =+E38+G38 -> 222.0837069 | I38: =+E38/D38 -> 0.01 | L38: 684 | M38: 0 | N38: =L38+M38 -> 684 | O38: =N38/D38 -> 0.03079919772 | P38: ='RY1 - Summary'!I28+'RY1 - Summary'!L28+'RY1 - Summary'!M28 -> 22880.49679 | Q38: 0.009706244972
A39: 6 | B39: Pumping Service | C39: 30/31/32 | D39: =+D23+E23 -> 16075.52472 | E39: =+($E$42-SUM($E$37:$E$38))*$D39/(SUM($D$30:$D$34,$D$39:$D$40)) -> 363.4914412 | H39: =+E39+G39 -> 363.4914412 | I39: =+E39/D39 -> 0.02261148221 | L39: 454 | M39: 0 | N39: =L39+M39 -> 454 | O39: =N39/D39 -> 0.02824169089 | P39: ='RY1 - Summary'!I30+'RY1 - Summary'!L30+'RY1 - Summary'!M30 -> 16509.92676 | Q39: 0.02201653868
A40: 7 | B40: Street & Area Lights | C40: 41-48 | D40: =+D24+E24 -> 7609.156847 | E40: =+($E$42-SUM($E$37:$E$38))*$D40/(SUM($D$30:$D$34,$D$39:$D$40)) -> 172.0543147 | H40: =+E40+G40 -> 172.0543147 | I40: =+E40/D40 -> 0.02261148221 | L40: 211 | M40: 0 | N40: =L40+M40 -> 211 | O40: =N40/D40 -> 0.02772974775 | P40: ='RY1 - Summary'!I32+'RY1 - Summary'!L32+'RY1 - Summary'!M32 -> 7460.57262 | Q40: 0.02306181086
A41: 8 | B41: Total | D41: =SUM(D30:D40)+0.4 -> 588652.3248 | E41: =SUM(E30:E40) -> 12500 | H41: =+E41+G41 -> 12500 | I41: =+E41/D41 -> 0.02123494544 | L41: =SUM(L30:L40) -> 17133 | M41: 0 | N41: =L41+M41 -> 17133 | O41: =N41/D41 -> 0.02910546562 | P41: =SUM(P30:P40) -> 581147.0642 | Q41: 0.02150918549
E42: 12500
A44: Combined (RY1 + RY2)
A46: 1 | B46: Residential | C46: 1/2 | D46: =D14 -> 253459.0899 | E46: =E14+E30 -> 32345.30348 | G46: =G14 -> -12721.89486 | H46: =E46+G46 -> 19623.40862 | I46: =H46/D46 -> 0.07742239043 | L46: =L14+L30 -> 32200 | M46: -5865 | N46: =L46+M46 -> 26335 | O46: =N46/D46 -> 0.1039023695
A47: 2 | B47: General Service | C47: 11/12 | D47: =D15 -> 81570.42638 | E47: =E15+E31 -> 5181.02243 | G47: =G15 -> 0 | H47: 5181.02243 | I47: =H47/D47 -> 0.0635159415 | L47: 10368 | M47: -1887 | N47: =L47+M47 -> 8481 | O47: =N47/D47 -> 0.1039715051
A48: 3 | B48: Transportation - General Service | C48: 13 | D48: =D16 -> 0 | E48: =E16+E32 -> 0 | G48: =G16 -> 0 | H48: 0 | L48: 0 | M48: 0 | N48: 0
A49: 3 | B49: Large General Service | C49: 21/22 | D49: =D18 -> 131152.6852 | E49: =E18+E34 -> 8330.286279 | G49: =G18 -> 0 | H49: 8330.286279 | I49: =H49/D49 -> 0.0635159415 | L49: =L18+L34 -> 16669 | M49: =M18+M34 -> -3035 | N49: 13634 | O49: 0.1039551724
A50: 5 | B50: Transportation - Large General Service | C50: 23 | D50: =D19 -> 0 | E50: =E19+E35 -> 0 | G50: =G19 -> 0 | H50: 0 | L50: =L19+L35 -> 0 | M50: =M19+M35 -> 0 | N50: 0
A51: 4 | B51: Extra Large General Service | C51: 25 | D51: =D21 -> 41217.65624 | E51: =E21+E37 -> 1244.773219 | G51: =G21 -> 0 | H51: 1244.773219 | I51: =H51/D51 -> 0.0302 | L51: =L21+L37 -> 5238 | M51: -954 | N51: 4284 | O51: 0.1039360408
A52: 5 | B52: Extra Large General Service - Special Contract | C52: 25I | D52: =D22 -> 21772.91244 | E52: =E22+E38 -> 657.5419557 | G52: =G22 -> 0 | H52: 657.5419557 | I52: =H52/D52 -> 0.0302 | L52: 2792 | M52: -504 | N52: 2288 | O52: 0.1050847013
A53: 6 | B53: Pumping Service | C53: 30/31/32 | D53: =D23 -> 14578.56552 | E53: =E23+E39 -> 1860.45064 | G53: =G23 -> -731.7432483 | H53: 1128.707392 | I53: =H53/D53 -> 0.07742239043 | L53: 1852 | M53: -337 | N53: 1515 | O53: 0.1039196893
A54: 7 | B54: Street & Area Lights | C54: 41-48 | D54: =D24 -> 6900.589162 | E54: =E24+E40 -> 880.6219998 | G54: =G24 -> -346.3618915 | H54: 534.2601083 | I54: =H54/D54 -> 0.07742239043 | L54: 866 | M54: -158 | N54: 708 | O54: 0.1025999351
A55: 8 | B55: Total | D55: =D25 -> 550651.9248 | E55: =E25+E41 -> 50500 | G55: =G25 -> -13800 | H55: 36700 | I55: =H55/D55 -> 0.06664827334 | L55: 69985 | M55: -12740 | N55: 57245 | O55: 0.1039585942

Sheet Rate Spread GRC
A3: Avista
A4: Electric
A5: Rate Spread
D9: Base Tariff | F9: Base | J9: Adjusted Billed | M9: Percent
D10: Revenue | E10: Percentage | F10: Tariff | G10: Proposed | H10: Proposed | J10: Revenue | K10: LIRAP | L10: Tax | M10: Increase | O10: Total
B11: Type of | C11: Schedule | D11: Under Present | E11: of Base | F11: Percent | G11: General | H11: Base Tariff | J11: at Present | K11: Rate | L11: Customer | M11: on Billed | O11: Base
A12: No. | B12: Service | C12: Number | D12: Rates(1) | E12: Increase | F12: Increase | G12: Increase | H12: Revenue | J12: Rates (2) | K12: Change | L12: Credit | M12: Revenue | O12: Change | P12: GRC | Q12: Tax
B13: (a) | C13: (b) | D13: (e) | E13: (f) | F13: (g) | G13: (h) | H13: (i) | J13: (j) | K13: (k) | L13: (l) | M13: (m)
A15: 1 | B15: Residential | C15: 1/2 | D15: ='Pres & Prop Rev'!$D$152/1000 -> 253459.0899 | E15: 1.487966427 | F15: =E15*$E$36 -> 0.1026832378 | G15: =F15*D15 -> 26026 | H15: =D15+G15 -> 279485.0899 | J15: ='RY1 - Summary'!I16+'RY1 - Summary'!J16 -> 240021.7457 | K15: 0 | L15: ='RY1 - Summary'!M16 -> -12722 | M15: =IF(J15=0,0,(G15+K15+L15)/J15) -> 0.05542831114 | N15: =+G15+K15+L15 -> 13304 | O15: =(G15)/D15 -> 0.1026832378 | P15: =(G15)/J15 -> 0.108431842 | Q15: =L15/J15 -> -0.05300353084
A17: 2 | B17: General Service | C17: 11/12 | D17: ='Pres & Prop Rev'!$E$152/1000 -> 81570.62638 | E17: 0.579664701 | F17: =E17*$E$36 -> 0.0400021447 | G17: =F17*D17 -> 3263 | H17: =D17+G17 -> 84833.62638 | J17: ='RY1 - Summary'!I18+'RY1 - Summary'!J18 -> 87406.54088 | K17: 0 | L17: ='RY1 - Summary'!M18 -> 0 | M17: =IF(J17=0,0,(G17+K17+L17)/J17) -> 0.03733130229 | N17: =+G17+K17+L17 -> 3263 | O17: =(G17)/D17 -> 0.0400021447 | P17: =(G17)/J17 -> 0.03733130229 | Q17: =L17/J17 -> 0
A19: 3 | B19: Transportation - General Service | C19: 13 | D19: ='Pres & Prop Rev'!$F$152/1000 -> 0 | E19: 0 | F19: =E19*$E$36 -> 0 | G19: =F19*D19 -> 0 | H19: =D19+G19 -> 0 | J19: ='RY1 - Summary'!I20+'RY1 - Summary'!J20 -> 0 | L19: ='RY1 - Summary'!M20 -> 0 | M19: 0 | N19: 0 | Q19: =IF(J19=0,0,L19/J19) -> 0
L20: ='RY1 - Summary'!M21 -> 0 | M20: 0 | N20: 0
A21: 3 | B21: Large General Service | C21: 21/22 | D21: ='Pres & Prop Rev'!$G$152/1000 -> 131152.6852 | E21: 0.5796217552 | F21: =E21*$E$36 -> 0.03999918105 | G21: =F21*D21 -> 5246 | H21: =D21+G21 -> 136398.6852 | J21: ='RY1 - Summary'!I22+'RY1 - Summary'!J22 -> 142808.5055 | K21: 0 | L21: ='RY1 - Summary'!M22 -> 0 | M21: 0.03673450669 | N21: 5246 | O21: 0.03999918105 | P21: 0.03673450669 | Q21: 0
A23: 5 | B23: Transportation - Large General Service | C23: 23 | D23: ='Pres & Prop Rev'!$H$152/1000 -> 0 | E23: 0 | F23: =E23*$E$36 -> 0 | G23: =F23*D23 -> 0 | H23: =D23+G23 -> 0 | J23: ='RY1 - Summary'!I24+'RY1 - Summary'!J24 -> 0 | L23: ='RY1 - Summary'!M24 -> 0 | M23: 0 | N23: 0 | Q23: =IF(J23=0,0,L23/J23) -> 0
L24: ='RY1 - Summary'!M25 -> 0 | M24: 0 | N24: 0
A25: 4 | B25: Extra Large General Service | C25: 25 | D25: ='Pres & Prop Rev'!$I$152/1000-0.2 -> 41217.45624 | E25: 0.2896940692 | F25: =E25*$E$36 -> 0.01999152968 | G25: =F25*D25 -> 824 | H25: =D25+G25 -> 42041.45624 | J25: ='RY1 - Summary'!I26+'RY1 - Summary'!J26 -> 41422.0512 | K25: 0 | L25: ='RY1 - Summary'!M26 -> 0 | M25: 0.01989278599 | N25: 824 | O25: 0.01999152968 | P25: 0.01989278599 | Q25: 0
A27: 5 | B27: Extra Large General Service - Specific Contract | C27: 25I | D27: ='Pres & Prop Rev'!$J$152/1000 -> 21772.91244 | E27: =E25 -> 0.2896940692 | F27: =E27*$E$36 -> 0.01999152968 | G27: =F27*D27 -> 435.2738254 | H27: =D27+G27 -> 22208.18627 | J27: ='RY1 - Summary'!I28+'RY1 - Summary'!J28 -> 22445.29772 | K27: 0 | L27: ='RY1 - Summary'!M28 -> 0 | M27: 0.019392651 | N27: 435.2738254 | O27: 0.01999152968 | P27: 0.019392651 | Q27: =IF(J27=0,0,L27/J27) -> 0
A29: 6 | B29: Pumping Service | C29: 30/31/32 | D29: ='Pres & Prop Rev'!$K$152/1000 -> 14578.56552 | E29: 1.487991963 | F29: =E29*$E$36 -> 0.102685 | G29: =F29*D29 -> 1497 | H29: =D29+G29 -> 16075.56552 | J29: ='RY1 - Summary'!I30+'RY1 - Summary'!J30 -> 15745.31949 | K29: 0 | L29: ='RY1 - Summary'!M30 -> -732 | M29: 0.04858586708 | N29: 765 | O29: 0.102685 | P29: 0.09507587322 | Q29: -0.04649000614
N30: 0
A31: 7 | B31: Street & Area Lights | C31: 41-48 | D31: ='Pres & Prop Rev'!$L$152/1000 -> 6900.605642 | E31: 1.488855687 | F31: =E31*$E$36 -> 0.1027446049 | G31: =F31*D31 -> 709 | H31: =D31+G31 -> 7609.605642 | J31: ='RY1 - Summary'!I32+'RY1 - Summary'!J32 -> 7097.80042 | K31: 0 | L31: ='RY1 - Summary'!M32 -> -346 | M31: 0.05114260454 | O31: 0.1027446049 | P31: 0.09989010088 | Q31: -0.04874749634
A33: 8 | B33: Total | D33: =SUM(D15:D31) -> 550651.9413 | F33: =G36/$D$33 -> 0.06900910929 | G33: =SUM(G15:G31) -> 38000.27383 | H33: =D33+G33+0.3 -> 588652.5151 | J33: ='RY1 - Summary'!I34+'RY1 - Summary'!J34 -> 556947.2609 | K33: 0 | L33: =SUM(L15:L31) -> -13800 | M33: =IF(J33=0,0,(G33+K33+L33)/J33) -> 0.0434516435 | N33: 24200.27383 | O33: 0.06900960657 | P33: 0.06822957306 | Q33: -0.02477792956
G34: =ROUND(G33-G36,0) -> 0
B36: Revenue Requirement | E36: =G36/(D33) -> 0.06900910929 | G36: 38000
O37: LIRAP Change
O39: =O15 -> 0.1026832378
O40: x 2
O41: =O39*2 -> 0.2053664756
D44: Schedule 25
E45: Increase
D46: Base Increase | E46: =ROUND(G25*1000,-3) -> 824000
D47: MWh | E47: ='Pres & Prop Rev'!I23/1000 -> 561491.7153
D49: $ Per MWh Change | E49: =E46/E47 -> 1.467519427
E50: =E46/E49 -> 561491.7153
D55: Special Contract Rate Spread
E57: Rate Calculation
D58: Schedule 25
D60: $ Per MWh Change | E60: =E49 -> 1.467519427
D61: IEP Rate Factor | E61: =0.6509 -> 0.6509
E62: =E60*E61 -> 0.9552083948
D64: IEP MWh's | E64: ='Pres & Prop Rev'!J37/1000 -> 459738.12
D66: IEP Increase | E66: =(E60*E61)*E64 -> 439145.7116 | F66: =(E66/1000)/D27 -> 0.02016936011
D70: Rate Factor Calculation for future Special Contract Rate Changes
D71: UE-190334
F73: Rate Year Revenue | H73: MWh | J73: Rate Factor
D74: Schedule 25 | F74: 45108846.98 | H74: 620117.6859 | J74: =F74/H74 -> 72.74239714
D76: Special Contract | F76: 21357310.44 | H76: 451099.448 | J76: =F76/H76 -> 47.34501567
J79: =J76/J74 -> 0.6508586125
D83: The total level of revenue requirement assigned to IEP will be updated as a result of any base rate percentage changes approved for Schedule 25 by the WUTC that occur after Docket UE-200900. A Schedule 25 rate factor will be established equal to the Special Contract rate divided by Schedule 25’s final base rate approved in UE-200900, where rates are expressed as rate year revenue divided by rate year MWh. The Special Contract rate change will be equal to the Schedule 25 rate factor times the Schedule 25 rate change. For example, if Avista’s rate request in UE-200900 results in Schedule 25 revenue of $40 million and load of 600,000 MWh, Schedule 25 rates will be $66.67/MWh. If the Special Contract revenue is set at $22 million with a load of 440,000 MWh the Special Contract rate will be $50/MWh, resulting in a rate factor of 0.75. For subsequent base rate changes, the Special Contract rate change under this example will, therefore, be 75 percent of the Schedule 25 $/MWh rate change.

Sheet Bill Determ
A1: AVISTA UTILITIES
A2: WASHINGTON ELECTRIC
A3: ACTUAL / PRO FORMA BILLING DETERMINANTS BY RATE SCHEDULE
A4: 12 MONTHS ENDED SEPTEMBER 30, 2021
A8: Schedule 1, 2 | B8: 0-800 kWhs | C8: 801-1500 kWhs | D8: over 1500 kWhs | E8: Total kWhs | F8: Total Billings(2)
A9: kWhs per billing run | B9: ='Block Data'!O21 -> 1699114426 | C9: ='Block Data'!O22 -> 560062332.6 | D9: ='Block Data'!O23 -> 314000634.3 | E9: =B9+C9+D9 -> 2573177392 | F9: ='REVRUNS 12ME0921'!P39 -> 2681552
A10: Total kWhs per Rev. Run | E10: ='Block Data'!O13 -> 2573177392
A11: Adjust. kWhs to Actual | E11: =E10-E9 -> 0
A14: Schedule 11,12, 13 | B14: 0-3,650 kWhs | C14: over 3,650 kWhs | D14: Total kWhs | E14: kw over 20(1) | F14: Total Billings(2) | G14: kvar billed(1)
A15: kWhs per Revenue Run | B15: ='Block Data'!O38 -> 440976955.8 | C15: ='Block Data'!O39 -> 206157623.5 | D15: =B15+C15 -> 647134579.3 | E15: ='Block Data'!O45 -> 555536.7062 | F15: ='REVRUNS 12ME0921'!P40+'REVRUNS 12ME0921'!P41 -> 403355 | G15: ='Block Data'!O49 -> 0
A16: Schedule Shifting | B16: 0 | C16: 0 | D16: =SUM(B16:C16) -> 0 | E16: 0 | F16: 0 | G16: 0
A17: Total by Block | B17: =SUM(B15:B16) -> 440976955.8 | C17: 206157623.5 | D17: 647134579.3 | E17: 555536.7062 | F17: 403355 | G17: 0
A18: Total kWhs per Rev. Run | D18: ='Block Data'!O31 -> 647134579.3
A19: Schedule Shifting | D19: =D16 -> 0
A20: Total Adjusted kWhs | D20: =D18+D19 -> 647134579.3
A21: Adjust. kWhs to Actual | D21: =D20-D17 -> 0
A24: Not Used | B24: 0-3,650 kWhs | C24: over 3,650 kWhs | D24: Total kWhs | E24: kw over 20(1) | F24: Total Billings(2) | G24: kvar billed(1)
A25: kWhs per Revenue Run | B25: ='Block Data'!O64 -> 0 | C25: ='Block Data'!O65 -> 0 | D25: =B25+C25 -> 0 | E25: ='Block Data'!O71 -> 0 | F25: 0 | G25: ='Block Data'!O75 -> 0
A26: Schedule Shifting | B26: 0 | C26: 0 | D26: =SUM(B26:C26) -> 0 | E26: 0 | F26: 0 | G26: 0
A27: Total by Block | B27: =SUM(B25:B26) -> 0 | C27: 0 | D27: 0 | E27: 0 | F27: 0 | G27: 0
A28: Total kWhs per Rev. Run | D28: ='Block Data'!O57 -> 0
A29: Schedule Shifting | D29: =D26 -> 0
A30: Total Adjusted kWhs | D30: =D28+D29 -> 0
A31: Adjust. kWhs to Actual | D31: =D30-D27 -> 0
A34: Schedule 21,22, 23 | B34: 0-250,000 kWhs | C34: over 250,000 kWhs | D34: Total kWhs | E34: kw over 50(1) | F34: Total Billings(2) | G34: kvar billed(1)
A35: kWhs per Revenue Run | B35: ='Block Data'!O90 -> 1174888254 | C35: ='Block Data'!O91 -> 139885749.1 | D35: =B35+C35 -> 1314774003 | E35: ='Block Data'!O97 -> 2804857.714 | F35: ='REVRUNS 12ME0921'!P42+'REVRUNS 12ME0921'!P43 -> 21936 | G35: ='Block Data'!O101 -> 349155.54
A36: Schedule 25 to 21 | B36: =6*250000 -> 1500000 | C36: =-SUM('WA Sch 25'!P34)-B36 -> 3477596.4 | D36: =SUM(B36:C36) -> 4977596.4 | E36: 17715 | F36: 6 | G36: 0
A37: Schedule Shifting | B37: 0 | C37: 0 | D37: =SUM(B37:C37) -> 0 | E37: 0 | F37: 0 | G37: 0
A38: Total | B38: =SUM(B35:B37) -> 1176388254 | C38: =SUM(C35:C37) -> 143363345.5 | D38: =SUM(B38:C38) -> 1319751600 | E38: =SUM(E35:E37) -> 2822572.714 | F38: =SUM(F35:F37) -> 21942 | G38: =SUM(G35:G37) -> 349155.54
A39: Total kWhs per Rev. Run | D39: ='Block Data'!O83 -> 1314774003
A40: Schedule Shifting | D40: =D36 -> 4977596.4
A41: Schedule Shifting | D41: =D37 -> 0
A42: Total adjusted kWhs | D42: =D39+D40+D41 -> 1319751600
A43: Adjust. kWhs to Actual | D43: =D42-D38 -> 0
A46: Not Used | B46: 0-250,000 kWhs | C46: over 250,000 kWhs | D46: Total kWhs | E46: kw over 50(1) | F46: Total Billings(2) | G46: kvar billed(1)
A47: kWhs per Revenue Run | B47: ='Block Data'!O116 -> 0 | C47: ='Block Data'!O117 -> 0 | D47: =B47+C47 -> 0 | E47: ='Block Data'!O123 -> 0 | F47: 0 | G47: ='Block Data'!O127 -> 0
A48: Schedule Shifting | B48: 0 | C48: 0 | D48: =SUM(B48:C48) -> 0 | E48: 0 | F48: 0 | G48: 0
A49: Total | B49: =SUM(B47:B48) -> 0 | C49: =SUM(C47:C48) -> 0 | D49: =SUM(B49:C49) -> 0 | E49: =SUM(E47:E48) -> 0 | F49: =SUM(F47:F48) -> 0 | G49: =SUM(G47:G48) -> 0
A50: Total kWhs per Rev. Run | D50: ='Block Data'!O94 -> 0
A51: Schedule Shifting | D51: =D47 -> 0
A52: Schedule Shifting | D52: =D48 -> 0
A53: Total adjusted kWhs | D53: =D50+D51+D52 -> 0
A54: Adjust. kWhs to Actual | D54: =D53-D49 -> 0
A57: Schedule 25(3) | B57: 0-500,000 kWhs | C57: 500,001-6M kWhs | D57: > 6M kWhs | E57: Total kWhs | F57: kva over 3,000 | G57: Total Billings(2)
A58: Total | B58: ='WA Sch 25'!Q27 -> 125726244.4 | C58: ='WA Sch 25'!R27 -> 435765470.9 | D58: ='WA Sch 25'!S27 -> 0 | E58: =SUM(B58:D58) -> 561491715.3 | F58: ='WA Sch 25'!P97 -> 475862.632 | G58: =(21*12) -> 252
A61: Schedule 25I | B61: 0-500,000 kWhs | C61: 500,001-6M kWhs | D61: > 6M kWhs | E61: Total kWhs | F61: kva over 3,000 | G61: Total Billings(2)
A62: Total | B62: ='WA Sch 25'!Q42 -> 6000000 | C62: ='WA Sch 25'!R42 -> 66000000 | D62: ='WA Sch 25'!S42 -> 387738120 | E62: =SUM(B62:D62) -> 459738120 | F62: ='WA Sch 25'!P101 -> 703831.31 | G62: 12
A65: Schedule 30, 31, & 32 | B65: Block 1 kWhs | C65: Block 2 kWhs | D65: Block 3 kWhs | E65: Total kWhs | F65: Total Billings(2) | G65: kvar billed(1)
A66: kWhs per billing run (30,31& 32) | B66: ='Block Data'!O144 -> 38920078.25 | C66: ='Block Data'!O145 -> 12590255.55 | D66: ='Block Data'!O146 -> 112757486.3 | E66: =B66+C66+D66 -> 164267820 | F66: ='REVRUNS 12ME0921'!P46 -> 30331 | G66: ='Block Data'!O151 -> 0
A67: Schedule Shifting | B67: 0 | C67: 0 | D67: =-B67-C67 -> 0 | E67: =SUM(B67:D67) -> 0
A68: Total Schs. 30,31&32 | B68: =B66+B67 -> 38920078.25 | C68: =C66+C67 -> 12590255.55 | D68: =D66+D67 -> 112757486.3 | E68: =E66+E67 -> 164267820
A69: Total kWhs per Rev. Run | E69: ='Block Data'!O136 -> 164267820
A70: Adjust kWhs to Actual | E70: =E69-E68 -> 0
A87: Revenue Runs from this sheet | B87: =E10+D18+D39+E69+E58 -> 5260845510
A89: actual Revenue Runs | B89: ='REVRUNS 12ME0921'!P342 -> 5740382366
A90: less:
A91: Sch 25 Adj | B91: ='REVRUNS 12ME0921'!P338-'Bill Determ'!E58 -> 462557058.8 | C91: rev. runs too high
A93: Sch shifting | B93: =D36 -> 4977596.4 | C93: not shown on this sheet
A94: Schs 41-48 St & Area Lt | B94: ='REVRUNS 12ME0921'!P341 -> 16979796.48 | C94: not shown on this sheet
B95: =B89-SUM(B91:B94) -> 5255867914
A96: Diff | B96: =B87-B95 -> 4977596.4
A98: from Present Rev tab | B98: ='Pres & Prop Rev'!C20-'Pres & Prop Rev'!C15 -> 5742541023
A99: this sheet + SAL | B99: =B87+B94+B93 -> 5282802903
A100: Diff | B100: =B98-B99 -> 459738120
A103: Rev. Run customers | B103: ='REVRUNS 12ME0921'!P48 -> 3143223
A104: less:
A105: normalize Sch 25 | B105: ='REVRUNS 12ME0921'!P44-G58 -> 19 | C105: rev. runs too low
A106: Sch Shifting | B106: =-F36 -> -6 | C106: not shown on this sheet
A107: Schs 41-48 St & Area Lt | B107: ='REVRUNS 12ME0921'!P47 -> 5778 | C107: not shown on this sheet
B108: =B103-SUM(B104:B107) -> 3137432
A110: from Present Rev tab | B110: =SUM('Pres & Prop Rev'!D25:L25) -> 3137444
A111: Diff | B111: =B108-B110 -> -12

Sheet Sp Cnt Exh B
A1: Special Contract
A2: Exhibit B - Rate Design
D5: Schedule 25 | H5: Special Contract
D6: Present | F6: Present | H6: Proposed | J6: Proposed | O6: Revised Base
D7: Base Tariff | E7: Billing | F7: Base | H7: Special Contract | I7: Billing | J7: Special Contract | L7: Schedule 99 | M7: LIRAP | N7: DSM | O7: Rate With | R7: Rate Factor Calculation for future IEP Special Contract Rate Changes from UE-200900
D8: Sch. Rate | E8: Determinants | F8: Revenue | H8: Rate | I8: Determinants | J8: Rate | L8: Colstrip Rates | O8: Colstrip
A9: Extra Large Special Contract
A10: Energy Charge: | T10: Rate Year Revenue | V10: MWh | X10: Rate Factor
A11: First 500,000 kWhs | D11: ='Att A pg 2'!D69 -> 0.04662 | E11: ='Bill Determ'!$B$62 -> 6000000 | F11: =D11*E11 -> 279720 | H11: ='Att A pg 2'!N69 -> 0.04782 | I11: =E11 -> 6000000 | J11: =H11*I11 -> 286920 | L11: =-Colstrip!P24 -> -0.0005942421582 | M11: =0.00093*I11 -> 5580 | N11: =0.00182*I11 -> 10920 | O11: =H11+L11 -> 0.04722575784 | R11: Schedule 25 | T11: ='Rate Spread GRC'!F74 -> 45108846.98 | V11: ='Rate Spread GRC'!H74 -> 620117.6859 | X11: =T11/V11 -> 72.74239714
A12: 500,000 - 6,000,000 kWhs | D12: ='Att A pg 2'!D70 -> 0.04195 | E12: ='Pres & Prop Rev'!J32 -> 66000000 | F12: =D12*E12 -> 2768700 | H12: ='Att A pg 2'!N70 -> 0.04303 | I12: =E12 -> 66000000 | J12: =H12*I12 -> 2839980 | L12: =L11 -> -0.0005942421582 | M12: =0.00093*I12 -> 61380 | N12: =0.00182*I12 -> 120120 | O12: =H12+L12 -> 0.04243575784
A13: All over 6,000,000 kWhs | D13: ='Att A pg 2'!D71 -> 0.03587 | E13: ='Bill Determ'!$D$62 -> 387738120 | F13: 13908166.36 | H13: ='Att A pg 2'!N71 -> 0.03679 | I13: 387738120 | J13: =H13*I13 -> 14264885.43 | L13: =L11 -> -0.0005942421582 | N13: 705683.3784 | O13: 0.03619575784 | R13: Special Contract | T13: ='Rate Spread GRC'!F76 -> 21357310.44 | V13: ='Rate Spread GRC'!H76 -> 451099.448 | X13: =T13/V13 -> 47.34501567
E14: 0 | M14: =SUM(M11:M13) -> 66960 | N14: =SUM(N11:N13) -> 836723.3784
A15: Demand Charge:
A16: 3,000 kva or less | D16: 30650 | E16: 12 | F16: =D16*E16 -> 367800 | H16: 30650 | I16: =E16 -> 12 | J16: =H16*I16 -> 367800 | O16: =H16 -> 30650 | X16: =X13/X11 -> 0.6508586125
A17: Over 3,000 kva | D17: 8.3 | E17: ='Pres & Prop Rev'!J50 -> 703831.31 | F17: =D17*E17 -> 5841799.873 | H17: 8.3 | I17: =E17 -> 703831.31 | J17: =H17*I17 -> 5841799.873 | O17: =H17 -> 8.3
E18: 0
A19: Primary Volt. Discount
A20: 11 - 60 kv | D20: 0.2 | E20: 0 | F20: 0 | H20: 0.2 | I20: =E20 -> 0 | J20: =H20*I20 -> 0 | O20: =H20 -> 0.2
A21: 60 - 115 kv | D21: 1.52 | E21: ='WA Sch 25'!P127 -> 119510.1332 | F21: =-D21*E21 -> -181655.4024 | H21: 1.52 | I21: =E21 -> 119510.1332 | J21: =-H21*I21 -> -181655.4024 | O21: =H21 -> 1.52
A22: 115 or higher kv | D22: 1.93 | E22: ='WA Sch 25'!P129 -> 627781.5488 | F22: =-D22*E22 -> -1211618.389 | H22: 1.93 | I22: 627781.5488 | J22: =-H22*I22 -> -1211618.389 | O22: 1.93
D24: Total Present Revenue | F24: =SUM(F11:F22) -> 21772912.45 | H24: Total Proposed Revenue | J24: =SUM(J11:J22) -> 22208111.52 | Q24: =J24-F24 -> 435199.0704

Sheet Bill Impact
A3: Schedule 001 Bill Impact
A7: Schedule 001 Present | G7: Schedule 001 Proposed
B8: Basic Charge | C8: Block 1 | D8: Block 2 | E8: Total Bill | G8: Basic Charge | H8: Block 1 | I8: Block 2 | J8: Total Bill | L8: Bill Impact | M8: % Change
B9: ='Att A pg 2'!D12 -> 9 | C9: ='Att A pg 2'!H14 -> 0.08022 | D9: ='Att A pg 2'!H15 -> 0.09346 | G9: ='Att A pg 2'!M12 -> 9 | H9: ='Att A pg 2'!M14 -> 0.0848 | I9: ='Att A pg 2'!M15 -> 0.09961 | R9: Before Offset
A10: 100 | B10: =$B$9 -> 9 | C10: =A10*$C$9 -> 8.022 | E10: =SUM(B10:D10) -> 17.022 | G10: =$G$9 -> 9 | H10: =A10*$H$9 -> 8.48 | J10: =SUM(G10:I10) -> 17.48 | L10: =J10-E10 -> 0.458 | M10: =L10/E10 -> 0.02690635648
A11: 200 | B11: =$B$9 -> 9 | C11: 16.044 | E11: =SUM(B11:D11) -> 25.044 | G11: =$G$9 -> 9 | H11: 16.96 | J11: =SUM(G11:I11) -> 25.96 | L11: =J11-E11 -> 0.916 | M11: =L11/E11 -> 0.0365756269 | S11: Present | T11: Proposed | U11: Difference
A12: 300 | B12: =$B$9 -> 9 | C12: 24.066 | E12: =SUM(B12:D12) -> 33.066 | G12: =$G$9 -> 9 | H12: 25.44 | J12: =SUM(G12:I12) -> 34.44 | L12: 1.374 | M12: =L12/E12 -> 0.04155325712 | R12: 600 | S12: =E15 -> 57.132 | T12: =R12*('Att A pg 2'!F14+'Att A pg 2'!J14)+'Att A pg 2'!M12 -> 62.934 | U12: =T12-S12 -> 5.802
A13: 400 | B13: =$B$9 -> 9 | C13: 32.088 | E13: =SUM(B13:D13) -> 41.088 | G13: =$G$9 -> 9 | H13: 33.92 | J13: =SUM(G13:I13) -> 42.92 | L13: 1.832 | M13: =L13/E13 -> 0.04458722741 | R13: 1000 | S13: =E19 -> 91.87 | T13: =800*('Att A pg 2'!F14+'Att A pg 2'!J14)+(200*('Att A pg 2'!F15+'Att A pg 2'!J15))+'Att A pg 2'!M12 -> 101.852 | U13: =T13-S13 -> 9.982
A14: 500 | B14: =$B$9 -> 9 | C14: 40.11 | E14: =SUM(B14:D14) -> 49.11 | G14: =$G$9 -> 9 | H14: 42.4 | J14: =SUM(G14:I14) -> 51.4 | L14: 2.29 | M14: =L14/E14 -> 0.04663001425 | R14: 1400 | S14: =E23 -> 129.252 | T14: =(800*('Att A pg 2'!F14+'Att A pg 2'!J14))+(600*('Att A pg 2'!F15+'Att A pg 2'!J15))+'Att A pg 2'!M12 -> 143.732 | U14: 14.48
A15: 600 | B15: =$B$9 -> 9 | C15: 48.132 | E15: =SUM(B15:D15) -> 57.132 | G15: =$G$9 -> 9 | H15: 50.88 | J15: =SUM(G15:I15) -> 59.88 | L15: 2.748 | M15: =L15/E15 -> 0.04809913884
A16: 700 | B16: 9 | C16: 56.154 | E16: =SUM(B16:D16) -> 65.154 | G16: 9 | H16: 59.36 | J16: =SUM(G16:I16) -> 68.36 | L16: 3.206 | M16: =L16/E16 -> 0.04920649538
A17: 800 | B17: 9 | C17: 64.176 | E17: 73.176 | G17: 9 | H17: =A17*$H$9 -> 67.84 | J17: 76.84 | L17: 3.664 | M17: 0.05007106155
A18: =ROUND('Pres & Prop Rev'!D46/'Pres & Prop Rev'!D48,0) -> 932 | B18: 9 | C18: =ROUND($C$17,2) -> 64.18 | D18: =ROUND((A18-$A$17)*$D$9,2) -> 12.34 | E18: 85.52 | G18: 9 | H18: =ROUND($H$17,2) -> 67.84 | I18: =ROUND((A18-$A$17)*$I$9,2) -> 13.15 | J18: =SUM(G18:I18) -> 89.99 | L18: 4.47 | M18: =L18/E18 -> 0.05226847521
A19: 1000 | B19: 9 | C19: =ROUND($C$17,2) -> 64.18 | D19: =ROUND((A19-$A$17)*$D$9,2) -> 18.69 | E19: 91.87 | G19: 9 | H19: =ROUND($H$17,2) -> 67.84 | I19: =ROUND((A19-$A$17)*$I$9,2) -> 19.92 | J19: 96.76 | L19: 4.89 | M19: 0.05322738652
A20: 1100 | B20: 9 | C20: =$C$17 -> 64.176 | D20: =(A20-$A$17)*$D$9 -> 28.038 | E20: =SUM(B20:D20) -> 101.214 | G20: 9 | H20: =$H$17 -> 67.84 | I20: =(A20-$A$17)*$I$9 -> 29.883 | J20: =SUM(G20:I20) -> 106.723 | L20: 5.509 | M20: =L20/E20 -> 0.05442922916
A21: 1200 | B21: 9 | C21: =$C$17 -> 64.176 | D21: =(A21-$A$17)*$D$9 -> 37.384 | E21: 110.56 | G21: 9 | H21: =$H$17 -> 67.84 | I21: =(A21-$A$17)*$I$9 -> 39.844 | J21: 116.684 | L21: 6.124 | M21: 0.05539073806
A22: 1300 | B22: 9 | C22: =$C$17 -> 64.176 | D22: =(A22-$A$17)*$D$9 -> 46.73 | E22: =SUM(B22:D22) -> 119.906 | G22: 9 | H22: =$H$17 -> 67.84 | I22: =(A22-$A$17)*$I$9 -> 49.805 | J22: =SUM(G22:I22) -> 126.645 | L22: 6.739 | M22: =L22/E22 -> 0.05620235851
A23: 1400 | B23: 9 | C23: =$C$17 -> 64.176 | D23: =(A23-$A$17)*$D$9 -> 56.076 | E23: =SUM(B23:D23) -> 129.252 | G23: 9 | H23: =$H$17 -> 67.84 | I23: =(A23-$A$17)*$I$9 -> 59.766 | J23: =SUM(G23:I23) -> 136.606 | L23: 7.354 | M23: =L23/E23 -> 0.05689660508
A24: 1500 | B24: 9 | C24: =$C$17 -> 64.176 | D24: =(A24-$A$17)*$D$9 -> 65.422 | E24: 138.598 | G24: 9 | H24: =$H$17 -> 67.84 | I24: =(A24-$A$17)*$I$9 -> 69.727 | J24: 146.567 | L24: 7.969 | M24: 0.05749722218
G28: =(G9-B9) -> 0 | H28: =(H9-C9)*800 -> 3.664 | I28: =(I9-D9)*132 -> 0.8118

Sheet WA Sch 25
A1: Washington Schedule 25 Billing Determinants | Q1: 1st | R1: =Q2 -> 500000 | S1: =R2 -> 6000000
P2: 12-mo Ended | Q2: 500000 | R2: 6000000 | S2: 99999999
A3: KWHs | C3: Acct No. | D3: 2020-10-31 | E3: =EOMONTH(D3,1) -> 2020-11-30 | F3: 2020-12-31 | G3: 2021-01-31 | H3: 2021-02-28 | I3: 2021-03-31 | J3: 2021-04-30 | K3: 2021-05-31 | L3: 2021-06-30 | M3: 2021-07-31 | N3: 2021-08-31 | O3: 2021-09-30 | P3: Total | Q3: kwhs/mo | R3: kwhs/mo | S3: kwhs/mo
A4: 1 | B4: Goodrich - North 2311008572 | C4: 2311008572 | D4: 2458068.9 | E4: 1544554.2 | F4: 1189675.2 | G4: 1511697.6 | H4: 1882095.6 | I4: 2261666.4 | J4: 1799479.5 | K4: 2309876.1 | L4: 2695404.6 | M4: 2647274.7 | N4: 2478096.6 | O4: 3166680.3 | P4: =SUM(D4:O4) -> 25944569.7 | Q4: =Q$2*12-SUMPRODUCT(--($D4:$O4<=Q$2),Q$2-$D4:$O4) -> 6000000 | R4: =R$2*12-SUM($Q4:Q4)-SUMPRODUCT(--($D4:$O4<=R$2),R$2-$D4:$O4) -> 19944569.7 | S4: =S$2*12-SUM($Q4:R4)-SUMPRODUCT(--($D4:$O4<=S$2),S$2-$D4:$O4) -> 0
A5: 2 | B5: Boise Cascade Plywood | C5: 8920023327 | D5: 3024031.5 | E5: 2843954.4 | F5: 2473554.3 | G5: 2885658.3 | H5: 2744878.5 | I5: 2980838.7 | J5: 2910555.9 | K5: 2901796.8 | L5: 2761634.4 | M5: 2818435.2 | N5: 2414878.2 | O5: 2830543.8 | P5: 33590760 | Q5: =Q$2*12-SUMPRODUCT(--($D5:$O5<=Q$2),Q$2-$D5:$O5) -> 6000000 | R5: =R$2*12-SUM($Q5:Q5)-SUMPRODUCT(--($D5:$O5<=R$2),R$2-$D5:$O5) -> 27590760 | S5: =S$2*12-SUM($Q5:R5)-SUMPRODUCT(--($D5:$O5<=S$2),S$2-$D5:$O5) -> 0
A6: 3 | B6: Boise Cascade Sawmill | C6: 9920023116 | D6: 1281416.5 | E6: 1231090.7 | F6: 1371597.5 | G6: 1378001.1 | H6: 1276487.1 | I6: 1360394 | J6: 1246655.2 | K6: 1204011.2 | L6: 1244033.7 | M6: 1159707.5 | N6: 1143046.8 | O6: 1107361.5 | P6: 15003802.8 | Q6: 6000000 | R6: =R$2*12-SUM($Q6:Q6)-SUMPRODUCT(--($D6:$O6<=R$2),R$2-$D6:$O6) -> 9003802.8 | S6: =S$2*12-SUM($Q6:R6)-SUMPRODUCT(--($D6:$O6<=S$2),S$2-$D6:$O6) -> 0
A7: 4 | B7: City of Spokane | C7: 8970099313 | D7: 1273549.2 | E7: 1311429 | F7: 1427570.55 | G7: 1480744.65 | H7: 1399653.15 | I7: 1642623.15 | J7: 1599610.95 | K7: 1655249.4 | L7: 1732733.1 | M7: 1807320.9 | N7: 1615553.1 | O7: 1391827.5 | P7: 18337864.65 | Q7: 6000000 | R7: =R$2*12-SUM($Q7:Q7)-SUMPRODUCT(--($D7:$O7<=R$2),R$2-$D7:$O7) -> 12337864.65 | S7: =S$2*12-SUM($Q7:R7)-SUMPRODUCT(--($D7:$O7<=S$2),S$2-$D7:$O7) -> 0
A8: 5 | B8: Empire Health Services | C8: 0080095044 | D8: 1565237.1 | E8: 1501969.35 | F8: 1579521.3 | G8: 1563613.8 | H8: 1462822.2 | I8: 1593162.9 | J8: 1625069.25 | K8: 1785898.8 | L8: 1999167.45 | M8: 2213329.65 | N8: 2118270 | O8: 1807545.6 | P8: 20815607.4 | Q8: 6000000 | R8: =R$2*12-SUM($Q8:Q8)-SUMPRODUCT(--($D8:$O8<=R$2),R$2-$D8:$O8) -> 14815607.4 | S8: =S$2*12-SUM($Q8:R8)-SUMPRODUCT(--($D8:$O8<=S$2),S$2-$D8:$O8) -> 0
A9: 6 | B9: Gonzaga University | C9: 1420028876 | D9: 1943260.2 | E9: 1995587.3 | F9: 1999254.6 | G9: 2129810.2 | H9: 2099549.2 | I9: 2016858.2 | J9: 1782077.5 | K9: 1438536.4 | L9: 1704057.6 | M9: 1870433.6 | N9: 1812687.8 | O9: 1940272.6 | P9: 22732385.2 | Q9: 6000000 | R9: =R$2*12-SUM($Q9:Q9)-SUMPRODUCT(--($D9:$O9<=R$2),R$2-$D9:$O9) -> 16732385.2 | S9: =S$2*12-SUM($Q9:R9)-SUMPRODUCT(--($D9:$O9<=S$2),S$2-$D9:$O9) -> 0
A10: 7 | B10: Honeywell Electronics | C10: 0170122152 | D10: 1313485.6 | E10: 1266305.6 | F10: 1310813.7 | G10: 1312558.8 | H10: 1225321.3 | I10: 1312726.1 | J10: 1295624.4 | K10: 1371136.9 | L10: 1504815.9 | M10: 1596914.9 | N10: 1557619.7 | O10: 1419316.5 | P10: 16486639.4 | Q10: 6000000 | R10: =R$2*12-SUM($Q10:Q10)-SUMPRODUCT(--($D10:$O10<=R$2),R$2-$D10:$O10) -> 10486639.4 | S10: =S$2*12-SUM($Q10:R10)-SUMPRODUCT(--($D10:$O10<=S$2),S$2-$D10:$O10) -> 0
A11: 8 | B11: Huntwood Industries | C11: 8640841982 | D11: 983448.9 | E11: 872745.3 | F11: 973484.4 | G11: 955497.9 | H11: 914768.4 | I11: 1072692.6 | J11: 1100330.7 | K11: 1063473.6 | L11: 1203917.4 | M11: 1309969.5 | N11: 1190796.6 | O11: 1071226.8 | P11: 12712352.1 | Q11: 6000000 | R11: =R$2*12-SUM($Q11:Q11)-SUMPRODUCT(--($D11:$O11<=R$2),R$2-$D11:$O11) -> 6712352.1 | S11: =S$2*12-SUM($Q11:R11)-SUMPRODUCT(--($D11:$O11<=S$2),S$2-$D11:$O11) -> 0
P12: 0 | Q12: 0 | R12: =R$2*12-SUM($Q12:Q12)-SUMPRODUCT(--($D12:$O12<=R$2),R$2-$D12:$O12) -> 0 | S12: =S$2*12-SUM($Q12:R12)-SUMPRODUCT(--($D12:$O12<=S$2),S$2-$D12:$O12) -> 0 | V12: =P12*0.00205 -> 0 | W12: Sch 91
A13: 9 | B13: Simplot - Othello | C13: 4250473907 | D13: 5681671.8 | E13: 4277807.1 | F13: 4873619.1 | G13: 5149987.5 | H13: 4659759.3 | I13: 5590407.9 | J13: 5534106.9 | K13: 5645045.7 | L13: 5697176.1 | M13: 5806479 | N13: 5842979.1 | O13: 5400992.1 | P13: 64160031.6 | Q13: 6000000 | R13: =R$2*12-SUM($Q13:Q13)-SUMPRODUCT(--($D13:$O13<=R$2),R$2-$D13:$O13) -> 58160031.6 | S13: =S$2*12-SUM($Q13:R13)-SUMPRODUCT(--($D13:$O13<=S$2),S$2-$D13:$O13) -> 0
A14: 10 | B14: McCaine Foods Inc | C14: 9060132009 | D14: 5108659.223 | E14: 4901879.5 | F14: 4318007.4 | G14: 3850310.8 | H14: 4488337.7 | I14: 5030074.7 | J14: 4611767.3 | K14: 5244211.7 | L14: 4995937.8 | M14: 3964338.7 | N14: 5541515 | O14: 5633071.5 | P14: 57688111.32 | Q14: 6000000 | R14: =R$2*12-SUM($Q14:Q14)-SUMPRODUCT(--($D14:$O14<=R$2),R$2-$D14:$O14) -> 51688111.32 | S14: =S$2*12-SUM($Q14:R14)-SUMPRODUCT(--($D14:$O14<=S$2),S$2-$D14:$O14) -> 0
A15: 11 | B15: Sacred Heart Medical Center | C15: 0030019644 | D15: 3221788.5 | E15: 2928910.95 | F15: 3036522.3 | G15: 2999695.65 | H15: 2730817.95 | I15: 3012507.75 | J15: 3024783.3 | K15: 3270666 | L15: 3789981.3 | M15: 4103871.45 | N15: 3847194.75 | O15: 3259788 | P15: 39226527.9 | Q15: 6000000 | R15: =R$2*12-SUM($Q15:Q15)-SUMPRODUCT(--($D15:$O15<=R$2),R$2-$D15:$O15) -> 33226527.9 | S15: =S$2*12-SUM($Q15:R15)-SUMPRODUCT(--($D15:$O15<=S$2),S$2-$D15:$O15) -> 0
A16: 12 | B16: Spokane County Combined Master | C16: 1080099801 | D16: 978952.8 | E16: 848800.05 | F16: 888017.55 | G16: 878007.9 | H16: 807562.35 | I16: 883466.85 | J16: 909089.475 | K16: 984245.85 | L16: 1146591.6 | M16: 1307596.5 | N16: 1222100.25 | O16: 1011286.5 | P16: 11865717.67 | Q16: 6000000 | R16: =R$2*12-SUM($Q16:Q16)-SUMPRODUCT(--($D16:$O16<=R$2),R$2-$D16:$O16) -> 5865717.675 | S16: =S$2*12-SUM($Q16:R16)-SUMPRODUCT(--($D16:$O16<=S$2),S$2-$D16:$O16) -> 0
A17: 13 | B17: Spokane Industries | C17: 0070121063 | D17: 532618.8 | E17: 527129.4 | F17: 577367.7 | G17: 774896.4 | H17: 863699.1 | I17: 941076 | J17: 872875.8 | K17: 859198.8 | L17: 875872.8 | M17: 863790 | N17: 720480 | O17: 896113.2 | P17: 9305118 | Q17: 6000000 | R17: =R$2*12-SUM($Q17:Q17)-SUMPRODUCT(--($D17:$O17<=R$2),R$2-$D17:$O17) -> 3305118 | S17: =S$2*12-SUM($Q17:R17)-SUMPRODUCT(--($D17:$O17<=S$2),S$2-$D17:$O17) -> 0
P18: 0 | Q18: =Q$2*12-SUMPRODUCT(--($D18:$O18<=Q$2),Q$2-$D18:$O18) -> 0 | R18: =R$2*12-SUM($Q18:Q18)-SUMPRODUCT(--($D18:$O18<=R$2),R$2-$D18:$O18) -> 0 | S18: =S$2*12-SUM($Q18:R18)-SUMPRODUCT(--($D18:$O18<=S$2),S$2-$D18:$O18) -> 0
A19: 14 | B19: Vaagen Brothers Lumber | C19: 2470070232 | D19: 2080783.6 | E19: 2194726.8 | F19: 2375410.8 | G19: 2265866.4 | H19: 2154124 | I19: 2215161.2 | J19: 2035479.6 | K19: 1818572 | L19: 1707647.2 | M19: 1593020.8 | N19: 1721078.8 | O19: 1662900.4 | P19: 23824771.6 | Q19: 6000000 | R19: =R$2*12-SUM($Q19:Q19)-SUMPRODUCT(--($D19:$O19<=R$2),R$2-$D19:$O19) -> 17824771.6 | S19: =S$2*12-SUM($Q19:R19)-SUMPRODUCT(--($D19:$O19<=S$2),S$2-$D19:$O19) -> 0
A20: 15 | B20: WSU - MP-A South Campus Feeder | C20: 3730460787 | D20: 2119429.2 | E20: 2110371.2 | F20: 2175661.6 | G20: 2177000 | H20: 2071521.2 | I20: 2213257.2 | J20: 2102864.4 | K20: 2137346.4 | L20: 2145421.6 | M20: 2178472.8 | N20: 2250592.4 | O20: 2226266 | P20: 25908204 | Q20: 6000000 | R20: =R$2*12-SUM($Q20:Q20)-SUMPRODUCT(--($D20:$O20<=R$2),R$2-$D20:$O20) -> 19908204 | S20: =S$2*12-SUM($Q20:R20)-SUMPRODUCT(--($D20:$O20<=S$2),S$2-$D20:$O20) -> 0
A21: 16 | B21: WSU - MP-B East Campus EA | C21: 6030021572 | D21: 3925595.48 | E21: 3903967.98 | F21: 4071661.93 | G21: 3705349.37 | H21: 3432820.27 | I21: 3553735.59 | J21: 3322993.19 | K21: 3643222.21 | L21: 4681372.18 | M21: 5246385.99 | N21: 5272778.24 | O21: 4403257.28 | P21: 49163139.71 | Q21: 6000000 | R21: =R$2*12-SUM($Q21:Q21)-SUMPRODUCT(--($D21:$O21<=R$2),R$2-$D21:$O21) -> 43163139.71 | S21: =S$2*12-SUM($Q21:R21)-SUMPRODUCT(--($D21:$O21<=S$2),S$2-$D21:$O21) -> 0
A22: 17 | B22: WSU - MP-C East Campus EB | C22: 6100609210 | D22: 2912242.2 | E22: 2990796.9 | F22: 3143271.6 | G22: 3099198.9 | H22: 2927685.6 | I22: 3034063.2 | J22: 2611944.3 | K22: 2740319.4 | L22: 2751098.7 | M22: 2812162.5 | N22: 2843326.5 | O22: 2835726.6 | P22: 34701836.4 | Q22: 6000000 | R22: =R$2*12-SUM($Q22:Q22)-SUMPRODUCT(--($D22:$O22<=R$2),R$2-$D22:$O22) -> 28701836.4 | S22: =S$2*12-SUM($Q22:R22)-SUMPRODUCT(--($D22:$O22<=S$2),S$2-$D22:$O22) -> 0
A23: 18 | B23: WSU - MP-D Casp East (no PVD) | C23: 5030019646 | D23: 2169680 | E23: 2202376 | F23: 2303120 | G23: 2565732 | H23: 2548396 | I23: 2578436 | J23: 2568960 | K23: 2396772 | L23: 2242924 | M23: 2364692 | N23: 2552876 | O23: 2135364 | P23: 28629328 | Q23: 6000000 | R23: =R$2*12-SUM($Q23:Q23)-SUMPRODUCT(--($D23:$O23<=R$2),R$2-$D23:$O23) -> 22629328 | S23: =S$2*12-SUM($Q23:R23)-SUMPRODUCT(--($D23:$O23<=S$2),S$2-$D23:$O23) -> 0
A24: 19 | B24: WSU - MP-E Casp West (no PVD) | C24: 7030024549 | D24: 2053567.6 | E24: 1556279.2 | F24: 1602062 | G24: 1632859.2 | H24: 1615776.4 | I24: 1618803.2 | J24: 1825381.6 | K24: 1894648 | L24: 2566603.2 | M24: 3180343.6 | N24: 2686943 | O24: 2714675.6 | P24: 24947942.6 | Q24: 6000000 | R24: =R$2*12-SUM($Q24:Q24)-SUMPRODUCT(--($D24:$O24<=R$2),R$2-$D24:$O24) -> 18947942.6 | S24: =S$2*12-SUM($Q24:R24)-SUMPRODUCT(--($D24:$O24<=S$2),S$2-$D24:$O24) -> 0
A25: 20 | B25: Goodrich - South 2311155858 (No PVD) | C25: 2311155858 | D25: 1098339.2 | E25: 457528.4 | F25: 268716 | G25: 1068314.8 | H25: 1275747.2 | I25: 1496706.4 | J25: 1457517.6 | K25: 1753113.6 | L25: 1824138.4 | M25: 1883439.6 | N25: 2028602.8 | O25: 2428722.8 | P25: =SUM(D25:O25) -> 17040886.8 | Q25: =Q$2*12-SUMPRODUCT(--($D25:$O25<=Q$2),Q$2-$D25:$O25) -> 5726244.4 | R25: =R$2*12-SUM($Q25:Q25)-SUMPRODUCT(--($D25:$O25<=R$2),R$2-$D25:$O25) -> 11314642.4 | S25: =S$2*12-SUM($Q25:R25)-SUMPRODUCT(--($D25:$O25<=S$2),S$2-$D25:$O25) -> 0
A26: 21 | B26: Boise Cascade LLC Inland Region | C26: 7600951015 | D26: 777054.6 | E26: 787443.3 | F26: 856989 | G26: 891842.7 | H26: 853939.8 | I26: 874538.702 | J26: 773734.5 | K26: 686616 | L26: 747684 | M26: 708966.3 | N26: 713080.2 | O26: 734229.3 | P26: =SUM(D26:O26) -> 9406118.402 | Q26: =Q$2*12-SUMPRODUCT(--($D26:$O26<=Q$2),Q$2-$D26:$O26) -> 6000000 | R26: =R$2*12-SUM($Q26:Q26)-SUMPRODUCT(--($D26:$O26<=R$2),R$2-$D26:$O26) -> 3406118.402 | S26: =S$2*12-SUM($Q26:R26)-SUMPRODUCT(--($D26:$O26<=S$2),S$2-$D26:$O26) -> 0
B27: Schedule 25 Total | D27: =SUM(D4:D26) -> 46502880.9 | E27: =SUM(E4:E26) -> 42255652.63 | F27: 42815898.53 | G27: 44276643.97 | H27: 43435762.32 | I27: 47283196.74 | J27: 45010901.37 | K27: 46803956.86 | L27: 50018213.03 | M27: 51436945.19 | N27: 51574495.84 | O27: 50077167.88 | P27: =IF(ROUND(SUM(P4:P26),0)<>ROUND(SUM(D27:O27),0),#VALUE!,SUM(P4:P26)) -> 561491715.3 | Q27: =SUM(Q4:Q26) -> 125726244.4 | R27: =SUM(R4:R26) -> 435765470.9 | S27: =SUM(S4:S26) -> 0
S28: =SUM(Q27:S27) -> 561491715.3
B29: Revenue Run Total | D29: 86063755.54 | E29: 86495234.5 | F29: 81011134.03 | G29: 83424071.43 | H29: 84550821.57 | I29: 79534755.62 | J29: 88913578.34 | K29: 83737853.37 | L29: 81398172.86 | M29: 87645833.03 | N29: 89295175.19 | O29: 91978388.57 | P29: =SUM(D29:O29) -> 1024048774
B30: Booked Unbilled Reversal | D30: -85477326 | E30: -86330392 | F30: -80668735 | G30: -83626479 | H30: -83625209 | I30: -79439138 | J30: -88665576 | K30: -84356951 | L30: -80807475 | M30: -87774134 | N30: -89259226 | O30: -92631840 | P30: =SUM(D30:O30) -> -1022662481
B31: Gross Booked Unbilled | D31: 86330392 | E31: 80668735 | F31: 83626479 | G31: 83625209 | H31: 79439138 | I31: 88665576 | J31: 84356951 | K31: 80807475 | L31: 87774134 | M31: 89259226 | N31: 92631840 | O31: 88547307 | P31: 1025732462
B32: Gross Unbilled True-up | D32: =D27-D29-D30-D31-D33-D34-D35 -> 164842.503 | E32: 342399.03 | F32: -202407.57 | G32: 925612.57 | H32: 95617.62 | I32: 248002.342 | J32: -619097.635 | K32: 590697.86 | L32: -128300.97 | M32: 35949.19 | N32: -733148.16 | O32: -245197.12 | P32: =SUM(D32:O32) -> 474969.66
B33: Unbilled Reversal True-up | D33: =-(D29+D30) -> -586429.542 | E33: -164842.503 | F33: -342399.03 | G33: 202407.57 | H33: -925612.57 | I33: -95617.62 | J33: -248002.342 | K33: 619097.635 | L33: -590697.86 | M33: 128300.97 | N33: -35949.19 | O33: 653451.432 | P33: -1386293.05
B34: Less Customer Closing (Cust 15) | D34: -919707.6 | E34: -800339.4 | F34: -766308.9 | G34: -838521.6 | H34: -806805.3 | I34: -845913.6 | P34: -4977596.4
B35: Less transfer from 25 to 25I (Cust 9) | D35: -39072646 | E35: -37955142 | F35: -39841864 | G35: -39435656 | H35: -35292188 | I35: -40784468 | J35: -38726952 | K35: -34594216 | L35: -37627620 | M35: -37858230 | N35: -40324196 | O35: -38224942 | P35: -459738120
B36: Adj Revenue Runs, Sch 25 | D36: =SUM(D29:D35) -> 46502880.9 | E36: =SUM(E29:E35) -> 42255652.63 | F36: 42815898.53 | G36: =SUM(G29:G35) -> 44276643.97 | H36: 43435762.32 | I36: 47283196.74 | J36: 45010901.37 | K36: =SUM(K29:K35) -> 46803956.86 | L36: =SUM(L29:L35) -> 50018213.03 | M36: =SUM(M29:M35) -> 51436945.19 | N36: =SUM(N29:N35) -> 51574495.84 | O36: =SUM(O29:O35) -> 50077167.88 | P36: =IF(ROUND(SUM(P29:P35),0)<>ROUND(SUM(D36:O36),0),#VALUE!,SUM(P29:P35)) -> 561491715.3
D37: =D36-D27 -> 0 | E37: =E36-E27 -> 0 | F37: 0 | G37: =G36-G27 -> 0 | H37: 0 | I37: 0 | J37: 0 | K37: 0 | L37: 0 | M37: 0 | N37: 0 | O37: 0 | P37: 0
A39: Schedule 25I KWH
A40: 1 | B40: Inland Empire Paper | C40: 0160126924 | D40: 39072646 | E40: 37955142 | F40: 39841864 | G40: 39435656 | H40: 35292188 | I40: 40784468 | J40: 38726952 | K40: 34594216 | L40: 37627620 | M40: 37858230 | N40: 40324196 | O40: 38224942 | P40: =SUM(D40:O40) -> 459738120 | Q40: =Q$2*12-SUMPRODUCT(--($D40:$O40<=Q$2),Q$2-$D40:$O40) -> 6000000 | R40: =R$2*12-SUM($Q40:Q40)-SUMPRODUCT(--($D40:$O40<=R$2),R$2-$D40:$O40) -> 66000000 | S40: =S$2*12-SUM($Q40:R40)-SUMPRODUCT(--($D40:$O40<=S$2),S$2-$D40:$O40) -> 387738120
P41: =SUM(D41:O41) -> 0 | Q41: 0 | R41: =R$2*12-SUM($Q41:Q41)-SUMPRODUCT(--($D41:$O41<=R$2),R$2-$D41:$O41) -> 0 | S41: =S$2*12-SUM($Q41:R41)-SUMPRODUCT(--($D41:$O41<=S$2),S$2-$D41:$O41) -> 0
B42: Schedule 25I Total | P42: =SUM(P40:P41) -> 459738120 | Q42: =SUM(Q40:Q41) -> 6000000 | R42: =SUM(R40:R41) -> 66000000 | S42: =SUM(S40:S41) -> 387738120
P43: ='REVRUNS 12ME0921'!P339 -> 0
B44: Revenue Run Total
B46: KVA | D46: =D$3 -> 2020-10-31 | E46: =E$3 -> 2020-11-30 | F46: 2020-12-31 | G46: 2021-01-31 | H46: 2021-02-28 | I46: 2021-03-31 | J46: 2021-04-30 | K46: 2021-05-31 | L46: 2021-06-30 | M46: 2021-07-31 | N46: 2021-08-31 | O46: 2021-09-30 | P46: Total | Q46: Peak | R46: Month
A47: 1 | B47: =B4 -> Goodrich - North 2311008572 | C47: 2311008572 | D47: 5260.104 | E47: 3141.659 | F47: 2525.262 | G47: 3380.217 | H47: 4143.074 | I47: 4652.851 | J47: 4035.625 | K47: 4345.896 | L47: 5453.577 | M47: 5576.249 | N47: 5202.856 | O47: 6112.182 | P47: =SUM(D47:O47) -> 53829.552 | Q47: =MAX(D47:O47) -> 6112.182 | R47: =INDEX($D$46:$O$46,MATCH(Q47,$D47:$O47,0)) -> 2021-09-30
A48: 2 | B48: Boise Cascade Plywood | C48: 8920023327 | D48: 5283.401 | E48: 5252.765 | F48: 5340.263 | G48: 5293.408 | H48: 5236.996 | I48: 5209.226 | J48: 5240.289 | K48: 5236.967 | L48: 5179.634 | M48: 5125.034 | N48: 5329.025 | O48: 5453.561 | P48: 63180.569 | Q48: =MAX(D48:O48) -> 5453.561 | R48: =INDEX($D$46:$O$46,MATCH(Q48,$D48:$O48,0)) -> 2021-09-30
A49: 3 | B49: Boise Cascade Sawmill | C49: 9920023116 | D49: 2800.821 | E49: 2732.265 | F49: 2982.678 | G49: 2978.114 | H49: 2898.47 | I49: 2861.596 | J49: 2750.031 | K49: 2696.469 | L49: 2667.03 | M49: 2554.242 | N49: 2481.912 | O49: 2602.556 | P49: 33006.184 | Q49: =MAX(D49:O49) -> 2982.678 | R49: 2020-12-31
A50: 4 | B50: City of Spokane | C50: 8970099313 | D50: 2698.435 | E50: 2852.623 | F50: 2766.651 | G50: 2681.368 | H50: 2838.569 | I50: 3476.18 | J50: 3425.133 | K50: 3513.361 | L50: 3796.104 | M50: 3482.692 | N50: 3366.412 | O50: 3646.889 | P50: 38544.417 | Q50: 3796.104 | R50: 2021-06-30
A51: 5 | B51: Empire Health Services | C51: 0080095044 | D51: 2629.322 | E51: 2623.116 | F51: 2669.669 | G51: 2699.529 | H51: 2745.877 | I51: 2631.96 | J51: 3270.271 | K51: 3582.778 | L51: 4008.44 | M51: 3845.478 | N51: 3862.64 | O51: 3436.373 | P51: 38005.453 | Q51: 4008.44 | R51: 2021-06-30
A52: 6 | B52: Gonzaga University | C52: 1420028876 | D52: 4533.978 | E52: 4186.861 | F52: 3923.124 | G52: 4276.12 | H52: 4344.323 | I52: 3915.354 | J52: 4170.6 | K52: 4208.982 | L52: 5115.64 | M52: 4863.806 | N52: 4732.263 | O52: 5091.654 | P52: 53362.705 | Q52: 5115.64 | R52: 2021-06-30
A53: 7 | B53: Honeywell Electronics | C53: 0170122152 | D53: 3063.733 | E53: 3184.972 | F53: 3021.739 | G53: 3048.921 | H53: 3097.51 | I53: 3008.321 | J53: 3030.349 | K53: 3044.38 | L53: 3866.43 | M53: 3713.792 | N53: 3633.108 | O53: 3443.072 | P53: 39156.327 | Q53: 3866.43 | R53: 2021-06-30
A54: 8 | B54: Huntwood Industries | C54: 8640841982 | D54: 4226.21 | E54: 4182.597 | F54: 4286.332 | G54: 4212.047 | H54: 4246.95 | I54: 4260.069 | J54: 4246.721 | K54: 4176.897 | L54: 4739.394 | M54: 4743.548 | N54: 4479.652 | O54: 4338.541 | P54: 52138.958 | Q54: 4743.548 | R54: 2021-07-31
B55: 0 | C55: 0 | P55: 0 | Q55: 0
A56: 9 | B56: =B13 -> Simplot - Othello | C56: 4250473907 | D56: 8544.53 | E56: 8419.141 | F56: 8590.273 | G56: 8548.543 | H56: 8751.552 | I56: 8758.128 | J56: 8617.256 | K56: 8602.57 | L56: 8715.546 | M56: 8855.817 | N56: 8849.311 | O56: 8603.963 | P56: 103856.63 | Q56: 8855.817 | R56: 2021-07-31
A57: 10 | B57: McCaine Foods Inc | C57: 9060132009 | D57: 11775.164 | E57: 8587.057 | F57: 8656.494 | G57: 8364.085 | H57: 8288.275 | I57: 8087.875 | J57: 8680.181 | K57: 8421.233 | L57: 8627 | M57: 9036.309 | N57: 9743.635 | O57: 11806.96 | P57: 110074.268 | Q57: 11806.96 | R57: 2021-09-30
A58: 11 | B58: Sacred Heart Medical Center | C58: 0030019644 | D58: 6616.068 | E58: 4813.089 | F58: 4716.359 | G58: 4746.584 | H58: 4720.189 | I58: 5199.564 | J58: 6127.94 | K58: 6347.467 | L58: 8158.896 | M58: 7256.43 | N58: 7214.428 | O58: 6230.443 | P58: 72147.457 | Q58: 8158.896 | R58: 2021-06-30
A59: 12 | B59: Spokane County Combined Master | C59: 1080099801 | D59: 2320.782 | E59: 1677.018 | F59: 1653.186 | G59: 1712.644 | H59: 1687.595 | I59: 1955.631 | J59: 2101.757 | K59: 2296.909 | L59: 2801.769 | M59: 2649.069 | N59: 2660.233 | O59: 2406.321 | P59: 25922.914 | Q59: 2801.769 | R59: 2021-06-30
A60: 13 | B60: Spokane Industries | C60: 0070121063 | D60: 5936.924 | E60: 4183.757 | F60: 5325.476 | G60: 5994.727 | H60: 5891.478 | I60: 6147.6 | J60: 5688.14 | K60: 6045.376 | L60: 5808.813 | M60: 5867.069 | N60: 6243.78 | O60: 5716.582 | P60: 68849.722 | Q60: 6243.78 | R60: 2021-08-31
B61: 0 | C61: 0 | P61: 0 | Q61: 0
A62: 14 | B62: =B19 -> Vaagen Brothers Lumber | C62: 2470070232 | D62: 4530.009 | E62: 4614.009 | F62: 4789.834 | G62: 4799.122 | H62: 4953.345 | I62: 4711.331 | J62: 4352.598 | K62: 4040.597 | L62: 4140.627 | M62: 3937.676 | N62: 3948.397 | O62: 4225.273 | P62: 53042.818 | Q62: 4953.345 | R62: 2021-02-28
A63: 15 | B63: WSU - MP-A South Campus Feeder | C63: 3730460787 | D63: 3739.064 | E63: 3415.766 | F63: 3694.455 | G63: 3504.41 | H63: 3547.488 | I63: 3591.294 | J63: 3536.168 | K63: 3506.459 | L63: 3790.509 | M63: 3772.896 | N63: 3840.477 | O63: 4052.532 | P63: 43991.518 | Q63: 4052.532 | R63: 2021-09-30
A64: 16 | B64: WSU - MP-B East Campus EA | C64: 6030021572 | D64: 8239 | E64: 6913.38 | F64: 6926.19 | G64: 6587.53 | H64: 6657.21 | I64: 6082.3 | J64: 6718.87 | K64: 8354.08 | L64: 10613.44 | M64: 10208.21 | N64: 10897.51 | O64: 9374.42 | P64: 97572.14 | Q64: 10897.51 | R64: 2021-08-31
A65: 17 | B65: WSU - MP-C East Campus EB | C65: 6100609210 | D65: 5242.963 | E65: 5501.944 | F65: 5510.376 | G65: 5019.044 | H65: 5648.68 | I65: 5222.776 | J65: 4847.581 | K65: 4558.136 | L65: 4561.287 | M65: 4468.581 | N65: 4669.012 | O65: 5106.532 | P65: 60356.912 | Q65: 5648.68 | R65: 2021-02-28
A66: 18 | B66: WSU - MP-D Casp East (no PVD) | C66: 5030019646 | D66: 4112.381 | E66: 4321.874 | F66: 4276.709 | G66: 4651.331 | H66: 4844.857 | I66: 4697.553 | J66: 4683.308 | K66: 4565.562 | L66: 4275.991 | M66: 4322.614 | N66: 8442.491 | O66: 3952.648 | P66: 57147.319 | Q66: 8442.491 | R66: 2021-08-31
A67: 19 | B67: WSU - MP-E Casp West (no PVD) | C67: 7030024549 | D67: 5296.999 | E67: 2720.43 | F67: 2861.732 | G67: 3107.011 | H67: 3080.764 | I67: 2825.648 | J67: 4208.496 | K67: 4049.358 | L67: 5421 | M67: 5303.389 | N67: 5836.952 | O67: 6618.662 | P67: 51330.441 | Q67: 6618.662 | R67: 2021-09-30
A68: 20 | B68: =B25 -> Goodrich - South 2311155858 (No PVD) | D68: 4145.4 | E68: 1621.652 | F68: 1261.182 | G68: 3374.25 | H68: 4130.736 | I68: 4188.879 | J68: 3688.704 | K68: 4110.949 | L68: 8565.248 | M68: 4370.017 | N68: 5719.179 | O68: 5962.236 | P68: 51138.432 | Q68: =MAX(D68:O68) -> 8565.248 | R68: =INDEX($D$46:$O$46,MATCH(Q68,$D68:$O68,0)) -> 2021-06-30
A69: 21 | B69: =B26 -> Boise Cascade LLC Inland Region | D69: 3565.135 | E69: 3777.631 | F69: 3766.166 | G69: 4033.002 | H69: 4033.813 | I69: 3769.104 | J69: 3776.136 | K69: 3671.867 | L69: 3653.614 | M69: 3484.687 | N69: 3639.229 | O69: 3619.635 | P69: 44790.019 | Q69: 4033.813 | R69: 2021-02-28
B70: Schedule 25 Total | D70: =SUM(D47:D69) -> 104560.423 | E70: 88723.606 | F70: 89544.15 | G70: 93012.007 | H70: 95787.751 | I70: 95253.24 | J70: 97196.154 | K70: 99376.293 | L70: 113959.989 | M70: 107437.605 | N70: 114792.502 | O70: 111801.035 | P70: =IF(ROUND(SUM(P47:P69),0)<>ROUND(SUM(D70:O70),0),#VALUE!,SUM(P47:P69)) -> 1211444.755
P72: =P$2 -> 12-mo Ended
B73: KVA in excess of 3,000 | D73: =D$3 -> 2020-10-31 | E73: =E$3 -> 2020-11-30 | F73: 2020-12-31 | G73: 2021-01-31 | H73: 2021-02-28 | I73: 2021-03-31 | J73: 2021-04-30 | K73: 2021-05-31 | L73: 2021-06-30 | M73: 2021-07-31 | N73: 2021-08-31 | O73: 2021-09-30 | P73: Total
A74: 1 | B74: =B4 -> Goodrich - North 2311008572 | C74: 2311008572 | D74: =IF(D47>3000,D47-3000,0) -> 2260.104 | E74: 141.659 | F74: 0 | G74: =MAX(0,G47-3000) -> 380.217 | H74: 1143.074 | I74: 1652.851 | J74: 1035.625 | K74: 1345.896 | L74: 2453.577 | M74: 2576.249 | N74: 2202.856 | O74: 3112.182 | P74: =SUM(D74:O74) -> 18304.29
A75: 2 | B75: Boise Cascade Plywood | C75: 8920023327 | D75: 2283.401 | E75: 2252.765 | F75: 2340.263 | G75: =MAX(0,G48-3000) -> 2293.408 | H75: 2236.996 | I75: 2209.226 | J75: 2240.289 | K75: 2236.967 | L75: 2179.634 | M75: 2125.034 | N75: 2329.025 | O75: 2453.561 | P75: 27180.569
A76: 3 | B76: Boise Cascade Sawmill | C76: 9920023116 | D76: 0 | E76: 0 | F76: 0 | G76: =MAX(0,G49-3000) -> 0 | H76: 0 | I76: 0 | J76: 0 | K76: 0 | L76: 0 | M76: 0 | N76: 0 | O76: 0 | P76: 0
A77: 4 | B77: City of Spokane | C77: 8970099313 | D77: 0 | E77: 0 | F77: 0 | G77: =MAX(0,G50-3000) -> 0 | H77: 0 | I77: 476.18 | J77: 425.133 | K77: 513.361 | L77: 796.104 | M77: 482.692 | N77: 366.412 | O77: 646.889 | P77: 3706.771
A78: 5 | B78: Empire Health Services | C78: 0080095044 | D78: 0 | E78: 0 | F78: 0 | G78: =MAX(0,G51-3000) -> 0 | H78: 0 | I78: 0 | J78: 270.271 | K78: 582.778 | L78: 1008.44 | M78: 845.478 | N78: 862.64 | O78: 436.373 | P78: 4005.98
A79: 6 | B79: Gonzaga University | C79: 1420028876 | D79: 1533.978 | E79: 1186.861 | F79: 923.124 | G79: =MAX(0,G52-3000) -> 1276.12 | H79: 1344.323 | I79: 915.354 | J79: 1170.6 | K79: 1208.982 | L79: 2115.64 | M79: 1863.806 | N79: 1732.263 | O79: 2091.654 | P79: 17362.705
A80: 7 | B80: Honeywell Electronics | C80: 0170122152 | D80: 63.733 | E80: 184.972 | F80: 21.739 | G80: =MAX(0,G53-3000) -> 48.921 | H80: 97.51 | I80: 8.321 | J80: 30.349 | K80: 44.38 | L80: 866.43 | M80: 713.792 | N80: 633.108 | O80: 443.072 | P80: 3156.327
A81: 8 | B81: =B11 -> Huntwood Industries | C81: 610074869 | D81: 1226.21 | E81: 1182.597 | F81: 1286.332 | G81: =MAX(0,G54-3000) -> 1212.047 | H81: 1246.95 | I81: 1260.069 | J81: 1246.721 | K81: 1176.897 | L81: 1739.394 | M81: 1743.548 | N81: 1479.652 | O81: 1338.541 | P81: 16138.958
B82: 0 | C82: =C12 -> 0 | D82: =MAX(0,D55-3000) -> 0 | E82: =MAX(0,E55-3000) -> 0 | F82: =MAX(0,F55-3000) -> 0 | G82: =MAX(0,G55-3000) -> 0 | H82: 0 | I82: 0 | J82: 0 | K82: 0 | L82: 0 | M82: 0 | N82: 0 | O82: 0 | P82: 0
A83: 9 | B83: Simplot - Othello | C83: 4250473907 | D83: =IF(D56>3000,D56-3000,0) -> 5544.53 | E83: 5419.141 | F83: 5590.273 | G83: =MAX(0,G56-3000) -> 5548.543 | H83: 5751.552 | I83: 5758.128 | J83: 5617.256 | K83: 5602.57 | L83: 5715.546 | M83: 5855.817 | N83: 5849.311 | O83: 5603.963 | P83: 67856.63
A84: 10 | B84: McCaine Foods Inc | C84: 9060132009 | D84: 8775.164 | E84: 5587.057 | F84: 5656.494 | G84: =MAX(0,G57-3000) -> 5364.085 | H84: 5288.275 | I84: 5087.875 | J84: 5680.181 | K84: 5421.233 | L84: 5627 | M84: 6036.309 | N84: 6743.635 | O84: 8806.96 | P84: 74074.268
A85: 11 | B85: Sacred Heart Medical Center | C85: 0030019644 | D85: 3616.068 | E85: 1813.089 | F85: 1716.359 | G85: =MAX(0,G58-3000) -> 1746.584 | H85: 1720.189 | I85: 2199.564 | J85: 3127.94 | K85: 3347.467 | L85: 5158.896 | M85: 4256.43 | N85: 4214.428 | O85: 3230.443 | P85: 36147.457
A86: 12 | B86: Spokane County Combined Master | C86: 1080099801 | D86: 0 | E86: 0 | F86: 0 | G86: =MAX(0,G59-3000) -> 0 | H86: 0 | I86: 0 | J86: 0 | K86: 0 | L86: 0 | M86: 0 | N86: 0 | O86: 0 | P86: 0
A87: 13 | B87: Spokane Industries | C87: 0070121063 | D87: 2936.924 | E87: 1183.757 | F87: 2325.476 | G87: =MAX(0,G60-3000) -> 2994.727 | H87: 2891.478 | I87: 3147.6 | J87: 2688.14 | K87: 3045.376 | L87: 2808.813 | M87: 2867.069 | N87: 3243.78 | O87: 2716.582 | P87: 32849.722
B88: 0 | C88: 0 | D88: 0 | E88: 0 | F88: 0 | G88: =MAX(0,G61-3000) -> 0 | H88: 0 | I88: 0 | J88: 0 | K88: 0 | L88: 0 | M88: 0 | N88: 0 | O88: 0 | P88: 0
A89: 14 | B89: Vaagen Brothers Lumber | C89: 2470070232 | D89: 1530.009 | E89: 1614.009 | F89: 1789.834 | G89: =MAX(0,G62-3000) -> 1799.122 | H89: 1953.345 | I89: 1711.331 | J89: 1352.598 | K89: 1040.597 | L89: 1140.627 | M89: 937.676 | N89: 948.397 | O89: 1225.273 | P89: 17042.818
A90: 15 | B90: WSU - MP-A South Campus Feeder | C90: 3730460787 | D90: 739.064 | E90: 415.766 | F90: 694.455 | G90: =MAX(0,G63-3000) -> 504.41 | H90: 547.488 | I90: 591.294 | J90: 536.168 | K90: 506.459 | L90: 790.509 | M90: 772.896 | N90: 840.477 | O90: 1052.532 | P90: 7991.518
A91: 16 | B91: WSU - MP-B East Campus EA | C91: 6030021572 | D91: 5239 | E91: 3913.38 | F91: 3926.19 | G91: =MAX(0,G64-3000) -> 3587.53 | H91: 3657.21 | I91: 3082.3 | J91: 3718.87 | K91: 5354.08 | L91: 7613.44 | M91: 7208.21 | N91: 7897.51 | O91: 6374.42 | P91: 61572.14
A92: 17 | B92: WSU - MP-C East Campus EB | C92: 6100609210 | D92: 2242.963 | E92: 2501.944 | F92: 2510.376 | G92: =MAX(0,G65-3000) -> 2019.044 | H92: 2648.68 | I92: 2222.776 | J92: 1847.581 | K92: 1558.136 | L92: 1561.287 | M92: 1468.581 | N92: 1669.012 | O92: 2106.532 | P92: 24356.912
A93: 18 | B93: WSU - MP-D Casp East (no PVD) | C93: 5030019646 | D93: 1112.381 | E93: 1321.874 | F93: 1276.709 | G93: =MAX(0,G66-3000) -> 1651.331 | H93: 1844.857 | I93: 1697.553 | J93: 1683.308 | K93: 1565.562 | L93: 1275.991 | M93: 1322.614 | N93: 5442.491 | O93: 952.648 | P93: 21147.319
A94: 19 | B94: WSU - MP-E Casp West (no PVD) | C94: 7030024549 | D94: 2296.999 | E94: 0 | F94: 0 | G94: =MAX(0,G67-3000) -> 107.011 | H94: 80.764 | I94: 0 | J94: 1208.496 | K94: 1049.358 | L94: 2421 | M94: 2303.389 | N94: 2836.952 | O94: 3618.662 | P94: 15922.631
A95: 20 | B95: Goodrich - South 2311155858 (No PVD) | D95: 1145.4 | E95: 0 | F95: 0 | G95: =MAX(0,G68-3000) -> 374.25 | H95: 1130.736 | I95: 1188.879 | J95: 688.704 | K95: 1110.949 | L95: 5565.248 | M95: 1370.017 | N95: 2719.179 | O95: 2962.236 | P95: =SUM(D95:O95) -> 18255.598
A96: 21 | B96: Boise Cascade LLC Inland Region | D96: 565.135 | E96: 777.631 | F96: 766.166 | G96: =MAX(0,G69-3000) -> 1033.002 | H96: 1033.813 | I96: 769.104 | J96: 776.136 | K96: 671.867 | L96: 653.614 | M96: 484.687 | N96: 639.229 | O96: 619.635 | P96: 8790.019
B97: Schedule 25 Total | D97: =SUM(D74:D96) -> 43111.063 | E97: 29496.502 | F97: 30823.79 | G97: 31940.352 | H97: 34617.24 | I97: 33978.405 | J97: 35344.366 | K97: 37382.915 | L97: 51491.19 | M97: 45234.294 | N97: 52650.357 | O97: 49792.158 | P97: =IF(ROUND(SUM(P74:P96),0)<>ROUND(SUM(D97:O97),0),#VALUE!,SUM(P74:P96)) -> 475862.632
A99: Schedule 25I kVA
B100: Customer Total | D100: 61982.28 | E100: 60622.5 | F100: 61249.43 | G100: 64327.03 | H100: 59202.77 | I100: 60056.83 | J100: 62541.79 | K100: 60383.79 | L100: 62411.86 | M100: 62805.35 | N100: 62232.46 | O100: 62015.22 | P100: =SUM(D100:O100) -> 739831.31
B101: in excess of 3,000 kVA | D101: =MAX(0,D100-3000) -> 58982.28 | E101: 57622.5 | F101: 58249.43 | G101: 61327.03 | H101: 56202.77 | I101: 57056.83 | J101: 59541.79 | K101: 57383.79 | L101: 59411.86 | M101: 59805.35 | N101: 59232.46 | O101: 59015.22 | P101: =SUM(D101:O101) -> 703831.31
A104: Sch 25 Present Primary Voltage Discount
B105: >11 and <60 | C105: -0.2 | D105: =(D70-D66-D67-D55-D68)*$C105 -> -18201.1286 | E105: -16011.93 | F105: -16228.9054 | G105: -16375.883 | H105: -16746.2788 | I105: -16708.232 | J105: -16923.1292 | K105: -17330.0848 | L105: -19139.55 | M105: -18688.317 | N105: -18958.776 | O105: -19053.4978 | P105: =SUM(D105:O105) -> -210365.7126
B106: >60 and <115 | C106: =-1.52 -> -1.52 | D106: 0 | E106: 0 | F106: 0 | G106: 0 | H106: 0 | I106: 0 | J106: 0 | K106: 0 | L106: 0 | M106: 0 | N106: 0 | O106: 0 | P106: =SUM(D106:O106) -> 0
B107: >115 | C107: -1.93 | D107: 0 | E107: 0 | F107: 0 | G107: 0 | H107: 0 | I107: 0 | J107: 0 | K107: 0 | L107: 0 | M107: 0 | N107: 0 | O107: 0 | P107: =SUM(D107:O107) -> 0
D108: =SUM(D105:D107) -> -18201.1286 | E108: -16011.93 | F108: -16228.9054 | G108: -16375.883 | H108: -16746.2788 | I108: -16708.232 | J108: -16923.1292 | K108: -17330.0848 | L108: -19139.55 | M108: -18688.317 | N108: -18958.776 | O108: -19053.4978 | P108: -210365.7126
A109: Sch 25 Proposed Primary Voltage Discount
B110: >11 and <60 | C110: -0.2 | D110: =(D70-D66-D67-D55-D68)*$C110 -> -18201.1286 | E110: -16011.93 | F110: -16228.9054 | G110: -16375.883 | H110: -16746.2788 | I110: -16708.232 | J110: -16923.1292 | K110: -17330.0848 | L110: -19139.55 | M110: -18688.317 | N110: -18958.776 | O110: -19053.4978 | P110: =SUM(D110:O110) -> -210365.7126
B111: >60 and <115 | C111: -1.52 | D111: 0 | E111: 0 | F111: 0 | G111: 0 | H111: 0 | I111: 0 | J111: 0 | K111: 0 | L111: 0 | M111: 0 | N111: 0 | O111: 0 | P111: =SUM(D111:O111) -> 0
B112: >115 | C112: -1.93 | D112: 0 | E112: 0 | F112: 0 | G112: 0 | H112: 0 | I112: 0 | J112: 0 | K112: 0 | L112: 0 | M112: 0 | N112: 0 | O112: 0 | P112: =SUM(D112:O112) -> 0
D113: =SUM(D110:D112) -> -18201.1286 | E113: -16011.93 | F113: -16228.9054 | G113: -16375.883 | H113: -16746.2788 | I113: -16708.232 | J113: -16923.1292 | K113: -17330.0848 | L113: -19139.55 | M113: -18688.317 | N113: -18958.776 | O113: -19053.4978 | P113: -210365.7126
A115: Sch 25I Present Primary Voltage Discount
B116: >11 and <60 | C116: -0.2 | D116: 0 | E116: 0 | F116: 0 | G116: 0 | H116: 0 | I116: 0 | J116: 0 | K116: 0 | L116: 0 | M116: 0 | N116: 0 | O116: 0 | P116: =SUM(D116:O116) -> 0
B117: >60 and <115 | C117: =-1.52 -> -1.52 | D117: =$C117*D$127 -> -13465.35 | E117: -13565.82 | F117: -16362.37 | G117: -13516.28 | H117: -14817.9 | I117: -13962.51 | J117: -18562.98 | K117: -14632.25 | L117: -14450.34 | M117: -15074.34 | N117: -15103.12 | O117: =$C117*O$127 -> -18142.1424 | P117: =SUM(D117:O117) -> -181655.4024
B118: >115 | C118: -1.93 | D118: =$C118*D$129 -> -100907.54 | E118: -102233.01 | F118: -99857.33 | G118: -109461.32 | H118: -97401.45 | I118: -98184.25 | J118: -101391.78 | K118: -98322.92 | L118: -101995.13 | M118: -102171.52 | N118: -101587.46 | O118: -98104.6792 | P118: =SUM(D118:O118) -> -1211618.389
D119: =SUM(D116:D118) -> -114372.89 | E119: -115798.83 | F119: -116219.7 | G119: -122977.6 | H119: -112219.35 | I119: -112146.76 | J119: -119954.76 | K119: -112955.17 | L119: -116445.47 | M119: -117245.86 | N119: -116690.58 | O119: -116246.8216 | P119: -1393273.792
A120: Sch 25I Proposed Primary Voltage Discount
B121: >11 and <60 | C121: -0.2 | D121: 0 | E121: 0 | F121: 0 | G121: 0 | H121: 0 | I121: 0 | J121: 0 | K121: 0 | L121: 0 | M121: 0 | N121: 0 | O121: 0 | P121: =SUM(D121:O121) -> 0
B122: >60 and <115 | C122: -1.52 | D122: =$C122*D$127 -> -13465.35 | E122: -13565.82 | F122: -16362.37 | G122: -13516.28 | H122: -14817.9 | I122: -13962.51 | J122: -18562.98 | K122: -14632.25 | L122: -14450.34 | M122: -15074.34 | N122: -15103.12 | O122: -18142.1424 | P122: =SUM(D122:O122) -> -181655.4024
B123: >115 | C123: -1.93 | D123: =$C123*D$129 -> -100907.54 | E123: -102233.01 | F123: -99857.33 | G123: -109461.32 | H123: -97401.45 | I123: -98184.25 | J123: -101391.78 | K123: -98322.92 | L123: -101995.13 | M123: -102171.52 | N123: -101587.46 | O123: -98104.6792 | P123: =SUM(D123:O123) -> -1211618.389
D124: =SUM(D121:D123) -> -114372.89 | E124: -115798.83 | F124: -116219.7 | G124: -122977.6 | H124: -112219.35 | I124: -112146.76 | J124: -119954.76 | K124: -112955.17 | L124: -116445.47 | M124: -117245.86 | N124: -116690.58 | O124: -116246.8216 | P124: -1393273.792
A126: 25I KVA
B127: 60 KV | D127: ='REVRUNS 12ME0921'!E462/'REVRUNS 12ME0921'!E466 -> 8858.782895 | E127: ='REVRUNS 12ME0921'!F462/'REVRUNS 12ME0921'!F466 -> 8924.881579 | F127: ='REVRUNS 12ME0921'!G462/'REVRUNS 12ME0921'!G466 -> 10764.71711 | G127: ='REVRUNS 12ME0921'!H462/'REVRUNS 12ME0921'!H466 -> 8892.289474 | H127: ='REVRUNS 12ME0921'!I462/'REVRUNS 12ME0921'!I466 -> 9748.618421 | I127: ='REVRUNS 12ME0921'!J462/'REVRUNS 12ME0921'!J466 -> 9185.861842 | J127: ='REVRUNS 12ME0921'!K462/'REVRUNS 12ME0921'!K466 -> 12212.48684 | K127: ='REVRUNS 12ME0921'!L462/'REVRUNS 12ME0921'!L466 -> 9626.480263 | L127: ='REVRUNS 12ME0921'!M462/'REVRUNS 12ME0921'!M466 -> 9506.802632 | M127: ='REVRUNS 12ME0921'!N462/'REVRUNS 12ME0921'!N466 -> 9917.328947 | N127: ='REVRUNS 12ME0921'!O462/'REVRUNS 12ME0921'!O466 -> 9936.263158 | O127: 11935.62 | P127: =SUM(D127:O127) -> 119510.1332 | T127: =24000 -> 24000
B128: 4.16 KV | D128: 0 | E128: 0 | F128: 0 | G128: 0 | H128: 0 | I128: 0 | J128: 0 | K128: 0 | L128: 0 | M128: 0 | N128: 0 | O128: 0 | P128: =SUM(D128:O128) -> 0 | T128: 0
B129: 115 KV | D129: ='REVRUNS 12ME0921'!E463/'REVRUNS 12ME0921'!E467 -> 52283.69948 | E129: ='REVRUNS 12ME0921'!F463/'REVRUNS 12ME0921'!F467 -> 52970.4715 | F129: ='REVRUNS 12ME0921'!G463/'REVRUNS 12ME0921'!G467 -> 51739.54922 | G129: ='REVRUNS 12ME0921'!H463/'REVRUNS 12ME0921'!H467 -> 56715.70984 | H129: ='REVRUNS 12ME0921'!I463/'REVRUNS 12ME0921'!I467 -> 50467.07254 | I129: ='REVRUNS 12ME0921'!J463/'REVRUNS 12ME0921'!J467 -> 50872.66839 | J129: ='REVRUNS 12ME0921'!K463/'REVRUNS 12ME0921'!K467 -> 52534.60104 | K129: ='REVRUNS 12ME0921'!L463/'REVRUNS 12ME0921'!L467 -> 50944.51813 | L129: ='REVRUNS 12ME0921'!M463/'REVRUNS 12ME0921'!M467 -> 52847.21762 | M129: ='REVRUNS 12ME0921'!N463/'REVRUNS 12ME0921'!N467 -> 52938.6114 | N129: ='REVRUNS 12ME0921'!O463/'REVRUNS 12ME0921'!O467 -> 52635.98964 | O129: 50831.44 | P129: =SUM(D129:O129) -> 627781.5488 | T129: =L101*6.5 -> 386177.09
A130: * | B130: Total | D130: =SUM(D127:D129) -> 61142.48238 | E130: 61895.35308 | F130: 62504.26633 | G130: 65607.99932 | H130: 60215.69096 | I130: 60058.53024 | J130: 64747.08788 | K130: 60570.9984 | L130: 62354.02025 | M130: 62855.94035 | N130: 62572.2528 | O130: 62767.06 | P130: 747291.682 | T130: =500000*0.05762 -> 28810
D131: =D100 -> 61982.28 | E131: 60622.5 | F131: 61249.43 | G131: 64327.03 | H131: 59202.77 | I131: 60056.83 | J131: 62541.79 | K131: 60383.79 | L131: 62411.86 | M131: 62805.35 | N131: 62232.46 | O131: 62015.22 | P131: =SUM(D131:O131) -> 739831.31 | T131: =MIN(5500000,L40-500000)*0.0521 -> 286550
T132: =MAX(0,L40-6000000)*0.04416 -> 1396675.699
B133: Calc Revenue for 25I | D133: =500000*0.05317+MIN(5500000,D40-500000)*0.04765+MAX(0,D40-6000000)*0.03954+30650+D101*8.3-D127*1.52-D129*1.93 -> 2002182.457 | E133: 1945284.235 | F133: 2024667.872 | G133: 2027392.587 | H133: 1831786.755 | I133: 2056112.794 | J133: =500000*0.05471+MIN(5500000,J40-500000)*0.04919+MAX(0,J40-6000000)*0.04108+30650+J101*8.3-J127*1.52-J129*1.93 -> 2047215.285 | K133: =500000*0.05471+MIN(5500000,K40-500000)*0.04919+MAX(0,K40-6000000)*0.04108+30650+K101*8.3-K127*1.52-K129*1.93 -> 1866530.68 | L133: =500000*0.05471+MIN(5500000,L40-500000)*0.04919+MAX(0,L40-6000000)*0.04108+30650+L101*8.3-L127*1.52-L129*1.93 -> 2004485.598 | M133: =500000*0.05486+MIN(5500000,M40-500000)*0.04934+MAX(0,M40-6000000)*0.04123+30650+M101*8.3-M127*1.52-M129*1.93 -> 2022103.368 | N133: =500000*0.05463+MIN(5500000,N40-500000)*0.04911+MAX(0,N40-6000000)*0.041+30650+N101*8.3-N127*1.52-N129*1.93 -> 2110300.874 | O133: =500000*0.05463+MIN(5500000,O40-500000)*0.04911+MAX(0,O40-6000000)*0.041+30650+O101*8.3-O127*1.52-O129*1.93 -> 2022872.126 | P133: =SUM(D133:O133) -> 23960934.63 | T133: =-L127*1.1 -> -10457.48289
B134: Revenue for 25I per Bill (less city tax) | N134: =2241466.9-14475.44-101587.46-15103.12 -> 2110300.88 | O134: =2153023.22-13904.27-98104.68-18142.14 -> 2022872.13 | P134: =SUM(D134:O134) -> 4133173.01 | T134: =-L129*1.4 -> -73986.10466
D135: =D133-D134 -> 2002182.457 | E135: 1945284.235 | F135: 2024667.872 | G135: 2027392.587 | H135: 1831786.755 | I135: 2056112.794 | J135: 2047215.285 | K135: 1866530.68 | L135: =L133-L134 -> 2004485.598 | M135: =M133-M134 -> 2022103.368 | N135: -0.006000000052 | O135: =O133-O134 -> -0.003600000171 | T135: =SUM(T127:T134) -> 2037769.202
B137: Base Revenues | T137: Annual Minimum
A138: 1 | B138: =B4 -> Goodrich - North 2311008572 | C138: 770037736 | D138: =500000*('Rate Design'!$I$5/100)+MIN(5500000,D4-500000)*('Rate Design'!$I$6/100)+MAX(0,D4-6000000)*('Rate Design'!$I$7/100)+'Rate Design'!$I$9+D74*'Rate Design'!$I$10-0.2*D47 -> 178324.0045 | E138: =500000*('Rate Design'!$I$5/100)+MIN(5500000,E4-500000)*('Rate Design'!$I$6/100)+MAX(0,E4-6000000)*('Rate Design'!$I$7/100)+'Rate Design'!$I$9+E74*'Rate Design'!$I$10-0.2*E47 -> 113935.89 | F138: =500000*('Rate Design'!$I$5/100)+MIN(5500000,F4-500000)*('Rate Design'!$I$6/100)+MAX(0,F4-6000000)*('Rate Design'!$I$7/100)+'Rate Design'!$I$9+F74*'Rate Design'!$I$10-0.2*F47 -> 94536.15544 | G138: =500000*('Rate Design'!$I$5/100)+MIN(5500000,G4-500000)*('Rate Design'!$I$6/100)+MAX(0,G4-6000000)*('Rate Design'!$I$7/100)+'Rate Design'!$I$9+G74*'Rate Design'!$I$10-0.2*G47 -> 114169.5236 | H138: =500000*('Rate Design'!$I$5/100)+MIN(5500000,H4-500000)*('Rate Design'!$I$6/100)+MAX(0,H4-6000000)*('Rate Design'!$I$7/100)+'Rate Design'!$I$9+H74*'Rate Design'!$I$10-0.2*H47 -> 139498.2419 | I138: =500000*('Rate Design'!$I$5/100)+MIN(5500000,I4-500000)*('Rate Design'!$I$6/100)+MAX(0,I4-6000000)*('Rate Design'!$I$7/100)+'Rate Design'!$I$9+I74*'Rate Design'!$I$10-0.2*I47 -> 163251.246 | J138: =500000*('Rate Design'!$I$5/100)+MIN(5500000,J4-500000)*('Rate Design'!$I$6/100)+MAX(0,J4-6000000)*('Rate Design'!$I$7/100)+'Rate Design'!$I$9+J74*'Rate Design'!$I$10-0.2*J47 -> 134356.6527 | K138: =500000*('Rate Design'!$I$5/100)+MIN(5500000,K4-500000)*('Rate Design'!$I$6/100)+MAX(0,K4-6000000)*('Rate Design'!$I$7/100)+'Rate Design'!$I$9+K74*'Rate Design'!$I$10-0.2*K47 -> 163257.352 | L138: =500000*('Rate Design'!$I$5/100)+MIN(5500000,L4-500000)*('Rate Design'!$I$6/100)+MAX(0,L4-6000000)*('Rate Design'!$I$7/100)+'Rate Design'!$I$9+L74*'Rate Design'!$I$10-0.2*L47 -> 192161.3915 | M138: =500000*('Rate Design'!$I$5/100)+MIN(5500000,M4-500000)*('Rate Design'!$I$6/100)+MAX(0,M4-6000000)*('Rate Design'!$I$7/100)+'Rate Design'!$I$9+M74*'Rate Design'!$I$10-0.2*M47 -> 190666.7189 | N138: =500000*('Rate Design'!$I$5/100)+MIN(5500000,N4-500000)*('Rate Design'!$I$6/100)+MAX(0,N4-6000000)*('Rate Design'!$I$7/100)+'Rate Design'!$I$9+N74*'Rate Design'!$I$10-0.2*N47 -> 178895.7278 | O138: =500000*('Rate Design'!$I$5/100)+MIN(5500000,O4-500000)*('Rate Design'!$I$6/100)+MAX(0,O4-6000000)*('Rate Design'!$I$7/100)+'Rate Design'!$I$9+O74*'Rate Design'!$I$10-0.2*O47 -> 221861.0457 | P138: =SUM(D138:O138) -> 1884913.95 | T138: =IF(P138<945750,945750-P138,0) -> 0
A139: 2 | B139: Boise Cascade Plywood | C139: 500017 | D139: =500000*('Rate Design'!$I$5/100)+MIN(5500000,D5-500000)*('Rate Design'!$I$6/100)+MAX(0,D5-6000000)*('Rate Design'!$I$7/100)+'Rate Design'!$I$9+D75*'Rate Design'!$I$10-0.2*D48 -> 207772.9766 | E139: =500000*('Rate Design'!$I$5/100)+MIN(5500000,E5-500000)*('Rate Design'!$I$6/100)+MAX(0,E5-6000000)*('Rate Design'!$I$7/100)+'Rate Design'!$I$9+E75*'Rate Design'!$I$10-0.2*E48 -> 198214.839 | F139: =500000*('Rate Design'!$I$5/100)+MIN(5500000,F5-500000)*('Rate Design'!$I$6/100)+MAX(0,F5-6000000)*('Rate Design'!$I$7/100)+'Rate Design'!$I$9+F75*'Rate Design'!$I$10-0.2*F48 -> 179773.8876 | G139: =500000*('Rate Design'!$I$5/100)+MIN(5500000,G5-500000)*('Rate Design'!$I$6/100)+MAX(0,G5-6000000)*('Rate Design'!$I$7/100)+'Rate Design'!$I$9+G75*'Rate Design'!$I$10-0.2*G48 -> 200700.1389 | H139: =500000*('Rate Design'!$I$5/100)+MIN(5500000,H5-500000)*('Rate Design'!$I$6/100)+MAX(0,H5-6000000)*('Rate Design'!$I$7/100)+'Rate Design'!$I$9+H75*'Rate Design'!$I$10-0.2*H48 -> 192964.886 | I139: =500000*('Rate Design'!$I$5/100)+MIN(5500000,I5-500000)*('Rate Design'!$I$6/100)+MAX(0,I5-6000000)*('Rate Design'!$I$7/100)+'Rate Design'!$I$9+I75*'Rate Design'!$I$10-0.2*I48 -> 204939.0914 | J139: =500000*('Rate Design'!$I$5/100)+MIN(5500000,J5-500000)*('Rate Design'!$I$6/100)+MAX(0,J5-6000000)*('Rate Design'!$I$7/100)+'Rate Design'!$I$9+J75*'Rate Design'!$I$10-0.2*J48 -> 201557.0809 | K139: =500000*('Rate Design'!$I$5/100)+MIN(5500000,K5-500000)*('Rate Design'!$I$6/100)+MAX(0,K5-6000000)*('Rate Design'!$I$7/100)+'Rate Design'!$I$9+K75*'Rate Design'!$I$10-0.2*K48 -> 201077.3273 | L139: =500000*('Rate Design'!$I$5/100)+MIN(5500000,L5-500000)*('Rate Design'!$I$6/100)+MAX(0,L5-6000000)*('Rate Design'!$I$7/100)+'Rate Design'!$I$9+L75*'Rate Design'!$I$10-0.2*L48 -> 193366.5339 | M139: =500000*('Rate Design'!$I$5/100)+MIN(5500000,M5-500000)*('Rate Design'!$I$6/100)+MAX(0,M5-6000000)*('Rate Design'!$I$7/100)+'Rate Design'!$I$9+M75*'Rate Design'!$I$10-0.2*M48 -> 195860.8752 | N139: =500000*('Rate Design'!$I$5/100)+MIN(5500000,N5-500000)*('Rate Design'!$I$6/100)+MAX(0,N5-6000000)*('Rate Design'!$I$7/100)+'Rate Design'!$I$9+N75*'Rate Design'!$I$10-0.2*N48 -> 176649.3054 | O139: =500000*('Rate Design'!$I$5/100)+MIN(5500000,O5-500000)*('Rate Design'!$I$6/100)+MAX(0,O5-6000000)*('Rate Design'!$I$7/100)+'Rate Design'!$I$9+O75*'Rate Design'!$I$10-0.2*O48 -> 199147.9586 | P139: =SUM(D139:O139) -> 2352024.901 | T139: =IF(P139<945750,945750-P139,0) -> 0
A140: 3 | B140: Boise Cascade Sawmill | C140: 500018 | D140: =500000*('Rate Design'!$I$5/100)+MIN(5500000,D6-500000)*('Rate Design'!$I$6/100)+MAX(0,D6-6000000)*('Rate Design'!$I$7/100)+'Rate Design'!$I$9+D76*'Rate Design'!$I$10-0.2*D49 -> 99224.06885 | E140: =500000*('Rate Design'!$I$5/100)+MIN(5500000,E6-500000)*('Rate Design'!$I$6/100)+MAX(0,E6-6000000)*('Rate Design'!$I$7/100)+'Rate Design'!$I$9+E76*'Rate Design'!$I$10-0.2*E49 -> 96635.93619 | F140: =500000*('Rate Design'!$I$5/100)+MIN(5500000,F6-500000)*('Rate Design'!$I$6/100)+MAX(0,F6-6000000)*('Rate Design'!$I$7/100)+'Rate Design'!$I$9+F76*'Rate Design'!$I$10-0.2*F49 -> 103850.0552 | G140: =500000*('Rate Design'!$I$5/100)+MIN(5500000,G6-500000)*('Rate Design'!$I$6/100)+MAX(0,G6-6000000)*('Rate Design'!$I$7/100)+'Rate Design'!$I$9+G76*'Rate Design'!$I$10-0.2*G49 -> 104182.0341 | H140: =500000*('Rate Design'!$I$5/100)+MIN(5500000,H6-500000)*('Rate Design'!$I$6/100)+MAX(0,H6-6000000)*('Rate Design'!$I$7/100)+'Rate Design'!$I$9+H76*'Rate Design'!$I$10-0.2*H49 -> 98949.68907 | I140: =500000*('Rate Design'!$I$5/100)+MIN(5500000,I6-500000)*('Rate Design'!$I$6/100)+MAX(0,I6-6000000)*('Rate Design'!$I$7/100)+'Rate Design'!$I$9+I76*'Rate Design'!$I$10-0.2*I49 -> 103295.0506 | J140: =500000*('Rate Design'!$I$5/100)+MIN(5500000,J6-500000)*('Rate Design'!$I$6/100)+MAX(0,J6-6000000)*('Rate Design'!$I$7/100)+'Rate Design'!$I$9+J76*'Rate Design'!$I$10-0.2*J49 -> 97437.06764 | K140: =500000*('Rate Design'!$I$5/100)+MIN(5500000,K6-500000)*('Rate Design'!$I$6/100)+MAX(0,K6-6000000)*('Rate Design'!$I$7/100)+'Rate Design'!$I$9+K76*'Rate Design'!$I$10-0.2*K49 -> 95243.08524 | L140: =500000*('Rate Design'!$I$5/100)+MIN(5500000,L6-500000)*('Rate Design'!$I$6/100)+MAX(0,L6-6000000)*('Rate Design'!$I$7/100)+'Rate Design'!$I$9+L76*'Rate Design'!$I$10-0.2*L49 -> 97318.13629 | M140: =500000*('Rate Design'!$I$5/100)+MIN(5500000,M6-500000)*('Rate Design'!$I$6/100)+MAX(0,M6-6000000)*('Rate Design'!$I$7/100)+'Rate Design'!$I$9+M76*'Rate Design'!$I$10-0.2*M49 -> 92981.02935 | N140: =500000*('Rate Design'!$I$5/100)+MIN(5500000,N6-500000)*('Rate Design'!$I$6/100)+MAX(0,N6-6000000)*('Rate Design'!$I$7/100)+'Rate Design'!$I$9+N76*'Rate Design'!$I$10-0.2*N49 -> 92134.13716 | O140: =500000*('Rate Design'!$I$5/100)+MIN(5500000,O6-500000)*('Rate Design'!$I$6/100)+MAX(0,O6-6000000)*('Rate Design'!$I$7/100)+'Rate Design'!$I$9+O76*'Rate Design'!$I$10-0.2*O49 -> 90265.07835 | P140: 1171515.368 | T140: 0
A141: 4 | B141: City of Spokane | C141: 1900002 | D141: =500000*('Rate Design'!$I$5/100)+MIN(5500000,D7-500000)*('Rate Design'!$I$6/100)+MAX(0,D7-6000000)*('Rate Design'!$I$7/100)+'Rate Design'!$I$9+D77*'Rate Design'!$I$10-0.2*D50 -> 98837.80664 | E141: =500000*('Rate Design'!$I$5/100)+MIN(5500000,E7-500000)*('Rate Design'!$I$6/100)+MAX(0,E7-6000000)*('Rate Design'!$I$7/100)+'Rate Design'!$I$9+E77*'Rate Design'!$I$10-0.2*E50 -> 100765.3547 | F141: =500000*('Rate Design'!$I$5/100)+MIN(5500000,F7-500000)*('Rate Design'!$I$6/100)+MAX(0,F7-6000000)*('Rate Design'!$I$7/100)+'Rate Design'!$I$9+F77*'Rate Design'!$I$10-0.2*F50 -> 106787.0672 | G141: =500000*('Rate Design'!$I$5/100)+MIN(5500000,G7-500000)*('Rate Design'!$I$6/100)+MAX(0,G7-6000000)*('Rate Design'!$I$7/100)+'Rate Design'!$I$9+G77*'Rate Design'!$I$10-0.2*G50 -> 109553.2248 | H141: =500000*('Rate Design'!$I$5/100)+MIN(5500000,H7-500000)*('Rate Design'!$I$6/100)+MAX(0,H7-6000000)*('Rate Design'!$I$7/100)+'Rate Design'!$I$9+H77*'Rate Design'!$I$10-0.2*H50 -> 105329.3541 | I141: =500000*('Rate Design'!$I$5/100)+MIN(5500000,I7-500000)*('Rate Design'!$I$6/100)+MAX(0,I7-6000000)*('Rate Design'!$I$7/100)+'Rate Design'!$I$9+I77*'Rate Design'!$I$10-0.2*I50 -> 121715.6749 | J141: =500000*('Rate Design'!$I$5/100)+MIN(5500000,J7-500000)*('Rate Design'!$I$6/100)+MAX(0,J7-6000000)*('Rate Design'!$I$7/100)+'Rate Design'!$I$9+J77*'Rate Design'!$I$10-0.2*J50 -> 119078.4634 | K141: =500000*('Rate Design'!$I$5/100)+MIN(5500000,K7-500000)*('Rate Design'!$I$6/100)+MAX(0,K7-6000000)*('Rate Design'!$I$7/100)+'Rate Design'!$I$9+K77*'Rate Design'!$I$10-0.2*K50 -> 122669.6181 | L141: =500000*('Rate Design'!$I$5/100)+MIN(5500000,L7-500000)*('Rate Design'!$I$6/100)+MAX(0,L7-6000000)*('Rate Design'!$I$7/100)+'Rate Design'!$I$9+L77*'Rate Design'!$I$10-0.2*L50 -> 128965.7437 | M141: =500000*('Rate Design'!$I$5/100)+MIN(5500000,M7-500000)*('Rate Design'!$I$6/100)+MAX(0,M7-6000000)*('Rate Design'!$I$7/100)+'Rate Design'!$I$9+M77*'Rate Design'!$I$10-0.2*M50 -> 130283.2957 | N141: =500000*('Rate Design'!$I$5/100)+MIN(5500000,N7-500000)*('Rate Design'!$I$6/100)+MAX(0,N7-6000000)*('Rate Design'!$I$7/100)+'Rate Design'!$I$9+N77*'Rate Design'!$I$10-0.2*N50 -> 119427.0325 | O141: =500000*('Rate Design'!$I$5/100)+MIN(5500000,O7-500000)*('Rate Design'!$I$6/100)+MAX(0,O7-6000000)*('Rate Design'!$I$7/100)+'Rate Design'!$I$9+O77*'Rate Design'!$I$10-0.2*O50 -> 110132.2827 | P141: 1373544.918 | T141: 0
A142: 5 | B142: Empire Health Services | C142: 1900011 | D142: =500000*('Rate Design'!$I$5/100)+MIN(5500000,D8-500000)*('Rate Design'!$I$6/100)+MAX(0,D8-6000000)*('Rate Design'!$I$7/100)+'Rate Design'!$I$9+D78*'Rate Design'!$I$10-0.2*D51 -> 113931.8937 | E142: =500000*('Rate Design'!$I$5/100)+MIN(5500000,E8-500000)*('Rate Design'!$I$6/100)+MAX(0,E8-6000000)*('Rate Design'!$I$7/100)+'Rate Design'!$I$9+E78*'Rate Design'!$I$10-0.2*E51 -> 110662.1922 | F142: =500000*('Rate Design'!$I$5/100)+MIN(5500000,F8-500000)*('Rate Design'!$I$6/100)+MAX(0,F8-6000000)*('Rate Design'!$I$7/100)+'Rate Design'!$I$9+F78*'Rate Design'!$I$10-0.2*F51 -> 114662.3174 | G142: =500000*('Rate Design'!$I$5/100)+MIN(5500000,G8-500000)*('Rate Design'!$I$6/100)+MAX(0,G8-6000000)*('Rate Design'!$I$7/100)+'Rate Design'!$I$9+G78*'Rate Design'!$I$10-0.2*G51 -> 113833.9277 | H142: =500000*('Rate Design'!$I$5/100)+MIN(5500000,H8-500000)*('Rate Design'!$I$6/100)+MAX(0,H8-6000000)*('Rate Design'!$I$7/100)+'Rate Design'!$I$9+H78*'Rate Design'!$I$10-0.2*H51 -> 108613.7323 | I142: =500000*('Rate Design'!$I$5/100)+MIN(5500000,I8-500000)*('Rate Design'!$I$6/100)+MAX(0,I8-6000000)*('Rate Design'!$I$7/100)+'Rate Design'!$I$9+I78*'Rate Design'!$I$10-0.2*I51 -> 115375.1299 | J142: =500000*('Rate Design'!$I$5/100)+MIN(5500000,J8-500000)*('Rate Design'!$I$6/100)+MAX(0,J8-6000000)*('Rate Design'!$I$7/100)+'Rate Design'!$I$9+J78*'Rate Design'!$I$10-0.2*J51 -> 119140.2753 | K142: =500000*('Rate Design'!$I$5/100)+MIN(5500000,K8-500000)*('Rate Design'!$I$6/100)+MAX(0,K8-6000000)*('Rate Design'!$I$7/100)+'Rate Design'!$I$9+K78*'Rate Design'!$I$10-0.2*K51 -> 129986.4698 | L142: =500000*('Rate Design'!$I$5/100)+MIN(5500000,L8-500000)*('Rate Design'!$I$6/100)+MAX(0,L8-6000000)*('Rate Design'!$I$7/100)+'Rate Design'!$I$9+L78*'Rate Design'!$I$10-0.2*L51 -> 144460.3212 | M142: =500000*('Rate Design'!$I$5/100)+MIN(5500000,M8-500000)*('Rate Design'!$I$6/100)+MAX(0,M8-6000000)*('Rate Design'!$I$7/100)+'Rate Design'!$I$9+M78*'Rate Design'!$I$10-0.2*M51 -> 154212.5147 | N142: =500000*('Rate Design'!$I$5/100)+MIN(5500000,N8-500000)*('Rate Design'!$I$6/100)+MAX(0,N8-6000000)*('Rate Design'!$I$7/100)+'Rate Design'!$I$9+N78*'Rate Design'!$I$10-0.2*N51 -> 149436.943 | O142: =500000*('Rate Design'!$I$5/100)+MIN(5500000,O8-500000)*('Rate Design'!$I$6/100)+MAX(0,O8-6000000)*('Rate Design'!$I$7/100)+'Rate Design'!$I$9+O78*'Rate Design'!$I$10-0.2*O51 -> 129919.7288 | P142: 1504235.446 | T142: 0
A143: 6 | B143: Gonzaga University | C143: 622922 | D143: =500000*('Rate Design'!$I$5/100)+MIN(5500000,D9-500000)*('Rate Design'!$I$6/100)+MAX(0,D9-6000000)*('Rate Design'!$I$7/100)+'Rate Design'!$I$9+D79*'Rate Design'!$I$10-0.2*D52 -> 145826.7741 | E143: =500000*('Rate Design'!$I$5/100)+MIN(5500000,E9-500000)*('Rate Design'!$I$6/100)+MAX(0,E9-6000000)*('Rate Design'!$I$7/100)+'Rate Design'!$I$9+E79*'Rate Design'!$I$10-0.2*E52 -> 145720.4375 | F143: =500000*('Rate Design'!$I$5/100)+MIN(5500000,F9-500000)*('Rate Design'!$I$6/100)+MAX(0,F9-6000000)*('Rate Design'!$I$7/100)+'Rate Design'!$I$9+F79*'Rate Design'!$I$10-0.2*F52 -> 143773.7672 | G143: =500000*('Rate Design'!$I$5/100)+MIN(5500000,G9-500000)*('Rate Design'!$I$6/100)+MAX(0,G9-6000000)*('Rate Design'!$I$7/100)+'Rate Design'!$I$9+G79*'Rate Design'!$I$10-0.2*G52 -> 153382.7593 | H143: =500000*('Rate Design'!$I$5/100)+MIN(5500000,H9-500000)*('Rate Design'!$I$6/100)+MAX(0,H9-6000000)*('Rate Design'!$I$7/100)+'Rate Design'!$I$9+H79*'Rate Design'!$I$10-0.2*H52 -> 152370.7099 | I143: =500000*('Rate Design'!$I$5/100)+MIN(5500000,I9-500000)*('Rate Design'!$I$6/100)+MAX(0,I9-6000000)*('Rate Design'!$I$7/100)+'Rate Design'!$I$9+I79*'Rate Design'!$I$10-0.2*I52 -> 144620.9363 | J143: =500000*('Rate Design'!$I$5/100)+MIN(5500000,J9-500000)*('Rate Design'!$I$6/100)+MAX(0,J9-6000000)*('Rate Design'!$I$7/100)+'Rate Design'!$I$9+J79*'Rate Design'!$I$10-0.2*J52 -> 134550.2668 | K143: =500000*('Rate Design'!$I$5/100)+MIN(5500000,K9-500000)*('Rate Design'!$I$6/100)+MAX(0,K9-6000000)*('Rate Design'!$I$7/100)+'Rate Design'!$I$9+K79*'Rate Design'!$I$10-0.2*K52 -> 117100.0861 | L143: =500000*('Rate Design'!$I$5/100)+MIN(5500000,L9-500000)*('Rate Design'!$I$6/100)+MAX(0,L9-6000000)*('Rate Design'!$I$7/100)+'Rate Design'!$I$9+L79*'Rate Design'!$I$10-0.2*L52 -> 138171.4619 | M143: =500000*('Rate Design'!$I$5/100)+MIN(5500000,M9-500000)*('Rate Design'!$I$6/100)+MAX(0,M9-6000000)*('Rate Design'!$I$7/100)+'Rate Design'!$I$9+M79*'Rate Design'!$I$10-0.2*M52 -> 144733.2457 | N143: =500000*('Rate Design'!$I$5/100)+MIN(5500000,N9-500000)*('Rate Design'!$I$6/100)+MAX(0,N9-6000000)*('Rate Design'!$I$7/100)+'Rate Design'!$I$9+N79*'Rate Design'!$I$10-0.2*N52 -> 140682.2896 | O143: =500000*('Rate Design'!$I$5/100)+MIN(5500000,O9-500000)*('Rate Design'!$I$6/100)+MAX(0,O9-6000000)*('Rate Design'!$I$7/100)+'Rate Design'!$I$9+O79*'Rate Design'!$I$10-0.2*O52 -> 150189.4908 | P143: 1711122.225 | T143: 0
A144: 7 | B144: Honeywell Electronics | C144: 2304636 | D144: =500000*('Rate Design'!$I$5/100)+MIN(5500000,D10-500000)*('Rate Design'!$I$6/100)+MAX(0,D10-6000000)*('Rate Design'!$I$7/100)+'Rate Design'!$I$9+D80*'Rate Design'!$I$10-0.2*D53 -> 101358.4428 | E144: =500000*('Rate Design'!$I$5/100)+MIN(5500000,E10-500000)*('Rate Design'!$I$6/100)+MAX(0,E10-6000000)*('Rate Design'!$I$7/100)+'Rate Design'!$I$9+E80*'Rate Design'!$I$10-0.2*E53 -> 99901.27272 | F144: =500000*('Rate Design'!$I$5/100)+MIN(5500000,F10-500000)*('Rate Design'!$I$6/100)+MAX(0,F10-6000000)*('Rate Design'!$I$7/100)+'Rate Design'!$I$9+F80*'Rate Design'!$I$10-0.2*F53 -> 100880.1542 | G144: =500000*('Rate Design'!$I$5/100)+MIN(5500000,G10-500000)*('Rate Design'!$I$6/100)+MAX(0,G10-6000000)*('Rate Design'!$I$7/100)+'Rate Design'!$I$9+G80*'Rate Design'!$I$10-0.2*G53 -> 101190.5501 | H144: =500000*('Rate Design'!$I$5/100)+MIN(5500000,H10-500000)*('Rate Design'!$I$6/100)+MAX(0,H10-6000000)*('Rate Design'!$I$7/100)+'Rate Design'!$I$9+H80*'Rate Design'!$I$10-0.2*H53 -> 97073.94221 | I144: =500000*('Rate Design'!$I$5/100)+MIN(5500000,I10-500000)*('Rate Design'!$I$6/100)+MAX(0,I10-6000000)*('Rate Design'!$I$7/100)+'Rate Design'!$I$9+I80*'Rate Design'!$I$10-0.2*I53 -> 100870.3395 | J144: =500000*('Rate Design'!$I$5/100)+MIN(5500000,J10-500000)*('Rate Design'!$I$6/100)+MAX(0,J10-6000000)*('Rate Design'!$I$7/100)+'Rate Design'!$I$9+J80*'Rate Design'!$I$10-0.2*J53 -> 100164.6084 | K144: =500000*('Rate Design'!$I$5/100)+MIN(5500000,K10-500000)*('Rate Design'!$I$6/100)+MAX(0,K10-6000000)*('Rate Design'!$I$7/100)+'Rate Design'!$I$9+K80*'Rate Design'!$I$10-0.2*K53 -> 104182.2557 | L144: =500000*('Rate Design'!$I$5/100)+MIN(5500000,L10-500000)*('Rate Design'!$I$6/100)+MAX(0,L10-6000000)*('Rate Design'!$I$7/100)+'Rate Design'!$I$9+L80*'Rate Design'!$I$10-0.2*L53 -> 117752.065 | M144: =500000*('Rate Design'!$I$5/100)+MIN(5500000,M10-500000)*('Rate Design'!$I$6/100)+MAX(0,M10-6000000)*('Rate Design'!$I$7/100)+'Rate Design'!$I$9+M80*'Rate Design'!$I$10-0.2*M53 -> 121277.2155 | N144: =500000*('Rate Design'!$I$5/100)+MIN(5500000,N10-500000)*('Rate Design'!$I$6/100)+MAX(0,N10-6000000)*('Rate Design'!$I$7/100)+'Rate Design'!$I$9+N80*'Rate Design'!$I$10-0.2*N53 -> 118592.1133 | O144: =500000*('Rate Design'!$I$5/100)+MIN(5500000,O10-500000)*('Rate Design'!$I$6/100)+MAX(0,O10-6000000)*('Rate Design'!$I$7/100)+'Rate Design'!$I$9+O80*'Rate Design'!$I$10-0.2*O53 -> 109902.5462 | P144: 1273145.506 | T144: 0
A145: 8 | B145: Huntwood Industries | C145: 610074869 | D145: =500000*('Rate Design'!$I$5/100)+MIN(5500000,D11-500000)*('Rate Design'!$I$6/100)+MAX(0,D11-6000000)*('Rate Design'!$I$7/100)+'Rate Design'!$I$9+D81*'Rate Design'!$I$10-0.2*D54 -> 93711.60913 | E145: =500000*('Rate Design'!$I$5/100)+MIN(5500000,E11-500000)*('Rate Design'!$I$6/100)+MAX(0,E11-6000000)*('Rate Design'!$I$7/100)+'Rate Design'!$I$9+E81*'Rate Design'!$I$10-0.2*E54 -> 87634.96771 | F145: =500000*('Rate Design'!$I$5/100)+MIN(5500000,F11-500000)*('Rate Design'!$I$6/100)+MAX(0,F11-6000000)*('Rate Design'!$I$7/100)+'Rate Design'!$I$9+F81*'Rate Design'!$I$10-0.2*F54 -> 93683.43268 | G145: =500000*('Rate Design'!$I$5/100)+MIN(5500000,G11-500000)*('Rate Design'!$I$6/100)+MAX(0,G11-6000000)*('Rate Design'!$I$7/100)+'Rate Design'!$I$9+G81*'Rate Design'!$I$10-0.2*G54 -> 92151.82213 | H145: =500000*('Rate Design'!$I$5/100)+MIN(5500000,H11-500000)*('Rate Design'!$I$6/100)+MAX(0,H11-6000000)*('Rate Design'!$I$7/100)+'Rate Design'!$I$9+H81*'Rate Design'!$I$10-0.2*H54 -> 90328.82128 | I145: =500000*('Rate Design'!$I$5/100)+MIN(5500000,I11-500000)*('Rate Design'!$I$6/100)+MAX(0,I11-6000000)*('Rate Design'!$I$7/100)+'Rate Design'!$I$9+I81*'Rate Design'!$I$10-0.2*I54 -> 98599.76632 | J145: =500000*('Rate Design'!$I$5/100)+MIN(5500000,J11-500000)*('Rate Design'!$I$6/100)+MAX(0,J11-6000000)*('Rate Design'!$I$7/100)+'Rate Design'!$I$9+J81*'Rate Design'!$I$10-0.2*J54 -> 99920.53729 | K145: =500000*('Rate Design'!$I$5/100)+MIN(5500000,K11-500000)*('Rate Design'!$I$6/100)+MAX(0,K11-6000000)*('Rate Design'!$I$7/100)+'Rate Design'!$I$9+K81*'Rate Design'!$I$10-0.2*K54 -> 97449.45082 | L145: =500000*('Rate Design'!$I$5/100)+MIN(5500000,L11-500000)*('Rate Design'!$I$6/100)+MAX(0,L11-6000000)*('Rate Design'!$I$7/100)+'Rate Design'!$I$9+L81*'Rate Design'!$I$10-0.2*L54 -> 109266.621 | M145: =500000*('Rate Design'!$I$5/100)+MIN(5500000,M11-500000)*('Rate Design'!$I$6/100)+MAX(0,M11-6000000)*('Rate Design'!$I$7/100)+'Rate Design'!$I$9+M81*'Rate Design'!$I$10-0.2*M54 -> 114783.1619 | N145: =500000*('Rate Design'!$I$5/100)+MIN(5500000,N11-500000)*('Rate Design'!$I$6/100)+MAX(0,N11-6000000)*('Rate Design'!$I$7/100)+'Rate Design'!$I$9+N81*'Rate Design'!$I$10-0.2*N54 -> 106484.3654 | O145: =500000*('Rate Design'!$I$5/100)+MIN(5500000,O11-500000)*('Rate Design'!$I$6/100)+MAX(0,O11-6000000)*('Rate Design'!$I$7/100)+'Rate Design'!$I$9+O81*'Rate Design'!$I$10-0.2*O54 -> 99159.60766 | P145: 1183174.163 | T145: 0
B146: 0 | C146: 2500004 | D146: 0 | E146: 0 | F146: 0 | G146: 0 | H146: 0 | I146: 0 | J146: 0 | K146: 0 | L146: 0 | M146: 0 | N146: 0 | O146: 0 | P146: 0 | T146: 0
A147: 9 | B147: Simplot - Othello | C147: 290048778 | D147: =500000*('Rate Design'!$I$5/100)+MIN(5500000,D13-500000)*('Rate Design'!$I$6/100)+MAX(0,D13-6000000)*('Rate Design'!$I$7/100)+'Rate Design'!$I$9+D83*'Rate Design'!$I$10-0.2*D56 -> 371588.1251 | E147: =500000*('Rate Design'!$I$5/100)+MIN(5500000,E13-500000)*('Rate Design'!$I$6/100)+MAX(0,E13-6000000)*('Rate Design'!$I$7/100)+'Rate Design'!$I$9+E83*'Rate Design'!$I$10-0.2*E56 -> 297992.6692 | F147: =500000*('Rate Design'!$I$5/100)+MIN(5500000,F13-500000)*('Rate Design'!$I$6/100)+MAX(0,F13-6000000)*('Rate Design'!$I$7/100)+'Rate Design'!$I$9+F83*'Rate Design'!$I$10-0.2*F56 -> 330182.3188 | G147: =500000*('Rate Design'!$I$5/100)+MIN(5500000,G13-500000)*('Rate Design'!$I$6/100)+MAX(0,G13-6000000)*('Rate Design'!$I$7/100)+'Rate Design'!$I$9+G83*'Rate Design'!$I$10-0.2*G56 -> 344132.552 | H147: =500000*('Rate Design'!$I$5/100)+MIN(5500000,H13-500000)*('Rate Design'!$I$6/100)+MAX(0,H13-6000000)*('Rate Design'!$I$7/100)+'Rate Design'!$I$9+H83*'Rate Design'!$I$10-0.2*H56 -> 320432.127 | I147: =500000*('Rate Design'!$I$5/100)+MIN(5500000,I13-500000)*('Rate Design'!$I$6/100)+MAX(0,I13-6000000)*('Rate Design'!$I$7/100)+'Rate Design'!$I$9+I83*'Rate Design'!$I$10-0.2*I56 -> 368599.9252 | J147: =500000*('Rate Design'!$I$5/100)+MIN(5500000,J13-500000)*('Rate Design'!$I$6/100)+MAX(0,J13-6000000)*('Rate Design'!$I$7/100)+'Rate Design'!$I$9+J83*'Rate Design'!$I$10-0.2*J56 -> 364548.1003 | K147: =500000*('Rate Design'!$I$5/100)+MIN(5500000,K13-500000)*('Rate Design'!$I$6/100)+MAX(0,K13-6000000)*('Rate Design'!$I$7/100)+'Rate Design'!$I$9+K83*'Rate Design'!$I$10-0.2*K56 -> 370164.6797 | L147: =500000*('Rate Design'!$I$5/100)+MIN(5500000,L13-500000)*('Rate Design'!$I$6/100)+MAX(0,L13-6000000)*('Rate Design'!$I$7/100)+'Rate Design'!$I$9+L83*'Rate Design'!$I$10-0.2*L56 -> 373774.927 | M147: =500000*('Rate Design'!$I$5/100)+MIN(5500000,M13-500000)*('Rate Design'!$I$6/100)+MAX(0,M13-6000000)*('Rate Design'!$I$7/100)+'Rate Design'!$I$9+M83*'Rate Design'!$I$10-0.2*M56 -> 380562.082 | N147: =500000*('Rate Design'!$I$5/100)+MIN(5500000,N13-500000)*('Rate Design'!$I$6/100)+MAX(0,N13-6000000)*('Rate Design'!$I$7/100)+'Rate Design'!$I$9+N83*'Rate Design'!$I$10-0.2*N56 -> 382396.4386 | O147: =500000*('Rate Design'!$I$5/100)+MIN(5500000,O13-500000)*('Rate Design'!$I$6/100)+MAX(0,O13-6000000)*('Rate Design'!$I$7/100)+'Rate Design'!$I$9+O83*'Rate Design'!$I$10-0.2*O56 -> 357558.3919 | P147: 4261932.337 | T147: 0
A148: 10 | B148: McCaine Foods Inc | C148: 2500003 | D148: =500000*('Rate Design'!$I$5/100)+MIN(5500000,D14-500000)*('Rate Design'!$I$6/100)+MAX(0,D14-6000000)*('Rate Design'!$I$7/100)+'Rate Design'!$I$9+D84*'Rate Design'!$I$10-0.2*D57 -> 368131.5102 | E148: =500000*('Rate Design'!$I$5/100)+MIN(5500000,E14-500000)*('Rate Design'!$I$6/100)+MAX(0,E14-6000000)*('Rate Design'!$I$7/100)+'Rate Design'!$I$9+E84*'Rate Design'!$I$10-0.2*E57 -> 331617.3319 | F148: =500000*('Rate Design'!$I$5/100)+MIN(5500000,F14-500000)*('Rate Design'!$I$6/100)+MAX(0,F14-6000000)*('Rate Design'!$I$7/100)+'Rate Design'!$I$9+F84*'Rate Design'!$I$10-0.2*F57 -> 301993.584 | G148: =500000*('Rate Design'!$I$5/100)+MIN(5500000,G14-500000)*('Rate Design'!$I$6/100)+MAX(0,G14-6000000)*('Rate Design'!$I$7/100)+'Rate Design'!$I$9+G84*'Rate Design'!$I$10-0.2*G57 -> 275445.1569 | H148: =500000*('Rate Design'!$I$5/100)+MIN(5500000,H14-500000)*('Rate Design'!$I$6/100)+MAX(0,H14-6000000)*('Rate Design'!$I$7/100)+'Rate Design'!$I$9+H84*'Rate Design'!$I$10-0.2*H57 -> 307817.0866 | I148: =500000*('Rate Design'!$I$5/100)+MIN(5500000,I14-500000)*('Rate Design'!$I$6/100)+MAX(0,I14-6000000)*('Rate Design'!$I$7/100)+'Rate Design'!$I$9+I84*'Rate Design'!$I$10-0.2*I57 -> 334201.6495 | J148: =500000*('Rate Design'!$I$5/100)+MIN(5500000,J14-500000)*('Rate Design'!$I$6/100)+MAX(0,J14-6000000)*('Rate Design'!$I$7/100)+'Rate Design'!$I$9+J84*'Rate Design'!$I$10-0.2*J57 -> 317372.8355 | K148: =500000*('Rate Design'!$I$5/100)+MIN(5500000,K14-500000)*('Rate Design'!$I$6/100)+MAX(0,K14-6000000)*('Rate Design'!$I$7/100)+'Rate Design'!$I$9+K84*'Rate Design'!$I$10-0.2*K57 -> 347972.7322 | L148: =500000*('Rate Design'!$I$5/100)+MIN(5500000,L14-500000)*('Rate Design'!$I$6/100)+MAX(0,L14-6000000)*('Rate Design'!$I$7/100)+'Rate Design'!$I$9+L84*'Rate Design'!$I$10-0.2*L57 -> 336803.6843 | M148: =500000*('Rate Design'!$I$5/100)+MIN(5500000,M14-500000)*('Rate Design'!$I$6/100)+MAX(0,M14-6000000)*('Rate Design'!$I$7/100)+'Rate Design'!$I$9+M84*'Rate Design'!$I$10-0.2*M57 -> 286785.4137 | N148: =500000*('Rate Design'!$I$5/100)+MIN(5500000,N14-500000)*('Rate Design'!$I$6/100)+MAX(0,N14-6000000)*('Rate Design'!$I$7/100)+'Rate Design'!$I$9+N84*'Rate Design'!$I$10-0.2*N57 -> 374054.769 | O148: =500000*('Rate Design'!$I$5/100)+MIN(5500000,O14-500000)*('Rate Design'!$I$6/100)+MAX(0,O14-6000000)*('Rate Design'!$I$7/100)+'Rate Design'!$I$9+O84*'Rate Design'!$I$10-0.2*O57 -> 395501.1725 | P148: 3977696.926 | T148: 0
A149: 11 | B149: Sacred Heart Medical Center | C149: 500020 | D149: =500000*('Rate Design'!$I$5/100)+MIN(5500000,D15-500000)*('Rate Design'!$I$6/100)+MAX(0,D15-6000000)*('Rate Design'!$I$7/100)+'Rate Design'!$I$9+D85*'Rate Design'!$I$10-0.2*D58 -> 228791.6162 | E149: =500000*('Rate Design'!$I$5/100)+MIN(5500000,E15-500000)*('Rate Design'!$I$6/100)+MAX(0,E15-6000000)*('Rate Design'!$I$7/100)+'Rate Design'!$I$9+E85*'Rate Design'!$I$10-0.2*E58 -> 199045.717 | F149: =500000*('Rate Design'!$I$5/100)+MIN(5500000,F15-500000)*('Rate Design'!$I$6/100)+MAX(0,F15-6000000)*('Rate Design'!$I$7/100)+'Rate Design'!$I$9+F85*'Rate Design'!$I$10-0.2*F58 -> 203825.7108 | G149: =500000*('Rate Design'!$I$5/100)+MIN(5500000,G15-500000)*('Rate Design'!$I$6/100)+MAX(0,G15-6000000)*('Rate Design'!$I$7/100)+'Rate Design'!$I$9+G85*'Rate Design'!$I$10-0.2*G58 -> 202166.5955 | H149: =500000*('Rate Design'!$I$5/100)+MIN(5500000,H15-500000)*('Rate Design'!$I$6/100)+MAX(0,H15-6000000)*('Rate Design'!$I$7/100)+'Rate Design'!$I$9+H85*'Rate Design'!$I$10-0.2*H58 -> 188051.8189 | I149: =500000*('Rate Design'!$I$5/100)+MIN(5500000,I15-500000)*('Rate Design'!$I$6/100)+MAX(0,I15-6000000)*('Rate Design'!$I$7/100)+'Rate Design'!$I$9+I85*'Rate Design'!$I$10-0.2*I58 -> 206498.1191 | J149: =500000*('Rate Design'!$I$5/100)+MIN(5500000,J15-500000)*('Rate Design'!$I$6/100)+MAX(0,J15-6000000)*('Rate Design'!$I$7/100)+'Rate Design'!$I$9+J85*'Rate Design'!$I$10-0.2*J58 -> 214652.6106 | K149: =500000*('Rate Design'!$I$5/100)+MIN(5500000,K15-500000)*('Rate Design'!$I$6/100)+MAX(0,K15-6000000)*('Rate Design'!$I$7/100)+'Rate Design'!$I$9+K85*'Rate Design'!$I$10-0.2*K58 -> 229142.9149 | L149: =500000*('Rate Design'!$I$5/100)+MIN(5500000,L15-500000)*('Rate Design'!$I$6/100)+MAX(0,L15-6000000)*('Rate Design'!$I$7/100)+'Rate Design'!$I$9+L85*'Rate Design'!$I$10-0.2*L58 -> 270664.0908 | M149: =500000*('Rate Design'!$I$5/100)+MIN(5500000,M15-500000)*('Rate Design'!$I$6/100)+MAX(0,M15-6000000)*('Rate Design'!$I$7/100)+'Rate Design'!$I$9+M85*'Rate Design'!$I$10-0.2*M58 -> 279582.237 | N149: =500000*('Rate Design'!$I$5/100)+MIN(5500000,N15-500000)*('Rate Design'!$I$6/100)+MAX(0,N15-6000000)*('Rate Design'!$I$7/100)+'Rate Design'!$I$9+N85*'Rate Design'!$I$10-0.2*N58 -> 265971.8354 | O149: =500000*('Rate Design'!$I$5/100)+MIN(5500000,O15-500000)*('Rate Design'!$I$6/100)+MAX(0,O15-6000000)*('Rate Design'!$I$7/100)+'Rate Design'!$I$9+O85*'Rate Design'!$I$10-0.2*O58 -> 227632.6279 | P149: 2716025.894 | T149: 0
A150: 12 | B150: Spokane County Combined Master | C150: 1900012 | D150: =500000*('Rate Design'!$I$5/100)+MIN(5500000,D16-500000)*('Rate Design'!$I$6/100)+MAX(0,D16-6000000)*('Rate Design'!$I$7/100)+'Rate Design'!$I$9+D86*'Rate Design'!$I$10-0.2*D59 -> 83682.70336 | E150: =500000*('Rate Design'!$I$5/100)+MIN(5500000,E16-500000)*('Rate Design'!$I$6/100)+MAX(0,E16-6000000)*('Rate Design'!$I$7/100)+'Rate Design'!$I$9+E86*'Rate Design'!$I$10-0.2*E59 -> 77082.55898 | F150: =500000*('Rate Design'!$I$5/100)+MIN(5500000,F16-500000)*('Rate Design'!$I$6/100)+MAX(0,F16-6000000)*('Rate Design'!$I$7/100)+'Rate Design'!$I$9+F86*'Rate Design'!$I$10-0.2*F59 -> 79114.87014 | G150: =500000*('Rate Design'!$I$5/100)+MIN(5500000,G16-500000)*('Rate Design'!$I$6/100)+MAX(0,G16-6000000)*('Rate Design'!$I$7/100)+'Rate Design'!$I$9+G86*'Rate Design'!$I$10-0.2*G59 -> 78585.47963 | H150: =500000*('Rate Design'!$I$5/100)+MIN(5500000,H16-500000)*('Rate Design'!$I$6/100)+MAX(0,H16-6000000)*('Rate Design'!$I$7/100)+'Rate Design'!$I$9+H86*'Rate Design'!$I$10-0.2*H59 -> 74948.45449 | I150: =500000*('Rate Design'!$I$5/100)+MIN(5500000,I16-500000)*('Rate Design'!$I$6/100)+MAX(0,I16-6000000)*('Rate Design'!$I$7/100)+'Rate Design'!$I$9+I86*'Rate Design'!$I$10-0.2*I59 -> 78819.10995 | J150: =500000*('Rate Design'!$I$5/100)+MIN(5500000,J16-500000)*('Rate Design'!$I$6/100)+MAX(0,J16-6000000)*('Rate Design'!$I$7/100)+'Rate Design'!$I$9+J86*'Rate Design'!$I$10-0.2*J59 -> 80114.57446 | K150: =500000*('Rate Design'!$I$5/100)+MIN(5500000,K16-500000)*('Rate Design'!$I$6/100)+MAX(0,K16-6000000)*('Rate Design'!$I$7/100)+'Rate Design'!$I$9+K86*'Rate Design'!$I$10-0.2*K59 -> 83961.12864 | L150: =500000*('Rate Design'!$I$5/100)+MIN(5500000,L16-500000)*('Rate Design'!$I$6/100)+MAX(0,L16-6000000)*('Rate Design'!$I$7/100)+'Rate Design'!$I$9+L86*'Rate Design'!$I$10-0.2*L59 -> 92253.43192 | M150: =500000*('Rate Design'!$I$5/100)+MIN(5500000,M16-500000)*('Rate Design'!$I$6/100)+MAX(0,M16-6000000)*('Rate Design'!$I$7/100)+'Rate Design'!$I$9+M86*'Rate Design'!$I$10-0.2*M59 -> 100607.9253 | N150: =500000*('Rate Design'!$I$5/100)+MIN(5500000,N16-500000)*('Rate Design'!$I$6/100)+MAX(0,N16-6000000)*('Rate Design'!$I$7/100)+'Rate Design'!$I$9+N86*'Rate Design'!$I$10-0.2*N59 -> 96185.53632 | O150: =500000*('Rate Design'!$I$5/100)+MIN(5500000,O16-500000)*('Rate Design'!$I$6/100)+MAX(0,O16-6000000)*('Rate Design'!$I$7/100)+'Rate Design'!$I$9+O86*'Rate Design'!$I$10-0.2*O59 -> 85337.24785 | P150: 1010693.021 | T150: 0
A151: 13 | B151: Spokane Industries | C151: 2400169 | D151: =500000*('Rate Design'!$I$5/100)+MIN(5500000,D17-500000)*('Rate Design'!$I$6/100)+MAX(0,D17-6000000)*('Rate Design'!$I$7/100)+'Rate Design'!$I$9+D87*'Rate Design'!$I$10-0.2*D60 -> 84260.47636 | E151: =500000*('Rate Design'!$I$5/100)+MIN(5500000,E17-500000)*('Rate Design'!$I$6/100)+MAX(0,E17-6000000)*('Rate Design'!$I$7/100)+'Rate Design'!$I$9+E87*'Rate Design'!$I$10-0.2*E60 -> 69776.02168 | F151: =500000*('Rate Design'!$I$5/100)+MIN(5500000,F17-500000)*('Rate Design'!$I$6/100)+MAX(0,F17-6000000)*('Rate Design'!$I$7/100)+'Rate Design'!$I$9+F87*'Rate Design'!$I$10-0.2*F60 -> 81621.26569 | G151: =500000*('Rate Design'!$I$5/100)+MIN(5500000,G17-500000)*('Rate Design'!$I$6/100)+MAX(0,G17-6000000)*('Rate Design'!$I$7/100)+'Rate Design'!$I$9+G87*'Rate Design'!$I$10-0.2*G60 -> 97254.43258 | H151: =500000*('Rate Design'!$I$5/100)+MIN(5500000,H17-500000)*('Rate Design'!$I$6/100)+MAX(0,H17-6000000)*('Rate Design'!$I$7/100)+'Rate Design'!$I$9+H87*'Rate Design'!$I$10-0.2*H60 -> 101009.2153 | I151: =500000*('Rate Design'!$I$5/100)+MIN(5500000,I17-500000)*('Rate Design'!$I$6/100)+MAX(0,I17-6000000)*('Rate Design'!$I$7/100)+'Rate Design'!$I$9+I87*'Rate Design'!$I$10-0.2*I60 -> 107084.1892 | J151: =500000*('Rate Design'!$I$5/100)+MIN(5500000,J17-500000)*('Rate Design'!$I$6/100)+MAX(0,J17-6000000)*('Rate Design'!$I$7/100)+'Rate Design'!$I$9+J87*'Rate Design'!$I$10-0.2*J60 -> 99836.61286 | K151: =500000*('Rate Design'!$I$5/100)+MIN(5500000,K17-500000)*('Rate Design'!$I$6/100)+MAX(0,K17-6000000)*('Rate Design'!$I$7/100)+'Rate Design'!$I$9+K87*'Rate Design'!$I$10-0.2*K60 -> 102023.1236 | L151: =500000*('Rate Design'!$I$5/100)+MIN(5500000,L17-500000)*('Rate Design'!$I$6/100)+MAX(0,L17-6000000)*('Rate Design'!$I$7/100)+'Rate Design'!$I$9+L87*'Rate Design'!$I$10-0.2*L60 -> 100969.0091 | M151: =500000*('Rate Design'!$I$5/100)+MIN(5500000,M17-500000)*('Rate Design'!$I$6/100)+MAX(0,M17-6000000)*('Rate Design'!$I$7/100)+'Rate Design'!$I$9+M87*'Rate Design'!$I$10-0.2*M60 -> 100816.2019 | N151: =500000*('Rate Design'!$I$5/100)+MIN(5500000,N17-500000)*('Rate Design'!$I$6/100)+MAX(0,N17-6000000)*('Rate Design'!$I$7/100)+'Rate Design'!$I$9+N87*'Rate Design'!$I$10-0.2*N60 -> 96458.434 | O151: =500000*('Rate Design'!$I$5/100)+MIN(5500000,O17-500000)*('Rate Design'!$I$6/100)+MAX(0,O17-6000000)*('Rate Design'!$I$7/100)+'Rate Design'!$I$9+O87*'Rate Design'!$I$10-0.2*O60 -> 101268.3666 | P151: 1142377.349 | T151: 0
B152: 0 | C152: 610018682 | D152: 0 | E152: 0 | F152: 0 | G152: 0 | H152: 0 | I152: 0 | J152: 0 | K152: 0 | L152: 0 | M152: 0 | N152: 0 | O152: 0 | P152: 0 | T152: 0
A153: 14 | B153: Vaagen Brothers Lumber | C153: 690067830 | D153: =500000*('Rate Design'!$I$5/100)+MIN(5500000,D19-500000)*('Rate Design'!$I$6/100)+MAX(0,D19-6000000)*('Rate Design'!$I$7/100)+'Rate Design'!$I$9+D89*'Rate Design'!$I$10-0.2*D62 -> 152904.585 | E153: =500000*('Rate Design'!$I$5/100)+MIN(5500000,E19-500000)*('Rate Design'!$I$6/100)+MAX(0,E19-6000000)*('Rate Design'!$I$7/100)+'Rate Design'!$I$9+E89*'Rate Design'!$I$10-0.2*E62 -> 159475.8485 | F153: =500000*('Rate Design'!$I$5/100)+MIN(5500000,F19-500000)*('Rate Design'!$I$6/100)+MAX(0,F19-6000000)*('Rate Design'!$I$7/100)+'Rate Design'!$I$9+F89*'Rate Design'!$I$10-0.2*F62 -> 170241.3938 | G153: =500000*('Rate Design'!$I$5/100)+MIN(5500000,G19-500000)*('Rate Design'!$I$6/100)+MAX(0,G19-6000000)*('Rate Design'!$I$7/100)+'Rate Design'!$I$9+G89*'Rate Design'!$I$10-0.2*G62 -> 164653.1811 | H153: =500000*('Rate Design'!$I$5/100)+MIN(5500000,H19-500000)*('Rate Design'!$I$6/100)+MAX(0,H19-6000000)*('Rate Design'!$I$7/100)+'Rate Design'!$I$9+H89*'Rate Design'!$I$10-0.2*H62 -> 160125.3053 | I153: =500000*('Rate Design'!$I$5/100)+MIN(5500000,I19-500000)*('Rate Design'!$I$6/100)+MAX(0,I19-6000000)*('Rate Design'!$I$7/100)+'Rate Design'!$I$9+I89*'Rate Design'!$I$10-0.2*I62 -> 161320.6151 | J153: =500000*('Rate Design'!$I$5/100)+MIN(5500000,J19-500000)*('Rate Design'!$I$6/100)+MAX(0,J19-6000000)*('Rate Design'!$I$7/100)+'Rate Design'!$I$9+J89*'Rate Design'!$I$10-0.2*J62 -> 149125.3391 | K153: =500000*('Rate Design'!$I$5/100)+MIN(5500000,K19-500000)*('Rate Design'!$I$6/100)+MAX(0,K19-6000000)*('Rate Design'!$I$7/100)+'Rate Design'!$I$9+K89*'Rate Design'!$I$10-0.2*K62 -> 135384.0081 | L153: =500000*('Rate Design'!$I$5/100)+MIN(5500000,L19-500000)*('Rate Design'!$I$6/100)+MAX(0,L19-6000000)*('Rate Design'!$I$7/100)+'Rate Design'!$I$9+L89*'Rate Design'!$I$10-0.2*L62 -> 130459.4389 | M153: =500000*('Rate Design'!$I$5/100)+MIN(5500000,M19-500000)*('Rate Design'!$I$6/100)+MAX(0,M19-6000000)*('Rate Design'!$I$7/100)+'Rate Design'!$I$9+M89*'Rate Design'!$I$10-0.2*M62 -> 122889.351 | N153: =500000*('Rate Design'!$I$5/100)+MIN(5500000,N19-500000)*('Rate Design'!$I$6/100)+MAX(0,N19-6000000)*('Rate Design'!$I$7/100)+'Rate Design'!$I$9+N89*'Rate Design'!$I$10-0.2*N62 -> 129596.7897 | O153: =500000*('Rate Design'!$I$5/100)+MIN(5500000,O19-500000)*('Rate Design'!$I$6/100)+MAX(0,O19-6000000)*('Rate Design'!$I$7/100)+'Rate Design'!$I$9+O89*'Rate Design'!$I$10-0.2*O62 -> 128831.662 | P153: 1765007.518 | T153: 0
A154: 15 | B154: WSU - MP-A South Campus Feeder | C154: 1300001 | D154: =500000*('Rate Design'!$I$5/100)+MIN(5500000,D20-500000)*('Rate Design'!$I$6/100)+MAX(0,D20-6000000)*('Rate Design'!$I$7/100)+'Rate Design'!$I$9+D90*'Rate Design'!$I$10-0.2*D63 -> 148495.908 | E154: =500000*('Rate Design'!$I$5/100)+MIN(5500000,E20-500000)*('Rate Design'!$I$6/100)+MAX(0,E20-6000000)*('Rate Design'!$I$7/100)+'Rate Design'!$I$9+E90*'Rate Design'!$I$10-0.2*E63 -> 145408.8956 | F154: =500000*('Rate Design'!$I$5/100)+MIN(5500000,F20-500000)*('Rate Design'!$I$6/100)+MAX(0,F20-6000000)*('Rate Design'!$I$7/100)+'Rate Design'!$I$9+F90*'Rate Design'!$I$10-0.2*F63 -> 151041.7902 | G154: =500000*('Rate Design'!$I$5/100)+MIN(5500000,G20-500000)*('Rate Design'!$I$6/100)+MAX(0,G20-6000000)*('Rate Design'!$I$7/100)+'Rate Design'!$I$9+G90*'Rate Design'!$I$10-0.2*G63 -> 149571.621 | H154: =500000*('Rate Design'!$I$5/100)+MIN(5500000,H20-500000)*('Rate Design'!$I$6/100)+MAX(0,H20-6000000)*('Rate Design'!$I$7/100)+'Rate Design'!$I$9+H90*'Rate Design'!$I$10-0.2*H63 -> 144467.2988 | I154: =500000*('Rate Design'!$I$5/100)+MIN(5500000,I20-500000)*('Rate Design'!$I$6/100)+MAX(0,I20-6000000)*('Rate Design'!$I$7/100)+'Rate Design'!$I$9+I90*'Rate Design'!$I$10-0.2*I63 -> 152149.8786 | J154: =500000*('Rate Design'!$I$5/100)+MIN(5500000,J20-500000)*('Rate Design'!$I$6/100)+MAX(0,J20-6000000)*('Rate Design'!$I$7/100)+'Rate Design'!$I$9+J90*'Rate Design'!$I$10-0.2*J63 -> 145996.0503 | K154: =500000*('Rate Design'!$I$5/100)+MIN(5500000,K20-500000)*('Rate Design'!$I$6/100)+MAX(0,K20-6000000)*('Rate Design'!$I$7/100)+'Rate Design'!$I$9+K90*'Rate Design'!$I$10-0.2*K63 -> 147538.1268 | L154: =500000*('Rate Design'!$I$5/100)+MIN(5500000,L20-500000)*('Rate Design'!$I$6/100)+MAX(0,L20-6000000)*('Rate Design'!$I$7/100)+'Rate Design'!$I$9+L90*'Rate Design'!$I$10-0.2*L63 -> 150256.4196 | M154: =500000*('Rate Design'!$I$5/100)+MIN(5500000,M20-500000)*('Rate Design'!$I$6/100)+MAX(0,M20-6000000)*('Rate Design'!$I$7/100)+'Rate Design'!$I$9+M90*'Rate Design'!$I$10-0.2*M63 -> 151822.5014 | N154: =500000*('Rate Design'!$I$5/100)+MIN(5500000,N20-500000)*('Rate Design'!$I$6/100)+MAX(0,N20-6000000)*('Rate Design'!$I$7/100)+'Rate Design'!$I$9+N90*'Rate Design'!$I$10-0.2*N63 -> 156098.4908 | O154: =500000*('Rate Design'!$I$5/100)+MIN(5500000,O20-500000)*('Rate Design'!$I$6/100)+MAX(0,O20-6000000)*('Rate Design'!$I$7/100)+'Rate Design'!$I$9+O90*'Rate Design'!$I$10-0.2*O63 -> 156558.4614 | P154: 1799405.443 | T154: 0
A155: 16 | B155: WSU - MP-B East Campus EA | C155: 290081951 | D155: =500000*('Rate Design'!$I$5/100)+MIN(5500000,D21-500000)*('Rate Design'!$I$6/100)+MAX(0,D21-6000000)*('Rate Design'!$I$7/100)+'Rate Design'!$I$9+D91*'Rate Design'!$I$10-0.2*D64 -> 278324.1863 | E155: =500000*('Rate Design'!$I$5/100)+MIN(5500000,E21-500000)*('Rate Design'!$I$6/100)+MAX(0,E21-6000000)*('Rate Design'!$I$7/100)+'Rate Design'!$I$9+E91*'Rate Design'!$I$10-0.2*E64 -> 266468.5226 | F155: =500000*('Rate Design'!$I$5/100)+MIN(5500000,F21-500000)*('Rate Design'!$I$6/100)+MAX(0,F21-6000000)*('Rate Design'!$I$7/100)+'Rate Design'!$I$9+F91*'Rate Design'!$I$10-0.2*F64 -> 275242.0608 | G155: =500000*('Rate Design'!$I$5/100)+MIN(5500000,G21-500000)*('Rate Design'!$I$6/100)+MAX(0,G21-6000000)*('Rate Design'!$I$7/100)+'Rate Design'!$I$9+G91*'Rate Design'!$I$10-0.2*G64 -> 253560.5554 | H155: =500000*('Rate Design'!$I$5/100)+MIN(5500000,H21-500000)*('Rate Design'!$I$6/100)+MAX(0,H21-6000000)*('Rate Design'!$I$7/100)+'Rate Design'!$I$9+H91*'Rate Design'!$I$10-0.2*H64 -> 240035.209 | I155: =500000*('Rate Design'!$I$5/100)+MIN(5500000,I21-500000)*('Rate Design'!$I$6/100)+MAX(0,I21-6000000)*('Rate Design'!$I$7/100)+'Rate Design'!$I$9+I91*'Rate Design'!$I$10-0.2*I64 -> 241629.76 | J155: =500000*('Rate Design'!$I$5/100)+MIN(5500000,J21-500000)*('Rate Design'!$I$6/100)+MAX(0,J21-6000000)*('Rate Design'!$I$7/100)+'Rate Design'!$I$9+J91*'Rate Design'!$I$10-0.2*J64 -> 234856.5949 | K155: =500000*('Rate Design'!$I$5/100)+MIN(5500000,K21-500000)*('Rate Design'!$I$6/100)+MAX(0,K21-6000000)*('Rate Design'!$I$7/100)+'Rate Design'!$I$9+K91*'Rate Design'!$I$10-0.2*K64 -> 264657.6363 | L155: =500000*('Rate Design'!$I$5/100)+MIN(5500000,L21-500000)*('Rate Design'!$I$6/100)+MAX(0,L21-6000000)*('Rate Design'!$I$7/100)+'Rate Design'!$I$9+L91*'Rate Design'!$I$10-0.2*L64 -> 336630.8057 | M155: =500000*('Rate Design'!$I$5/100)+MIN(5500000,M21-500000)*('Rate Design'!$I$6/100)+MAX(0,M21-6000000)*('Rate Design'!$I$7/100)+'Rate Design'!$I$9+M91*'Rate Design'!$I$10-0.2*M64 -> 362559.6567 | N155: =500000*('Rate Design'!$I$5/100)+MIN(5500000,N21-500000)*('Rate Design'!$I$6/100)+MAX(0,N21-6000000)*('Rate Design'!$I$7/100)+'Rate Design'!$I$9+N91*'Rate Design'!$I$10-0.2*N64 -> 369507.466 | O155: =500000*('Rate Design'!$I$5/100)+MIN(5500000,O21-500000)*('Rate Design'!$I$6/100)+MAX(0,O21-6000000)*('Rate Design'!$I$7/100)+'Rate Design'!$I$9+O91*'Rate Design'!$I$10-0.2*O64 -> 312216.2034 | P155: 3435688.657 | T155: 0
A156: 17 | B156: WSU - MP-C East Campus EB | C156: 500033 | D156: =500000*('Rate Design'!$I$5/100)+MIN(5500000,D22-500000)*('Rate Design'!$I$6/100)+MAX(0,D22-6000000)*('Rate Design'!$I$7/100)+'Rate Design'!$I$9+D92*'Rate Design'!$I$10-0.2*D65 -> 201665.922 | E156: =500000*('Rate Design'!$I$5/100)+MIN(5500000,E22-500000)*('Rate Design'!$I$6/100)+MAX(0,E22-6000000)*('Rate Design'!$I$7/100)+'Rate Design'!$I$9+E92*'Rate Design'!$I$10-0.2*E65 -> 207824.9461 | F156: =500000*('Rate Design'!$I$5/100)+MIN(5500000,F22-500000)*('Rate Design'!$I$6/100)+MAX(0,F22-6000000)*('Rate Design'!$I$7/100)+'Rate Design'!$I$9+F92*'Rate Design'!$I$10-0.2*F65 -> 215776.1873 | G156: =500000*('Rate Design'!$I$5/100)+MIN(5500000,G22-500000)*('Rate Design'!$I$6/100)+MAX(0,G22-6000000)*('Rate Design'!$I$7/100)+'Rate Design'!$I$9+G92*'Rate Design'!$I$10-0.2*G65 -> 209517.8395 | H156: =500000*('Rate Design'!$I$5/100)+MIN(5500000,H22-500000)*('Rate Design'!$I$6/100)+MAX(0,H22-6000000)*('Rate Design'!$I$7/100)+'Rate Design'!$I$9+H92*'Rate Design'!$I$10-0.2*H65 -> 205750.6535 | I156: =500000*('Rate Design'!$I$5/100)+MIN(5500000,I22-500000)*('Rate Design'!$I$6/100)+MAX(0,I22-6000000)*('Rate Design'!$I$7/100)+'Rate Design'!$I$9+I92*'Rate Design'!$I$10-0.2*I65 -> 207800.553 | J156: =500000*('Rate Design'!$I$5/100)+MIN(5500000,J22-500000)*('Rate Design'!$I$6/100)+MAX(0,J22-6000000)*('Rate Design'!$I$7/100)+'Rate Design'!$I$9+J92*'Rate Design'!$I$10-0.2*J65 -> 182937.9264 | K156: =500000*('Rate Design'!$I$5/100)+MIN(5500000,K22-500000)*('Rate Design'!$I$6/100)+MAX(0,K22-6000000)*('Rate Design'!$I$7/100)+'Rate Design'!$I$9+K92*'Rate Design'!$I$10-0.2*K65 -> 187230.4146 | L156: =500000*('Rate Design'!$I$5/100)+MIN(5500000,L22-500000)*('Rate Design'!$I$6/100)+MAX(0,L22-6000000)*('Rate Design'!$I$7/100)+'Rate Design'!$I$9+L92*'Rate Design'!$I$10-0.2*L65 -> 187813.2275 | M156: =500000*('Rate Design'!$I$5/100)+MIN(5500000,M22-500000)*('Rate Design'!$I$6/100)+MAX(0,M22-6000000)*('Rate Design'!$I$7/100)+'Rate Design'!$I$9+M92*'Rate Design'!$I$10-0.2*M65 -> 190219.3073 | N156: =500000*('Rate Design'!$I$5/100)+MIN(5500000,N22-500000)*('Rate Design'!$I$6/100)+MAX(0,N22-6000000)*('Rate Design'!$I$7/100)+'Rate Design'!$I$9+N92*'Rate Design'!$I$10-0.2*N65 -> 193453.9772 | O156: =500000*('Rate Design'!$I$5/100)+MIN(5500000,O22-500000)*('Rate Design'!$I$6/100)+MAX(0,O22-6000000)*('Rate Design'!$I$7/100)+'Rate Design'!$I$9+O92*'Rate Design'!$I$10-0.2*O65 -> 196604.9744 | P156: 2386595.929 | T156: 0
A157: 18 | B157: WSU - MP-D Casp East (no PVD) | C157: 410031282 | D157: =500000*('Rate Design'!$I$5/100)+MIN(5500000,D23-500000)*('Rate Design'!$I$6/100)+MAX(0,D23-6000000)*('Rate Design'!$I$7/100)+'Rate Design'!$I$9+D93*'Rate Design'!$I$10 -> 154940.2183 | E157: =500000*('Rate Design'!$I$5/100)+MIN(5500000,E23-500000)*('Rate Design'!$I$6/100)+MAX(0,E23-6000000)*('Rate Design'!$I$7/100)+'Rate Design'!$I$9+E93*'Rate Design'!$I$10 -> 158369.3934 | F157: =500000*('Rate Design'!$I$5/100)+MIN(5500000,F23-500000)*('Rate Design'!$I$6/100)+MAX(0,F23-6000000)*('Rate Design'!$I$7/100)+'Rate Design'!$I$9+F93*'Rate Design'!$I$10 -> 163202.9887 | G157: =500000*('Rate Design'!$I$5/100)+MIN(5500000,G23-500000)*('Rate Design'!$I$6/100)+MAX(0,G23-6000000)*('Rate Design'!$I$7/100)+'Rate Design'!$I$9+G93*'Rate Design'!$I$10 -> 179889.3917 | H157: =500000*('Rate Design'!$I$5/100)+MIN(5500000,H23-500000)*('Rate Design'!$I$6/100)+MAX(0,H23-6000000)*('Rate Design'!$I$7/100)+'Rate Design'!$I$9+H93*'Rate Design'!$I$10 -> 180599.3863 | I157: =500000*('Rate Design'!$I$5/100)+MIN(5500000,I23-500000)*('Rate Design'!$I$6/100)+MAX(0,I23-6000000)*('Rate Design'!$I$7/100)+'Rate Design'!$I$9+I93*'Rate Design'!$I$10 -> 180929.8311 | J157: =500000*('Rate Design'!$I$5/100)+MIN(5500000,J23-500000)*('Rate Design'!$I$6/100)+MAX(0,J23-6000000)*('Rate Design'!$I$7/100)+'Rate Design'!$I$9+J93*'Rate Design'!$I$10 -> 180321.6884 | K157: =500000*('Rate Design'!$I$5/100)+MIN(5500000,K23-500000)*('Rate Design'!$I$6/100)+MAX(0,K23-6000000)*('Rate Design'!$I$7/100)+'Rate Design'!$I$9+K93*'Rate Design'!$I$10 -> 170442.277 | L157: =500000*('Rate Design'!$I$5/100)+MIN(5500000,L23-500000)*('Rate Design'!$I$6/100)+MAX(0,L23-6000000)*('Rate Design'!$I$7/100)+'Rate Design'!$I$9+L93*'Rate Design'!$I$10 -> 160084.8961 | M157: =500000*('Rate Design'!$I$5/100)+MIN(5500000,M23-500000)*('Rate Design'!$I$6/100)+MAX(0,M23-6000000)*('Rate Design'!$I$7/100)+'Rate Design'!$I$9+M93*'Rate Design'!$I$10 -> 166767.2726 | N157: =500000*('Rate Design'!$I$5/100)+MIN(5500000,N23-500000)*('Rate Design'!$I$6/100)+MAX(0,N23-6000000)*('Rate Design'!$I$7/100)+'Rate Design'!$I$9+N93*'Rate Design'!$I$10 -> 210691.3645 | O157: =500000*('Rate Design'!$I$5/100)+MIN(5500000,O23-500000)*('Rate Design'!$I$6/100)+MAX(0,O23-6000000)*('Rate Design'!$I$7/100)+'Rate Design'!$I$9+O93*'Rate Design'!$I$10 -> 151840.2972 | P157: 2058079.005 | T157: 0
A158: 19 | B158: WSU - MP-E Casp West (no PVD) | C158: 500032 | D158: =500000*('Rate Design'!$I$5/100)+MIN(5500000,D24-500000)*('Rate Design'!$I$6/100)+MAX(0,D24-6000000)*('Rate Design'!$I$7/100)+'Rate Design'!$I$9+D94*'Rate Design'!$I$10 -> 158769.5366 | E158: =500000*('Rate Design'!$I$5/100)+MIN(5500000,E24-500000)*('Rate Design'!$I$6/100)+MAX(0,E24-6000000)*('Rate Design'!$I$7/100)+'Rate Design'!$I$9+E94*'Rate Design'!$I$10 -> 113994.6346 | F158: =500000*('Rate Design'!$I$5/100)+MIN(5500000,F24-500000)*('Rate Design'!$I$6/100)+MAX(0,F24-6000000)*('Rate Design'!$I$7/100)+'Rate Design'!$I$9+F94*'Rate Design'!$I$10 -> 116361.6054 | G158: =500000*('Rate Design'!$I$5/100)+MIN(5500000,G24-500000)*('Rate Design'!$I$6/100)+MAX(0,G24-6000000)*('Rate Design'!$I$7/100)+'Rate Design'!$I$9+G94*'Rate Design'!$I$10 -> 118842.0119 | H158: =500000*('Rate Design'!$I$5/100)+MIN(5500000,H24-500000)*('Rate Design'!$I$6/100)+MAX(0,H24-6000000)*('Rate Design'!$I$7/100)+'Rate Design'!$I$9+H94*'Rate Design'!$I$10 -> 117740.9811 | I158: =500000*('Rate Design'!$I$5/100)+MIN(5500000,I24-500000)*('Rate Design'!$I$6/100)+MAX(0,I24-6000000)*('Rate Design'!$I$7/100)+'Rate Design'!$I$9+I94*'Rate Design'!$I$10 -> 117227.1254 | J158: =500000*('Rate Design'!$I$5/100)+MIN(5500000,J24-500000)*('Rate Design'!$I$6/100)+MAX(0,J24-6000000)*('Rate Design'!$I$7/100)+'Rate Design'!$I$9+J94*'Rate Design'!$I$10 -> 137937.7455 | K158: =500000*('Rate Design'!$I$5/100)+MIN(5500000,K24-500000)*('Rate Design'!$I$6/100)+MAX(0,K24-6000000)*('Rate Design'!$I$7/100)+'Rate Design'!$I$9+K94*'Rate Design'!$I$10 -> 140197.973 | L158: =500000*('Rate Design'!$I$5/100)+MIN(5500000,L24-500000)*('Rate Design'!$I$6/100)+MAX(0,L24-6000000)*('Rate Design'!$I$7/100)+'Rate Design'!$I$9+L94*'Rate Design'!$I$10 -> 186322.6854 | M158: =500000*('Rate Design'!$I$5/100)+MIN(5500000,M24-500000)*('Rate Design'!$I$6/100)+MAX(0,M24-6000000)*('Rate Design'!$I$7/100)+'Rate Design'!$I$9+M94*'Rate Design'!$I$10 -> 217076.8928 | N158: =500000*('Rate Design'!$I$5/100)+MIN(5500000,N24-500000)*('Rate Design'!$I$6/100)+MAX(0,N24-6000000)*('Rate Design'!$I$7/100)+'Rate Design'!$I$9+N94*'Rate Design'!$I$10 -> 195996.6547 | O158: =500000*('Rate Design'!$I$5/100)+MIN(5500000,O24-500000)*('Rate Design'!$I$6/100)+MAX(0,O24-6000000)*('Rate Design'!$I$7/100)+'Rate Design'!$I$9+O94*'Rate Design'!$I$10 -> 203918.6231 | P158: 1824386.47 | T158: 0
A159: 20 | B159: Goodrich - South 2311155858 (No PVD) | D159: =500000*('Rate Design'!$I$5/100)+MIN(5500000,D25-500000)*('Rate Design'!$I$6/100)+MAX(0,D25-6000000)*('Rate Design'!$I$7/100)+'Rate Design'!$I$9+D95*'Rate Design'!$I$10 -> 99825.95664 | E159: =500000*('Rate Design'!$I$5/100)+MIN(5500000,E25-500000)*('Rate Design'!$I$6/100)+MAX(0,E25-6000000)*('Rate Design'!$I$7/100)+'Rate Design'!$I$9+E95*'Rate Design'!$I$10 -> 57189.21828 | F159: =500000*('Rate Design'!$I$5/100)+MIN(5500000,F25-500000)*('Rate Design'!$I$6/100)+MAX(0,F25-6000000)*('Rate Design'!$I$7/100)+'Rate Design'!$I$9+F95*'Rate Design'!$I$10 -> 47427.6172 | G159: =500000*('Rate Design'!$I$5/100)+MIN(5500000,G25-500000)*('Rate Design'!$I$6/100)+MAX(0,G25-6000000)*('Rate Design'!$I$7/100)+'Rate Design'!$I$9+G95*'Rate Design'!$I$10 -> 91873.15016 | H159: =500000*('Rate Design'!$I$5/100)+MIN(5500000,H25-500000)*('Rate Design'!$I$6/100)+MAX(0,H25-6000000)*('Rate Design'!$I$7/100)+'Rate Design'!$I$9+H95*'Rate Design'!$I$10 -> 108876.239 | I159: =500000*('Rate Design'!$I$5/100)+MIN(5500000,I25-500000)*('Rate Design'!$I$6/100)+MAX(0,I25-6000000)*('Rate Design'!$I$7/100)+'Rate Design'!$I$9+I95*'Rate Design'!$I$10 -> 120782.4166 | J159: =500000*('Rate Design'!$I$5/100)+MIN(5500000,J25-500000)*('Rate Design'!$I$6/100)+MAX(0,J25-6000000)*('Rate Design'!$I$7/100)+'Rate Design'!$I$9+J95*'Rate Design'!$I$10 -> 114604.9031 | K159: =500000*('Rate Design'!$I$5/100)+MIN(5500000,K25-500000)*('Rate Design'!$I$6/100)+MAX(0,K25-6000000)*('Rate Design'!$I$7/100)+'Rate Design'!$I$9+K95*'Rate Design'!$I$10 -> 133391.8498 | L159: =500000*('Rate Design'!$I$5/100)+MIN(5500000,L25-500000)*('Rate Design'!$I$6/100)+MAX(0,L25-6000000)*('Rate Design'!$I$7/100)+'Rate Design'!$I$9+L95*'Rate Design'!$I$10 -> 174034.5137 | M159: =500000*('Rate Design'!$I$5/100)+MIN(5500000,M25-500000)*('Rate Design'!$I$6/100)+MAX(0,M25-6000000)*('Rate Design'!$I$7/100)+'Rate Design'!$I$9+M95*'Rate Design'!$I$10 -> 142279.9684 | N159: =500000*('Rate Design'!$I$5/100)+MIN(5500000,N25-500000)*('Rate Design'!$I$6/100)+MAX(0,N25-6000000)*('Rate Design'!$I$7/100)+'Rate Design'!$I$9+N95*'Rate Design'!$I$10 -> 160982.9505 | O159: =500000*('Rate Design'!$I$5/100)+MIN(5500000,O25-500000)*('Rate Design'!$I$6/100)+MAX(0,O25-6000000)*('Rate Design'!$I$7/100)+'Rate Design'!$I$9+O95*'Rate Design'!$I$10 -> 183686.5276 | P159: =SUM(D159:O159) -> 1434955.311 | T159: 0
A160: 21 | B160: Boise Cascade LLC Inland Region | D160: =500000*('Rate Design'!$I$5/100)+MIN(5500000,D26-500000)*('Rate Design'!$I$6/100)+MAX(0,D26-6000000)*('Rate Design'!$I$7/100)+'Rate Design'!$I$9+D96*'Rate Design'!$I$10-0.2*D69 -> 77686.31632 | E160: =500000*('Rate Design'!$I$5/100)+MIN(5500000,E26-500000)*('Rate Design'!$I$6/100)+MAX(0,E26-6000000)*('Rate Design'!$I$7/100)+'Rate Design'!$I$9+E96*'Rate Design'!$I$10-0.2*E69 -> 79944.62971 | F160: =500000*('Rate Design'!$I$5/100)+MIN(5500000,F26-500000)*('Rate Design'!$I$6/100)+MAX(0,F26-6000000)*('Rate Design'!$I$7/100)+'Rate Design'!$I$9+F96*'Rate Design'!$I$10-0.2*F69 -> 83447.2759 | G160: =500000*('Rate Design'!$I$5/100)+MIN(5500000,G26-500000)*('Rate Design'!$I$6/100)+MAX(0,G26-6000000)*('Rate Design'!$I$7/100)+'Rate Design'!$I$9+G96*'Rate Design'!$I$10-0.2*G69 -> 87410.58379 | H160: =500000*('Rate Design'!$I$5/100)+MIN(5500000,H26-500000)*('Rate Design'!$I$6/100)+MAX(0,H26-6000000)*('Rate Design'!$I$7/100)+'Rate Design'!$I$9+H96*'Rate Design'!$I$10-0.2*H69 -> 85457.57296 | I160: =500000*('Rate Design'!$I$5/100)+MIN(5500000,I26-500000)*('Rate Design'!$I$6/100)+MAX(0,I26-6000000)*('Rate Design'!$I$7/100)+'Rate Design'!$I$9+I96*'Rate Design'!$I$10-0.2*I69 -> 84378.39329 | J160: =500000*('Rate Design'!$I$5/100)+MIN(5500000,J26-500000)*('Rate Design'!$I$6/100)+MAX(0,J26-6000000)*('Rate Design'!$I$7/100)+'Rate Design'!$I$9+J96*'Rate Design'!$I$10-0.2*J69 -> 79223.77525 | K160: =500000*('Rate Design'!$I$5/100)+MIN(5500000,K26-500000)*('Rate Design'!$I$6/100)+MAX(0,K26-6000000)*('Rate Design'!$I$7/100)+'Rate Design'!$I$9+K96*'Rate Design'!$I$10-0.2*K69 -> 73875.1699 | L160: =500000*('Rate Design'!$I$5/100)+MIN(5500000,L26-500000)*('Rate Design'!$I$6/100)+MAX(0,L26-6000000)*('Rate Design'!$I$7/100)+'Rate Design'!$I$9+L96*'Rate Design'!$I$10-0.2*L69 -> 76884.5362 | M160: =500000*('Rate Design'!$I$5/100)+MIN(5500000,M26-500000)*('Rate Design'!$I$6/100)+MAX(0,M26-6000000)*('Rate Design'!$I$7/100)+'Rate Design'!$I$9+M96*'Rate Design'!$I$10-0.2*M69 -> 73514.52241 | N160: =500000*('Rate Design'!$I$5/100)+MIN(5500000,N26-500000)*('Rate Design'!$I$6/100)+MAX(0,N26-6000000)*('Rate Design'!$I$7/100)+'Rate Design'!$I$9+N96*'Rate Design'!$I$10-0.2*N69 -> 74979.00124 | O160: =500000*('Rate Design'!$I$5/100)+MIN(5500000,O26-500000)*('Rate Design'!$I$6/100)+MAX(0,O26-6000000)*('Rate Design'!$I$7/100)+'Rate Design'!$I$9+O96*'Rate Design'!$I$10-0.2*O69 -> 75913.69831 | P160: =SUM(D160:O160) -> 952715.4753 | T160: =IF(P160<945750,945750-P160,0) -> 0
B161: Schedule 25 Total | P161: =SUM(P138:P160) -> 41219235.81 | Q161: =P161-'Pres & Prop Rev'!I152 -> 1579.568942 | T161: =SUM(T138:T160) -> 0
D163: 24 | E163: 24 | F163: 24 | G163: 24 | H163: 24 | I163: 24 | J163: 24 | K163: 24 | L163: 24 | M163: 24 | N163: 24 | O163: 24
D164: 31 | E164: 30 | F164: 31 | G164: 31 | H164: 28 | I164: 31 | J164: 30 | K164: 31 | L164: 30 | M164: 31 | N164: 31 | O164: 30 | P164: =SUM(D164:O164) -> 365
D165: =D163*D164 -> 744 | E165: =E163*E164 -> 720 | F165: =F163*F164 -> 744 | G165: 744 | H165: 672 | I165: 744 | J165: 720 | K165: 744 | L165: 720 | M165: 744 | N165: 744 | O165: 720 | P165: =SUM(D165:O165) -> 8760
B166: Load Factor | D166: =D3 -> 2020-10-31 | E166: 2020-11-30 | F166: 2020-12-31 | G166: 2021-01-31 | H166: 2021-02-28 | I166: 2021-03-31 | J166: 2021-04-30 | K166: 2021-05-31 | L166: 2021-06-30 | M166: 2021-07-31 | N166: 2021-08-31 | O166: 2021-09-30 | P166: Monthly Average | Q166: Annual Peak
A167: 1 | B167: =B4 -> Goodrich - North 2311008572 | D167: =(D4/D$165)/D47 -> 0.6280970963 | E167: 0.6828284568 | F167: 0.6332118435 | G167: 0.6011009391 | H167: 0.6760047009 | I167: 0.6533358136 | J167: 0.6193035982 | K167: 0.7143917336 | L167: 0.6864517545 | M167: 0.6380929043 | N167: 0.6401820462 | O167: 0.7195739727 | P167: =AVERAGE(D167:O167) -> 0.6577145716 | Q167: =(P4/8760)/Q47 -> 0.4845583574
A168: 2 | B168: Boise Cascade Plywood | D168: =(D5/D$165)/D48 -> 0.7693072072 | E168: 0.7519728499 | F168: 0.622566671 | G168: 0.7327175581 | H168: 0.7799587063 | I168: 0.7691168763 | J168: 0.7714152311 | K168: 0.7447563668 | L168: 0.7405162862 | M168: 0.7391598485 | N168: 0.6090802787 | O168: 0.7208704245 | P168: =AVERAGE(D168:O168) -> 0.7292865254 | Q168: 0.7031298713
A169: 3 | B169: Boise Cascade Sawmill | D169: =(D6/D$165)/D49 -> 0.6149389787 | E169: 0.6257988132 | F169: 0.618083825 | G169: 0.6219211273 | H169: 0.6553576111 | I169: 0.6389743902 | J169: 0.6296167409 | K169: 0.6001532462 | L169: 0.6478459497 | M169: 0.6102580099 | N169: 0.619020024 | O169: 0.5909583053 | P169: 0.6227439185 | Q169: 0.574236601
A170: 4 | B170: City of Spokane | D170: =(D7/D$165)/D50 -> 0.6343527554 | E170: 0.6385102997 | F170: 0.6935380071 | G170: 0.7422510396 | H170: 0.7337560537 | I170: 0.6351301758 | J170: 0.6486410528 | K170: 0.6332391066 | L170: 0.6339588562 | M170: 0.6975049066 | N170: 0.6450316654 | O170: 0.530066517 | P170: 0.6554983696 | Q170: 0.5514505252
A171: 5 | B171: Empire Health Services | D171: =(D8/D$165)/D51 -> 0.8001352845 | E171: 0.7952635498 | F171: 0.795234353 | G171: 0.7785178272 | H171: 0.7927590165 | I171: 0.8135944254 | J171: 0.6901692933 | K171: 0.6699833517 | L171: 0.6926937807 | M171: 0.7736113543 | N171: 0.7370961562 | O171: 0.7305609723 | P171: 0.7558016137 | Q171: 0.5928019106
A172: 6 | B172: Gonzaga University | D172: =(D9/D$165)/D52 -> 0.5760744474 | E172: 0.6619873523 | F172: 0.6849567236 | G172: 0.6694499028 | H172: 0.7191751549 | I172: 0.6923590853 | J172: 0.5934656018 | K172: 0.459378697 | L172: 0.462649183 | M172: 0.516884032 | N172: 0.5148505764 | O172: 0.5292628006 | P172: 0.5900411298 | Q172: 0.5072720406
A173: 7 | B173: Honeywell Electronics | D173: =(D10/D$165)/D53 -> 0.5762374314 | E173: 0.5522050988 | F173: 0.5830570976 | G173: 0.578628287 | H173: 0.588664699 | I173: 0.5865121445 | J173: 0.5938188418 | K173: 0.6053534516 | L173: 0.5405560383 | M173: 0.5779513216 | N173: 0.5762490038 | O173: 0.5725331671 | P173: 0.5776472152 | Q173: 0.4867633608
A174: 8 | B174: Huntwood Industries | D174: =(D11/D$165)/D54 -> 0.3127719445 | E174: 0.2898070864 | F174: 0.3052602491 | G174: 0.3049043306 | H174: 0.3205270841 | I174: 0.33844314 | J174: 0.3598628408 | K174: 0.3422157645 | L174: 0.3528104015 | M174: 0.3711803261 | N174: 0.3572895985 | O174: 0.3429298006 | P174: 0.3331668806 | Q174: 0.3059274928
B175: 0 | D175: 0 | E175: 0 | F175: 0 | G175: 0 | H175: 0 | I175: 0 | J175: 0 | K175: 0 | L175: 0 | M175: 0 | N175: 0 | O175: 0 | P175: 0 | Q175: 0
A176: 9 | B176: Simplot - Othello | D176: =(D13/D$165)/D56 -> 0.8937478884 | E176: 0.7057013002 | F176: 0.7625558939 | G176: 0.8097316946 | H176: 0.7923355337 | I176: 0.8579446559 | J176: 0.8919613835 | K176: 0.8819953823 | L176: 0.9078885687 | M176: 0.8812746761 | N176: 0.8874664403 | O176: 0.8718514848 | P176: 0.8453712419 | Q176: =(P13/8760)/Q56 -> 0.8270501209
A177: 10 | B177: McCaine Foods Inc | D177: =(D14/D$165)/D57 -> 0.5831322137 | E177: 0.7928404309 | F177: 0.6704531173 | G177: 0.6187346165 | H177: 0.8058460848 | I177: 0.8359245279 | J177: 0.7379146081 | K177: 0.8370118295 | L177: 0.8043123334 | M177: 0.5896668907 | N177: 0.7644244524 | O177: 0.6626354639 | P177: 0.7252413808 | Q177: =(P14/8760)/Q57 -> 0.5577558352
A178: 11 | B178: Sacred Heart Medical Center | D178: =(D15/D$165)/D58 -> 0.6545218228 | E178: 0.8451811041 | F178: 0.8653597356 | G178: 0.849421182 | H178: 0.8609225579 | I178: 0.7787325161 | J178: 0.6855628346 | K178: 0.6925686186 | L178: 0.6451685273 | M178: 0.7601473796 | N178: 0.7167526913 | O178: 0.7266711746 | P178: 0.7567508454 | Q178: =(P15/8760)/Q58 -> 0.5488382428
A179: 12 | B179: Spokane County Combined Master | D179: =(D16/D$165)/D59 -> 0.5669626765 | E179: 0.7029673852 | F179: 0.7219828717 | G179: 0.6890621432 | H179: 0.7120960227 | I179: 0.6071981082 | J179: 0.6007470278 | K179: 0.5759527647 | L179: 0.5683867347 | M179: 0.6634489994 | N179: 0.6174676665 | O179: 0.5836979286 | P179: 0.6341641941 | Q179: =(P16/8760)/Q59 -> 0.4834566951
A180: 13 | B180: Spokane Industries | D180: =(D17/D$165)/D60 -> 0.1205818845 | E180: 0.1749920387 | F180: 0.1457206557 | G180: 0.1737405922 | H180: 0.21815689 | I180: 0.2057529925 | J180: 0.2131325003 | K180: 0.1910281671 | L180: 0.2094214429 | M180: 0.197885531 | N180: 0.1550962873 | O180: 0.2177178018 | P180: 0.1852688987 | Q180: =(P17/8760)/Q60 -> 0.1701258023
B181: 0 | D181: 0 | E181: 0 | F181: 0 | G181: 0 | H181: 0 | I181: 0 | J181: 0 | K181: 0 | L181: 0 | M181: 0 | N181: 0 | O181: 0 | P181: 0 | Q181: 0
A182: 14 | B182: Vaagen Brothers Lumber | D182: =(D19/D$165)/D62 -> 0.6173833541 | E182: 0.6606471003 | F182: 0.6665693324 | G182: 0.6345992777 | H182: 0.6471468607 | I182: 0.6319588253 | J182: 0.649509787 | K182: 0.6049396177 | L182: 0.5727954298 | M182: 0.5437615968 | N182: 0.5858777517 | O182: 0.5466117548 | P182: 0.6134833907 | Q182: =(P19/8760)/Q62 -> 0.5490679097
A183: 15 | B183: WSU - MP-A South Campus Feeder | D183: =(D20/D$165)/D63 -> 0.7618738704 | E183: 0.8581006753 | F183: 0.791531185 | G183: 0.8349694439 | H183: 0.8689587768 | I183: 0.8283387727 | J183: 0.8259350234 | K183: 0.8192816227 | L183: 0.7861087316 | M183: 0.7760762127 | N183: 0.7876599144 | O183: 0.7629886972 | P183: 0.8084852438 | Q183: 0.7298048564
A184: 16 | B184: WSU - MP-B East Campus EA | D184: =(D21/D$165)/D64 -> 0.6404100025 | E184: 0.7843019984 | F184: 0.7901405945 | G184: 0.7560205863 | H184: 0.7673430006 | I184: 0.7853158066 | J184: 0.6869113883 | K184: 0.5861571885 | L184: 0.6126105961 | M184: 0.6907767447 | N184: 0.6503382449 | O184: 0.6523747721 | P184: 0.700225077 | Q184: 0.5150011847
A185: 17 | B185: WSU - MP-C East Campus EB | D185: =(D22/D$165)/D65 -> 0.7465824253 | E185: 0.7549848896 | F185: 0.7667040179 | G185: 0.8299568442 | H185: 0.7712731116 | I185: 0.7808188472 | J185: 0.7483527179 | K185: 0.8080550909 | L185: 0.8376956803 | M185: 0.8458587427 | N185: 0.8185190792 | O185: 0.7712688703 | P185: 0.7900058598 | Q185: 0.7012960283
A186: 18 | B186: WSU - MP-D Casp East (no PVD) | D186: =(D23/D$165)/D66 -> 0.7091357924 | E186: 0.7077613914 | F186: 0.7238255859 | G186: 0.7414145577 | H186: 0.7827384693 | I186: 0.7377542701 | J186: 0.7618546549 | K186: 0.7056015759 | L186: 0.7285263749 | M186: 0.7352841272 | N186: 0.4064303943 | O186: 0.7503282188 | P186: 0.7075546177 | Q186: 0.3871118285
A187: 19 | B187: WSU - MP-E Casp West (no PVD) | D187: =(D24/D$165)/D67 -> 0.521082127 | E187: 0.7945431012 | F187: 0.7524496144 | G187: 0.7063712442 | H187: 0.7804652244 | I187: 0.7700218685 | J187: 0.6024128863 | K187: 0.628882379 | L187: 0.6575773228 | M187: 0.8060233515 | N187: 0.6187274672 | O187: 0.5696593628 | P187: 0.6840179958 | Q187: 0.4302891813
A188: 20 | B188: Goodrich - South 2311155858 (No PVD) | D188: =(D25/D$165)/D68 -> 0.3561206073 | E188: 0.3918572611 | F188: 0.2863800937 | G188: 0.4255484891 | H188: 0.4595871858 | I188: 0.4802483315 | J188: 0.5487916623 | K188: 0.5731852874 | L188: 0.2957912667 | M188: 0.5792894716 | N188: 0.476749664 | O188: 0.5657652785 | P188: =AVERAGE(D188:O188) -> 0.4532762166 | Q188: 0.2271162157
A189: 21 | B189: Boise Cascade LLC Inland Region | D189: =(D26/D$165)/D69 -> 0.2929561506 | E189: 0.2895124616 | F189: 0.3058460343 | G189: 0.297226063 | H189: 0.3150229696 | I189: 0.3118659619 | J189: 0.2845848905 | K189: 0.2513356197 | L189: 0.2842254272 | M189: 0.2734568969 | N189: 0.2633637864 | O189: 0.2817308697 | P189: 0.2875939276 | Q189: 0.2661892875

Sheet Lighting summary
B1: AVISTA UTILITIES
B2: WASHINGTON ELECTRIC
B3: STREET & AREA LIGHT REVENUE UNDER PRESENT & PROPOSED RATES
B4: 12 MONTHS ENDED SEPTEMBER 30, 2021
C7: ="Present "&IF(Base1_Billing2=2,"Billing ","")&"Rates(1)" -> Present Rates(1) | D7: ="Present "&IF(Base1_Billing2=2,"Billing","")&" Rates" -> Present Rates | F7: ="Proposed "&IF(Base1_Billing2=2,"Billing ","")&"Rates(2)" -> Proposed Rates(2) | G7: ="Proposed "&IF(Base1_Billing2=2,"Billing ","")&"Rates" -> Proposed Rates | I7: % Revenue Change
C8: Monthly | D8: Annual | F8: Monthly | G8: Annual | L8: Target Base | N8: Annual | O8: Present | P8: Proposed
C9: Revenue | D9: Revenue | F9: Revenue | G9: Revenue | I9: Base Rates | J9: Billing Rates | L9: % Change | N9: kWh's | O9: kWh Rate | P9: kWh Rate
B11: Schedule 41 | C11: ='St Lts'!Y$106*IF(Base1_Billing2=2,(1+$I$58),1) -> 187.32 | D11: =C11*12 -> 2247.84 | F11: ='St Lts'!AQ$106*IF(Base1_Billing2=2,1+$D$58,1) -> 206.53 | G11: =F11*12 -> 2478.36 | I11: =G11/D11-1 -> 0.102551783 | J11: 0 | L11: 0.1027 | N11: ='REVRUNS 12ME0921'!P258 -> 14833.298
B12: Schedule 42 | C12: ='St Lts'!Z$106*IF(Base1_Billing2=2,1+$I$58,1) -> 365365.78 | D12: =C12*12 -> 4384389.36 | F12: ='St Lts'!AR$106*IF(Base1_Billing2=2,1+$D$58,1) -> 402891.11 | G12: =F12*12 -> 4834693.32 | I12: =G12/D12-1 -> 0.1027061976 | J12: 0 | L12: 0.09495919572 | N12: ='REVRUNS 12ME0921'!P267 -> 8956623.877
B13: Schedule 44 | C13: ='St Lts'!AA$106*IF(Base1_Billing2=2,1+$I$58,1) -> 1970.14 | D13: 23641.68 | F13: ='St Lts'!AS$106*IF(Base1_Billing2=2,1+$D$58,1) -> 2172.58 | G13: 26070.96 | I13: 0.102754119 | J13: 0 | L13: =L11 -> 0.1027 | N13: ='REVRUNS 12ME0921'!P276 -> 159335.688
B14: Schedule 45 | C14: ='St Lts'!AB$106*IF(Base1_Billing2=2,1+$I$58,1) -> 2811.32 | D14: 33735.84 | F14: ='St Lts'!AT$106*IF(Base1_Billing2=2,1+$D$58,1) -> 3100.14 | G14: 37201.68 | I14: 0.1027346585 | J14: 0 | L14: =L11 -> 0.1027 | N14: ='REVRUNS 12ME0921'!P285 -> 421051.229
B15: Schedule 46 | C15: ='St Lts'!AC$106*IF(Base1_Billing2=2,1+$I$58,1) -> 8040.53 | D15: 96486.36 | F15: ='St Lts'!AU$106*IF(Base1_Billing2=2,1+$D$58,1) -> 8865.48 | G15: 106385.76 | I15: 0.102598958 | J15: 0 | L15: =L11 -> 0.1027 | N15: ='REVRUNS 12ME0921'!P294 -> 772407.876 | O15: =D15/N15 -> 0.1249163337 | P15: =G15/N15 -> 0.1377326194
B16: Schedule 47 | C16: ='Area Lts'!S55*IF(Base1_Billing2=2,1+$I$58,1) -> 124268.03 | D16: 1491216.36 | F16: =IF(Base1_Billing2=1,'Area Lts'!AG55,'Area Lts'!AG64) -> 137035.73 | G16: 1644428.76 | I16: 0.1027432398 | J16: 0 | L16: =L11 -> 0.1027 | N16: ='REVRUNS 12ME0921'!P303 -> 4370876.387
B17: Schedule 48 | C17: ='Area Lts'!T55*IF(Base1_Billing2=2,1+$I$58,1) -> 72407.35019 | D17: 868888.2023 | F17: =IF(Base1_Billing2=1,'Area Lts'!AH55,'Area Lts'!AH64) -> 79843.25019 | G17: 958119.0023 | I17: 0.1026953753 | J17: 0 | L17: =L11 -> 0.1027 | N17: ='REVRUNS 12ME0921'!P313 -> 2284668.126
B19: Total | C19: =SUM(C11:C17) -> 575050.4702 | D19: =SUM(D11:D17) -> 6900605.642 | F19: =SUM(F11:F17) -> 634114.8202 | G19: =SUM(G11:G17) -> 7609377.842 | I19: =G19/D19-1 -> 0.1027115933 | J19: 0 | L19: =L11 -> 0.1027 | N19: =SUM(N11:N18) -> 16979796.48
C20: =ROUND(C19-CHOOSE(Base1_Billing2,'St Lts'!AC108+'Area Lts'!T56,'St Lts'!AC114+'Area Lts'!T65+G71),0) -> 0 | F20: =ROUND(F19-CHOOSE(Base1_Billing2,'St Lts'!AU107+'Area Lts'!AH56,'St Lts'!AU113+'Area Lts'!AH65),0) -> 0 | L20: =I19-L19 -> 1.159326254e-05
B21: Sch 46 Per kWh Rate | D21: =D15/N15 -> 0.1249163337 | G21: =G15/N15 -> 0.1377326194
C25: ="Present "&IF(Base1_Billing2=2,"Billing ","")&"Rates(1)" -> Present Rates(1) | D25: ="Present "&IF(Base1_Billing2=2,"Billing","")&" Rates" -> Present Rates | F25: Colstrip Adjusted Rates | G25: ="Proposed "&IF(Base1_Billing2=2,"Billing ","")&"Rates" -> Proposed Rates
C26: Monthly | D26: Annual | F26: Monthly | G26: Annual
C27: Revenue | D27: Revenue | F27: Revenue | G27: Revenue
B29: Schedule 41 | F29: ='St Lts'!BE106 -> 194.43 | G29: =F29*12 -> 2333.16
B30: Schedule 42 | F30: ='St Lts'!BF106 -> 379269.46 | G30: =F30*12 -> 4551233.52
B31: Schedule 44 | F31: ='St Lts'!BG106 -> 2045.34 | G31: =F31*12 -> 24544.08
B32: Schedule 45 | F32: ='St Lts'!BH106 -> 2919.2 | G32: 35030.4
B33: Schedule 46 | F33: ='St Lts'!BI106 -> 8347.69 | G33: 100172.28
B34: Schedule 47 | F34: ='Area Lts'!AM55 -> 129012.29 | G34: 1548147.48
B35: Schedule 48 | F35: ='Area Lts'!AN55 -> 75170.13 | G35: 902041.56
B37: Total | C37: =SUM(C29:C35) -> 0 | D37: =SUM(D29:D35) -> 0 | F37: =SUM(F29:F35) -> 596958.54 | G37: =SUM(G29:G35) -> 7163502.48
B42: (1) from JDM-E-12/14
B43: (2) from JDM-E-13/14
C45: Billed | D45: =D19*(1+I58)+'Area Lts'!T63*12 -> 6900605.642 | F45: b4 Sch 91/92 | G45: =G19*(1+J58)+'Area Lts'!AH63*12 -> 7609377.842 | I45: =G45/D45-1 -> 0.1027115933 | K45: =G45-D45 -> 708772.2
C46: Diff | D46: =D45-D19 -> 0 | F46: b4 Sch 91/92 | G46: =G45-G19 -> 0
C47: Pres 91/92 | D47: =D$19*(I55+I56) -> 0 | F47: 91/92 b4 Sch 91/92 | G47: =G$19*(J55+J56) -> 0
C48: Pres 93 | D48: =D$19*I57 -> 0 | F48: 93 b4 Sch 93 | G48: =G$19*J57 -> 0
C49: add'l 91/92 | D49: =D47*($L$55+L56) -> 0
C50: Billed | D50: =D45 -> 6900605.642 | F50: w/Sch 91/92/93/98 | G50: =G19*(1+D58)+'Area Lts'!AH63*12 -> 7609377.842 | I50: =G50/D50-1 -> 0.1027115933 | K50: =G50-D45 -> 708772.2 | L50: =K50-J$19 -> 708772.2
J53: Revised
D54: Proposed | I54: Present | J54: Present | K54: Proposed
D55: =K55 -> 0 | G55: Sch 91-DSM | I55: 0 | J55: =(L19+(1+I55))/(1+L19)-1 -> 0 | K55: =J55*(1+L55) -> 0 | L55: 0
D56: =K56 -> 0 | G56: Sch 92-LIRAP | I56: 0 | J56: =(L19+(1+I56))/(1+L19)-1 -> 0 | K56: =J56*(1+L56) -> 0 | L56: 0 | M56: Reflects additional LIRAP funding
D57: =K57 -> 0 | I57: 0 | J57: =(L19+(1+I57))/(1+L19)-1 -> 0 | K57: =J57*(1+$L$57) -> 0 | L57: 0
D58: =D55+D56+D57 -> 0 | G58: Total adder | I58: =I55+I56+I57 -> 0 | J58: =J55+J56+J57 -> 0 | K58: =K55+K56+K57 -> 0
C60: Schedule 98 | D60: Schedule 91 | E60: Schedule 59 | G60: Total Revenue
B61: copy of Total above | C61: 488916.6501 | D61: 488917.65 | E61: 5866999.801 | G61: 556466.5401 | H61: 6677598.481
B62: diff from curr Total above | C62: =C19-C61 -> 86133.82014 | D62: =D19-D61 -> 6411687.992 | E62: =D19-E61 -> 1033605.842 | G62: =F19-G61 -> 77648.28014 | H62: =G19-H61 -> 931779.3617
B63: % diff | C63: =C62/C61 -> 0.1761728101 | D63: =D62/D61 -> 13.11404485 | E63: =E62/E61 -> 0.1761728101 | G63: =G62/G61 -> 0.1395380936 | H63: =H62/H61 -> 0.1395380936
B64: Schedule 41 | G64: =C64+D64+F64 -> 0
B65: Schedule 42 | G65: =C65+D65+F65 -> 0
B66: Schedule 44 | G66: 0
B67: Schedule 45 | G67: 0
B68: Schedule 46 | G68: 0
B69: Schedule 47 | G69: 0
B70: Schedule 48 | G70: 0
B71: Total | C71: =C64+C65+C66+C67+C68+C69+C70 -> 0 | D71: =D64+D65+D66+D67+D68+D69+D70 -> 0 | F71: =E64+E65+E66+E67+E68+E69+F70 -> 0 | G71: =C71+F71+D71 -> 0
F74: Total Billed | G74: =D50+G71 -> 6900605.642

Sheet St Lts
A1: Street Light Summary | I1: WASHINGTON Street Lights (Schedule 41 - 46 Rates) | AJ1: % rate increase --> | AK1: ='Lighting summary'!L11 -> 0.1027 | AL1: ='Lighting summary'!L12 -> 0.09495919572 | AM1: ='Lighting summary'!L13 -> 0.1027 | AN1: ='Lighting summary'!L14 -> 0.1027 | AO1: ='Lighting summary'!L15 -> 0.1027 | AY1: =Colstrip!O28 -> -0.05846987026 | AZ1: =AY1 -> -0.05846987026 | BA1: =AY1 -> -0.05846987026 | BB1: =AY1 -> -0.05846987026 | BC1: =AY1 -> -0.05846987026 | BT1: =-0.00789-0.00045-0.00339 -> -0.01173 | BU1: compare input Present Billing Rates to calculated Present Billing Rates | CB1: =BU2 -> 1.0151
A2: MDM-10069 Report as of 9/30/21 | M2: Number of Lights(1) | S2: Present Rates | Y2: Monthly Revenue at Present Rates | AE2: Number of Lights | AK2: Proposed Rates | AQ2: Monthly Revenue at Proposed Rates | AY2: Proposed Rates Less Colstrip | BE2: Monthly Revenue at Proposed Rates | BN2: Present Billing Rates | BT2: 0.01394 | BU2: =1+0.0151 -> 1.0151 | BV2: Sch 91 & 92 | CB2: New Billing Rates | CH2: Increase
I3: Fixture Type | J3: Pole Facility | K3: Size | L3: Sched | M3: 041 | N3: 042 | O3: 044 | P3: 045 | Q3: 046 | S3: 041 | T3: 042 | U3: 044 | V3: 045 | W3: 046 | Y3: 041 | Z3: 042 | AA3: 044 | AB3: 045 | AC3: 046 | AE3: 041 | AF3: 042 | AG3: 044 | AH3: 045 | AI3: 046 | AK3: 041 | AL3: 042 | AM3: 044 | AN3: 045 | AO3: 046 | AQ3: 041 | AR3: 042 | AS3: 044 | AT3: 045 | AU3: 046 | AY3: 041 | AZ3: 042 | BA3: 044 | BB3: 045 | BC3: 046 | BE3: 041 | BF3: 042 | BG3: 044 | BH3: 045 | BI3: 046 | BM3: kwh | BN3: 041 | BO3: 042 | BP3: 044 | BQ3: 045 | BR3: 046 | BT3: Sch 93/94 | BU3: 041 | BV3: 042 | BW3: 044 | BX3: 045 | BY3: 046 | CB3: 041 | CC3: 042 | CD3: 044 | CE3: 045 | CF3: 046 | CH3: 041 | CI3: 042 | CJ3: 044 | CK3: 045 | CL3: 046
I4: LED (Dusk to Dawn) | J4: Dusk to Dawn | K4: 5W | L4: 005L | M4: =SUMIF($G:$G,TEXT(M$3,"000")&TEXT($L4,"000"),$E:$E) -> 0 | N4: 0 | O4: 0 | P4: 0 | Q4: 0 | R4: =IF(SUM(M4:Q4)>0,0,1) -> 1 | S4: 0 | T4: 0 | U4: 0 | V4: 0 | W4: 0.22 | Y4: =IF(AND(M4<>0,S4=0),#VALUE!,M4*S4) -> 0 | Z4: =IF(AND(N4<>0,T4=0),#VALUE!,N4*T4) -> 0 | AA4: =IF(AND(O4<>0,U4=0),#VALUE!,O4*U4) -> 0 | AB4: =IF(AND(P4<>0,V4=0),#VALUE!,P4*V4) -> 0 | AC4: =IF(AND(Q4<>0,W4=0),#VALUE!,Q4*W4) -> 0 | AE4: =SUMIF($G:$G,TEXT(AE$3,"000")&TEXT($L4,"000"),$E:$E) -> 0 | AF4: 0 | AG4: 0 | AH4: 0 | AI4: 0 | AK4: =ROUND(S4*(1+AK$1),2) -> 0 | AM4: =ROUND(U4*(1+AM$1),2) -> 0 | AN4: =ROUND(V4*(1+AN$1),2) -> 0 | AO4: =ROUND(W4*(1+AO$1),2) -> 0.24 | AQ4: =IF(AND(AE4<>0,AK4=0),#VALUE!,AE4*AK4) -> 0 | AR4: =IF(AND(AF4<>0,AL4=0),#VALUE!,AF4*AL4) -> 0 | AS4: =IF(AND(AG4<>0,AM4=0),#VALUE!,AG4*AM4) -> 0 | AT4: =IF(AND(AH4<>0,AN4=0),#VALUE!,AH4*AN4) -> 0 | AU4: =IF(AND(AI4<>0,AO4=0),#VALUE!,AI4*AO4) -> 0 | AY4: =ROUND(AK4*(1+AY$1),2) -> 0 | BA4: =ROUND(AM4*(1+BA$1),2) -> 0 | BB4: =ROUND(AN4*(1+BB$1),2) -> 0 | BC4: =ROUND(AO4*(1+BC$1),2) -> 0.23 | BE4: =IF(AND(AE4<>0,AY4=0),#VALUE!,AE4*AY4) -> 0 | BF4: =IF(AND(AF4<>0,AZ4=0),#VALUE!,AF4*AZ4) -> 0 | BG4: =IF(AND(AG4<>0,BA4=0),#VALUE!,AG4*BA4) -> 0 | BH4: =IF(AND(AH4<>0,BB4=0),#VALUE!,AH4*BB4) -> 0 | BI4: =IF(AND(AI4<>0,BC4=0),#VALUE!,AI4*BC4) -> 0 | BM4: 2 | BR4: 0.233473 | BT4: =ROUND(BM4*$BT$2,2)+ROUND(BM4*$BT$1,2) -> 0.01 | BY4: =ROUND((W4*$BU$2)+$BT4-BR4,2) -> 0 | CB4: =AK4*$CB$1 -> 0 | CC4: =AL4*$CB$1 -> 0 | CD4: =AM4*$CB$1 -> 0 | CE4: =AN4*$CB$1 -> 0 | CF4: =AO4*$CB$1 -> 0.243624 | CH4: =CB4-BN4 -> 0 | CI4: =CC4-BO4 -> 0 | CJ4: =CD4-BP4 -> 0 | CK4: =CE4-BQ4 -> 0 | CL4: =CF4-BR4 -> 0.010151
B5: State | C5: Sched | D5: Rate Sub | E5: # of Lights | I5: LED (Dusk to Dawn) | J5: Dusk to Dawn | K5: 5W | L5: 015L | M5: 0 | N5: 0 | O5: 0 | P5: 0 | Q5: 42 | R5: =IF(SUM(M5:Q5)>0,0,1) -> 0 | S5: 0 | T5: 0 | U5: 0 | V5: 0 | W5: 0.54 | Y5: =IF(AND(M5<>0,S5=0),#VALUE!,M5*S5) -> 0 | Z5: =IF(AND(N5<>0,T5=0),#VALUE!,N5*T5) -> 0 | AA5: =IF(AND(O5<>0,U5=0),#VALUE!,O5*U5) -> 0 | AB5: =IF(AND(P5<>0,V5=0),#VALUE!,P5*V5) -> 0 | AC5: =IF(AND(Q5<>0,W5=0),#VALUE!,Q5*W5) -> 22.68 | AE5: 0 | AF5: 0 | AG5: 0 | AH5: 0 | AI5: 42 | AK5: =ROUND(S5*(1+AK$1),2) -> 0 | AM5: =ROUND(U5*(1+AM$1),2) -> 0 | AN5: =ROUND(V5*(1+AN$1),2) -> 0 | AO5: =ROUND(W5*(1+AO$1),2) -> 0.6 | AQ5: =IF(AND(AE5<>0,AK5=0),#VALUE!,AE5*AK5) -> 0 | AR5: =IF(AND(AF5<>0,AL5=0),#VALUE!,AF5*AL5) -> 0 | AS5: =IF(AND(AG5<>0,AM5=0),#VALUE!,AG5*AM5) -> 0 | AT5: =IF(AND(AH5<>0,AN5=0),#VALUE!,AH5*AN5) -> 0 | AU5: =IF(AND(AI5<>0,AO5=0),#VALUE!,AI5*AO5) -> 25.2 | AY5: =ROUND(AK5*(1+AY$1),2) -> 0 | BA5: =ROUND(AM5*(1+BA$1),2) -> 0 | BB5: =ROUND(AN5*(1+BB$1),2) -> 0 | BC5: =ROUND(AO5*(1+BC$1),2) -> 0.56 | BE5: =IF(AND(AE5<>0,AY5=0),#VALUE!,AE5*AY5) -> 0 | BF5: =IF(AND(AF5<>0,AZ5=0),#VALUE!,AF5*AZ5) -> 0 | BG5: =IF(AND(AG5<>0,BA5=0),#VALUE!,AG5*BA5) -> 0 | BH5: =IF(AND(AH5<>0,BB5=0),#VALUE!,AH5*BB5) -> 0 | BI5: =IF(AND(AI5<>0,BC5=0),#VALUE!,AI5*BC5) -> 23.52 | BM5: 5 | BR5: 0.568456 | BT5: =ROUND(BM5*$BT$2,2)+ROUND(BM5*$BT$1,2) -> 0.01 | BY5: =ROUND((W5*$BU$2)+$BT5-BR5,2) -> -0.01 | CB5: =AK5*$CB$1 -> 0 | CC5: =AL5*$CB$1 -> 0 | CD5: =AM5*$CB$1 -> 0 | CE5: =AN5*$CB$1 -> 0 | CF5: =AO5*$CB$1 -> 0.60906 | CH5: =CB5-BN5 -> 0 | CI5: =CC5-BO5 -> 0 | CJ5: =CD5-BP5 -> 0 | CK5: =CE5-BQ5 -> 0 | CL5: =CF5-BR5 -> 0.040604
I6: LED (Dusk to Dawn) | J6: Dusk to Dawn | K6: 5W | L6: 025L | M6: 0 | N6: 0 | O6: 0 | P6: 0 | Q6: 45 | R6: 0 | S6: 0 | T6: 0 | U6: 0 | V6: 0 | W6: 0.98 | Y6: 0 | Z6: 0 | AA6: 0 | AB6: 0 | AC6: =IF(AND(Q6<>0,W6=0),#VALUE!,Q6*W6) -> 44.1 | AE6: 0 | AF6: 0 | AG6: 0 | AH6: 0 | AI6: 45 | AK6: 0 | AM6: 0 | AN6: 0 | AO6: 1.08 | AQ6: 0 | AR6: =IF(AND(AF6<>0,AL6=0),#VALUE!,AF6*AL6) -> 0 | AS6: 0 | AT6: 0 | AU6: =IF(AND(AI6<>0,AO6=0),#VALUE!,AI6*AO6) -> 48.6 | AY6: 0 | BA6: 0 | BB6: 0 | BC6: 1.02 | BE6: 0 | BF6: 0 | BG6: 0 | BH6: 0 | BI6: 45.9 | BM6: 9 | BR6: 1.025251 | BT6: 0.02 | BY6: =ROUND((W6*$BU$2)+$BT6-BR6,2) -> -0.01 | CB6: 0 | CC6: 0 | CD6: 0 | CE6: 0 | CF6: 1.096308 | CH6: 0 | CI6: 0 | CJ6: 0 | CK6: 0 | CL6: 0.071057
B7: 2 | C7: 041 | D7: 214 | E7: 0 | G7: =IF(OR(ISBLANK(C7),ISBLANK(D7)),"",TEXT(C7,"000")&TEXT(D7,"000")) -> 041214 | I7: LED (Dusk to Dawn) | J7: Dusk to Dawn | K7: 5W | L7: 035L | M7: 0 | N7: 0 | O7: 0 | P7: 0 | Q7: 0 | R7: 1 | S7: 0 | T7: 0 | U7: 0 | V7: 0 | W7: 1.41 | Y7: 0 | Z7: 0 | AA7: 0 | AB7: 0 | AC7: 0 | AE7: 0 | AF7: 0 | AG7: 0 | AH7: 0 | AI7: 0 | AK7: 0 | AM7: 0 | AN7: 0 | AO7: 1.55 | AQ7: 0 | AR7: 0 | AS7: 0 | AT7: 0 | AU7: 0 | AY7: 0 | BA7: 0 | BB7: 0 | BC7: 1.46 | BE7: 0 | BF7: 0 | BG7: 0 | BH7: 0 | BI7: 0 | BM7: 13 | BR7: 1.482046 | BT7: 0.03 | BY7: -0.02 | CB7: 0 | CC7: 0 | CD7: 0 | CE7: 0 | CF7: 1.573405 | CH7: 0 | CI7: 0 | CJ7: 0 | CK7: 0 | CL7: 0.091359
B8: 2 | C8: 041 | D8: 411 | E8: 1 | G8: =IF(OR(ISBLANK(C8),ISBLANK(D8)),"",TEXT(C8,"000")&TEXT(D8,"000")) -> 041411 | I8: LED (Dusk to Dawn) | J8: Dusk to Dawn | K8: 5W | L8: 045L | M8: 0 | N8: 0 | O8: 0 | P8: 0 | Q8: 0 | R8: 1 | S8: 0 | T8: 0 | U8: 0 | V8: 0 | W8: 1.74 | Y8: 0 | Z8: 0 | AA8: 0 | AB8: 0 | AC8: 0 | AE8: 0 | AF8: 0 | AG8: 0 | AH8: 0 | AI8: 0 | AK8: 0 | AM8: 0 | AN8: 0 | AO8: 1.92 | AQ8: 0 | AR8: 0 | AS8: 0 | AT8: 0 | AU8: 0 | AY8: 0 | BA8: 0 | BB8: 0 | BC8: 1.81 | BE8: 0 | BF8: 0 | BG8: 0 | BH8: 0 | BI8: 0 | BM8: 16 | BR8: 1.82718 | BT8: 0.03 | BY8: -0.03 | CB8: 0 | CC8: 0 | CD8: 0 | CE8: 0 | CF8: 1.948992 | CH8: 0 | CI8: 0 | CJ8: 0 | CK8: 0 | CL8: 0.121812
B9: 2 | C9: 041 | D9: 511 | E9: 0 | G9: =IF(OR(ISBLANK(C9),ISBLANK(D9)),"",TEXT(C9,"000")&TEXT(D9,"000")) -> 041511 | I9: LED (Dusk to Dawn) | J9: Dusk to Dawn | K9: 5W | L9: 055L | M9: 0 | N9: 0 | O9: 0 | P9: 0 | Q9: 0 | R9: 1 | S9: 0 | T9: 0 | U9: 0 | V9: 0 | W9: 2.17 | Y9: 0 | Z9: 0 | AA9: 0 | AB9: 0 | AC9: 0 | AE9: 0 | AF9: 0 | AG9: 0 | AH9: 0 | AI9: 0 | AK9: 0 | AM9: 0 | AN9: 0 | AO9: 2.39 | AQ9: 0 | AR9: 0 | AS9: 0 | AT9: 0 | AU9: 0 | AY9: 0 | BA9: 0 | BB9: 0 | BC9: 2.25 | BE9: 0 | BF9: 0 | BG9: 0 | BH9: 0 | BI9: 0 | BM9: 20 | BR9: 2.273824 | BT9: 0.05 | BY9: -0.02 | CB9: 0 | CC9: 0 | CD9: 0 | CE9: 0 | CF9: 2.426089 | CH9: 0 | CI9: 0 | CJ9: 0 | CK9: 0 | CL9: 0.152265
B10: 2 | C10: 041 | D10: 611 | E10: 6 | G10: =IF(OR(ISBLANK(C10),ISBLANK(D10)),"",TEXT(C10,"000")&TEXT(D10,"000")) -> 041611 | I10: LED (Dusk to Dawn) | J10: Dusk to Dawn | K10: 5W | L10: 065L | M10: 0 | N10: 0 | O10: 0 | P10: 0 | Q10: 3 | R10: 0 | S10: 0 | T10: 0 | U10: 0 | V10: 0 | W10: 2.5 | Y10: 0 | Z10: 0 | AA10: 0 | AB10: 0 | AC10: 7.5 | AE10: 0 | AF10: 0 | AG10: 0 | AH10: 0 | AI10: 3 | AK10: 0 | AM10: 0 | AN10: 0 | AO10: 2.76 | AQ10: 0 | AR10: 0 | AS10: 0 | AT10: 0 | AU10: 8.28 | AY10: 0 | BA10: 0 | BB10: 0 | BC10: 2.6 | BE10: 0 | BF10: 0 | BG10: 0 | BH10: 0 | BI10: 7.8 | BM10: 23 | BR10: 2.618958 | BT10: 0.05 | BY10: -0.03 | CB10: 0 | CC10: 0 | CD10: 0 | CE10: 0 | CF10: 2.801676 | CH10: 0 | CI10: 0 | CJ10: 0 | CK10: 0 | CL10: 0.182718
E11: =SUM(E7:E10) -> 7 | I11: LED (Dusk to Dawn) | J11: Dusk to Dawn | K11: 5W | L11: 075L | M11: 0 | N11: 0 | O11: 0 | P11: 0 | Q11: 0 | R11: 1 | S11: 0 | T11: 0 | U11: 0 | V11: 0 | W11: 2.93 | Y11: 0 | Z11: 0 | AA11: 0 | AB11: 0 | AC11: 0 | AE11: 0 | AF11: 0 | AG11: 0 | AH11: 0 | AI11: 0 | AK11: 0 | AM11: 0 | AN11: 0 | AO11: 3.23 | AQ11: 0 | AR11: 0 | AS11: 0 | AT11: 0 | AU11: 0 | AY11: 0 | BA11: 0 | BB11: 0 | BC11: 3.04 | BE11: 0 | BF11: 0 | BG11: 0 | BH11: 0 | BI11: 0 | BM11: 27 | BR11: 3.075753 | BT11: 0.06 | BY11: -0.04 | CB11: 0 | CC11: 0 | CD11: 0 | CE11: 0 | CF11: 3.278773 | CH11: 0 | CI11: 0 | CJ11: 0 | CK11: 0 | CL11: 0.20302
G12: =IF(OR(ISBLANK(C12),ISBLANK(D12)),"",TEXT(C12,"000")&TEXT(D12,"000")) ->  | I12: LED (Dusk to Dawn) | J12: Dusk to Dawn | K12: 5W | L12: 085L | M12: 0 | N12: 0 | O12: 0 | P12: 0 | Q12: 0 | R12: 1 | S12: 0 | T12: 0 | U12: 0 | V12: 0 | W12: 3.37 | Y12: 0 | Z12: 0 | AA12: 0 | AB12: 0 | AC12: 0 | AE12: 0 | AF12: 0 | AG12: 0 | AH12: 0 | AI12: 0 | AK12: 0 | AM12: 0 | AN12: 0 | AO12: 3.72 | AQ12: 0 | AR12: 0 | AS12: 0 | AT12: 0 | AU12: 0 | AY12: 0 | BA12: 0 | BB12: 0 | BC12: 3.5 | BE12: 0 | BF12: 0 | BG12: 0 | BH12: 0 | BI12: 0 | BM12: 31 | BR12: 3.532548 | BT12: 0.07 | BY12: -0.04 | CB12: 0 | CC12: 0 | CD12: 0 | CE12: 0 | CF12: 3.776172 | CH12: 0 | CI12: 0 | CJ12: 0 | CK12: 0 | CL12: 0.243624
B13: 2 | C13: 042 | D13: 234 | E13: 81 | G13: 042234 | I13: LED (Dusk to Dawn) | J13: Dusk to Dawn | K13: 5W | L13: 095L | M13: 0 | N13: 0 | O13: 0 | P13: 0 | Q13: 0 | R13: 1 | S13: 0 | T13: 0 | U13: 0 | V13: 0 | W13: 3.7 | Y13: 0 | Z13: 0 | AA13: 0 | AB13: 0 | AC13: 0 | AE13: 0 | AF13: 0 | AG13: 0 | AH13: 0 | AI13: 0 | AK13: 0 | AM13: 0 | AN13: 0 | AO13: 4.08 | AQ13: 0 | AR13: 0 | AS13: 0 | AT13: 0 | AU13: 0 | AY13: 0 | BA13: 0 | BB13: 0 | BC13: 3.84 | BE13: 0 | BF13: 0 | BG13: 0 | BH13: 0 | BI13: 0 | BM13: 34 | BR13: 3.877682 | BT13: 0.07 | BY13: -0.05 | CB13: 0 | CC13: 0 | CD13: 0 | CE13: 0 | CF13: 4.141608 | CH13: 0 | CI13: 0 | CJ13: 0 | CK13: 0 | CL13: 0.263926
B14: 2 | C14: 042 | D14: 421 | E14: 2 | G14: 042421 | I14: LED (Dusk to Dawn) | J14: Dusk to Dawn | K14: 5W | L14: 105L | M14: =SUMIF($G:$G,TEXT(M$3,"000")&TEXT($L14,"000"),$E:$E) -> 0 | N14: 0 | O14: 0 | P14: 0 | Q14: 8 | R14: 0 | S14: 0 | T14: 0 | U14: 0 | V14: 0 | W14: 4.13 | Y14: 0 | Z14: 0 | AA14: 0 | AB14: 0 | AC14: 33.04 | AE14: =SUMIF($G:$G,TEXT(AE$3,"000")&TEXT($L14,"000"),$E:$E) -> 0 | AF14: 0 | AG14: 0 | AH14: 0 | AI14: 8 | AK14: 0 | AM14: 0 | AN14: 0 | AO14: 4.55 | AQ14: 0 | AR14: 0 | AS14: 0 | AT14: 0 | AU14: 36.4 | AY14: 0 | BA14: 0 | BB14: 0 | BC14: 4.28 | BE14: 0 | BF14: 0 | BG14: 0 | BH14: 0 | BI14: 34.24 | BM14: 38 | BR14: 4.334477 | BT14: 0.08 | BY14: -0.06 | CB14: 0 | CC14: 0 | CD14: 0 | CE14: 0 | CF14: 4.618705 | CH14: 0 | CI14: 0 | CJ14: 0 | CK14: 0 | CL14: 0.284228
B15: 2 | C15: 042 | D15: 421L | E15: 1 | G15: 042421L | I15: LED (Dusk to Dawn) | J15: Dusk to Dawn | K15: 5W | L15: 115L | M15: 0 | N15: 0 | O15: 0 | P15: 0 | Q15: 0 | R15: 1 | S15: 0 | T15: 0 | U15: 0 | V15: 0 | W15: 4.46 | Y15: 0 | Z15: 0 | AA15: 0 | AB15: 0 | AC15: 0 | AE15: 0 | AF15: 0 | AG15: 0 | AH15: 0 | AI15: 0 | AK15: 0 | AM15: 0 | AN15: 0 | AO15: 4.92 | AQ15: 0 | AR15: 0 | AS15: 0 | AT15: 0 | AU15: 0 | AY15: 0 | BA15: 0 | BB15: 0 | BC15: 4.63 | BE15: 0 | BF15: 0 | BG15: 0 | BH15: 0 | BI15: 0 | BM15: 41 | BR15: 4.679611 | BT15: 0.09 | BY15: -0.06 | CB15: 0 | CC15: 0 | CD15: 0 | CE15: 0 | CF15: 4.994292 | CH15: 0 | CI15: 0 | CJ15: 0 | CK15: 0 | CL15: 0.314681
B16: 2 | C16: 042 | D16: 431 | E16: 529 | G16: 042431 | I16: LED (Dusk to Dawn) | J16: Dusk to Dawn | K16: 5W | L16: 125L | M16: 0 | N16: 0 | O16: 0 | P16: 0 | Q16: 97 | R16: 0 | S16: 0 | T16: 0 | U16: 0 | V16: 0 | W16: 4.89 | Y16: 0 | Z16: 0 | AA16: 0 | AB16: 0 | AC16: 474.33 | AE16: 0 | AF16: 0 | AG16: 0 | AH16: 0 | AI16: 97 | AK16: 0 | AM16: 0 | AN16: 0 | AO16: 5.39 | AQ16: 0 | AR16: 0 | AS16: 0 | AT16: 0 | AU16: 522.83 | AY16: 0 | BA16: 0 | BB16: 0 | BC16: 5.07 | BE16: 0 | BF16: 0 | BG16: 0 | BH16: 0 | BI16: 491.79 | BM16: 45 | BR16: 5.126255 | BT16: 0.1 | BY16: -0.06 | CB16: 0 | CC16: 0 | CD16: 0 | CE16: 0 | CF16: 5.471389 | CH16: 0 | CI16: 0 | CJ16: 0 | CK16: 0 | CL16: 0.345134
B17: 2 | C17: 042 | D17: 431L | E17: 5337 | G17: 042431L | I17: LED (Dusk to Dawn) | J17: Dusk to Dawn | K17: 5W | L17: 135L | M17: 0 | N17: 0 | O17: 0 | P17: 0 | Q17: 36 | R17: 0 | S17: 0 | T17: 0 | U17: 0 | V17: 0 | W17: 5.33 | Y17: 0 | Z17: 0 | AA17: 0 | AB17: 0 | AC17: 191.88 | AE17: 0 | AF17: 0 | AG17: 0 | AH17: 0 | AI17: 36 | AK17: 0 | AM17: 0 | AN17: 0 | AO17: 5.88 | AQ17: 0 | AR17: 0 | AS17: 0 | AT17: 0 | AU17: 211.68 | AY17: 0 | BA17: 0 | BB17: 0 | BC17: 5.54 | BE17: 0 | BF17: 0 | BG17: 0 | BH17: 0 | BI17: 199.44 | BM17: 49 | BR17: 5.593201 | BT17: 0.11 | BY17: -0.07 | CB17: 0 | CC17: 0 | CD17: 0 | CE17: 0 | CF17: 5.968788 | CH17: 0 | CI17: 0 | CJ17: 0 | CK17: 0 | CL17: 0.375587
B18: 2 | C18: 042 | D18: 431T | E18: =1840+2 -> 1842 | G18: 042431T | I18: LED (Dusk to Dawn) | J18: Dusk to Dawn | K18: 5W | L18: 145L | M18: 0 | N18: 0 | O18: 0 | P18: 0 | Q18: 0 | R18: 1 | S18: 0 | T18: 0 | U18: 0 | V18: 0 | W18: 5.65 | Y18: 0 | Z18: 0 | AA18: 0 | AB18: 0 | AC18: 0 | AE18: 0 | AF18: 0 | AG18: 0 | AH18: 0 | AI18: 0 | AK18: 0 | AM18: 0 | AN18: 0 | AO18: 6.23 | AQ18: 0 | AR18: 0 | AS18: 0 | AT18: 0 | AU18: 0 | AY18: 0 | BA18: 0 | BB18: 0 | BC18: 5.87 | BE18: 0 | BF18: 0 | BG18: 0 | BH18: 0 | BI18: 0 | BM18: 52 | BR18: 5.928184 | BT18: 0.11 | BY18: -0.08 | CB18: 0 | CC18: 0 | CD18: 0 | CE18: 0 | CF18: 6.324073 | CH18: 0 | CI18: 0 | CJ18: 0 | CK18: 0 | CL18: 0.395889
B19: 2 | C19: 042 | D19: 432 | E19: 63 | G19: 042432 | I19: LED (Dusk to Dawn) | J19: Dusk to Dawn | K19: 5W | L19: 155L | M19: 0 | N19: 0 | O19: 0 | P19: 0 | Q19: 0 | R19: 1 | S19: 0 | T19: 0 | U19: 0 | V19: 0 | W19: 6.09 | Y19: 0 | Z19: 0 | AA19: 0 | AB19: 0 | AC19: 0 | AE19: 0 | AF19: 0 | AG19: 0 | AH19: 0 | AI19: 0 | AK19: 0 | AM19: 0 | AN19: 0 | AO19: 6.72 | AQ19: 0 | AR19: 0 | AS19: 0 | AT19: 0 | AU19: 0 | AY19: 0 | BA19: 0 | BB19: 0 | BC19: 6.33 | BE19: 0 | BF19: 0 | BG19: 0 | BH19: 0 | BI19: 0 | BM19: 56 | BR19: 6.384979 | BT19: 0.12 | BY19: -0.08 | CB19: 0 | CC19: 0 | CD19: 0 | CE19: 0 | CF19: 6.821472 | CH19: 0 | CI19: 0 | CJ19: 0 | CK19: 0 | CL19: 0.436493
B20: 2 | C20: 042 | D20: 432L | E20: 134 | G20: 042432L | I20: LED (Dusk to Dawn) | J20: Dusk to Dawn | K20: 5W | L20: 165L | M20: 0 | N20: 0 | O20: 0 | P20: 0 | Q20: 0 | R20: 1 | S20: 0 | T20: 0 | U20: 0 | V20: 0 | W20: 6.41 | Y20: 0 | Z20: 0 | AA20: 0 | AB20: 0 | AC20: 0 | AE20: 0 | AF20: 0 | AG20: 0 | AH20: 0 | AI20: 0 | AK20: 0 | AM20: 0 | AN20: 0 | AO20: 7.07 | AQ20: 0 | AR20: 0 | AS20: 0 | AT20: 0 | AU20: 0 | AY20: 0 | BA20: 0 | BB20: 0 | BC20: 6.66 | BE20: 0 | BF20: 0 | BG20: 0 | BH20: 0 | BI20: 0 | BM20: 59 | BR20: 6.719962 | BT20: 0.13 | BY20: -0.08 | CB20: 0 | CC20: 0 | CD20: 0 | CE20: 0 | CF20: 7.176757 | CH20: 0 | CI20: 0 | CJ20: 0 | CK20: 0 | CL20: 0.456795
B21: 2 | C21: 042 | D21: 432T | E21: 29 | G21: 042432T | I21: LED (Dusk to Dawn) | J21: Dusk to Dawn | K21: 5W | L21: 175L | M21: 0 | N21: 0 | O21: 0 | P21: 0 | Q21: 0 | R21: 1 | S21: 0 | T21: 0 | U21: 0 | V21: 0 | W21: 6.85 | Y21: 0 | Z21: 0 | AA21: 0 | AB21: 0 | AC21: 0 | AE21: 0 | AF21: 0 | AG21: 0 | AH21: 0 | AI21: 0 | AK21: 0 | AM21: 0 | AN21: 0 | AO21: 7.55 | AQ21: 0 | AR21: 0 | AS21: 0 | AT21: 0 | AU21: 0 | AY21: 0 | BA21: 0 | BB21: 0 | BC21: 7.11 | BE21: 0 | BF21: 0 | BG21: 0 | BH21: 0 | BI21: 0 | BM21: 63 | BR21: 7.186908 | BT21: 0.14 | BY21: -0.09 | CB21: 0 | CC21: 0 | CD21: 0 | CE21: 0 | CF21: 7.664005 | CH21: 0 | CI21: 0 | CJ21: 0 | CK21: 0 | CL21: 0.477097
B22: 2 | C22: 042 | D22: 433 | E22: 6 | G22: 042433 | I22: LED (Dusk to Dawn) | J22: Dusk to Dawn | K22: 5W | L22: 185L | M22: 0 | N22: 0 | O22: 0 | P22: 0 | Q22: 0 | R22: 1 | S22: 0 | T22: 0 | U22: 0 | V22: 0 | W22: 7.28 | Y22: 0 | Z22: 0 | AA22: 0 | AB22: 0 | AC22: 0 | AE22: 0 | AF22: 0 | AG22: 0 | AH22: 0 | AI22: 0 | AK22: 0 | AM22: 0 | AN22: 0 | AO22: 8.03 | AQ22: 0 | AR22: 0 | AS22: 0 | AT22: 0 | AU22: 0 | AY22: 0 | BA22: 0 | BB22: 0 | BC22: 7.56 | BE22: 0 | BF22: 0 | BG22: 0 | BH22: 0 | BI22: 0 | BM22: 67 | BR22: 7.633552 | BT22: 0.14 | BY22: -0.1 | CB22: 0 | CC22: 0 | CD22: 0 | CE22: 0 | CF22: 8.151253 | CH22: 0 | CI22: 0 | CJ22: 0 | CK22: 0 | CL22: 0.517701
B23: 2 | C23: 042 | D23: 433L | E23: 69 | G23: 042433L | I23: LED (Dusk to Dawn) | J23: Dusk to Dawn | K23: 5W | L23: 195L | M23: 0 | N23: 0 | O23: 0 | P23: 0 | Q23: 0 | R23: 1 | S23: 0 | T23: 0 | U23: 0 | V23: 0 | W23: 7.61 | Y23: 0 | Z23: 0 | AA23: 0 | AB23: 0 | AC23: 0 | AE23: 0 | AF23: 0 | AG23: 0 | AH23: 0 | AI23: 0 | AK23: 0 | AM23: 0 | AN23: 0 | AO23: 8.39 | AQ23: 0 | AR23: 0 | AS23: 0 | AT23: 0 | AU23: 0 | AY23: 0 | BA23: 0 | BB23: 0 | BC23: 7.9 | BE23: 0 | BF23: 0 | BG23: 0 | BH23: 0 | BI23: 0 | BM23: 70 | BR23: 7.978686 | BT23: 0.16 | BY23: -0.09 | CB23: 0 | CC23: 0 | CD23: 0 | CE23: 0 | CF23: 8.516689 | CH23: 0 | CI23: 0 | CJ23: 0 | CK23: 0 | CL23: 0.538003
B24: 2 | C24: 042 | D24: 433T | E24: 67 | G24: 042433T | I24: LED (Dusk to Dawn) | J24: Dusk to Dawn | K24: 5W | L24: 212L | M24: =SUMIF($G:$G,TEXT(M$3,"000")&TEXT($L24,"000"),$E:$E) -> 0 | N24: 0 | O24: 0 | P24: 0 | Q24: 8 | R24: 0 | S24: 0 | T24: 0 | U24: 0 | V24: 0 | W24: 8.37 | Y24: 0 | Z24: 0 | AA24: 0 | AB24: 0 | AC24: 66.96 | AE24: 0 | AF24: 0 | AG24: 0 | AH24: 0 | AI24: 8 | AK24: 0 | AM24: 0 | AN24: 0 | AO24: 9.23 | AQ24: 0 | AR24: 0 | AS24: 0 | AT24: 0 | AU24: 73.84 | AY24: 0 | BA24: 0 | BB24: 0 | BC24: 8.69 | BE24: 0 | BF24: 0 | BG24: 0 | BH24: 0 | BI24: 69.52 | BM24: 77 | BR24: 8.780615 | BT24: 0.17 | BY24: -0.11 | CB24: 0 | CC24: 0 | CD24: 0 | CE24: 0 | CF24: 9.369373 | CH24: 0 | CI24: 0 | CJ24: 0 | CK24: 0 | CL24: 0.588758
B25: 2 | C25: 042 | D25: 434 | E25: 1634 | G25: 042434 | I25: LED (Dusk to Dawn) | J25: Dusk to Dawn | K25: 5W | L25: 237L | M25: 0 | N25: 0 | O25: 0 | P25: 0 | Q25: 60 | R25: 0 | S25: 0 | T25: 0 | U25: 0 | V25: 0 | W25: 9.35 | Y25: 0 | Z25: 0 | AA25: 0 | AB25: 0 | AC25: =IF(AND(Q25<>0,W25=0),#VALUE!,Q25*W25) -> 561 | AE25: 0 | AF25: 0 | AG25: 0 | AH25: 0 | AI25: 60 | AK25: 0 | AM25: 0 | AN25: 0 | AO25: =ROUND(W25*(1+AO$1),2) -> 10.31 | AQ25: 0 | AR25: 0 | AS25: 0 | AT25: 0 | AU25: =IF(AND(AI25<>0,AO25=0),#VALUE!,AI25*AO25) -> 618.6 | AY25: 0 | BA25: 0 | BB25: 0 | BC25: 9.71 | BE25: 0 | BF25: 0 | BG25: 0 | BH25: 0 | BI25: 582.6 | BM25: 86 | BR25: 9.805866 | BT25: 0.19 | BY25: -0.12 | CB25: 0 | CC25: 0 | CD25: 0 | CE25: 0 | CF25: 10.465681 | CH25: 0 | CI25: 0 | CJ25: 0 | CK25: 0 | CL25: 0.659815
B26: 2 | C26: 042 | D26: 434L | E26: 1792 | G26: 042434L | I26: Single High-Pressure Sodium Vapor | J26: Direct Burial | K26: 50W | L26: 234 | M26: 0 | N26: 81 | O26: 0 | P26: 0 | Q26: 0 | R26: =IF(SUM(M26:Q26)>0,0,1) -> 0 | S26: 0 | T26: 14.24 | U26: 0 | V26: 0 | W26: 0 | Y26: =IF(AND(M26<>0,S26=0),#VALUE!,M26*S26) -> 0 | Z26: =IF(AND(N26<>0,T26=0),#VALUE!,N26*T26) -> 1153.44 | AA26: =IF(AND(O26<>0,U26=0),#VALUE!,O26*U26) -> 0 | AB26: =IF(AND(P26<>0,V26=0),#VALUE!,P26*V26) -> 0 | AC26: =IF(AND(Q26<>0,W26=0),#VALUE!,Q26*W26) -> 0 | AE26: =M26 -> 0 | AF26: =N26 -> 81 | AG26: 0 | AH26: 0 | AI26: 0 | AK26: 0 | AL26: =ROUND(T26*(1+AL$1),2) -> 15.59 | AM26: 0 | AN26: 0 | AO26: =ROUND(W26*(1+AO$1),2) -> 0 | AQ26: =IF(AND(AE26<>0,AK26=0),#VALUE!,AE26*AK26) -> 0 | AR26: 1262.79 | AS26: 0 | AT26: 0 | AU26: 0 | AV26: =SUM(AR26)-SUM(Z26) -> 109.35 | AW26: =AV26/Z26 -> 0.09480337079 | AY26: 0 | AZ26: =ROUND(AL26*(1+AZ$1),2) -> 14.68 | BA26: 0 | BB26: 0 | BC26: 0 | BE26: 0 | BF26: 1189.08 | BG26: 0 | BH26: 0 | BI26: 0 | BM26: 20 | BO26: 14.93 | BT26: =ROUND(BM26*$BT$2,2)+ROUND(BM26*$BT$1,2) -> 0.05 | BV26: =ROUND((T26*$BU$2)+$BT26-BO26,2) -> -0.42 | CB26: =AK26*$CB$1 -> 0 | CC26: =AL26*$CB$1 -> 15.825409 | CD26: =AM26*$CB$1 -> 0 | CE26: 0 | CF26: 0 | CH26: =CB26-BN26 -> 0 | CI26: =CC26-BO26 -> 0.895409 | CJ26: =CD26-BP26 -> 0 | CK26: =CE26-BQ26 -> 0 | CL26: =CF26-BR26 -> 0
B27: 2 | C27: 042 | D27: 435 | E27: 233 | G27: 042435 | I27: High-Pressure Sodium Vapor | J27: Dusk to Dawn | K27: 70W | L27: 335 | M27: 0 | N27: 0 | O27: 0 | P27: 0 | Q27: 8 | R27: 0 | S27: 0 | T27: 0 | U27: 0 | V27: 0 | W27: 3.66 | Y27: 0 | Z27: 0 | AA27: 0 | AB27: 0 | AC27: 29.28 | AE27: 0 | AF27: 0 | AG27: 0 | AH27: 0 | AI27: 8 | AK27: 0 | AL27: 0 | AM27: 0 | AN27: 0 | AO27: 4.04 | AQ27: 0 | AR27: 0 | AS27: 0 | AT27: 0 | AU27: 32.32 | AV27: =SUM(AR27)-SUM(Z27) -> 0 | AW27: =AV27/Z27 ->  | AY27: 0 | AZ27: =ROUND(AL27*(1+AZ$1),2) -> 0 | BA27: 0 | BB27: 0 | BC27: 3.8 | BE27: 0 | BF27: 0 | BG27: 0 | BH27: 0 | BI27: 30.4 | BM27: 25 | BR27: 3.84 | BT27: 0.06 | BY27: =ROUND((W27*$BU$2)+$BT27-BR27,2) -> -0.06 | CB27: 0 | CC27: 0 | CD27: 0 | CE27: 0 | CF27: 4.101004 | CH27: 0 | CI27: 0 | CJ27: 0 | CK27: 0 | CL27: 0.261004
B28: 2 | C28: 042 | D28: 435L | E28: =2602+3 -> 2605 | G28: 042435L | I28: Single Mercury Vapor | J28: Wood Pole | K28: 7000 | L28: 411 | M28: 1 | N28: 0 | O28: 0 | P28: 0 | Q28: 0 | R28: 0 | S28: 16.44 | T28: 0 | U28: 0 | V28: 0 | W28: 0 | Y28: 16.44 | Z28: 0 | AA28: 0 | AB28: 0 | AC28: 0 | AE28: 1 | AF28: 0 | AG28: 0 | AH28: 0 | AI28: 0 | AK28: 18.13 | AL28: 0 | AM28: 0 | AN28: 0 | AO28: 0 | AQ28: 18.13 | AR28: 0 | AS28: 0 | AT28: 0 | AU28: 0 | AV28: 0 | AW28: =AV28/Z28 ->  | AY28: 17.07 | AZ28: 0 | BA28: 0 | BB28: 0 | BC28: 0 | BE28: 17.07 | BF28: 0 | BG28: 0 | BH28: 0 | BI28: 0 | BM28: 80 | BN28: 17.25 | BT28: 0.18 | BU28: =ROUND((S28*$BU$2)+$BT28-BN28,2) -> -0.38 | CB28: 18.403763 | CC28: 0 | CD28: 0 | CE28: 0 | CF28: 0 | CH28: 1.153763 | CI28: 0 | CJ28: 0 | CK28: 0 | CL28: 0
B29: 2 | C29: 042 | D29: 435T | E29: =1854+6 -> 1860 | G29: 042435T | I29: Mercury Vapor | J29: Dusk to Dawn | K29: 7000 | L29: 415 | M29: 0 | N29: 0 | O29: 0 | P29: 61 | Q29: 0 | R29: 0 | S29: 0 | T29: 0 | U29: 0 | V29: 7.21 | W29: 0 | Y29: 0 | Z29: 0 | AA29: 0 | AB29: 439.81 | AC29: 0 | AE29: 0 | AF29: 0 | AG29: 0 | AH29: 61 | AI29: 0 | AK29: 0 | AL29: 0 | AM29: 0 | AN29: 7.95 | AO29: 0 | AQ29: 0 | AR29: 0 | AS29: 0 | AT29: 484.95 | AU29: 0 | AV29: 0 | AY29: 0 | AZ29: 0 | BA29: 0 | BB29: 7.49 | BC29: 0 | BE29: 0 | BF29: 0 | BG29: 0 | BH29: 456.89 | BI29: 0 | BM29: 80 | BQ29: 7.56 | BT29: 0.18 | BX29: =ROUND((V29*$BU$2)+$BT29-BQ29,2) -> -0.06 | CB29: 0 | CC29: 0 | CD29: 0 | CE29: 8.070045 | CF29: 0 | CH29: 0 | CI29: 0 | CJ29: 0 | CK29: 0.510045 | CL29: 0
B30: 2 | C30: 042 | D30: 436 | E30: 20 | G30: 042436 | I30: Mercury Vapor | J30: Dusk to 1 AM | K30: 7000 | L30: 419 | M30: 0 | N30: 0 | O30: 0 | P30: 16 | Q30: 0 | R30: 0 | S30: 0 | T30: 0 | U30: 0 | V30: 4.89 | W30: 0 | Y30: 0 | Z30: 0 | AA30: 0 | AB30: 78.24 | AC30: 0 | AE30: =M30 -> 0 | AF30: 0 | AG30: 0 | AH30: 16 | AI30: 0 | AK30: 0 | AL30: 0 | AM30: 0 | AN30: 5.39 | AO30: 0 | AQ30: 0 | AR30: 0 | AS30: 0 | AT30: 86.24 | AU30: 0 | AV30: 0 | AY30: 0 | AZ30: 0 | BA30: 0 | BB30: 5.07 | BC30: 0 | BE30: 0 | BF30: 0 | BG30: 0 | BH30: 81.12 | BI30: 0 | BM30: 80 | BQ30: 5.13 | BT30: 0.18 | BX30: =ROUND((V30*$BU$2)+$BT30-BQ30,2) -> 0.01 | CB30: 0 | CC30: 0 | CD30: =AM30*$CB$1 -> 0 | CE30: =AN30*$CB$1 -> 5.471389 | CF30: =AO30*$CB$1 -> 0 | CH30: 0 | CI30: 0 | CJ30: 0 | CK30: 0.341389 | CL30: 0
B31: 2 | C31: 042 | D31: 436L | E31: 84 | G31: 042436L | I31: Single High-Pressure Sodium Vapor | J31: Standard | K31: 100W | L31: 421 | M31: 0 | N31: 2 | O31: 0 | P31: 0 | Q31: 0 | R31: 0 | S31: 0 | T31: 25.07 | U31: 0 | V31: 0 | W31: 0 | Y31: 0 | Z31: =IF(AND(N31<>0,T31=0),#VALUE!,N31*T31) -> 50.14 | AA31: 0 | AB31: 0 | AC31: 0 | AE31: 0 | AF31: 2 | AG31: 0 | AH31: 0 | AI31: 0 | AK31: 0 | AL31: =ROUND(T31*(1+AL$1),2) -> 27.45 | AM31: 0 | AN31: 0 | AO31: 0 | AQ31: 0 | AR31: 54.9 | AS31: 0 | AT31: 0 | AU31: 0 | AV31: 4.76 | AW31: 0.09493418428 | AY31: 0 | AZ31: =ROUND(AL31*(1+AZ$1),2) -> 25.85 | BA31: 0 | BB31: 0 | BC31: 0 | BE31: 0 | BF31: 51.7 | BG31: 0 | BH31: 0 | BI31: 0 | BM31: 40 | BO31: 26.29109 | BT31: 0.09 | BV31: =ROUND((T31*$BU$2)+$BT31-BO31,2) -> -0.75 | CB31: 0 | CC31: 27.864495 | CD31: 0 | CE31: 0 | CF31: 0 | CH31: 0 | CI31: 1.573405 | CJ31: 0 | CK31: 0 | CL31: 0
B32: 2 | C32: 042 | D32: 436T | E32: 274 | G32: 042436T | I32: Single Light Emitting Diode (LED) | J32: Standard | K32: 70W | L32: 421L | M32: 0 | N32: 1 | O32: 0 | P32: 0 | Q32: 0 | R32: 0 | S32: 0 | T32: =T31 -> 25.07 | Y32: =IF(AND(M32<>0,S32=0),#VALUE!,M32*S32) -> 0 | Z32: =IF(AND(N32<>0,T32=0),#VALUE!,N32*T32) -> 25.07 | AA32: =IF(AND(O32<>0,U32=0),#VALUE!,O32*U32) -> 0 | AB32: =IF(AND(P32<>0,V32=0),#VALUE!,P32*V32) -> 0 | AC32: =IF(AND(Q32<>0,W32=0),#VALUE!,Q32*W32) -> 0 | AE32: =SUMIF($G:$G,TEXT(AE$3,"000")&TEXT($L32,"000"),$E:$E) -> 0 | AF32: =SUMIF($G:$G,TEXT(AF$3,"000")&TEXT($L32,"000"),$E:$E) -> 1 | AG32: =SUMIF($G:$G,TEXT(AG$3,"000")&TEXT($L32,"000"),$E:$E) -> 0 | AH32: =SUMIF($G:$G,TEXT(AH$3,"000")&TEXT($L32,"000"),$E:$E) -> 0 | AI32: =SUMIF($G:$G,TEXT(AI$3,"000")&TEXT($L32,"000"),$E:$E) -> 0 | AK32: =ROUND(S32*(1+AK$1),2) -> 0 | AL32: =AL31 -> 27.45 | AM32: 0 | AN32: 0 | AO32: 0 | AQ32: 0 | AR32: 27.45 | AS32: 0 | AT32: 0 | AU32: 0 | AV32: 2.38 | AW32: 0.09493418428 | AY32: 0 | AZ32: 25.85 | BA32: 0 | BB32: 0 | BC32: 0 | BE32: 0 | BF32: 25.85 | BG32: 0 | BH32: 0 | BI32: 0 | BM32: 26 | BO32: 26.29109 | BT32: =ROUND(BM32*$BT$2,2)+ROUND(BM32*$BT$1,2) -> 0.06 | BV32: -0.78 | CB32: 0 | CC32: 27.864495 | CD32: =AM32*$CB$1 -> 0 | CE32: =AN32*$CB$1 -> 0 | CF32: =AO32*$CB$1 -> 0 | CH32: =CB32-BN32 -> 0 | CI32: =CC32-BO32 -> 1.573405 | CJ32: =CD32-BP32 -> 0 | CK32: =CE32-BQ32 -> 0 | CL32: =CF32-BR32 -> 0
B33: 2 | C33: 042 | D33: 438 | E33: 11 | G33: 042438 | I33: Single High-Pressure Sodium Vapor | J33: Standard | K33: 100W | L33: 431 | M33: 0 | N33: 529 | O33: 1 | P33: 0 | Q33: 0 | R33: 0 | S33: 0 | T33: 14.46 | U33: 7.75 | V33: 0 | W33: 0 | Y33: 0 | Z33: =IF(AND(N33<>0,T33=0),#VALUE!,N33*T33) -> 7649.34 | AA33: 7.75 | AB33: 0 | AC33: 0 | AE33: 0 | AF33: =N33 -> 529 | AG33: 1 | AH33: 0 | AI33: 0 | AK33: 0 | AL33: 15.83 | AM33: 8.55 | AN33: 0 | AO33: 0 | AQ33: 0 | AR33: =IF(AND(AF33<>0,AL33=0),#VALUE!,AF33*AL33) -> 8374.07 | AS33: 8.55 | AT33: 0 | AU33: 0 | AV33: 724.73 | AW33: 0.09474412172 | AY33: 0 | AZ33: 14.9 | BA33: 8.05 | BB33: 0 | BC33: 0 | BE33: 0 | BF33: 7882.1 | BG33: 8.05 | BH33: 0 | BI33: 0 | BM33: 40 | BP33: 8.130951 | BT33: 0.09 | BV33: 14.77 | BW33: =ROUND((U33*$BU$2)+$BT33-BP33,2) -> -0.17 | CB33: 0 | CC33: 16.069033 | CD33: 8.679105 | CE33: 0 | CF33: 0 | CH33: 0 | CI33: 16.069033 | CJ33: 0.548154 | CK33: 0 | CL33: 0 | CO33: =15.83*0.932 -> 14.75356 | CP33: =AL33-CO33 -> 1.07644 | CQ33: =40*0.0262 -> 1.048
B34: 2 | C34: 042 | D34: 441L | E34: 14 | G34: 042441L | I34: Single Light Emitting Diode (LED) | J34: Standard | K34: 70W | L34: 431L | M34: =SUMIF($G:$G,TEXT(M$3,"000")&TEXT($L34,"000"),$E:$E) -> 0 | N34: 5337 | O34: 0 | P34: 0 | Q34: 0 | R34: =IF(SUM(M34:Q34)>0,0,1) -> 0 | S34: 0 | T34: =T33 -> 14.46 | U34: 0 | Y34: 0 | Z34: =IF(AND(N34<>0,T34=0),#VALUE!,N34*T34) -> 77173.02 | AA34: 0 | AB34: 0 | AC34: 0 | AE34: =SUMIF($G:$G,TEXT(AE$3,"000")&TEXT($L34,"000"),$E:$E) -> 0 | AF34: =SUMIF($G:$G,TEXT(AF$3,"000")&TEXT($L34,"000"),$E:$E) -> 5337 | AG34: =SUMIF($G:$G,TEXT(AG$3,"000")&TEXT($L34,"000"),$E:$E) -> 0 | AH34: =SUMIF($G:$G,TEXT(AH$3,"000")&TEXT($L34,"000"),$E:$E) -> 0 | AI34: =SUMIF($G:$G,TEXT(AI$3,"000")&TEXT($L34,"000"),$E:$E) -> 0 | AK34: 0 | AL34: =AL33 -> 15.83 | AM34: 0 | AN34: 0 | AO34: 0 | AQ34: 0 | AR34: =IF(AND(AF34<>0,AL34=0),#VALUE!,AF34*AL34) -> 84484.71 | AS34: 0 | AT34: 0 | AU34: 0 | AY34: 0 | AZ34: =ROUND(AL34*(1+AZ$1),2) -> 14.9 | BA34: 0 | BB34: 0 | BC34: 0 | BE34: 0 | BF34: 79521.3 | BG34: 0 | BH34: 0 | BI34: 0 | BM34: 26 | BT34: 0.06 | BV34: 14.74 | CB34: 0 | CC34: 16.069033 | CD34: 0 | CE34: =AN34*$CB$1 -> 0 | CF34: =AO34*$CB$1 -> 0 | CH34: 0 | CI34: =CC34-BO34 -> 16.069033 | CJ34: =CD34-BP34 -> 0 | CK34: =CE34-BQ34 -> 0 | CL34: =CF34-BR34 -> 0 | CO34: =15.83*0.932 -> 14.75356 | CP34: =AL34-CO34 -> 1.07644 | CQ34: =26*0.0262 -> 0.6812
B35: 2 | C35: 042 | D35: 441T | E35: 11 | G35: 042441T | I35: Single Light Emitting Diode (LED) | J35: Standard | K35: 70W | L35: 431T | M35: 0 | N35: 1842 | O35: 0 | P35: 0 | Q35: 0 | R35: 0 | S35: 0 | T35: =T33-T103 -> 9.23 | V35: 0 | W35: 0 | Y35: 0 | Z35: 17001.66 | AA35: 0 | AB35: 0 | AC35: 0 | AE35: =M35 -> 0 | AF35: =N35 -> 1842 | AG35: =O35 -> 0 | AH35: =P35 -> 0 | AI35: =Q35 -> 0 | AK35: 0 | AL35: =AL33-AL103 -> 10.6 | AM35: 0 | AN35: 0 | AO35: 0 | AQ35: 0 | AR35: 19525.2 | AS35: 0 | AT35: 0 | AU35: 0 | AV35: =SUM(AQ35:AU35)-SUM(Y35:AC35) -> 2523.54 | AY35: 0 | AZ35: =AZ33-AZ103 -> 9.98 | BA35: 0 | BB35: 0 | BC35: 0 | BE35: 0 | BF35: 18383.16 | BG35: 0 | BH35: 0 | BI35: 0 | BM35: 26 | BT35: 0.06 | BV35: 9.43 | CB35: 0 | CC35: 10.76006 | CD35: 0 | CE35: 0 | CF35: 0 | CH35: 0 | CI35: 10.76006 | CJ35: 0 | CK35: 0 | CL35: 0
B36: 2 | C36: 042 | D36: 474 | E36: 116 | G36: 042474 | I36: Single High-Pressure Sodium Vapor | J36: Pedestal Base | K36: 100W | L36: 432 | M36: 0 | N36: 63 | O36: 4 | P36: 0 | Q36: 0 | R36: 0 | S36: 0 | T36: 27.01 | U36: 7.75 | V36: 0 | W36: 0 | Y36: 0 | Z36: 1701.63 | AA36: 31 | AB36: 0 | AC36: 0 | AE36: 0 | AF36: 63 | AG36: 4 | AH36: 0 | AI36: 0 | AK36: 0 | AL36: =ROUND(T36*(1+AL$1),2) -> 29.57 | AM36: 8.55 | AN36: 0 | AO36: 0 | AQ36: 0 | AR36: 1862.91 | AS36: 34.2 | AT36: 0 | AU36: 0 | AV36: 161.28 | AW36: 0.09477971122 | AY36: 0 | AZ36: =ROUND(AL36*(1+AZ$1),2) -> 27.84 | BA36: 8.05 | BB36: 0 | BC36: 0 | BE36: 0 | BF36: 1753.92 | BG36: 32.2 | BH36: 0 | BI36: 0 | BM36: 40 | BO36: 28.331441 | BP36: 8.130951 | BT36: 0.09 | BV36: -0.82 | BW36: =ROUND((U36*$BU$2)+$BT36-BP36,2) -> -0.17 | CB36: 0 | CC36: 30.016507 | CD36: 8.679105 | CE36: 0 | CF36: 0 | CH36: 0 | CI36: 1.685066 | CJ36: 0.548154 | CK36: 0 | CL36: 0
B37: 2 | C37: 042 | D37: 474L | E37: =229+6 -> 235 | G37: 042474L | I37: Single Light Emitting Diode (LED) | J37: Pedestal Base | K37: 70W | L37: 432L | M37: 0 | N37: 134 | O37: 0 | P37: 0 | Q37: 0 | R37: 0 | S37: 0 | T37: =T36 -> 27.01 | U37: 0 | Y37: =IF(AND(M37<>0,S37=0),#VALUE!,M37*S37) -> 0 | Z37: 3619.34 | AA37: 0 | AB37: 0 | AC37: 0 | AE37: =SUMIF($G:$G,TEXT(AE$3,"000")&TEXT($L37,"000"),$E:$E) -> 0 | AF37: =SUMIF($G:$G,TEXT(AF$3,"000")&TEXT($L37,"000"),$E:$E) -> 134 | AG37: =SUMIF($G:$G,TEXT(AG$3,"000")&TEXT($L37,"000"),$E:$E) -> 0 | AH37: =SUMIF($G:$G,TEXT(AH$3,"000")&TEXT($L37,"000"),$E:$E) -> 0 | AI37: =SUMIF($G:$G,TEXT(AI$3,"000")&TEXT($L37,"000"),$E:$E) -> 0 | AK37: 0 | AL37: =AL36 -> 29.57 | AM37: 0 | AN37: 0 | AO37: 0 | AQ37: 0 | AR37: 3962.38 | AS37: 0 | AT37: 0 | AU37: 0 | AV37: 343.04 | AW37: 0.09477971122 | AY37: 0 | AZ37: =ROUND(AL37*(1+AZ$1),2) -> 27.84 | BA37: 0 | BB37: 0 | BC37: 0 | BE37: 0 | BF37: 3730.56 | BG37: 0 | BH37: 0 | BI37: 0 | BM37: 26 | BO37: 28.331441 | BT37: =ROUND(BM37*$BT$2,2)+ROUND(BM37*$BT$1,2) -> 0.06 | BV37: -0.85 | CB37: 0 | CC37: 30.016507 | CD37: =AM37*$CB$1 -> 0 | CE37: 0 | CF37: 0 | CH37: =CB37-BN37 -> 0 | CI37: 1.685066 | CJ37: 0 | CK37: 0 | CL37: 0
B38: 2 | C38: 042 | D38: 475 | E38: 0 | G38: 042475 | I38: Single Light Emitting Diode (LED) | J38: Pedestal Base | K38: 70W | L38: 432T | M38: 0 | N38: 29 | O38: 0 | P38: 0 | Q38: 0 | R38: 0 | S38: 0 | T38: =T36-T103 -> 21.78 | V38: 0 | W38: 0 | Y38: 0 | Z38: =IF(AND(N38<>0,T38=0),#VALUE!,N38*T38) -> 631.62 | AA38: 0 | AB38: 0 | AC38: 0 | AE38: =M38 -> 0 | AF38: =N38 -> 29 | AG38: =O38 -> 0 | AH38: =P38 -> 0 | AI38: =Q38 -> 0 | AK38: 0 | AL38: =AL37-AL103 -> 24.34 | AM38: 0 | AN38: 0 | AO38: 0 | AQ38: 0 | AR38: 705.86 | AS38: 0 | AT38: 0 | AU38: 0 | AV38: 74.24 | AW38: 0.1175390266 | AY38: 0 | AZ38: =AZ37-AZ103 -> 22.92 | BA38: 0 | BB38: 0 | BC38: 0 | BE38: 0 | BF38: 664.68 | BG38: 0 | BH38: 0 | BI38: 0 | BM38: 26 | BO38: 23.022468 | BT38: =ROUND(BM38*$BT$2,2)+ROUND(BM38*$BT$1,2) -> 0.06 | BV38: -0.85 | CB38: 0 | CC38: 24.707534 | CD38: 0 | CE38: 0 | CF38: 0 | CH38: 0 | CI38: 1.685066 | CJ38: 0 | CK38: 0 | CL38: 0
B39: 3 | C39: 042 | D39: 478 | E39: 0 | G39: 042478 | I39: Single High-Pressure Sodium Vapor | J39: Direct Burial | K39: 100W | L39: 433 | M39: 0 | N39: 6 | O39: 10 | P39: 0 | Q39: 0 | R39: 0 | S39: 0 | T39: 27.01 | U39: 7.75 | V39: 0 | W39: 0 | Y39: 0 | Z39: 162.06 | AA39: 77.5 | AB39: 0 | AC39: 0 | AE39: 0 | AF39: =N39 -> 6 | AG39: =O39 -> 10 | AH39: =P39 -> 0 | AI39: =Q39 -> 0 | AK39: 0 | AL39: =ROUND(T39*(1+AL$1),2) -> 29.57 | AM39: 8.55 | AN39: 0 | AO39: 0 | AQ39: 0 | AR39: 177.42 | AS39: 85.5 | AT39: 0 | AU39: 0 | AV39: 15.36 | AW39: 0.09477971122 | AY39: 0 | AZ39: =ROUND(AL39*(1+AZ$1),2) -> 27.84 | BA39: 8.05 | BB39: 0 | BC39: 0 | BE39: 0 | BF39: 167.04 | BG39: 80.5 | BH39: 0 | BI39: 0 | BM39: 40 | BO39: 28.331441 | BP39: 8.130951 | BT39: 0.09 | BV39: -0.82 | BW39: =ROUND((U39*$BU$2)+$BT39-BP39,2) -> -0.17 | CB39: 0 | CC39: 30.016507 | CD39: 8.679105 | CE39: 0 | CF39: 0 | CH39: 0 | CI39: 1.685066 | CJ39: 0.548154 | CK39: 0 | CL39: 0
B40: 2 | C40: 042 | D40: 484 | E40: 68 | G40: 042484 | I40: Single Light Emitting Diode (LED) | J40: Direct Burial | K40: 70W | L40: 433L | M40: 0 | N40: 69 | O40: 0 | P40: 0 | Q40: 0 | R40: 0 | S40: 0 | T40: =T39 -> 27.01 | U40: 0 | Y40: =IF(AND(M40<>0,S40=0),#VALUE!,M40*S40) -> 0 | Z40: 1863.69 | AA40: 0 | AB40: 0 | AC40: 0 | AE40: =SUMIF($G:$G,TEXT(AE$3,"000")&TEXT($L40,"000"),$E:$E) -> 0 | AF40: =SUMIF($G:$G,TEXT(AF$3,"000")&TEXT($L40,"000"),$E:$E) -> 69 | AG40: =SUMIF($G:$G,TEXT(AG$3,"000")&TEXT($L40,"000"),$E:$E) -> 0 | AH40: =SUMIF($G:$G,TEXT(AH$3,"000")&TEXT($L40,"000"),$E:$E) -> 0 | AI40: =SUMIF($G:$G,TEXT(AI$3,"000")&TEXT($L40,"000"),$E:$E) -> 0 | AK40: 0 | AL40: =AL39 -> 29.57 | AM40: 0 | AN40: 0 | AO40: 0 | AQ40: 0 | AR40: 2040.33 | AS40: 0 | AT40: 0 | AU40: 0 | AV40: 176.64 | AW40: 0.09477971122 | AY40: 0 | AZ40: =AZ39 -> 27.84 | BA40: 0 | BB40: 0 | BC40: 0 | BE40: 0 | BF40: 1920.96 | BG40: 0 | BH40: 0 | BI40: 0 | BM40: 26 | BO40: 28.331441 | BT40: =ROUND(BM40*$BT$2,2)+ROUND(BM40*$BT$1,2) -> 0.06 | BV40: -0.85 | CB40: 0 | CC40: 30.016507 | CD40: =AM40*$CB$1 -> 0 | CE40: 0 | CF40: 0 | CH40: =CB40-BN40 -> 0 | CI40: 1.685066 | CJ40: 0 | CK40: 0 | CL40: 0
B41: 2 | C41: 042 | D41: 484L | E41: 99 | G41: 042484L | I41: Single Light Emitting Diode (LED) | J41: Direct Burial | K41: 70W | L41: 433T | M41: 0 | N41: 67 | O41: 0 | P41: 0 | Q41: 0 | R41: 0 | S41: 0 | T41: =T39-T103 -> 21.78 | V41: 0 | W41: 0 | Y41: 0 | Z41: 1459.26 | AA41: 0 | AB41: 0 | AC41: 0 | AE41: =M41 -> 0 | AF41: =N41 -> 67 | AG41: =O41 -> 0 | AH41: =P41 -> 0 | AI41: =Q41 -> 0 | AK41: 0 | AL41: =AL40-AL103 -> 24.34 | AM41: 0 | AN41: 0 | AO41: 0 | AQ41: 0 | AR41: =IF(AND(AF41<>0,AL41=0),#VALUE!,AF41*AL41) -> 1630.78 | AS41: 0 | AT41: 0 | AU41: 0 | AV41: =SUM(AR41)-SUM(Z41) -> 171.52 | AW41: 0.1175390266 | AY41: 0 | AZ41: =AZ40-AZ103 -> 22.92 | BA41: 0 | BB41: 0 | BC41: 0 | BE41: 0 | BF41: 1535.64 | BG41: 0 | BH41: 0 | BI41: 0 | BM41: 26 | BO41: 23.022468 | BT41: =ROUND(BM41*$BT$2,2)+ROUND(BM41*$BT$1,2) -> 0.06 | BV41: -0.85 | CB41: 0 | CC41: 24.707534 | CD41: 0 | CE41: 0 | CF41: 0 | CH41: 0 | CI41: 1.685066 | CJ41: 0 | CK41: 0 | CL41: 0
B42: 2 | C42: 042 | D42: 494L | E42: 12 | G42: =IF(OR(ISBLANK(C42),ISBLANK(D42)),"",TEXT(C42,"000")&TEXT(D42,"000")) -> 042494L | I42: Single High-Pressure Sodium Vapor | J42: Direct Burial | K42: 100W | L42: 434 | M42: 0 | N42: 1634 | O42: 0 | P42: 0 | Q42: 0 | R42: 0 | S42: 0 | T42: 15.23 | U42: 0 | V42: 0 | W42: 0 | Y42: 0 | Z42: 24885.82 | AA42: 0 | AB42: 0 | AC42: 0 | AE42: 0 | AF42: =N42 -> 1634 | AG42: =O42 -> 0 | AH42: =P42 -> 0 | AI42: =Q42 -> 0 | AK42: 0 | AL42: =ROUND(T42*(1+AL$1),2) -> 16.68 | AM42: 0 | AN42: 0 | AO42: 0 | AQ42: 0 | AR42: 27255.12 | AS42: 0 | AT42: 0 | AU42: 0 | AV42: 2369.3 | AW42: 0.09520682863 | AY42: 0 | AZ42: =ROUND(AL42*(1+AZ$1),2) -> 15.7 | BA42: 0 | BB42: 0 | BC42: 0 | BE42: 0 | BF42: 25653.8 | BG42: 0 | BH42: 0 | BI42: 0 | BM42: 40 | BO42: 15.977674 | BT42: 0.09 | BV42: -0.43 | CB42: 0 | CC42: 16.931868 | CD42: 0 | CE42: 0 | CF42: 0 | CH42: 0 | CI42: 0.954194 | CJ42: 0 | CK42: 0 | CL42: 0
B43: 2 | C43: 042 | D43: 531 | E43: 163 | G43: =IF(OR(ISBLANK(C43),ISBLANK(D43)),"",TEXT(C43,"000")&TEXT(D43,"000")) -> 042531 | I43: Single Light Emitting Diode (LED) | J43: Direct Burial | K43: 70W | L43: 434L | M43: 0 | N43: 1792 | O43: 0 | P43: 0 | Q43: 0 | R43: 0 | S43: 0 | T43: =T42 -> 15.23 | U43: 0 | Y43: =IF(AND(M43<>0,S43=0),#VALUE!,M43*S43) -> 0 | Z43: =IF(AND(N43<>0,T43=0),#VALUE!,N43*T43) -> 27292.16 | AA43: =IF(AND(O43<>0,U43=0),#VALUE!,O43*U43) -> 0 | AB43: =IF(AND(P43<>0,V43=0),#VALUE!,P43*V43) -> 0 | AC43: =IF(AND(Q43<>0,W43=0),#VALUE!,Q43*W43) -> 0 | AE43: =SUMIF($G:$G,TEXT(AE$3,"000")&TEXT($L43,"000"),$E:$E) -> 0 | AF43: =SUMIF($G:$G,TEXT(AF$3,"000")&TEXT($L43,"000"),$E:$E) -> 1792 | AG43: =SUMIF($G:$G,TEXT(AG$3,"000")&TEXT($L43,"000"),$E:$E) -> 0 | AH43: =SUMIF($G:$G,TEXT(AH$3,"000")&TEXT($L43,"000"),$E:$E) -> 0 | AI43: =SUMIF($G:$G,TEXT(AI$3,"000")&TEXT($L43,"000"),$E:$E) -> 0 | AK43: 0 | AL43: =AL42 -> 16.68 | AM43: 0 | AN43: 0 | AO43: 0 | AQ43: 0 | AR43: 29890.56 | AS43: 0 | AT43: 0 | AU43: 0 | AV43: 2598.4 | AW43: 0.09520682863 | AY43: 0 | AZ43: =AZ42 -> 15.7 | BA43: 0 | BB43: 0 | BC43: 0 | BE43: 0 | BF43: 28134.4 | BG43: 0 | BH43: 0 | BI43: 0 | BM43: 26 | BO43: 15.977674 | BT43: =ROUND(BM43*$BT$2,2)+ROUND(BM43*$BT$1,2) -> 0.06 | BV43: -0.46 | CB43: 0 | CC43: 16.931868 | CD43: =AM43*$CB$1 -> 0 | CE43: =AN43*$CB$1 -> 0 | CF43: =AO43*$CB$1 -> 0 | CH43: =CB43-BN43 -> 0 | CI43: =CC43-BO43 -> 0.954194 | CJ43: =CD43-BP43 -> 0 | CK43: =CE43-BQ43 -> 0 | CL43: =CF43-BR43 -> 0
B44: 2 | C44: 042 | D44: 531L | E44: 1349 | G44: 042531L | I44: Single High-Pressure Sodium Vapor | J44: Standard / Dusk to Dawn (046) | K44: 100W | L44: 435 | M44: =SUMIF($G:$G,TEXT(M$3,"000")&TEXT($L44,"000"),$E:$E) -> 0 | N44: 233 | O44: 13 | P44: 0 | Q44: 17 | R44: 0 | S44: 0 | T44: 14.46 | U44: 7.75 | V44: 0 | W44: 5.18 | Y44: 0 | Z44: 3369.18 | AA44: 100.75 | AB44: 0 | AC44: 88.06 | AE44: 0 | AF44: =N44 -> 233 | AG44: =O44 -> 13 | AH44: =P44 -> 0 | AI44: =Q44 -> 17 | AK44: 0 | AL44: 15.83 | AM44: 8.55 | AN44: 0 | AO44: 5.71 | AQ44: 0 | AR44: 3688.39 | AS44: 111.15 | AT44: 0 | AU44: 97.07 | AV44: 319.21 | AW44: 0.09474412172 | AY44: 0 | AZ44: =ROUND(AL44*(1+AZ$1),2) -> 14.9 | BA44: 8.05 | BB44: 0 | BC44: 5.38 | BE44: 0 | BF44: 3471.7 | BG44: 104.65 | BH44: 0 | BI44: 91.46 | BM44: 40 | BO44: 15.165594 | BP44: 8.13 | BR44: 5.43 | BT44: 0.09 | BV44: -0.4 | BW44: =ROUND((U44*$BU$2)+$BT44-BP44,2) -> -0.17 | BY44: =ROUND((W44*$BU$2)+$BT44-BR44,2) -> -0.08 | CB44: 0 | CC44: 16.069033 | CD44: 8.679105 | CE44: 0 | CF44: 5.796221 | CH44: 0 | CI44: 0.903439 | CJ44: 0.549105 | CK44: 0 | CL44: 0.366221
B45: 2 | C45: 042 | D45: 531T | E45: =473+1 -> 474 | G45: 042531T | I45: Single Light Emitting Diode (LED) | J45: Standard / Dusk to Dawn (046) | K45: 70W | L45: 435L | M45: 0 | N45: 2605 | O45: 0 | P45: 0 | Q45: 0 | R45: 0 | S45: 0 | T45: =T44 -> 14.46 | U45: 0 | Y45: =IF(AND(M45<>0,S45=0),#VALUE!,M45*S45) -> 0 | Z45: 37668.3 | AA45: 0 | AB45: 0 | AC45: 0 | AE45: =SUMIF($G:$G,TEXT(AE$3,"000")&TEXT($L45,"000"),$E:$E) -> 0 | AF45: =SUMIF($G:$G,TEXT(AF$3,"000")&TEXT($L45,"000"),$E:$E) -> 2605 | AG45: =SUMIF($G:$G,TEXT(AG$3,"000")&TEXT($L45,"000"),$E:$E) -> 0 | AH45: =SUMIF($G:$G,TEXT(AH$3,"000")&TEXT($L45,"000"),$E:$E) -> 0 | AI45: =SUMIF($G:$G,TEXT(AI$3,"000")&TEXT($L45,"000"),$E:$E) -> 0 | AK45: 0 | AL45: =AL44 -> 15.83 | AM45: 0 | AN45: 0 | AO45: 0 | AQ45: 0 | AR45: 41237.15 | AS45: 0 | AT45: 0 | AU45: 0 | AV45: 3568.85 | AW45: 0.09474412172 | AY45: 0 | AZ45: =AZ44 -> 14.9 | BA45: 0 | BB45: 0 | BC45: 0 | BE45: 0 | BF45: 38814.5 | BG45: 0 | BH45: 0 | BI45: 0 | BM45: 26 | BO45: 15.165594 | BT45: =ROUND(BM45*$BT$2,2)+ROUND(BM45*$BT$1,2) -> 0.06 | BV45: -0.43 | CB45: 0 | CC45: 16.069033 | CD45: =AM45*$CB$1 -> 0 | CE45: 0 | CF45: 0 | CH45: =CB45-BN45 -> 0 | CI45: 0.903439 | CJ45: 0 | CK45: 0 | CL45: 0
B46: 2 | C46: 042 | D46: 532 | E46: 106 | G46: 042532 | I46: Single Light Emitting Diode (LED) | J46: Standard / Dusk to Dawn (046) | K46: 70W | L46: 435T | M46: 0 | N46: 1860 | O46: 0 | P46: 0 | Q46: 0 | R46: 0 | S46: 0 | T46: =T44-T103 -> 9.23 | V46: 0 | Y46: 0 | Z46: 17167.8 | AA46: 0 | AB46: 0 | AC46: 0 | AE46: =M46 -> 0 | AF46: =N46 -> 1860 | AG46: =O46 -> 0 | AH46: =P46 -> 0 | AI46: =Q46 -> 0 | AK46: 0 | AL46: =AL45-AL103 -> 10.6 | AM46: 0 | AN46: 0 | AO46: 0 | AQ46: 0 | AR46: 19716 | AS46: 0 | AT46: 0 | AU46: 0 | AV46: 2548.2 | AW46: 0.1484290358 | AY46: 0 | AZ46: =AZ45-AZ103 -> 9.98 | BA46: 0 | BB46: 0 | BC46: 0 | BE46: 0 | BF46: 18562.8 | BG46: 0 | BH46: 0 | BI46: 0 | BM46: 26 | BO46: 9.856621 | BT46: =ROUND(BM46*$BT$2,2)+ROUND(BM46*$BT$1,2) -> 0.06 | BV46: -0.43 | CB46: 0 | CC46: 10.76006 | CD46: 0 | CE46: 0 | CF46: 0 | CH46: 0 | CI46: 0.903439 | CJ46: 0 | CK46: 0 | CL46: 0
B47: 2 | C47: 042 | D47: 532L | E47: 705 | G47: 042532L | I47: Single High-Pressure Sodium Vapor | J47: Developer Contributed | K47: 100W | L47: 436 | M47: 0 | N47: 20 | O47: 0 | P47: 0 | Q47: 0 | R47: 0 | S47: 0 | T47: 16.39 | U47: 0 | V47: 0 | W47: 0 | Y47: 0 | Z47: 327.8 | AA47: 0 | AB47: 0 | AC47: 0 | AE47: 0 | AF47: =N47 -> 20 | AG47: =O47 -> 0 | AH47: =P47 -> 0 | AI47: =Q47 -> 0 | AK47: 0 | AL47: 17.95 | AM47: 0 | AN47: 0 | AO47: 0 | AQ47: 0 | AR47: 359 | AS47: 0 | AT47: 0 | AU47: 0 | AV47: 31.2 | AW47: 0.0951799878 | AY47: 0 | AZ47: =ROUND(AL47*(1+AZ$1),2) -> 16.9 | BA47: 0 | BB47: 0 | BC47: 0 | BE47: 0 | BF47: 338 | BG47: 0 | BH47: 0 | BI47: 0 | BM47: 40 | BO47: 17.195794 | BT47: 0.09 | BV47: -0.47 | CB47: 0 | CC47: 18.221045 | CD47: 0 | CE47: 0 | CF47: 0 | CH47: 0 | CI47: 1.025251 | CJ47: 0 | CK47: 0 | CL47: 0
B48: 2 | C48: 042 | D48: 532T | E48: 152 | G48: 042532T | I48: Single Light Emitting Diode (LED) | J48: Developer Contributed | K48: 70W | L48: 436L | M48: 0 | N48: 84 | O48: 0 | P48: 0 | Q48: 0 | R48: 0 | S48: 0 | T48: =T47 -> 16.39 | U48: 0 | Y48: =IF(AND(M48<>0,S48=0),#VALUE!,M48*S48) -> 0 | Z48: 1376.76 | AA48: 0 | AB48: 0 | AC48: 0 | AE48: =SUMIF($G:$G,TEXT(AE$3,"000")&TEXT($L48,"000"),$E:$E) -> 0 | AF48: =SUMIF($G:$G,TEXT(AF$3,"000")&TEXT($L48,"000"),$E:$E) -> 84 | AG48: =SUMIF($G:$G,TEXT(AG$3,"000")&TEXT($L48,"000"),$E:$E) -> 0 | AH48: =SUMIF($G:$G,TEXT(AH$3,"000")&TEXT($L48,"000"),$E:$E) -> 0 | AI48: =SUMIF($G:$G,TEXT(AI$3,"000")&TEXT($L48,"000"),$E:$E) -> 0 | AK48: 0 | AL48: =AL47 -> 17.95 | AM48: 0 | AN48: 0 | AO48: 0 | AQ48: 0 | AR48: 1507.8 | AS48: 0 | AT48: 0 | AU48: 0 | AV48: 131.04 | AW48: 0.0951799878 | AY48: 0 | AZ48: =AZ47 -> 16.9 | BA48: 0 | BB48: 0 | BC48: 0 | BE48: 0 | BF48: 1419.6 | BG48: 0 | BH48: 0 | BI48: 0 | BM48: 26 | BO48: 17.195794 | BT48: =ROUND(BM48*$BT$2,2)+ROUND(BM48*$BT$1,2) -> 0.06 | BV48: -0.5 | CB48: 0 | CC48: 18.221045 | CD48: =AM48*$CB$1 -> 0 | CE48: 0 | CF48: 0 | CH48: =CB48-BN48 -> 0 | CI48: 1.025251 | CJ48: 0 | CK48: 0 | CL48: 0
B49: 2 | C49: 042 | D49: 533 | E49: 18 | G49: 042533 | I49: Single Light Emitting Diode (LED) | J49: Developer Contributed | K49: 70W | L49: 436T | M49: 0 | N49: 274 | O49: 0 | P49: 0 | Q49: 0 | R49: 0 | S49: 0 | T49: =T47-T103 -> 11.16 | U49: 0 | V49: 0 | W49: 0 | Y49: 0 | Z49: 3057.84 | AA49: 0 | AB49: 0 | AC49: 0 | AE49: =M49 -> 0 | AF49: =N49 -> 274 | AG49: =O49 -> 0 | AH49: =P49 -> 0 | AI49: =Q49 -> 0 | AK49: 0 | AL49: =AL48-AL103 -> 12.72 | AM49: 0 | AN49: 0 | AO49: 0 | AQ49: 0 | AR49: 3485.28 | AS49: 0 | AT49: 0 | AU49: 0 | AV49: 427.44 | AW49: 0.1397849462 | AY49: 0 | AZ49: =AZ48-AZ103 -> 11.98 | BA49: 0 | BB49: 0 | BC49: 0 | BE49: 0 | BF49: 3282.52 | BG49: 0 | BH49: 0 | BI49: 0 | BM49: 26 | BO49: 11.886821 | BT49: =ROUND(BM49*$BT$2,2)+ROUND(BM49*$BT$1,2) -> 0.06 | BV49: -0.5 | CB49: 0 | CC49: 12.912072 | CD49: 0 | CE49: 0 | CF49: 0 | CH49: 0 | CI49: 1.025251 | CJ49: 0 | CK49: 0 | CL49: 0
B50: 2 | C50: 042 | D50: 533L | E50: 55 | G50: 042533L | I50: Decorative Sodium Vapor | J50: No Pole | K50: Kim Light 100W | L50: 438 | M50: 0 | N50: 11 | O50: 0 | P50: 0 | Q50: 0 | R50: =IF(SUM(M50:Q50)>0,0,1) -> 0 | S50: 0 | T50: 15.23 | U50: 0 | V50: 0 | W50: 0 | Y50: 0 | Z50: 167.53 | AA50: 0 | AB50: 0 | AC50: 0 | AE50: 0 | AF50: =N50 -> 11 | AG50: 0 | AH50: 0 | AI50: 0 | AK50: 0 | AL50: =ROUND(T50*(1+AL$1),2) -> 16.68 | AM50: 0 | AN50: 0 | AO50: 0 | AQ50: 0 | AR50: 183.48 | AS50: 0 | AT50: 0 | AU50: 0 | AV50: 15.95 | AW50: 0.09520682863 | AY50: 0 | AZ50: =ROUND(AL50*(1+AZ$1),2) -> 15.7 | BA50: 0 | BB50: 0 | BC50: 0 | BE50: 0 | BF50: 172.7 | BG50: 0 | BH50: 0 | BI50: 0 | BM50: 40 | BO50: 15.977674 | BT50: 0.09 | BV50: -0.43 | CB50: 0 | CC50: 16.931868 | CD50: 0 | CE50: 0 | CF50: 0 | CH50: 0 | CI50: 0.954194 | CJ50: 0 | CK50: 0 | CL50: 0
B51: 2 | C51: 042 | D51: 533T | E51: =46+1 -> 47 | G51: 042533T | I51: Double Light Emitting Diode (LED) | J51: Standard | K51: 70W | L51: 441L | M51: 0 | N51: 14 | O51: 0 | P51: 0 | Q51: 0 | R51: 0 | S51: 0 | T51: 27.74 | U51: 0 | Y51: =IF(AND(M51<>0,S51=0),#VALUE!,M51*S51) -> 0 | Z51: 388.36 | AA51: 0 | AB51: 0 | AC51: 0 | AE51: =SUMIF($G:$G,TEXT(AE$3,"000")&TEXT($L51,"000"),$E:$E) -> 0 | AF51: 14 | AG51: 0 | AH51: 0 | AI51: 0 | AK51: 0 | AL51: 30.37 | AM51: 0 | AN51: 0 | AO51: 0 | AQ51: 0 | AR51: =IF(AND(AF51<>0,AL51=0),#VALUE!,AF51*AL51) -> 425.18 | AS51: 0 | AT51: 0 | AU51: 0 | AV51: 36.82 | AW51: 0.09480894016 | AY51: 0 | AZ51: =ROUND(AL51*(1+AZ$1),2) -> 28.59 | BA51: 0 | BB51: 0 | BC51: 0 | BE51: 0 | BF51: 400.26 | BG51: 0 | BH51: 0 | BI51: 0 | BM51: 52 | BO51: 29.092766 | BT51: =ROUND(BM51*$BT$2,2)+ROUND(BM51*$BT$1,2) -> 0.11 | BV51: -0.82 | CB51: 0 | CC51: 30.828587 | CD51: =AM51*$CB$1 -> 0 | CE51: 0 | CF51: 0 | CH51: =CB51-BN51 -> 0 | CI51: 1.735821 | CJ51: 0 | CK51: 0 | CL51: 0
B52: 2 | C52: 042 | D52: 535 | E52: 93 | G52: 042535 | I52: Double Light Emitting Diode (LED) | J52: Standard | K52: 70W | L52: 441T | M52: 0 | N52: 11 | O52: 0 | P52: 0 | Q52: 0 | R52: 0 | T52: =T51-T103-T103 -> 17.28 | Y52: 0 | Z52: 190.08 | AA52: 0 | AB52: 0 | AC52: 0 | AE52: 0 | AF52: 11 | AG52: 0 | AH52: 0 | AI52: 0 | AK52: 0 | AL52: =AL51-AL103-AL103 -> 19.91 | AM52: 0 | AN52: 0 | AO52: 0 | AQ52: 0 | AR52: 219.01 | AS52: 0 | AT52: 0 | AU52: 0 | AV52: 28.93 | AW52: 0.1521990741 | AY52: 0 | AZ52: =AZ51-AZ103-AZ103 -> 18.75 | BA52: 0 | BB52: 0 | BC52: 0 | BE52: 0 | BF52: 206.25 | BG52: 0 | BH52: 0 | BI52: 0 | BM52: 52 | BO52: 18.47482 | BT52: =ROUND(BM52*$BT$2,2)+ROUND(BM52*$BT$1,2) -> 0.11 | BV52: -0.82 | CB52: 0 | CC52: 20.210641 | CD52: 0 | CE52: 0 | CF52: 0 | CH52: 0 | CI52: 1.735821 | CJ52: 0 | CK52: 0 | CL52: 0
B53: 2 | C53: 042 | D53: 535L | E53: 831 | G53: 042535L | I53: Decorative Sodium Vapor | J53: Direct Burial | K53: Granville 100W | L53: 474 | M53: 0 | N53: 116 | O53: 0 | P53: 0 | Q53: 0 | R53: 0 | S53: 0 | T53: 26.54 | U53: 0 | V53: 0 | W53: 0 | Y53: 0 | Z53: 3078.64 | AA53: 0 | AB53: 0 | AC53: 0 | AE53: 0 | AF53: =N53 -> 116 | AG53: =O53 -> 0 | AH53: =P53 -> 0 | AI53: =Q53 -> 0 | AK53: 0 | AL53: 29.06 | AM53: 0 | AN53: 0 | AO53: 0 | AQ53: =IF(AND(AE53<>0,AK53=0),#VALUE!,AE53*AK53) -> 0 | AR53: =IF(AND(AF53<>0,AL53=0),#VALUE!,AF53*AL53) -> 3370.96 | AS53: =IF(AND(AG53<>0,AM53=0),#VALUE!,AG53*AM53) -> 0 | AT53: 0 | AU53: 0 | AV53: 292.32 | AW53: 0.09495101733 | AY53: 0 | AZ53: =ROUND(AL53*(1+AZ$1),2) -> 27.36 | BA53: 0 | BB53: 0 | BC53: 0 | BE53: 0 | BF53: 3173.76 | BG53: 0 | BH53: 0 | BI53: 0 | BM53: 40 | BO53: 27.834042 | BT53: 0.09 | BV53: -0.8 | CB53: 0 | CC53: 29.498806 | CD53: 0 | CE53: 0 | CF53: 0 | CH53: 0 | CI53: 1.664764 | CJ53: 0 | CK53: 0 | CL53: 0
B54: 2 | C54: 042 | D54: 535T | E54: =394+2 -> 396 | G54: 042535T | I54: Decorative Light Emitting Diode (LED) | J54: Direct Burial | K54: Granville 70W | L54: 474L | M54: =SUMIF($G:$G,TEXT(M$3,"000")&TEXT($L54,"000"),$E:$E) -> 0 | N54: 235 | O54: 0 | P54: 0 | Q54: 0 | R54: 0 | S54: 0 | T54: =T53 -> 26.54 | U54: 0 | Y54: =IF(AND(M54<>0,S54=0),#VALUE!,M54*S54) -> 0 | Z54: =IF(AND(N54<>0,T54=0),#VALUE!,N54*T54) -> 6236.9 | AA54: =IF(AND(O54<>0,U54=0),#VALUE!,O54*U54) -> 0 | AB54: =IF(AND(P54<>0,V54=0),#VALUE!,P54*V54) -> 0 | AC54: =IF(AND(Q54<>0,W54=0),#VALUE!,Q54*W54) -> 0 | AE54: =SUMIF($G:$G,TEXT(AE$3,"000")&TEXT($L54,"000"),$E:$E) -> 0 | AF54: =SUMIF($G:$G,TEXT(AF$3,"000")&TEXT($L54,"000"),$E:$E) -> 235 | AG54: =SUMIF($G:$G,TEXT(AG$3,"000")&TEXT($L54,"000"),$E:$E) -> 0 | AH54: =SUMIF($G:$G,TEXT(AH$3,"000")&TEXT($L54,"000"),$E:$E) -> 0 | AI54: =SUMIF($G:$G,TEXT(AI$3,"000")&TEXT($L54,"000"),$E:$E) -> 0 | AK54: 0 | AL54: =AL53 -> 29.06 | AM54: 0 | AN54: 0 | AO54: 0 | AQ54: =IF(AND(AE54<>0,AK54=0),#VALUE!,AE54*AK54) -> 0 | AR54: 6829.1 | AS54: 0 | AT54: 0 | AU54: 0 | AV54: 592.2 | AW54: 0.09495101733 | AY54: 0 | AZ54: =AZ53 -> 27.36 | BA54: 0 | BB54: 0 | BC54: 0 | BE54: 0 | BF54: 6429.6 | BG54: 0 | BH54: 0 | BI54: 0 | BM54: 26 | BO54: 27.834042 | BT54: =ROUND(BM54*$BT$2,2)+ROUND(BM54*$BT$1,2) -> 0.06 | BV54: -0.83 | CB54: 0 | CC54: 29.498806 | CD54: =AM54*$CB$1 -> 0 | CE54: =AN54*$CB$1 -> 0 | CF54: =AO54*$CB$1 -> 0 | CH54: =CB54-BN54 -> 0 | CI54: 1.664764 | CJ54: 0 | CK54: 0 | CL54: 0
B55: 2 | C55: 042 | D55: 536 | E55: 152 | G55: 042536 | I55: Decorative Sodium Vapor | J55: Direct Burial | K55: Post Top 100W | L55: 484 | M55: 0 | N55: 68 | O55: 0 | P55: 0 | Q55: 0 | R55: 0 | S55: 0 | T55: 25.26 | U55: 0 | V55: 0 | W55: 0 | Y55: 0 | Z55: 1717.68 | AA55: 0 | AB55: 0 | AC55: 0 | AE55: 0 | AF55: =N55 -> 68 | AG55: 0 | AH55: 0 | AI55: 0 | AK55: =ROUND(S55*(1+AK$1),2) -> 0 | AL55: 27.66 | AM55: =ROUND(U55*(1+AM$1),2) -> 0 | AN55: =ROUND(V55*(1+AN$1),2) -> 0 | AO55: =ROUND(W55*(1+AO$1),2) -> 0 | AQ55: =IF(AND(AE55<>0,AK55=0),#VALUE!,AE55*AK55) -> 0 | AR55: 1880.88 | AS55: =IF(AND(AG55<>0,AM55=0),#VALUE!,AG55*AM55) -> 0 | AT55: =IF(AND(AH55<>0,AN55=0),#VALUE!,AH55*AN55) -> 0 | AU55: =IF(AND(AI55<>0,AO55=0),#VALUE!,AI55*AO55) -> 0 | AV55: 163.2 | AW55: 0.09501187648 | AY55: 0 | AZ55: =ROUND(AL55*(1+AZ$1),2) -> 26.04 | BA55: 0 | BB55: 0 | BC55: 0 | BE55: 0 | BF55: 1770.72 | BG55: 0 | BH55: 0 | BI55: 0 | BM55: 40 | BO55: 26.49411 | BT55: 0.09 | BV55: -0.76 | CB55: =AK55*$CB$1 -> 0 | CC55: =AL55*$CB$1 -> 28.077666 | CD55: 0 | CE55: 0 | CF55: 0 | CH55: 0 | CI55: 1.583556 | CJ55: 0 | CK55: 0 | CL55: 0
B56: 2 | C56: 042 | D56: 536L | E56: 245 | G56: 042536L | I56: Decorative Light Emitting Diode (LED) | J56: Direct Burial | K56: Post Top 70W | L56: 484L | M56: 0 | N56: 99 | O56: 0 | P56: 0 | Q56: 0 | R56: 0 | S56: 0 | T56: =T55 -> 25.26 | U56: 0 | Y56: =IF(AND(M56<>0,S56=0),#VALUE!,M56*S56) -> 0 | Z56: =IF(AND(N56<>0,T56=0),#VALUE!,N56*T56) -> 2500.74 | AA56: =IF(AND(O56<>0,U56=0),#VALUE!,O56*U56) -> 0 | AB56: =IF(AND(P56<>0,V56=0),#VALUE!,P56*V56) -> 0 | AC56: =IF(AND(Q56<>0,W56=0),#VALUE!,Q56*W56) -> 0 | AE56: =SUMIF($G:$G,TEXT(AE$3,"000")&TEXT($L56,"000"),$E:$E) -> 0 | AF56: 99 | AG56: 0 | AH56: 0 | AI56: 0 | AK56: =ROUND(S56*(1+AK$1),2) -> 0 | AL56: =AL55 -> 27.66 | AM56: 0 | AN56: 0 | AO56: 0 | AQ56: 0 | AR56: 2738.34 | AS56: 0 | AT56: 0 | AU56: 0 | AV56: 237.6 | AW56: 0.09501187648 | AY56: 0 | AZ56: =AZ55 -> 26.04 | BA56: 0 | BB56: 0 | BC56: 0 | BE56: 0 | BF56: 2577.96 | BG56: 0 | BH56: 0 | BI56: 0 | BM56: 26 | BO56: 26.49411 | BT56: =ROUND(BM56*$BT$2,2)+ROUND(BM56*$BT$1,2) -> 0.06 | BV56: -0.79 | CB56: 0 | CC56: 28.077666 | CD56: =AM56*$CB$1 -> 0 | CE56: 0 | CF56: 0 | CH56: =CB56-BN56 -> 0 | CI56: =CC56-BO56 -> 1.583556 | CJ56: =CD56-BP56 -> 0 | CK56: =CE56-BQ56 -> 0 | CL56: =CF56-BR56 -> 0
B57: 2 | C57: 042 | D57: 536T | E57: =339+4 -> 343 | G57: 042536T | I57: Single Light Emitting Diode (LED) | J57: 30ft Fiberglass Pole | K57: 70W | L57: 494L | M57: 0 | N57: 12 | O57: 0 | P57: 0 | Q57: 0 | R57: =IF(SUM(M57:Q57)>0,0,1) -> 0 | S57: 0 | T57: 27.93 | U57: 0 | Y57: =IF(AND(M57<>0,S57=0),#VALUE!,M57*S57) -> 0 | Z57: =IF(AND(N57<>0,T57=0),#VALUE!,N57*T57) -> 335.16 | AA57: =IF(AND(O57<>0,U57=0),#VALUE!,O57*U57) -> 0 | AB57: =IF(AND(P57<>0,V57=0),#VALUE!,P57*V57) -> 0 | AC57: =IF(AND(Q57<>0,W57=0),#VALUE!,Q57*W57) -> 0 | AE57: 0 | AF57: 12 | AG57: 0 | AH57: 0 | AI57: 0 | AK57: =ROUND(S57*(1+AK$1),2) -> 0 | AL57: =ROUND(T57*(1+AL$1),2) -> 30.58 | AM57: 0 | AN57: 0 | AO57: 0 | AQ57: 0 | AR57: 366.96 | AS57: 0 | AT57: 0 | AU57: 0 | AY57: 0 | AZ57: =ROUND(AL57*(1+AZ$1),2) -> 28.79 | BA57: 0 | BB57: 0 | BC57: 0 | BE57: 0 | BF57: 345.48 | BG57: 0 | BH57: 0 | BI57: 0 | BM57: 26 | BO57: 29.295786 | BT57: =ROUND(BM57*$BT$2,2)+ROUND(BM57*$BT$1,2) -> 0.06 | BV57: -0.88 | CB57: 0 | CC57: 31.041758 | CD57: 0 | CE57: 0 | CF57: 0 | CH57: =CB57-BN57 -> 0 | CI57: =CC57-BO57 -> 1.745972 | CJ57: =CD57-BP57 -> 0 | CK57: =CE57-BQ57 -> 0 | CL57: =CF57-BR57 -> 0
B58: 2 | C58: 042 | D58: 541 | E58: 2 | G58: 042541 | I58: LED (Dusk to 11:00) | J58: Dusk to 11 PM | K58: 100W | L58: 499 | M58: 0 | N58: 0 | O58: 0 | P58: 0 | Q58: 41 | R58: 0 | S58: 0 | T58: 0 | U58: 0 | V58: 0 | W58: 2.87 | Y58: 0 | Z58: 0 | AA58: 0 | AB58: 0 | AC58: 117.67 | AE58: 0 | AF58: 0 | AG58: 0 | AH58: 0 | AI58: 41 | AK58: 0 | AL58: 0 | AM58: 0 | AN58: 0 | AO58: 3.16 | AQ58: 0 | AR58: 0 | AS58: 0 | AT58: 0 | AU58: 129.56 | AV58: 0 | AY58: 0 | AZ58: =ROUND(AL58*(1+AZ$1),2) -> 0 | BA58: 0 | BB58: 0 | BC58: 2.98 | BE58: 0 | BF58: 0 | BG58: 0 | BH58: 0 | BI58: 122.18 | BM58: 21 | BR58: 3.01 | BT58: 0.04 | BY58: =ROUND((W58*$BU$2)+$BT58-BR58,2) -> -0.06 | CB58: 0 | CC58: 0 | CD58: 0 | CE58: 0 | CF58: 3.207716 | CH58: =CB58-BN58 -> 0 | CI58: 0 | CJ58: 0 | CK58: 0 | CL58: 0.197716
B59: 2 | C59: 042 | D59: 541L | E59: 1 | G59: 042541L | I59: Mercury Vapor | J59: Dusk to Dawn | K59: 10000 | L59: 515 | M59: 0 | N59: 0 | O59: 0 | P59: 1 | Q59: 0 | R59: 0 | S59: 0 | T59: 0 | U59: 0 | V59: 9.97 | W59: 0 | Y59: 0 | Z59: 0 | AA59: 0 | AB59: 9.97 | AC59: 0 | AE59: 0 | AF59: 0 | AG59: 0 | AH59: 1 | AI59: 0 | AK59: 0 | AL59: 0 | AM59: 0 | AN59: 10.99 | AO59: 0 | AQ59: 0 | AR59: 0 | AS59: 0 | AT59: 10.99 | AU59: 0 | AV59: 0 | AY59: 0 | AZ59: =ROUND(AL59*(1+AZ$1),2) -> 0 | BA59: 0 | BB59: 10.35 | BC59: 0 | BE59: 0 | BF59: 0 | BG59: 0 | BH59: 10.35 | BI59: 0 | BM59: 111 | BQ59: 10.46 | BT59: 0.25 | BX59: =ROUND((V59*$BU$2)+$BT59-BQ59,2) -> -0.09 | CB59: 0 | CC59: 0 | CD59: 0 | CE59: 11.155949 | CF59: 0 | CH59: 0 | CI59: 0 | CJ59: 0 | CK59: 0.695949 | CL59: 0
B60: 2 | C60: 042 | D60: 541T | E60: 0 | G60: 042541T | I60: Single High-Pressure Sodium Vapor | J60: Standard | K60: 200W | L60: 531 | M60: 0 | N60: 163 | O60: 0 | P60: 0 | Q60: 0 | R60: 0 | S60: 0 | T60: 20.1 | U60: 12.07 | V60: 0 | W60: 0 | Y60: 0 | Z60: 3276.3 | AA60: 0 | AB60: 0 | AC60: 0 | AE60: 0 | AF60: =N60 -> 163 | AG60: =O60 -> 0 | AH60: =P60 -> 0 | AI60: =Q60 -> 0 | AK60: 0 | AL60: =ROUND(T60*(1+AL$1),2) -> 22.01 | AM60: 13.31 | AN60: 0 | AO60: 0 | AQ60: 0 | AR60: 3587.63 | AS60: 0 | AT60: 0 | AU60: 0 | AV60: 311.33 | AW60: 0.09502487562 | AY60: 0 | AZ60: 20.72 | BA60: 12.53 | BB60: 0 | BC60: 0 | BE60: 0 | BF60: 3377.36 | BG60: 0 | BH60: 0 | BI60: 0 | BM60: 85 | BP60: 12.66 | BT60: 0.18 | BW60: =ROUND((U60*$BU$2)+$BT60-BP60,2) -> -0.23 | CB60: 0 | CC60: 22.342351 | CD60: 13.510981 | CE60: 0 | CF60: 0 | CH60: 0 | CI60: 22.342351 | CJ60: 0.850981 | CK60: 0 | CL60: 0
B61: 2 | C61: 042 | D61: 542L | E61: 15 | G61: 042542L | I61: Single Light Emitting Diode (LED) | J61: Standard | K61: 107W | L61: 531L | M61: 0 | N61: 1349 | O61: 0 | P61: 0 | Q61: 0 | R61: =IF(SUM(M61:Q61)>0,0,1) -> 0 | S61: 0 | T61: =T60 -> 20.1 | U61: 0 | V61: 0 | Y61: 0 | Z61: 27114.9 | AA61: 0 | AB61: 0 | AC61: 0 | AE61: =SUMIF($G:$G,TEXT(AE$3,"000")&TEXT($L61,"000"),$E:$E) -> 0 | AF61: =SUMIF($G:$G,TEXT(AF$3,"000")&TEXT($L61,"000"),$E:$E) -> 1349 | AG61: =SUMIF($G:$G,TEXT(AG$3,"000")&TEXT($L61,"000"),$E:$E) -> 0 | AH61: =SUMIF($G:$G,TEXT(AH$3,"000")&TEXT($L61,"000"),$E:$E) -> 0 | AI61: =SUMIF($G:$G,TEXT(AI$3,"000")&TEXT($L61,"000"),$E:$E) -> 0 | AK61: 0 | AL61: =AL60 -> 22.01 | AM61: 0 | AN61: 0 | AO61: 0 | AQ61: 0 | AR61: 29691.49 | AS61: 0 | AT61: 0 | AU61: 0 | AY61: 0 | AZ61: =AZ60 -> 20.72 | BA61: 0 | BB61: 0 | BC61: 0 | BE61: 0 | BF61: 27951.28 | BG61: 0 | BH61: 0 | BI61: 0 | BM61: 39 | BT61: 0.08 | BV61: =ROUND((T61*$BU$2)+$BT61-BO61,2) -> 20.48 | CB61: 0 | CC61: 22.342351 | CD61: 0 | CE61: 0 | CF61: 0 | CH61: 0 | CI61: 22.342351 | CJ61: 0 | CK61: 0 | CL61: 0
B62: 2 | C62: 042 | D62: 542T | E62: 9 | G62: 042542T | I62: Single Light Emitting Diode (LED) | J62: Standard | K62: 107W | L62: 531T | M62: 0 | N62: 474 | O62: 0 | P62: 0 | Q62: 0 | R62: 0 | S62: 0 | T62: =T60-T104 -> 14.57 | V62: 0 | W62: 0 | Y62: 0 | Z62: 6906.18 | AA62: 0 | AB62: 0 | AC62: 0 | AE62: =M62 -> 0 | AF62: =N62 -> 474 | AG62: =O62 -> 0 | AH62: =P62 -> 0 | AI62: =Q62 -> 0 | AK62: 0 | AL62: =AL60-AL104 -> 16.48 | AM62: 0 | AN62: 0 | AO62: 0 | AQ62: 0 | AR62: 7811.52 | AS62: 0 | AT62: 0 | AU62: 0 | AV62: =SUM(AQ62:AU62)-SUM(Y62:AC62) -> 905.34 | AY62: 0 | AZ62: =AZ60-AZ104 -> 15.51 | BA62: 0 | BB62: 0 | BC62: 0 | BE62: 0 | BF62: 7351.74 | BG62: 0 | BH62: 0 | BI62: 0 | BM62: 39 | BT62: 0.08 | BV62: 14.87 | CB62: 0 | CC62: 16.728848 | CD62: 0 | CE62: 0 | CF62: 0 | CH62: 0 | CI62: 16.728848 | CJ62: 0 | CK62: 0 | CL62: 0
